Workbook

Sheet Membership #
A1: 19 | B1: Jacie Burke | C1: She's Just That Sassy
A2: 77 | B2: Travis Patterson | C2: Dacs Breezin Rome
A3: 969 | B3: Kenzie Cook | C3: Pocos Lady Emeralda
A4: 973 | B4: Sara Ivey | C4: Ms Heavenly Gator
A5: 81 | B5: Peyton Lynds | C5: Roxy
A6: 82 | B6: Scotia MacEachern | C6: Hick-a-Licious
A7: 83 | B7: Taylor Dickson | C7: Smarts Hicks
A8: 84 | B8: Amber Lloyd | C8: Lilly
A9: 85 | B9: Kaelyn Keddy | C9: Sight to Behold
A10: 85 | B10: Katelyn Keddy | C10: Sight to Behold
A11: 86 | B11: Chantelle Oulton | C11: Jack Sparrow
A12: 86 | B12: Chantelle Oulton | C12: Jack Sparrow
A13: 87 | B13: Kerissa Martin | C13: Wild Steppin' Phoenix
A14: 89 | B14: Hannah Rafuse | C14: Cookie
A15: 90 | B15: Tarissa Rafuse | C15: Sparkles
A16: 974 | B16: Kerissa Martin | C16: Wild Steppin Phoenix
A17: 93 | B17: Nicole Kent | C17: Legacy's Lacy Invite
A18: 94 | B18: Ainsley Marshall | C18: JW
A19: 97 | B19: MacKenize Hughes | C19: Batmans Famous Bugs
A20: 99 | B20: Ella Cowley | C20: Blazin Boots
A21: 100 | B21: Taylor Payzant | C21: Money out of my Pocket
A22: 501 | B22: Chuck Patterson
A23: 501 | B23: Marion MacDonald | C23: Looking for a Pay Day
A24: 502 | B24: Ryson Doucette | C24: Plan B
A25: 503 | B25: Kate Dew
A26: 504 | B26: Pat McLean | C26: Johnny Drama
A27: 505 | B27: Chris Bezanson | C27: Miss Conjelena Doc
A28: 506 | B28: Elaine MacLean | C28: Fast Tick to Vegas
A29: 507 | B29: Jason Wilkins / Alexis Wilkins | C29: PB King Leo Buck
A30: 508 | B30: Chris Philips | C30: Justa Blurr ta Fame
A31: 509 | B31: Emma Simpson | C31: She's a Myan Princess
A32: 510 | B32: Jason Lively | C32: Tip One Back
A33: 511 | B33: Elaine MacLean | C33: Wicked Latigo Doc
A34: 512 | B34: Kenny Burt
A35: 513 | B35: Justin Wade | C35: The Gentleman
A36: 514 | B36: Heather Morrison | C36: Black Fire Dash
A37: 515 | B37: Ed Grant | C37: I Own A Corona
A38: 516 | B38: Laurie Don Reginato | C38: TCR Gold Runny
A39: 517 | B39: Jessica Hawkins
A40: 518 | B40: Sylvester Weatherbie | C40: J.R.
A41: 519 | B41: Charlsea Fiske | C41: Lights Out Goys
A42: 520 | B42: John McAssey
A43: 521 | B43: Royden Naugler | C43: RR Smooth Richochet
A44: 522 | B44: Emma Taylor | C44: Takin A Chance
A45: 523 | B45: Nicole Dobson | C45: Barbeesimpossibleinprint
A46: 524 | B46: Stan Brown | C46: Kicked In Overdrive
A47: 525 | B47: Charmaine Gallant | C47: Six Viking
A48: 526 | B48: Talor Naugler | C48: Blazing Hot
A49: 527 | B49: Royce Naugler | C49: Rockin Ronnie
A50: 528 | B50: Talor Naugler | C50: A Touch of Lace
A51: 529 | B51: Reese LeBlanc | C51: Badger Bar ToWinSome
A52: 530 | B52: Joan Grant | C52: SLS Dash to Holland
A53: 531 | B53: Addison Peters | C53: He's A Little Wonder
A54: 532 | B54: Gracie MacLean | C54: Secret
A55: 533 | B55: Jessica Taylor | C55: Farrells Finest Man
A56: 534 | B56: Mary Lou Rankin Dentin | C56: Brandy's Chocolena
A57: 535 | B57: Shaun Allen | C57: Fancy
A58: 536 | B58: MaryLouRankinDenton | C58: Grey Check Lady
A59: 537 | B59: Alka Virick | C59: Corona Identity
A60: 538 | B60: Jean DuGas | C60: Pal's Lilguy
A61: 539 | B61: Alex Singer | C61: Plain White Trash
A62: 540 | B62: NOT TO BE USED
A63: 541 | B63: Mark McLean | C63: Mr. Lucky Fame
A64: 542 | B64: Kate Madsen | C64: Return Two Fame
A65: 543 | B65: Kathleen Zwaneveld | C65: Dirk Digler
A66: 544 | B66: Kevin Bateman | C66: Conquistadorwhizchc
A67: 545 | B67: Karen MacDonald | C67: Doc Belle Bandit
A68: 546 | B68: Charmaine Gallant | C68: Maybull
A69: 547 | B69: Lindsay Hilchie
A70: 548 | B70: Lindsay Hilchie | C70: Tri Bright Chance
A71: 549 | B71: Chris MacLean | C71: Lena`s Little Hayday
A72: 550 | B72: Eunice Dykstra
A73: 551 | B73: Riley Reginato | C73: Straight Firen Jet
A74: 552 | B74: Emily Messenger | C74: Luckys Starlet
A75: 553 | B75: Monica Buffett | C75: MB Victory Dance
A76: 554 | B76: Ashley Crane | C76: Diesel Powered Jet
A77: 555 | B77: Stephanie Clark | C77: OK Den
A78: 556 | B78: Stephaine Clark | C78: Perks A Flyin
A79: 557 | B79: Paige Angevine | C79: Tac Off
A80: 558 | B80: Kevin Eaton | C80: High Country Cricket
A81: 559 | B81: Craig Carey | C81: Whistlen Major
A82: 560 | B82: Joan Grant | C82: Nonstop Bay Boy
A83: 561 | B83: Makiah Sparks | C83: Mr Cookie
A84: 562 | B84: Karen Hatcher | C84: Going Postal
A85: 563 | B85: Kevin Bateman | C85: Jess Chasin A Hobby
A86: 564 | B86: Bree Johnston | C86: Lylebeta Zack
A87: 565 | B87: Kristen Beck | C87: Poco Desert Rose
A88: 566 | B88: Pat McLean | C88: Chisel Stone
A89: 568 | B89: Cathy Rankin | C89: Heza Doc Twists
A90: 569 | B90: Kate Dew | C90: Tiny Gay's Dasher
A91: 570 | B91: Bobby Stevens | C91: Rico Mancini
A92: 571 | B92: Ken Jardine | C92: Bullet
A93: 572 | B93: Maureen Murray | C93: Down Home Lady
A94: 573 | B94: Lucy Collier Gallant | C94: Ben Bodacious
A95: 574 | B95: Emma Lee Taylor | C95: SAQ Chiefs Two Bit
A96: 575 | B96: Robert Eaton | C96: Den
A97: 576 | B97: Kevin Eaton | C97: Hy Bred Inheritance
A98: 577 | B98: Lorie Angevine | C98: Two Zan Par Silver
A99: 578 | B99: Robert Eaton | C99: Impressive Ben
A100: 579 | B100: Joanne Scott | C100: Lily
A101: 580 | B101: Candace Sakalauskas | C101: LNTS Two Eyed Jackie
A102: 581 | B102: Jean DuGas
A103: 582 | B103: Roddie Benoit | C103: Bug Bar Bandit
A104: 583 | B104: Travis Patterson | C104: JT Rosie
A105: 584 | B105: Tammy Young | C105: Sonny Dee Thunder
A106: 585 | B106: Brittany McIntyre | C106: Cherry Can Do
A107: 586 | B107: Scott McLean | C107: Presto Lee
A108: 587 | B108: Erin Groves | C108: Over The Rainbow
A109: 588 | B109: Sarah LeBlanc | C109: Down Home Empress
A110: 589 | B110: Kim Sellars | C110: Hidden Assets
A111: 590 | B111: Charlotte McCarthy | C111: Smokey B Kay
A112: 591 | B112: Wendy MacLean | C112: White Sox N Flyin
A113: 592 | B113: Jessie Cummings | C113: Jet Tares
A114: 593 | B114: Samantha Miller | C114: Sheamos Promise
A115: 594 | B115: Hope Angevine | C115: Sulanist Mist
A116: 595 | B116: Kyle Beaton | C116: Diesel's Inferno
A117: 596 | B117: Lauren Daley | C117: Myas Skippen Redford
A118: 597 | B118: Cecile Dykstra | C118: Codys Zippin It Up
A119: 598 | B119: Roddie Benoit | C119: Ruled By Bully
A120: 599 | B120: Adrienne Benoit | C120: Grey Ghost
A121: 600 | B121: Stan Brown | C121: A Perty Sure Thing
A122: 601 | B122: Marion MacDonald | C122: Miss Guardian Angel
A123: 602 | B123: Laura Croft | C123: Zippo Silver Pine
A124: 603 | B124: Stacy Murray | C124: Express Mist
A125: 604 | B125: Gordon McCabe | C125: Apache Blue Nugget
A126: 605 | B126: Cindy Wamboldt | C126: Salty Bully Express
A127: 606 | B127: Tanya Naugler | C127: Driftin Two Dixie
A128: 607 | B128: Laura Morrison | C128: Chicks Painted Wagon
A129: 608 | B129: Kate Madsen | C129: Slide on Bye
A130: 609 | B130: Stacy Murray | C130: JD Grambler
A131: 610 | B131: Katherine Horsman | C131: Shiloh
A132: 611 | B132: Rebecca Fraser | C132: Granger Dee Doc
A133: 612 | B133: Kristen Beck | C133: Diablo's Blue Step
A134: 613 | B134: Kelly LeBlanc | C134: Starrs Double King
A135: 614 | B135: Georda MacInnis
A136: 615 | B136: Judy Bateman | C136: Hollywood Elite
A137: 616 | B137: Judy Bateman | C137: HM HollywoodRockstar
A138: 617 | B138: Elaine Mahaney | C138: Sabes Lightnin Bug
A139: 618 | B139: Audrey MacLeod | C139: Crown Royal JR
A140: 619 | B140: Cassie Daniels | C140: Sugar Ray Light Foot
A141: 620 | B141: Stephanie Daniels | C141: Fire Ball Max
A142: 621 | B142: Nichole Pothier | C142: Born To Boogie
A143: 622 | B143: Courtney Parker | C143: BW Rare Kinda Love
A144: 623 | B144: Connie Trider | C144: Hollywood Ranson
A145: 624 | B145: Dixie Tuffs | C145: Ima Frostee Bay B
A146: 625 | B146: Ryson Doucette | C146: Keeper of The Perks
A147: 626 | B147: Jeremy Graham | C147: Echo charged
A148: 627 | B148: Kaelyn Keddy | C148: Sight to Behold
A149: 628 | B149: Amanda Matchett | C149: Smoke M Pardner
A150: 629 | B150: Beth O'Leary | C150: Toms Final Dash
A151: 630 | B151: Beth O'Leary | C151: Kings Black
A152: 631 | B152: Nicole vanDyke | C152: Ima Bully
A153: 632 | B153: Breighanne Finlayson | C153: Dee Dun Smart
A154: 633 | B154: Ella Cowley | C154: Oscar
A155: 634 | B155: Katlyn Benere | C155: He's Got Class
A156: 635 | B156: Trudy Hemeon | C156: RS Painted Pretty
A157: 636 | B157: Ceilidh Gosse | C157: ELM Silver Crime
A158: 637 | B158: Caleb Buffett | C158: JMF Flashdance
A159: 638 | B159: Bella Peters | C159: Super Star
A160: 639 | B160: Sally King | C160: Watch That Digger Go
A161: 640 | B161: April Jollimore/Megan MacDonald | C161: Pilgrim
A162: 641 | B162: Ava Harb | C162: Super Rockie
A163: 642 | B163: John Blair | C163: Totally Kissed
A164: 643 | B164: Willow Brooks | C164: Mr Betta B Ware
A165: 644 | B165: Pat Rodney
A166: 645 | B166: Tammy Young | C166: Whoa Laredo
A167: 646 | B167: Taylor Blair
A168: 647 | B168: Courtney Parker | C168: BW Rare Kinda Love
A169: 648 | B169: Norman Blanchard | C169: Sheny Bugs
A170: 649 | B170: Cara Pettipas | C170: Shezabonafiedbully
A171: 650 | B171: Cara Pettipas | C171: Miss Wonder Bully
A172: 651 | B172: Olivia MacLean | C172: A Boy Named Sue
A173: 652 | B173: Molly O'Grady | C173: Teelano's Twister
A174: 653 | B174: Ryson Doucette | C174: Pawnee Kid N Gold
A175: 654 | B175: Deavan Chapman | C175: Enlighten
A176: 655 | B176: Julia Parker | C176: Boons Feature Star
A177: 656 | B177: Willow Brooks | C177: Free Spirit
A178: 657 | B178: Laura Morrison | C178: Steal Ta Fame
A179: 658 | B179: Heather Morrison | C179: Last Chance
A180: 659 | B180: Gloria Carey | C180: True Blue Tivios
A181: 660 | B181: Charles Edwards | C181: Rarer Than You Think
A182: 661 | B182: Clara Tooley | C182: Chicado Rebel
A183: 662 | B183: Shelly Moore | C183: Too Tough Cat
A184: 663 | B184: Dixie Tuffs | C184: Running Squirrel
A185: 664 | B185: Christine Doane | C185: Maromac Lexis
A186: 665 | B186: Robert Eaton | C186: FF Chick
A187: 666 | B187: Summer Fraser | C187: Sheza Smokin' Girl
A188: 667 | B188: Paige Angevine | C188: Skip
A189: 668 | B189: Amanda Young | C189: King Leo Buck
A190: 669 | B190: Roddie Benoit | C190: True Blue Slew
A191: 670 | B191: Allie Fox | C191: DNA Bold Bediuno
A192: 671 | B192: Paige Gray | C192: What's Up Doc
A193: 672 | B193: Maureen Murray | C193: Catch My Bones
A194: 673 | B194: Kristen Beck | C194: Monster Bunny
A195: 674 | B195: Kyle Beaton | C195: Jus For Kicks
A196: 675 | B196: Chris Philips | C196: Deacon Eye Boo
A197: 676 | B197: Linda Bird | C197: Moony's Black Magic
A198: 677 | B198: Jenna Paquet
A199: 678 | B199: Jocelyn d'Entremont | C199: KT Ruby N Tin
A200: 679 | B200: Clara Tooley | C200: All Hot N Easy
... 270 more rows

Sheet Stall List
A1: Tom Burt & Mark McGuire Memorial Jackpot 2021
B2: RING # | C2: NAME | D2: HORSE NAME | F2: Stall request info
A3: 1 | B3: 591 | C3: =IF(B3="","",(VLOOKUP(B3,'Membership #'!$A$1:$C$1005,2,FALSE))) -> Wendy MacLean | D3: =IF(B3="","",(VLOOKUP(B3,'Membership #'!$A$1:$C$1005,3,FALSE))) -> White Sox N Flyin
A4: 2 | B4: 532 | C4: =IF(B4="","",(VLOOKUP(B4,'Membership #'!$A$1:$C$1005,2,FALSE))) -> Gracie MacLean | D4: =IF(B4="","",(VLOOKUP(B4,'Membership #'!$A$1:$C$1005,3,FALSE))) -> Secret
A5: 3 | B5: 563 | C5: =IF(B5="","",(VLOOKUP(B5,'Membership #'!$A$1:$C$1005,2,FALSE))) -> Kevin Bateman | D5: =IF(B5="","",(VLOOKUP(B5,'Membership #'!$A$1:$C$1005,3,FALSE))) -> Jess Chasin A Hobby
A6: 4 | B6: 616 | C6: =IF(B6="","",(VLOOKUP(B6,'Membership #'!$A$1:$C$1005,2,FALSE))) -> Judy Bateman | D6: =IF(B6="","",(VLOOKUP(B6,'Membership #'!$A$1:$C$1005,3,FALSE))) -> HM HollywoodRockstar
A7: 5 | B7: 530 | C7: =IF(B7="","",(VLOOKUP(B7,'Membership #'!$A$1:$C$1005,2,FALSE))) -> Joan Grant | D7: =IF(B7="","",(VLOOKUP(B7,'Membership #'!$A$1:$C$1005,3,FALSE))) -> SLS Dash to Holland
A8: 6 | B8: 968 | C8: =IF(B8="","",(VLOOKUP(B8,'Membership #'!$A$1:$C$1005,2,FALSE))) -> Madison Pelly | D8: =IF(B8="","",(VLOOKUP(B8,'Membership #'!$A$1:$C$1005,3,FALSE))) -> Westin
A9: 7 | B9: 768 | C9: =IF(B9="","",(VLOOKUP(B9,'Membership #'!$A$1:$C$1005,2,FALSE))) -> Tracey Higgins | D9: =IF(B9="","",(VLOOKUP(B9,'Membership #'!$A$1:$C$1005,3,FALSE))) -> Iza Wicked Wind
A10: 8 | B10: 908 | C10: =IF(B10="","",(VLOOKUP(B10,'Membership #'!$A$1:$C$1005,2,FALSE))) -> Josie Higgins | D10: =IF(B10="","",(VLOOKUP(B10,'Membership #'!$A$1:$C$1005,3,FALSE))) -> Rocket Man
A11: 9 | B11: 627 | C11: =IF(B11="","",(VLOOKUP(B11,'Membership #'!$A$1:$C$1005,2,FALSE))) -> Kaelyn Keddy | D11: =IF(B11="","",(VLOOKUP(B11,'Membership #'!$A$1:$C$1005,3,FALSE))) -> Sight to Behold
A12: 10 | B12: 969 | C12: =IF(B12="","",(VLOOKUP(B12,'Membership #'!$A$1:$C$1005,2,FALSE))) -> Kenzie Cook | D12: =IF(B12="","",(VLOOKUP(B12,'Membership #'!$A$1:$C$1005,3,FALSE))) -> Pocos Lady Emeralda
A13: 11 | B13: 815 | C13: =IF(B13="","",(VLOOKUP(B13,'Membership #'!$A$1:$C$1005,2,FALSE))) -> Brooke Kennedy | D13: =IF(B13="","",(VLOOKUP(B13,'Membership #'!$A$1:$C$1005,3,FALSE))) -> Tic Toc Teazer
A14: 12 | B14: 750 | C14: =IF(B14="","",(VLOOKUP(B14,'Membership #'!$A$1:$C$1005,2,FALSE))) -> Tanya Kennedy | D14: =IF(B14="","",(VLOOKUP(B14,'Membership #'!$A$1:$C$1005,3,FALSE))) -> Old Stations Pride
A15: 13 | B15: 753 | C15: =IF(B15="","",(VLOOKUP(B15,'Membership #'!$A$1:$C$1005,2,FALSE))) -> Kayla Boudreau | D15: =IF(B15="","",(VLOOKUP(B15,'Membership #'!$A$1:$C$1005,3,FALSE))) -> Lady Jane
A16: 14 | B16: 954 | C16: =IF(B16="","",(VLOOKUP(B16,'Membership #'!$A$1:$C$1005,2,FALSE))) -> Scotia MacEachern | D16: =IF(B16="","",(VLOOKUP(B16,'Membership #'!$A$1:$C$1005,3,FALSE))) -> Hick-a-Licious
A17: 15 | B17: 684 | C17: =IF(B17="","",(VLOOKUP(B17,'Membership #'!$A$1:$C$1005,2,FALSE))) -> Shann Cox | D17: =IF(B17="","",(VLOOKUP(B17,'Membership #'!$A$1:$C$1005,3,FALSE))) -> Jags Cash Flow
A18: 16 | B18: 688 | C18: =IF(B18="","",(VLOOKUP(B18,'Membership #'!$A$1:$C$1005,2,FALSE))) -> Lenee Sampson | D18: =IF(B18="","",(VLOOKUP(B18,'Membership #'!$A$1:$C$1005,3,FALSE))) -> Six Dash Run
A19: 17 | B19: 973 | C19: =IF(B19="","",(VLOOKUP(B19,'Membership #'!$A$1:$C$1005,2,FALSE))) -> Sara Ivey | D19: =IF(B19="","",(VLOOKUP(B19,'Membership #'!$A$1:$C$1005,3,FALSE))) -> Ms Heavenly Gator
A20: 18 | B20: 922 | C20: =IF(B20="","",(VLOOKUP(B20,'Membership #'!$A$1:$C$1005,2,FALSE))) -> Stevi Jardine | D20: =IF(B20="","",(VLOOKUP(B20,'Membership #'!$A$1:$C$1005,3,FALSE))) -> Paytons Pretty Cool
A21: 19 | B21: 777 | C21: =IF(B21="","",(VLOOKUP(B21,'Membership #'!$A$1:$C$1005,2,FALSE))) -> Julia Parker | D21: =IF(B21="","",(VLOOKUP(B21,'Membership #'!$A$1:$C$1005,3,FALSE))) -> Doc's Spirit Prairie
A22: 20 | B22: 655 | C22: =IF(B22="","",(VLOOKUP(B22,'Membership #'!$A$1:$C$1005,2,FALSE))) -> Julia Parker | D22: =IF(B22="","",(VLOOKUP(B22,'Membership #'!$A$1:$C$1005,3,FALSE))) -> Boons Feature Star
A23: 21 | B23: 647 | C23: =IF(B23="","",(VLOOKUP(B23,'Membership #'!$A$1:$C$1005,2,FALSE))) -> Courtney Parker | D23: =IF(B23="","",(VLOOKUP(B23,'Membership #'!$A$1:$C$1005,3,FALSE))) -> BW Rare Kinda Love
A24: 22 | B24: 652 | C24: =IF(B24="","",(VLOOKUP(B24,'Membership #'!$A$1:$C$1005,2,FALSE))) -> Molly O'Grady | D24: =IF(B24="","",(VLOOKUP(B24,'Membership #'!$A$1:$C$1005,3,FALSE))) -> Teelano's Twister
A25: 23 | B25: 700 | C25: =IF(B25="","",(VLOOKUP(B25,'Membership #'!$A$1:$C$1005,2,FALSE))) -> Lindsay Baker | D25: =IF(B25="","",(VLOOKUP(B25,'Membership #'!$A$1:$C$1005,3,FALSE))) -> Boons Laughing Boy
A26: 24 | B26: 703 | C26: =IF(B26="","",(VLOOKUP(B26,'Membership #'!$A$1:$C$1005,2,FALSE))) -> Chris Baker | D26: =IF(B26="","",(VLOOKUP(B26,'Membership #'!$A$1:$C$1005,3,FALSE))) -> Jamer All Fired Up
A27: 25 | B27: 710 | C27: =IF(B27="","",(VLOOKUP(B27,'Membership #'!$A$1:$C$1005,2,FALSE))) -> Owen Baker | D27: =IF(B27="","",(VLOOKUP(B27,'Membership #'!$A$1:$C$1005,3,FALSE))) -> Tip It Back
A28: 26 | B28: 702 | C28: =IF(B28="","",(VLOOKUP(B28,'Membership #'!$A$1:$C$1005,2,FALSE))) -> Jenna Proctor | D28: =IF(B28="","",(VLOOKUP(B28,'Membership #'!$A$1:$C$1005,3,FALSE))) -> Painted to Perfection
A29: 27 | B29: 786 | C29: =IF(B29="","",(VLOOKUP(B29,'Membership #'!$A$1:$C$1005,2,FALSE))) -> Rileigh Conrod | D29: =IF(B29="","",(VLOOKUP(B29,'Membership #'!$A$1:$C$1005,3,FALSE))) -> Scotches Harley
A30: 28 | B30: 974 | C30: =IF(B30="","",(VLOOKUP(B30,'Membership #'!$A$1:$C$1005,2,FALSE))) -> Kerissa Martin | D30: =IF(B30="","",(VLOOKUP(B30,'Membership #'!$A$1:$C$1005,3,FALSE))) -> Wild Steppin Phoenix
A31: 29 | B31: 638 | C31: =IF(B31="","",(VLOOKUP(B31,'Membership #'!$A$1:$C$1005,2,FALSE))) -> Bella Peters | D31: =IF(B31="","",(VLOOKUP(B31,'Membership #'!$A$1:$C$1005,3,FALSE))) -> Super Star
A32: 30 | B32: 516 | C32: =IF(B32="","",(VLOOKUP(B32,'Membership #'!$A$1:$C$1005,2,FALSE))) -> Laurie Don Reginato | D32: =IF(B32="","",(VLOOKUP(B32,'Membership #'!$A$1:$C$1005,3,FALSE))) -> TCR Gold Runny
A33: 31 | B33: 531 | C33: =IF(B33="","",(VLOOKUP(B33,'Membership #'!$A$1:$C$1005,2,FALSE))) -> Addison Peters | D33: =IF(B33="","",(VLOOKUP(B33,'Membership #'!$A$1:$C$1005,3,FALSE))) -> He's A Little Wonder
A34: 32 | B34: 746 | C34: =IF(B34="","",(VLOOKUP(B34,'Membership #'!$A$1:$C$1005,2,FALSE))) -> Cassie MacDonald | D34: =IF(B34="","",(VLOOKUP(B34,'Membership #'!$A$1:$C$1005,3,FALSE))) -> Sandy Dew
A35: 33 | B35: 914 | C35: =IF(B35="","",(VLOOKUP(B35,'Membership #'!$A$1:$C$1005,2,FALSE))) -> Shelby MacPherson | D35: =IF(B35="","",(VLOOKUP(B35,'Membership #'!$A$1:$C$1005,3,FALSE))) -> Shelbys Badger Bar
A36: 34 | B36: 600 | C36: =IF(B36="","",(VLOOKUP(B36,'Membership #'!$A$1:$C$1005,2,FALSE))) -> Stan Brown | D36: =IF(B36="","",(VLOOKUP(B36,'Membership #'!$A$1:$C$1005,3,FALSE))) -> A Perty Sure Thing
A37: 35 | B37: 698 | C37: =IF(B37="","",(VLOOKUP(B37,'Membership #'!$A$1:$C$1005,2,FALSE))) -> Kaleigh Denton | D37: =IF(B37="","",(VLOOKUP(B37,'Membership #'!$A$1:$C$1005,3,FALSE))) -> Coleasaki
A38: 36 | B38: 534 | C38: =IF(B38="","",(VLOOKUP(B38,'Membership #'!$A$1:$C$1005,2,FALSE))) -> Mary Lou Rankin Dentin | D38: =IF(B38="","",(VLOOKUP(B38,'Membership #'!$A$1:$C$1005,3,FALSE))) -> Brandy's Chocolena
A39: 37 | B39: 918 | C39: =IF(B39="","",(VLOOKUP(B39,'Membership #'!$A$1:$C$1005,2,FALSE))) -> Keira Rose | D39: =IF(B39="","",(VLOOKUP(B39,'Membership #'!$A$1:$C$1005,3,FALSE))) -> LL Its All About Red
A40: 38 | B40: 967 | C40: =IF(B40="","",(VLOOKUP(B40,'Membership #'!$A$1:$C$1005,2,FALSE))) -> Marissa Hillier | D40: =IF(B40="","",(VLOOKUP(B40,'Membership #'!$A$1:$C$1005,3,FALSE))) -> Notice Betty Boop
A41: 39 | B41: 695 | C41: =IF(B41="","",(VLOOKUP(B41,'Membership #'!$A$1:$C$1005,2,FALSE))) -> Tessa Dicks | D41: =IF(B41="","",(VLOOKUP(B41,'Membership #'!$A$1:$C$1005,3,FALSE))) -> Charge's Dusty Luck
A42: 40 | B42: 928 | C42: =IF(B42="","",(VLOOKUP(B42,'Membership #'!$A$1:$C$1005,2,FALSE))) -> Tessa Dicks | D42: =IF(B42="","",(VLOOKUP(B42,'Membership #'!$A$1:$C$1005,3,FALSE))) -> ELM Dash of Crime
A43: 41 | B43: 971 | C43: =IF(B43="","",(VLOOKUP(B43,'Membership #'!$A$1:$C$1005,2,FALSE))) -> Arielle Burke | D43: =IF(B43="","",(VLOOKUP(B43,'Membership #'!$A$1:$C$1005,3,FALSE))) -> Elm Sally
A44: 42 | B44: 78 | C44: =IF(B44="","",(VLOOKUP(B44,'Membership #'!$A$1:$C$1005,2,FALSE))) -> Stephanie Rich | D44: =IF(B44="","",(VLOOKUP(B44,'Membership #'!$A$1:$C$1005,3,FALSE))) -> Texas Mickey
A45: 43 | B45: 732 | C45: =IF(B45="","",(VLOOKUP(B45,'Membership #'!$A$1:$C$1005,2,FALSE))) -> Brenna Carrigan | D45: =IF(B45="","",(VLOOKUP(B45,'Membership #'!$A$1:$C$1005,3,FALSE))) -> Carlos
A46: 44 | B46: 855 | C46: =IF(B46="","",(VLOOKUP(B46,'Membership #'!$A$1:$C$1005,2,FALSE))) -> Jenelle Collier | D46: =IF(B46="","",(VLOOKUP(B46,'Membership #'!$A$1:$C$1005,3,FALSE))) -> Peppy Sans Surprise
A47: 45 | B47: 518 | C47: =IF(B47="","",(VLOOKUP(B47,'Membership #'!$A$1:$C$1005,2,FALSE))) -> Sylvester Weatherbie | D47: =IF(B47="","",(VLOOKUP(B47,'Membership #'!$A$1:$C$1005,3,FALSE))) -> J.R.
A48: 46 | B48: 657 | C48: =IF(B48="","",(VLOOKUP(B48,'Membership #'!$A$1:$C$1005,2,FALSE))) -> Laura Morrison | D48: =IF(B48="","",(VLOOKUP(B48,'Membership #'!$A$1:$C$1005,3,FALSE))) -> Steal Ta Fame
A49: 47 | B49: 699 | C49: =IF(B49="","",(VLOOKUP(B49,'Membership #'!$A$1:$C$1005,2,FALSE))) -> Laura Morrison | D49: =IF(B49="","",(VLOOKUP(B49,'Membership #'!$A$1:$C$1005,3,FALSE))) -> MDC Dark Revelation
A50: 48 | B50: 514 | C50: =IF(B50="","",(VLOOKUP(B50,'Membership #'!$A$1:$C$1005,2,FALSE))) -> Heather Morrison | D50: =IF(B50="","",(VLOOKUP(B50,'Membership #'!$A$1:$C$1005,3,FALSE))) -> Black Fire Dash
A51: 49 | B51: 636 | C51: =IF(B51="","",(VLOOKUP(B51,'Membership #'!$A$1:$C$1005,2,FALSE))) -> Ceilidh Gosse | D51: =IF(B51="","",(VLOOKUP(B51,'Membership #'!$A$1:$C$1005,3,FALSE))) -> ELM Silver Crime
A52: 50 | B52: 867 | C52: =IF(B52="","",(VLOOKUP(B52,'Membership #'!$A$1:$C$1005,2,FALSE))) -> Layla MacEachem | D52: =IF(B52="","",(VLOOKUP(B52,'Membership #'!$A$1:$C$1005,3,FALSE))) -> Shes a gem
A53: 51 | B53: 892 | C53: =IF(B53="","",(VLOOKUP(B53,'Membership #'!$A$1:$C$1005,2,FALSE))) -> Donnie MacNeil | D53: =IF(B53="","",(VLOOKUP(B53,'Membership #'!$A$1:$C$1005,3,FALSE))) -> Gifted Go Gold
A54: 52 | B54: 556 | C54: =IF(B54="","",(VLOOKUP(B54,'Membership #'!$A$1:$C$1005,2,FALSE))) -> Stephaine Clark | D54: =IF(B54="","",(VLOOKUP(B54,'Membership #'!$A$1:$C$1005,3,FALSE))) -> Perks A Flyin
A55: 53 | B55: 666 | C55: =IF(B55="","",(VLOOKUP(B55,'Membership #'!$A$1:$C$1005,2,FALSE))) -> Summer Fraser | D55: =IF(B55="","",(VLOOKUP(B55,'Membership #'!$A$1:$C$1005,3,FALSE))) -> Sheza Smokin' Girl
A56: 54 | B56: 961 | C56: =IF(B56="","",(VLOOKUP(B56,'Membership #'!$A$1:$C$1005,2,FALSE))) -> Jacie Burke | D56: =IF(B56="","",(VLOOKUP(B56,'Membership #'!$A$1:$C$1005,3,FALSE))) -> She's Just That Sassy
A57: 55 | B57: 962 | C57: =IF(B57="","",(VLOOKUP(B57,'Membership #'!$A$1:$C$1005,2,FALSE))) -> Hariin Burke | D57: =IF(B57="","",(VLOOKUP(B57,'Membership #'!$A$1:$C$1005,3,FALSE))) -> Olds Bold Impulse
A58: 56 | B58: 963 | C58: =IF(B58="","",(VLOOKUP(B58,'Membership #'!$A$1:$C$1005,2,FALSE))) -> Leighton Burke | D58: =IF(B58="","",(VLOOKUP(B58,'Membership #'!$A$1:$C$1005,3,FALSE))) -> Boot Scootin Boogie
A59: 57 | B59: 909 | C59: =IF(B59="","",(VLOOKUP(B59,'Membership #'!$A$1:$C$1005,2,FALSE))) -> Rebecca Gillis | D59: =IF(B59="","",(VLOOKUP(B59,'Membership #'!$A$1:$C$1005,3,FALSE))) -> Martha's Tivio Moon
A60: 58 | B60: 802 | C60: =IF(B60="","",(VLOOKUP(B60,'Membership #'!$A$1:$C$1005,2,FALSE))) -> Ava Reginato | D60: =IF(B60="","",(VLOOKUP(B60,'Membership #'!$A$1:$C$1005,3,FALSE))) -> Jacs Last Flash
A61: 59 | B61: 537 | C61: =IF(B61="","",(VLOOKUP(B61,'Membership #'!$A$1:$C$1005,2,FALSE))) -> Alka Virick | D61: =IF(B61="","",(VLOOKUP(B61,'Membership #'!$A$1:$C$1005,3,FALSE))) -> Corona Identity
A62: 60 | B62: 941 | C62: =IF(B62="","",(VLOOKUP(B62,'Membership #'!$A$1:$C$1005,2,FALSE))) -> Taylor Hurley | D62: =IF(B62="","",(VLOOKUP(B62,'Membership #'!$A$1:$C$1005,3,FALSE))) -> Nacho Business
A63: 61 | B63: 904 | C63: =IF(B63="","",(VLOOKUP(B63,'Membership #'!$A$1:$C$1005,2,FALSE))) -> Ella Cowley | D63: =IF(B63="","",(VLOOKUP(B63,'Membership #'!$A$1:$C$1005,3,FALSE))) -> Blazin Boots
A64: 62 | B64: 889 | C64: =IF(B64="","",(VLOOKUP(B64,'Membership #'!$A$1:$C$1005,2,FALSE))) -> Adelaine Cowley | D64: =IF(B64="","",(VLOOKUP(B64,'Membership #'!$A$1:$C$1005,3,FALSE))) -> Frenchman's Promise
A65: 63 | B65: 966 | C65: =IF(B65="","",(VLOOKUP(B65,'Membership #'!$A$1:$C$1005,2,FALSE))) -> Ava Anderson | D65: =IF(B65="","",(VLOOKUP(B65,'Membership #'!$A$1:$C$1005,3,FALSE))) -> Black Sass
A66: 64 | B66: 674 | C66: =IF(B66="","",(VLOOKUP(B66,'Membership #'!$A$1:$C$1005,2,FALSE))) -> Kyle Beaton | D66: =IF(B66="","",(VLOOKUP(B66,'Membership #'!$A$1:$C$1005,3,FALSE))) -> Jus For Kicks
A67: 65 | B67: 716 | C67: =IF(B67="","",(VLOOKUP(B67,'Membership #'!$A$1:$C$1005,2,FALSE))) -> Kayla Martin | D67: =IF(B67="","",(VLOOKUP(B67,'Membership #'!$A$1:$C$1005,3,FALSE))) -> Dash Ta Home
A68: 66 | B68: 538 | C68: =IF(B68="","",(VLOOKUP(B68,'Membership #'!$A$1:$C$1005,2,FALSE))) -> Jean DuGas | D68: =IF(B68="","",(VLOOKUP(B68,'Membership #'!$A$1:$C$1005,3,FALSE))) -> Pal's Lilguy
A69: 67 | D69: =IF(B69="","",(VLOOKUP(B69,'Membership #'!$A$1:$C$1005,3,FALSE))) -> 
A70: 68 | D70: =IF(B70="","",(VLOOKUP(B70,'Membership #'!$A$1:$C$1005,3,FALSE))) -> 
A71: 69 | D71: =IF(B71="","",(VLOOKUP(B71,'Membership #'!$A$1:$C$1005,3,FALSE))) -> 
A72: 70 | D72: =IF(B72="","",(VLOOKUP(B72,'Membership #'!$A$1:$C$1005,3,FALSE))) -> 
A73: 71 | D73: =IF(B73="","",(VLOOKUP(B73,'Membership #'!$A$1:$C$1005,3,FALSE))) -> 
A74: 72 | D74: =IF(B74="","",(VLOOKUP(B74,'Membership #'!$A$1:$C$1005,3,FALSE))) -> 
A75: 73 | D75: =IF(B75="","",(VLOOKUP(B75,'Membership #'!$A$1:$C$1005,3,FALSE))) -> 
A76: 74 | D76: =IF(B76="","",(VLOOKUP(B76,'Membership #'!$A$1:$C$1005,3,FALSE))) -> 
A77: 75 | D77: =IF(B77="","",(VLOOKUP(B77,'Membership #'!$A$1:$C$1005,3,FALSE))) -> 
A78: 76 | D78: =IF(B78="","",(VLOOKUP(B78,'Membership #'!$A$1:$C$1005,3,FALSE))) -> 
A79: 77 | D79: =IF(B79="","",(VLOOKUP(B79,'Membership #'!$A$1:$C$1005,3,FALSE))) -> 
A80: 78 | D80: =IF(B80="","",(VLOOKUP(B80,'Membership #'!$A$1:$C$1005,3,FALSE))) -> 
A81: 79 | D81: =IF(B81="","",(VLOOKUP(B81,'Membership #'!$A$1:$C$1005,3,FALSE))) -> 
A82: 80 | D82: =IF(B82="","",(VLOOKUP(B82,'Membership #'!$A$1:$C$1005,3,FALSE))) -> 
A83: 81 | D83: =IF(B83="","",(VLOOKUP(B83,'Membership #'!$A$1:$C$1005,3,FALSE))) -> 
A84: 82 | D84: =IF(B84="","",(VLOOKUP(B84,'Membership #'!$A$1:$C$1005,3,FALSE))) -> 
A85: 83 | D85: =IF(B85="","",(VLOOKUP(B85,'Membership #'!$A$1:$C$1005,3,FALSE))) -> 
A86: 84 | D86: =IF(B86="","",(VLOOKUP(B86,'Membership #'!$A$1:$C$1005,3,FALSE))) -> 
A87: 85 | D87: =IF(B87="","",(VLOOKUP(B87,'Membership #'!$A$1:$C$1005,3,FALSE))) -> 
A88: 86 | D88: =IF(B88="","",(VLOOKUP(B88,'Membership #'!$A$1:$C$1005,3,FALSE))) -> 
A89: 87 | D89: =IF(B89="","",(VLOOKUP(B89,'Membership #'!$A$1:$C$1005,3,FALSE))) -> 
A90: 88 | D90: =IF(B90="","",(VLOOKUP(B90,'Membership #'!$A$1:$C$1005,3,FALSE))) -> 
A91: 89 | D91: =IF(B91="","",(VLOOKUP(B91,'Membership #'!$A$1:$C$1005,3,FALSE))) -> 
A92: 90 | D92: =IF(B92="","",(VLOOKUP(B92,'Membership #'!$A$1:$C$1005,3,FALSE))) -> 
A93: 91 | D93: =IF(B93="","",(VLOOKUP(B93,'Membership #'!$A$1:$C$1005,3,FALSE))) -> 
A94: 92 | D94: =IF(B94="","",(VLOOKUP(B94,'Membership #'!$A$1:$C$1005,3,FALSE))) -> 
A95: 93 | D95: =IF(B95="","",(VLOOKUP(B95,'Membership #'!$A$1:$C$1005,3,FALSE))) -> 
A96: 94 | D96: =IF(B96="","",(VLOOKUP(B96,'Membership #'!$A$1:$C$1005,3,FALSE))) -> 
A97: 95 | D97: =IF(B97="","",(VLOOKUP(B97,'Membership #'!$A$1:$C$1005,3,FALSE))) -> 
A98: 96 | D98: =IF(B98="","",(VLOOKUP(B98,'Membership #'!$A$1:$C$1005,3,FALSE))) -> 
A99: 97 | D99: =IF(B99="","",(VLOOKUP(B99,'Membership #'!$A$1:$C$1005,3,FALSE))) -> 
A100: 98 | D100: =IF(B100="","",(VLOOKUP(B100,'Membership #'!$A$1:$C$1005,3,FALSE))) -> 
A101: 99 | D101: =IF(B101="","",(VLOOKUP(B101,'Membership #'!$A$1:$C$1005,3,FALSE))) -> 
A102: 100 | D102: =IF(B102="","",(VLOOKUP(B102,'Membership #'!$A$1:$C$1005,3,FALSE))) -> 
A103: 101 | D103: =IF(B103="","",(VLOOKUP(B103,'Membership #'!$A$1:$C$1005,3,FALSE))) -> 
A104: 102 | D104: =IF(B104="","",(VLOOKUP(B104,'Membership #'!$A$1:$C$1005,3,FALSE))) -> 
A105: 103 | D105: =IF(B105="","",(VLOOKUP(B105,'Membership #'!$A$1:$C$1005,3,FALSE))) -> 
A106: 104 | D106: =IF(B106="","",(VLOOKUP(B106,'Membership #'!$A$1:$C$1005,3,FALSE))) -> 
A107: 105 | D107: =IF(B107="","",(VLOOKUP(B107,'Membership #'!$A$1:$C$1005,3,FALSE))) -> 
A108: 106 | D108: =IF(B108="","",(VLOOKUP(B108,'Membership #'!$A$1:$C$1005,3,FALSE))) -> 
A109: 107 | D109: =IF(B109="","",(VLOOKUP(B109,'Membership #'!$A$1:$C$1005,3,FALSE))) -> 
A110: 108 | D110: =IF(B110="","",(VLOOKUP(B110,'Membership #'!$A$1:$C$1005,3,FALSE))) -> 
D111: =IF(B111="","",(VLOOKUP(B111,'Membership #'!$A$1:$C$1005,3,FALSE))) -> 
C112: =IF(B112="","",(VLOOKUP(B112,'Membership #'!$A$1:$C$377,2,FALSE))) ->  | D112: =IF(B112="","",(VLOOKUP(B112,'Membership #'!$A$1:$C$377,3,FALSE))) -> 
C113: =IF(B113="","",(VLOOKUP(B113,'Membership #'!$A$1:$C$377,2,FALSE))) ->  | D113: =IF(B113="","",(VLOOKUP(B113,'Membership #'!$A$1:$C$377,3,FALSE))) -> 

Sheet MBRA
A1: Tom Burt & Mark McGuire Memorial JACKPOT Aug 21 & 22, 2021
B2: RING # | C2: NAME | D2: HORSE NAME | E2: Exhibition | G2: Day #1 Fee | H2: 3-D Barrels | I2: Day /2 Fee | J2: Admin Fee | K2: Drug Fee | L2: Trailer Fee | M2: Total | N2: Etransfrer
A3: 1 | B3: 78 | C3: =IF(B3="","",(VLOOKUP(B3,'Membership #'!$A$1:$C$1005,2,FALSE))) -> Stephanie Rich | D3: =IF(B3="","",(VLOOKUP(B3,'Membership #'!$A$1:$C$1005,3,FALSE))) -> Texas Mickey | G3: 60 | I3: 60 | J3: 50 | K3: 5 | M3: =SUM(G3:L3) -> 175 | N3: -175 | Q3: =SUM(M3:P3) -> 0
A4: 2 | B4: 514 | C4: =IF(B4="","",(VLOOKUP(B4,'Membership #'!$A$1:$C$1005,2,FALSE))) -> Heather Morrison | D4: =IF(B4="","",(VLOOKUP(B4,'Membership #'!$A$1:$C$1005,3,FALSE))) -> Black Fire Dash | G4: 10 | H4: 15 | I4: 10 | J4: 50 | K4: 5 | L4: 40 | M4: 130 | Q4: 130
A5: 3 | B5: 516 | C5: =IF(B5="","",(VLOOKUP(B5,'Membership #'!$A$1:$C$1005,2,FALSE))) -> Laurie Don Reginato | D5: =IF(B5="","",(VLOOKUP(B5,'Membership #'!$A$1:$C$1005,3,FALSE))) -> TCR Gold Runny | G5: 40 | H5: 15 | I5: 40 | J5: 50 | K5: 5 | M5: 150 | Q5: 150
A6: 4 | B6: 518 | C6: =IF(B6="","",(VLOOKUP(B6,'Membership #'!$A$1:$C$1005,2,FALSE))) -> Sylvester Weatherbie | D6: =IF(B6="","",(VLOOKUP(B6,'Membership #'!$A$1:$C$1005,3,FALSE))) -> J.R. | G6: 20 | H6: 15 | I6: 20 | J6: 50 | K6: 5 | L6: 40 | M6: 150 | N6: -150 | Q6: 0
A7: 5 | B7: 530 | C7: =IF(B7="","",(VLOOKUP(B7,'Membership #'!$A$1:$C$1005,2,FALSE))) -> Joan Grant | D7: =IF(B7="","",(VLOOKUP(B7,'Membership #'!$A$1:$C$1005,3,FALSE))) -> SLS Dash to Holland | G7: 20 | H7: 15 | I7: 20 | J7: 50 | K7: 5 | M7: 110 | N7: -110 | Q7: 0
A8: 6 | B8: 531 | C8: =IF(B8="","",(VLOOKUP(B8,'Membership #'!$A$1:$C$1005,2,FALSE))) -> Addison Peters | D8: =IF(B8="","",(VLOOKUP(B8,'Membership #'!$A$1:$C$1005,3,FALSE))) -> He's A Little Wonder | J8: 50 | K8: 5 | M8: 55 | Q8: 55
A9: 7 | B9: 532 | C9: =IF(B9="","",(VLOOKUP(B9,'Membership #'!$A$1:$C$1005,2,FALSE))) -> Gracie MacLean | D9: =IF(B9="","",(VLOOKUP(B9,'Membership #'!$A$1:$C$1005,3,FALSE))) -> Secret | G9: 5 | I9: 5 | J9: 50 | K9: 5 | L9: 40 | M9: 105 | N9: -145 | Q9: -40 | R9: you owe him $40
A10: 8 | B10: 534 | C10: =IF(B10="","",(VLOOKUP(B10,'Membership #'!$A$1:$C$1005,2,FALSE))) -> Mary Lou Rankin Dentin | D10: =IF(B10="","",(VLOOKUP(B10,'Membership #'!$A$1:$C$1005,3,FALSE))) -> Brandy's Chocolena | G10: 20 | H10: 15 | I10: 20 | J10: 50 | K10: 5 | L10: 40 | M10: 150 | N10: -150 | Q10: 0
A11: 9 | B11: 537 | C11: =IF(B11="","",(VLOOKUP(B11,'Membership #'!$A$1:$C$1005,2,FALSE))) -> Alka Virick | D11: =IF(B11="","",(VLOOKUP(B11,'Membership #'!$A$1:$C$1005,3,FALSE))) -> Corona Identity | G11: 30 | I11: 30 | J11: 50 | K11: 5 | L11: 40 | M11: 155 | N11: -150 | Q11: 5 | R11: you owe her $5
A12: 10 | B12: 538 | C12: =IF(B12="","",(VLOOKUP(B12,'Membership #'!$A$1:$C$1005,2,FALSE))) -> Jean DuGas | D12: =IF(B12="","",(VLOOKUP(B12,'Membership #'!$A$1:$C$1005,3,FALSE))) -> Pal's Lilguy | G12: 40 | H12: 15 | J12: 25 | K12: 5 | M12: 85 | N12: -110 | Q12: -25 | R12: you owe her $25
A13: 11 | B13: 556 | C13: =IF(B13="","",(VLOOKUP(B13,'Membership #'!$A$1:$C$1005,2,FALSE))) -> Stephaine Clark | D13: =IF(B13="","",(VLOOKUP(B13,'Membership #'!$A$1:$C$1005,3,FALSE))) -> Perks A Flyin | G13: 30 | H13: 15 | I13: 30 | J13: 50 | K13: 5 | L13: 40 | M13: 170 | Q13: 170
A14: 12 | B14: 563 | C14: =IF(B14="","",(VLOOKUP(B14,'Membership #'!$A$1:$C$1005,2,FALSE))) -> Kevin Bateman | D14: =IF(B14="","",(VLOOKUP(B14,'Membership #'!$A$1:$C$1005,3,FALSE))) -> Jess Chasin A Hobby | G14: 10 | H14: 15 | I14: 10 | J14: 50 | K14: 5 | M14: 90 | N14: -90 | Q14: 0
A15: 13 | B15: 591 | C15: =IF(B15="","",(VLOOKUP(B15,'Membership #'!$A$1:$C$1005,2,FALSE))) -> Wendy MacLean | D15: =IF(B15="","",(VLOOKUP(B15,'Membership #'!$A$1:$C$1005,3,FALSE))) -> White Sox N Flyin | G15: 10 | H15: 15 | I15: 10 | J15: 50 | K15: 5 | M15: 90 | N15: -90 | Q15: 0
A16: 14 | B16: 600 | C16: =IF(B16="","",(VLOOKUP(B16,'Membership #'!$A$1:$C$1005,2,FALSE))) -> Stan Brown | D16: =IF(B16="","",(VLOOKUP(B16,'Membership #'!$A$1:$C$1005,3,FALSE))) -> A Perty Sure Thing | G16: 20 | H16: 15 | I16: 20 | J16: 50 | K16: 5 | M16: 110 | N16: -110 | Q16: 0
A17: 15 | B17: 616 | C17: =IF(B17="","",(VLOOKUP(B17,'Membership #'!$A$1:$C$1005,2,FALSE))) -> Judy Bateman | D17: =IF(B17="","",(VLOOKUP(B17,'Membership #'!$A$1:$C$1005,3,FALSE))) -> HM HollywoodRockstar | G17: 40 | H17: 15 | I17: 40 | J17: 50 | K17: 5 | L17: 40 | M17: 190 | N17: -190 | Q17: 0
A18: 16 | B18: 627 | C18: =IF(B18="","",(VLOOKUP(B18,'Membership #'!$A$1:$C$1005,2,FALSE))) -> Kaelyn Keddy | D18: =IF(B18="","",(VLOOKUP(B18,'Membership #'!$A$1:$C$1005,3,FALSE))) -> Sight to Behold | J18: 50 | K18: 5 | M18: 55 | N18: -55 | Q18: 0
A19: 17 | B19: 636 | C19: =IF(B19="","",(VLOOKUP(B19,'Membership #'!$A$1:$C$1005,2,FALSE))) -> Ceilidh Gosse | D19: =IF(B19="","",(VLOOKUP(B19,'Membership #'!$A$1:$C$1005,3,FALSE))) -> ELM Silver Crime | G19: 10 | H19: 15 | I19: 10 | J19: 50 | K19: 5 | M19: 90 | N19: -75 | Q19: 15 | R19: she owes you $15
A20: 18 | B20: 638 | C20: =IF(B20="","",(VLOOKUP(B20,'Membership #'!$A$1:$C$1005,2,FALSE))) -> Bella Peters | D20: =IF(B20="","",(VLOOKUP(B20,'Membership #'!$A$1:$C$1005,3,FALSE))) -> Super Star | G20: 10 | H20: 15 | I20: 10 | J20: 50 | K20: 5 | M20: 90 | Q20: 90
A21: 19 | B21: 647 | C21: =IF(B21="","",(VLOOKUP(B21,'Membership #'!$A$1:$C$1005,2,FALSE))) -> Courtney Parker | D21: =IF(B21="","",(VLOOKUP(B21,'Membership #'!$A$1:$C$1005,3,FALSE))) -> BW Rare Kinda Love | G21: 20 | H21: 15 | I21: 20 | J21: 50 | K21: 5 | M21: 110 | N21: -110 | Q21: 0
A22: 20 | B22: 652 | C22: =IF(B22="","",(VLOOKUP(B22,'Membership #'!$A$1:$C$1005,2,FALSE))) -> Molly O'Grady | D22: =IF(B22="","",(VLOOKUP(B22,'Membership #'!$A$1:$C$1005,3,FALSE))) -> Teelano's Twister | G22: 30 | I22: 30 | J22: 50 | K22: 5 | M22: 115 | N22: -115 | Q22: 0
A23: 21 | B23: 655 | C23: =IF(B23="","",(VLOOKUP(B23,'Membership #'!$A$1:$C$1005,2,FALSE))) -> Julia Parker | D23: =IF(B23="","",(VLOOKUP(B23,'Membership #'!$A$1:$C$1005,3,FALSE))) -> Boons Feature Star | G23: 30 | H23: 15 | I23: 30 | J23: 50 | K23: 5 | M23: 130 | N23: -130 | Q23: 0
A24: 22 | B24: 657 | C24: =IF(B24="","",(VLOOKUP(B24,'Membership #'!$A$1:$C$1005,2,FALSE))) -> Laura Morrison | D24: =IF(B24="","",(VLOOKUP(B24,'Membership #'!$A$1:$C$1005,3,FALSE))) -> Steal Ta Fame | G24: 20 | H24: 15 | I24: 20 | J24: 50 | K24: 5 | M24: 110 | N24: -110 | Q24: 0
A25: 23 | B25: 666 | C25: =IF(B25="","",(VLOOKUP(B25,'Membership #'!$A$1:$C$1005,2,FALSE))) -> Summer Fraser | D25: =IF(B25="","",(VLOOKUP(B25,'Membership #'!$A$1:$C$1005,3,FALSE))) -> Sheza Smokin' Girl | G25: 10 | I25: 10 | J25: 50 | K25: 5 | M25: 75 | N25: -75 | Q25: 0
A26: 24 | B26: 674 | C26: =IF(B26="","",(VLOOKUP(B26,'Membership #'!$A$1:$C$1005,2,FALSE))) -> Kyle Beaton | D26: =IF(B26="","",(VLOOKUP(B26,'Membership #'!$A$1:$C$1005,3,FALSE))) -> Jus For Kicks | G26: 40 | I26: 40 | J26: 50 | K26: 5 | M26: 135 | N26: -135 | Q26: 0
A27: 25 | B27: 684 | C27: =IF(B27="","",(VLOOKUP(B27,'Membership #'!$A$1:$C$1005,2,FALSE))) -> Shann Cox | D27: =IF(B27="","",(VLOOKUP(B27,'Membership #'!$A$1:$C$1005,3,FALSE))) -> Jags Cash Flow | G27: 40 | H27: 15 | I27: 40 | J27: 50 | K27: 5 | M27: 150 | N27: -150 | Q27: 0
A28: 26 | B28: 688 | C28: =IF(B28="","",(VLOOKUP(B28,'Membership #'!$A$1:$C$1005,2,FALSE))) -> Lenee Sampson | D28: =IF(B28="","",(VLOOKUP(B28,'Membership #'!$A$1:$C$1005,3,FALSE))) -> Six Dash Run | G28: 30 | H28: 15 | I28: 25 | J28: 50 | K28: 5 | M28: 125 | N28: -125 | Q28: 0
A29: 27 | B29: 695 | C29: =IF(B29="","",(VLOOKUP(B29,'Membership #'!$A$1:$C$1005,2,FALSE))) -> Tessa Dicks | D29: =IF(B29="","",(VLOOKUP(B29,'Membership #'!$A$1:$C$1005,3,FALSE))) -> Charge's Dusty Luck | G29: 40 | H29: 15 | I29: 40 | J29: 50 | K29: 5 | M29: 150 | N29: -150 | Q29: 0
A30: 28 | B30: 698 | C30: =IF(B30="","",(VLOOKUP(B30,'Membership #'!$A$1:$C$1005,2,FALSE))) -> Kaleigh Denton | D30: =IF(B30="","",(VLOOKUP(B30,'Membership #'!$A$1:$C$1005,3,FALSE))) -> Coleasaki | G30: 40 | H30: 15 | I30: 40 | J30: 50 | K30: 5 | M30: 150 | N30: -150 | Q30: 0
A31: 29 | B31: 699 | C31: =IF(B31="","",(VLOOKUP(B31,'Membership #'!$A$1:$C$1005,2,FALSE))) -> Laura Morrison | D31: =IF(B31="","",(VLOOKUP(B31,'Membership #'!$A$1:$C$1005,3,FALSE))) -> MDC Dark Revelation | G31: 10 | H31: 15 | I31: 10 | J31: 50 | K31: 5 | M31: 90 | N31: -90 | Q31: 0
A32: 30 | B32: 700 | C32: =IF(B32="","",(VLOOKUP(B32,'Membership #'!$A$1:$C$1005,2,FALSE))) -> Lindsay Baker | D32: =IF(B32="","",(VLOOKUP(B32,'Membership #'!$A$1:$C$1005,3,FALSE))) -> Boons Laughing Boy | G32: 40 | H32: 15 | I32: 40 | J32: 50 | K32: 5 | M32: 150 | N32: -150 | Q32: 0
A33: 31 | B33: 702 | C33: =IF(B33="","",(VLOOKUP(B33,'Membership #'!$A$1:$C$1005,2,FALSE))) -> Jenna Proctor | D33: =IF(B33="","",(VLOOKUP(B33,'Membership #'!$A$1:$C$1005,3,FALSE))) -> Painted to Perfection | H33: 15 | J33: 50 | K33: 5 | M33: 70 | N33: -70 | Q33: 0
A34: 32 | B34: 703 | C34: =IF(B34="","",(VLOOKUP(B34,'Membership #'!$A$1:$C$1005,2,FALSE))) -> Chris Baker | D34: =IF(B34="","",(VLOOKUP(B34,'Membership #'!$A$1:$C$1005,3,FALSE))) -> Jamer All Fired Up | G34: 40 | H34: 15 | I34: 40 | J34: 50 | K34: 5 | L34: 40 | M34: 190 | N34: -190 | Q34: 0
A35: 33 | B35: 710 | C35: =IF(B35="","",(VLOOKUP(B35,'Membership #'!$A$1:$C$1005,2,FALSE))) -> Owen Baker | D35: =IF(B35="","",(VLOOKUP(B35,'Membership #'!$A$1:$C$1005,3,FALSE))) -> Tip It Back | J35: 50 | K35: 5 | M35: =SUM(G35:L35) -> 55 | N35: -55 | Q35: =SUM(M35:P35) -> 0
A36: 34 | B36: 716 | C36: =IF(B36="","",(VLOOKUP(B36,'Membership #'!$A$1:$C$1005,2,FALSE))) -> Kayla Martin | D36: =IF(B36="","",(VLOOKUP(B36,'Membership #'!$A$1:$C$1005,3,FALSE))) -> Dash Ta Home | G36: 20 | H36: 15 | I36: 20 | J36: 50 | K36: 5 | M36: 110 | N36: -110 | Q36: 0
A37: 35 | B37: 732 | C37: =IF(B37="","",(VLOOKUP(B37,'Membership #'!$A$1:$C$1005,2,FALSE))) -> Brenna Carrigan | D37: =IF(B37="","",(VLOOKUP(B37,'Membership #'!$A$1:$C$1005,3,FALSE))) -> Carlos | G37: 60 | H37: 15 | I37: 60 | J37: 50 | K37: 5 | M37: 190 | N37: -190 | Q37: 0
A38: 36 | B38: 746 | C38: =IF(B38="","",(VLOOKUP(B38,'Membership #'!$A$1:$C$1005,2,FALSE))) -> Cassie MacDonald | D38: =IF(B38="","",(VLOOKUP(B38,'Membership #'!$A$1:$C$1005,3,FALSE))) -> Sandy Dew | G38: 20 | I38: 20 | J38: 50 | K38: 5 | M38: 95 | Q38: 95
A39: 37 | B39: 750 | C39: =IF(B39="","",(VLOOKUP(B39,'Membership #'!$A$1:$C$1005,2,FALSE))) -> Tanya Kennedy | D39: =IF(B39="","",(VLOOKUP(B39,'Membership #'!$A$1:$C$1005,3,FALSE))) -> Old Stations Pride | G39: 30 | H39: 15 | I39: 30 | J39: 50 | K39: 5 | L39: 40 | M39: 170 | N39: -170 | Q39: 0
A40: 38 | B40: 753 | C40: =IF(B40="","",(VLOOKUP(B40,'Membership #'!$A$1:$C$1005,2,FALSE))) -> Kayla Boudreau | D40: =IF(B40="","",(VLOOKUP(B40,'Membership #'!$A$1:$C$1005,3,FALSE))) -> Lady Jane | G40: 20 | H40: 15 | I40: 20 | J40: 50 | K40: 5 | M40: 110 | N40: -110 | Q40: 0
A41: 39 | B41: 768 | C41: =IF(B41="","",(VLOOKUP(B41,'Membership #'!$A$1:$C$1005,2,FALSE))) -> Tracey Higgins | D41: =IF(B41="","",(VLOOKUP(B41,'Membership #'!$A$1:$C$1005,3,FALSE))) -> Iza Wicked Wind | G41: 10 | H41: 15 | I41: 10 | J41: 50 | K41: 5 | L41: 40 | M41: 130 | N41: -130 | Q41: 0
A42: 40 | B42: 777 | C42: =IF(B42="","",(VLOOKUP(B42,'Membership #'!$A$1:$C$1005,2,FALSE))) -> Julia Parker | D42: =IF(B42="","",(VLOOKUP(B42,'Membership #'!$A$1:$C$1005,3,FALSE))) -> Doc's Spirit Prairie | G42: 40 | H42: 15 | I42: 40 | J42: 50 | K42: 5 | L42: 40 | M42: 190 | N42: -190 | Q42: 0
A43: 41 | B43: 786 | C43: =IF(B43="","",(VLOOKUP(B43,'Membership #'!$A$1:$C$1005,2,FALSE))) -> Rileigh Conrod | D43: =IF(B43="","",(VLOOKUP(B43,'Membership #'!$A$1:$C$1005,3,FALSE))) -> Scotches Harley | G43: 10 | H43: 15 | I43: 10 | J43: 50 | K43: 5 | M43: 90 | N43: -90 | Q43: 0
A44: 42 | B44: 802 | C44: =IF(B44="","",(VLOOKUP(B44,'Membership #'!$A$1:$C$1005,2,FALSE))) -> Ava Reginato | D44: =IF(B44="","",(VLOOKUP(B44,'Membership #'!$A$1:$C$1005,3,FALSE))) -> Jacs Last Flash | J44: 50 | K44: 5 | M44: 55 | N44: -55 | Q44: 0
A45: 43 | B45: 815 | C45: =IF(B45="","",(VLOOKUP(B45,'Membership #'!$A$1:$C$1005,2,FALSE))) -> Brooke Kennedy | D45: =IF(B45="","",(VLOOKUP(B45,'Membership #'!$A$1:$C$1005,3,FALSE))) -> Tic Toc Teazer | G45: 10 | H45: 15 | I45: 10 | J45: 50 | K45: 5 | M45: 90 | N45: -90 | Q45: 0
A46: 44 | B46: 855 | C46: =IF(B46="","",(VLOOKUP(B46,'Membership #'!$A$1:$C$1005,2,FALSE))) -> Jenelle Collier | D46: =IF(B46="","",(VLOOKUP(B46,'Membership #'!$A$1:$C$1005,3,FALSE))) -> Peppy Sans Surprise | G46: 40 | H46: 15 | I46: 40 | J46: 50 | K46: 5 | M46: 150 | N46: -150 | Q46: 0
A47: 45 | B47: 867 | C47: =IF(B47="","",(VLOOKUP(B47,'Membership #'!$A$1:$C$1005,2,FALSE))) -> Layla MacEachem | D47: =IF(B47="","",(VLOOKUP(B47,'Membership #'!$A$1:$C$1005,3,FALSE))) -> Shes a gem | G47: 10 | H47: 15 | I47: 10 | J47: 50 | K47: 5 | L47: 40 | M47: 130 | N47: -130 | Q47: 0
A48: 46 | B48: 889 | C48: =IF(B48="","",(VLOOKUP(B48,'Membership #'!$A$1:$C$1005,2,FALSE))) -> Adelaine Cowley | D48: =IF(B48="","",(VLOOKUP(B48,'Membership #'!$A$1:$C$1005,3,FALSE))) -> Frenchman's Promise | G48: 20 | H48: 15 | I48: 20 | J48: 50 | K48: 5 | M48: 110 | Q48: 110
A49: 47 | B49: 892 | C49: =IF(B49="","",(VLOOKUP(B49,'Membership #'!$A$1:$C$1005,2,FALSE))) -> Donnie MacNeil | D49: =IF(B49="","",(VLOOKUP(B49,'Membership #'!$A$1:$C$1005,3,FALSE))) -> Gifted Go Gold | G49: 50 | H49: 15 | I49: 50 | J49: 50 | K49: 5 | L49: 40 | M49: 210 | N49: -210 | Q49: 0
A50: 48 | B50: 904 | C50: =IF(B50="","",(VLOOKUP(B50,'Membership #'!$A$1:$C$1005,2,FALSE))) -> Ella Cowley | D50: =IF(B50="","",(VLOOKUP(B50,'Membership #'!$A$1:$C$1005,3,FALSE))) -> Blazin Boots | G50: 70 | H50: 15 | I50: 70 | J50: 50 | K50: 5 | M50: 210 | Q50: 210
A51: 49 | B51: 908 | C51: =IF(B51="","",(VLOOKUP(B51,'Membership #'!$A$1:$C$1005,2,FALSE))) -> Josie Higgins | D51: =IF(B51="","",(VLOOKUP(B51,'Membership #'!$A$1:$C$1005,3,FALSE))) -> Rocket Man | J51: 50 | K51: 5 | M51: 55 | N51: -55 | Q51: 0
A52: 50 | B52: 909 | C52: =IF(B52="","",(VLOOKUP(B52,'Membership #'!$A$1:$C$1005,2,FALSE))) -> Rebecca Gillis | D52: =IF(B52="","",(VLOOKUP(B52,'Membership #'!$A$1:$C$1005,3,FALSE))) -> Martha's Tivio Moon | G52: 40 | H52: 15 | I52: 40 | J52: 50 | K52: 5 | M52: 150 | N52: -150 | Q52: 0
A53: 51 | B53: 914 | C53: =IF(B53="","",(VLOOKUP(B53,'Membership #'!$A$1:$C$1005,2,FALSE))) -> Shelby MacPherson | D53: =IF(B53="","",(VLOOKUP(B53,'Membership #'!$A$1:$C$1005,3,FALSE))) -> Shelbys Badger Bar | G53: 50 | H53: 15 | I53: 50 | J53: 50 | K53: 5 | M53: 170 | N53: -170 | Q53: 0
A54: 52 | B54: 918 | C54: =IF(B54="","",(VLOOKUP(B54,'Membership #'!$A$1:$C$1005,2,FALSE))) -> Keira Rose | D54: =IF(B54="","",(VLOOKUP(B54,'Membership #'!$A$1:$C$1005,3,FALSE))) -> LL Its All About Red | G54: 10 | H54: 15 | I54: 10 | J54: 50 | K54: 5 | M54: 90 | N54: -90 | Q54: 0
A55: 53 | B55: 922 | C55: =IF(B55="","",(VLOOKUP(B55,'Membership #'!$A$1:$C$1005,2,FALSE))) -> Stevi Jardine | D55: =IF(B55="","",(VLOOKUP(B55,'Membership #'!$A$1:$C$1005,3,FALSE))) -> Paytons Pretty Cool | G55: 40 | H55: 15 | I55: 40 | J55: 50 | K55: 5 | L55: 40 | M55: 190 | N55: -195 | Q55: -5
A56: 54 | B56: 928 | C56: =IF(B56="","",(VLOOKUP(B56,'Membership #'!$A$1:$C$1005,2,FALSE))) -> Tessa Dicks | D56: =IF(B56="","",(VLOOKUP(B56,'Membership #'!$A$1:$C$1005,3,FALSE))) -> ELM Dash of Crime | G56: 40 | H56: 15 | I56: 40 | J56: 50 | K56: 5 | M56: 150 | N56: -150 | Q56: 0
A57: 55 | B57: 941 | C57: =IF(B57="","",(VLOOKUP(B57,'Membership #'!$A$1:$C$1005,2,FALSE))) -> Taylor Hurley | D57: =IF(B57="","",(VLOOKUP(B57,'Membership #'!$A$1:$C$1005,3,FALSE))) -> Nacho Business | G57: 10 | I57: 10 | J57: 50 | K57: 5 | M57: 75 | N57: -75 | Q57: 0
A58: 56 | B58: 954 | C58: =IF(B58="","",(VLOOKUP(B58,'Membership #'!$A$1:$C$1005,2,FALSE))) -> Scotia MacEachern | D58: =IF(B58="","",(VLOOKUP(B58,'Membership #'!$A$1:$C$1005,3,FALSE))) -> Hick-a-Licious | G58: 30 | H58: 15 | I58: 30 | J58: 50 | K58: 5 | M58: 130 | N58: -130 | Q58: 0
A59: 57 | B59: 961 | C59: =IF(B59="","",(VLOOKUP(B59,'Membership #'!$A$1:$C$1005,2,FALSE))) -> Jacie Burke | D59: =IF(B59="","",(VLOOKUP(B59,'Membership #'!$A$1:$C$1005,3,FALSE))) -> She's Just That Sassy | G59: 10 | I59: 10 | J59: 50 | K59: 5 | M59: 75 | N59: -75 | Q59: 0
A60: 58 | B60: 962 | C60: =IF(B60="","",(VLOOKUP(B60,'Membership #'!$A$1:$C$1005,2,FALSE))) -> Hariin Burke | D60: =IF(B60="","",(VLOOKUP(B60,'Membership #'!$A$1:$C$1005,3,FALSE))) -> Olds Bold Impulse | J60: 50 | K60: 5 | L60: 40 | M60: 95 | N60: -95 | Q60: 0
A61: 59 | B61: 963 | C61: =IF(B61="","",(VLOOKUP(B61,'Membership #'!$A$1:$C$1005,2,FALSE))) -> Leighton Burke | D61: =IF(B61="","",(VLOOKUP(B61,'Membership #'!$A$1:$C$1005,3,FALSE))) -> Boot Scootin Boogie | J61: 50 | K61: 5 | M61: 55 | N61: -55 | Q61: 0
A62: 60 | B62: 966 | C62: =IF(B62="","",(VLOOKUP(B62,'Membership #'!$A$1:$C$1005,2,FALSE))) -> Ava Anderson | D62: =IF(B62="","",(VLOOKUP(B62,'Membership #'!$A$1:$C$1005,3,FALSE))) -> Black Sass | G62: 30 | H62: 15 | I62: 30 | J62: 50 | K62: 5 | M62: 130 | N62: -130 | Q62: 0
A63: 61 | B63: 967 | C63: =IF(B63="","",(VLOOKUP(B63,'Membership #'!$A$1:$C$1005,2,FALSE))) -> Marissa Hillier | D63: =IF(B63="","",(VLOOKUP(B63,'Membership #'!$A$1:$C$1005,3,FALSE))) -> Notice Betty Boop | G63: 10 | H63: 15 | I63: 10 | J63: 50 | K63: 5 | M63: 90 | N63: -90 | Q63: 0
A64: 62 | B64: 968 | C64: =IF(B64="","",(VLOOKUP(B64,'Membership #'!$A$1:$C$1005,2,FALSE))) -> Madison Pelly | D64: =IF(B64="","",(VLOOKUP(B64,'Membership #'!$A$1:$C$1005,3,FALSE))) -> Westin | G64: 10 | H64: 15 | I64: 10 | J64: 50 | K64: 5 | L64: 40 | M64: 130 | N64: -130 | Q64: 0
A65: 63 | B65: 969 | C65: =IF(B65="","",(VLOOKUP(B65,'Membership #'!$A$1:$C$1005,2,FALSE))) -> Kenzie Cook | D65: =IF(B65="","",(VLOOKUP(B65,'Membership #'!$A$1:$C$1005,3,FALSE))) -> Pocos Lady Emeralda | G65: 10 | I65: 10 | J65: 50 | K65: 5 | M65: 75 | N65: -95 | Q65: -20 | R65: you owe her $20
A66: 64 | B66: 971 | C66: =IF(B66="","",(VLOOKUP(B66,'Membership #'!$A$1:$C$1005,2,FALSE))) -> Arielle Burke | D66: =IF(B66="","",(VLOOKUP(B66,'Membership #'!$A$1:$C$1005,3,FALSE))) -> Elm Sally | G66: 60 | H66: 15 | I66: 60 | J66: 50 | K66: 5 | M66: 190 | N66: -190 | Q66: 0
A67: 65 | B67: 973 | C67: =IF(B67="","",(VLOOKUP(B67,'Membership #'!$A$1:$C$1005,2,FALSE))) -> Sara Ivey | D67: =IF(B67="","",(VLOOKUP(B67,'Membership #'!$A$1:$C$1005,3,FALSE))) -> Ms Heavenly Gator | G67: 50 | H67: 15 | I67: 70 | J67: 50 | K67: 5 | M67: =SUM(G67:L67) -> 190 | N67: -190 | Q67: =SUM(M67:P67) -> 0
A68: 66 | B68: 974 | C68: =IF(B68="","",(VLOOKUP(B68,'Membership #'!$A$1:$C$1005,2,FALSE))) -> Kerissa Martin | D68: =IF(B68="","",(VLOOKUP(B68,'Membership #'!$A$1:$C$1005,3,FALSE))) -> Wild Steppin Phoenix | J68: 50 | K68: 5 | L68: 40 | M68: 95 | N68: -95 | Q68: 0
C69: =IF(B69="","",(VLOOKUP(B69,'Membership #'!$A$1:$C$1005,2,FALSE))) ->  | D69: =IF(B69="","",(VLOOKUP(B69,'Membership #'!$A$1:$C$1005,3,FALSE))) ->  | G69: =SUM(G3:G68) -> 1575 | H69: 720 | I69: 1550 | J69: 3275 | K69: 330 | L69: 680 | M69: 8130 | N69: -7190 | O69: 0 | P69: 0 | Q69: 940
C70: =IF(B70="","",(VLOOKUP(B70,'Membership #'!$A$1:$C$1005,2,FALSE))) ->  | D70: =IF(B70="","",(VLOOKUP(B70,'Membership #'!$A$1:$C$1005,3,FALSE))) -> 
C71: =IF(B71="","",(VLOOKUP(B71,'Membership #'!$A$1:$C$1005,2,FALSE))) ->  | D71: =IF(B71="","",(VLOOKUP(B71,'Membership #'!$A$1:$C$1005,3,FALSE))) -> 
C72: =IF(B72="","",(VLOOKUP(B72,'Membership #'!$A$1:$C$1005,2,FALSE))) ->  | D72: =IF(B72="","",(VLOOKUP(B72,'Membership #'!$A$1:$C$1005,3,FALSE))) -> 
C73: =IF(B73="","",(VLOOKUP(B73,'Membership #'!$A$1:$C$1005,2,FALSE))) ->  | D73: =IF(B73="","",(VLOOKUP(B73,'Membership #'!$A$1:$C$1005,3,FALSE))) -> 
C74: =IF(B74="","",(VLOOKUP(B74,'Membership #'!$A$1:$C$1005,2,FALSE))) ->  | D74: =IF(B74="","",(VLOOKUP(B74,'Membership #'!$A$1:$C$1005,3,FALSE))) -> 
C75: =IF(B75="","",(VLOOKUP(B75,'Membership #'!$A$1:$C$1005,2,FALSE))) ->  | D75: =IF(B75="","",(VLOOKUP(B75,'Membership #'!$A$1:$C$1005,3,FALSE))) -> 
C76: =IF(B76="","",(VLOOKUP(B76,'Membership #'!$A$1:$C$1005,2,FALSE))) ->  | D76: =IF(B76="","",(VLOOKUP(B76,'Membership #'!$A$1:$C$1005,3,FALSE))) -> 
C77: =IF(B77="","",(VLOOKUP(B77,'Membership #'!$A$1:$C$1005,2,FALSE))) ->  | D77: =IF(B77="","",(VLOOKUP(B77,'Membership #'!$A$1:$C$1005,3,FALSE))) -> 
C78: =IF(B78="","",(VLOOKUP(B78,'Membership #'!$A$1:$C$1005,2,FALSE))) ->  | D78: =IF(B78="","",(VLOOKUP(B78,'Membership #'!$A$1:$C$1005,3,FALSE))) -> 
C79: =IF(B79="","",(VLOOKUP(B79,'Membership #'!$A$1:$C$1005,2,FALSE))) ->  | D79: =IF(B79="","",(VLOOKUP(B79,'Membership #'!$A$1:$C$1005,3,FALSE))) -> 
C80: =IF(B80="","",(VLOOKUP(B80,'Membership #'!$A$1:$C$1005,2,FALSE))) ->  | D80: =IF(B80="","",(VLOOKUP(B80,'Membership #'!$A$1:$C$1005,3,FALSE))) -> 
C81: =IF(B81="","",(VLOOKUP(B81,'Membership #'!$A$1:$C$1005,2,FALSE))) ->  | D81: =IF(B81="","",(VLOOKUP(B81,'Membership #'!$A$1:$C$1005,3,FALSE))) -> 
C82: =IF(B82="","",(VLOOKUP(B82,'Membership #'!$A$1:$C$1005,2,FALSE))) ->  | D82: =IF(B82="","",(VLOOKUP(B82,'Membership #'!$A$1:$C$1005,3,FALSE))) -> 
C83: =IF(B83="","",(VLOOKUP(B83,'Membership #'!$A$1:$C$1005,2,FALSE))) ->  | D83: =IF(B83="","",(VLOOKUP(B83,'Membership #'!$A$1:$C$1005,3,FALSE))) -> 
C84: =IF(B84="","",(VLOOKUP(B84,'Membership #'!$A$1:$C$1005,2,FALSE))) ->  | D84: =IF(B84="","",(VLOOKUP(B84,'Membership #'!$A$1:$C$1005,3,FALSE))) -> 
C85: =IF(B85="","",(VLOOKUP(B85,'Membership #'!$A$1:$C$1005,2,FALSE))) ->  | D85: =IF(B85="","",(VLOOKUP(B85,'Membership #'!$A$1:$C$1005,3,FALSE))) -> 
C86: =IF(B86="","",(VLOOKUP(B86,'Membership #'!$A$1:$C$1005,2,FALSE))) ->  | D86: =IF(B86="","",(VLOOKUP(B86,'Membership #'!$A$1:$C$1005,3,FALSE))) -> 
C87: =IF(B87="","",(VLOOKUP(B87,'Membership #'!$A$1:$C$1005,2,FALSE))) ->  | D87: =IF(B87="","",(VLOOKUP(B87,'Membership #'!$A$1:$C$1005,3,FALSE))) -> 
C88: =IF(B88="","",(VLOOKUP(B88,'Membership #'!$A$1:$C$1005,2,FALSE))) ->  | D88: =IF(B88="","",(VLOOKUP(B88,'Membership #'!$A$1:$C$1005,3,FALSE))) -> 
C89: =IF(B89="","",(VLOOKUP(B89,'Membership #'!$A$1:$C$1005,2,FALSE))) ->  | D89: =IF(B89="","",(VLOOKUP(B89,'Membership #'!$A$1:$C$1005,3,FALSE))) -> 
C90: =IF(B90="","",(VLOOKUP(B90,'Membership #'!$A$1:$C$1005,2,FALSE))) ->  | D90: =IF(B90="","",(VLOOKUP(B90,'Membership #'!$A$1:$C$1005,3,FALSE))) -> 
C91: =IF(B91="","",(VLOOKUP(B91,'Membership #'!$A$1:$C$1005,2,FALSE))) ->  | D91: =IF(B91="","",(VLOOKUP(B91,'Membership #'!$A$1:$C$1005,3,FALSE))) -> 
C92: =IF(B92="","",(VLOOKUP(B92,'Membership #'!$A$1:$C$1005,2,FALSE))) ->  | D92: =IF(B92="","",(VLOOKUP(B92,'Membership #'!$A$1:$C$1005,3,FALSE))) -> 
C93: =IF(B93="","",(VLOOKUP(B93,'Membership #'!$A$1:$C$1005,2,FALSE))) ->  | D93: =IF(B93="","",(VLOOKUP(B93,'Membership #'!$A$1:$C$1005,3,FALSE))) -> 
C94: =IF(B94="","",(VLOOKUP(B94,'Membership #'!$A$1:$C$1005,2,FALSE))) ->  | D94: =IF(B94="","",(VLOOKUP(B94,'Membership #'!$A$1:$C$1005,3,FALSE))) -> 
C95: =IF(B95="","",(VLOOKUP(B95,'Membership #'!$A$1:$C$1005,2,FALSE))) ->  | D95: =IF(B95="","",(VLOOKUP(B95,'Membership #'!$A$1:$C$1005,3,FALSE))) -> 
C96: =IF(B96="","",(VLOOKUP(B96,'Membership #'!$A$1:$C$1005,2,FALSE))) ->  | D96: =IF(B96="","",(VLOOKUP(B96,'Membership #'!$A$1:$C$1005,3,FALSE))) -> 
C97: =IF(B97="","",(VLOOKUP(B97,'Membership #'!$A$1:$C$1005,2,FALSE))) ->  | D97: =IF(B97="","",(VLOOKUP(B97,'Membership #'!$A$1:$C$1005,3,FALSE))) -> 
C98: =IF(B98="","",(VLOOKUP(B98,'Membership #'!$A$1:$C$1005,2,FALSE))) ->  | D98: =IF(B98="","",(VLOOKUP(B98,'Membership #'!$A$1:$C$1005,3,FALSE))) -> 
C99: =IF(B99="","",(VLOOKUP(B99,'Membership #'!$A$1:$C$1005,2,FALSE))) ->  | D99: =IF(B99="","",(VLOOKUP(B99,'Membership #'!$A$1:$C$1005,3,FALSE))) -> 
C100: =IF(B100="","",(VLOOKUP(B100,'Membership #'!$A$1:$C$1005,2,FALSE))) ->  | D100: =IF(B100="","",(VLOOKUP(B100,'Membership #'!$A$1:$C$1005,3,FALSE))) -> 
C101: =IF(B101="","",(VLOOKUP(B101,'Membership #'!$A$1:$C$1005,2,FALSE))) ->  | D101: =IF(B101="","",(VLOOKUP(B101,'Membership #'!$A$1:$C$1005,3,FALSE))) -> 
C102: =IF(B102="","",(VLOOKUP(B102,'Membership #'!$A$1:$C$1005,2,FALSE))) ->  | D102: =IF(B102="","",(VLOOKUP(B102,'Membership #'!$A$1:$C$1005,3,FALSE))) -> 
C103: =IF(B103="","",(VLOOKUP(B103,'Membership #'!$A$1:$C$1005,2,FALSE))) ->  | D103: =IF(B103="","",(VLOOKUP(B103,'Membership #'!$A$1:$C$1005,3,FALSE))) -> 
C104: =IF(B104="","",(VLOOKUP(B104,'Membership #'!$A$1:$C$1005,2,FALSE))) ->  | D104: =IF(B104="","",(VLOOKUP(B104,'Membership #'!$A$1:$C$1005,3,FALSE))) -> 
C105: =IF(B105="","",(VLOOKUP(B105,'Membership #'!$A$1:$C$1005,2,FALSE))) ->  | D105: =IF(B105="","",(VLOOKUP(B105,'Membership #'!$A$1:$C$1005,3,FALSE))) -> 
C106: =IF(B106="","",(VLOOKUP(B106,'Membership #'!$A$1:$C$1005,2,FALSE))) ->  | D106: =IF(B106="","",(VLOOKUP(B106,'Membership #'!$A$1:$C$1005,3,FALSE))) -> 
C107: =IF(B107="","",(VLOOKUP(B107,'Membership #'!$A$1:$C$1005,2,FALSE))) ->  | D107: =IF(B107="","",(VLOOKUP(B107,'Membership #'!$A$1:$C$1005,3,FALSE))) -> 
C108: =IF(B108="","",(VLOOKUP(B108,'Membership #'!$A$1:$C$1005,2,FALSE))) ->  | D108: =IF(B108="","",(VLOOKUP(B108,'Membership #'!$A$1:$C$1005,3,FALSE))) -> 

Sheet Sheet1

Sheet EXHIBITION Barrels
A1: 2021 | M1: x=Scratch
A2: EXHIBITION BARREL RACE | M2: n=No Time
A3: # Entries: | E3: =COUNTIF($D$8:$D$72,">0") -> 0
A4: Rand Draw | B4: Seed | D4: RING # | E4: NAME | F4: HORSE NAME | G4: TIME | H4: PENALTY | I4: TOTAL | J4: PLACINGS | K4: POINTS
A8: =IF(D8<>"",RAND(),"") ->  | B8: =IF(D8<>"",RANK(A8,A$8:A$73),"") ->  | I8: =SUM(G8+H8) -> 0
I9: 0
I10: 0
I11: 0
E12: =IF(D12="","",(VLOOKUP(D12,'Membership #'!$A$1:$C$1005,2,0))) ->  | F12: =IF(D12="","",(VLOOKUP(D12,'Membership #'!$A$1:$C$1005,3,0))) ->  | I12: 0
E13: =IF(D13="","",(VLOOKUP(D13,'Membership #'!$A$1:$C$1005,2,0))) ->  | F13: =IF(D13="","",(VLOOKUP(D13,'Membership #'!$A$1:$C$1005,3,0))) ->  | I13: 0
E14: =IF(D14="","",(VLOOKUP(D14,'Membership #'!$A$1:$C$1005,2,0))) ->  | F14: =IF(D14="","",(VLOOKUP(D14,'Membership #'!$A$1:$C$1005,3,0))) ->  | I14: 0
E15: =IF(D15="","",(VLOOKUP(D15,'Membership #'!$A$1:$C$1005,2,0))) ->  | F15: =IF(D15="","",(VLOOKUP(D15,'Membership #'!$A$1:$C$1005,3,0))) ->  | I15: 0
E16: =IF(D16="","",(VLOOKUP(D16,'Membership #'!$A$1:$C$1005,2,0))) ->  | F16: =IF(D16="","",(VLOOKUP(D16,'Membership #'!$A$1:$C$1005,3,0))) ->  | I16: 0
E17: =IF(D17="","",(VLOOKUP(D17,'Membership #'!$A$1:$C$1005,2,0))) ->  | F17: =IF(D17="","",(VLOOKUP(D17,'Membership #'!$A$1:$C$1005,3,0))) ->  | I17: 0
E18: =IF(D18="","",(VLOOKUP(D18,'Membership #'!$A$1:$C$1005,2,0))) ->  | F18: =IF(D18="","",(VLOOKUP(D18,'Membership #'!$A$1:$C$1005,3,0))) ->  | I18: 0
E19: =IF(D19="","",(VLOOKUP(D19,'Membership #'!$A$1:$C$1005,2,0))) ->  | F19: =IF(D19="","",(VLOOKUP(D19,'Membership #'!$A$1:$C$1005,3,0))) ->  | I19: 0
E20: =IF(D20="","",(VLOOKUP(D20,'Membership #'!$A$1:$C$1005,2,0))) ->  | F20: =IF(D20="","",(VLOOKUP(D20,'Membership #'!$A$1:$C$1005,3,0))) ->  | I20: 0
E21: =IF(D21="","",(VLOOKUP(D21,'Membership #'!$A$1:$C$1005,2,0))) ->  | F21: =IF(D21="","",(VLOOKUP(D21,'Membership #'!$A$1:$C$1005,3,0))) ->  | I21: 0
E22: =IF(D22="","",(VLOOKUP(D22,'Membership #'!$A$1:$C$1005,2,0))) ->  | F22: =IF(D22="","",(VLOOKUP(D22,'Membership #'!$A$1:$C$1005,3,0))) ->  | I22: 0
E23: =IF(D23="","",(VLOOKUP(D23,'Membership #'!$A$1:$C$1005,2,0))) ->  | F23: =IF(D23="","",(VLOOKUP(D23,'Membership #'!$A$1:$C$1005,3,0))) ->  | I23: 0
E24: =IF(D24="","",(VLOOKUP(D24,'Membership #'!$A$1:$C$1005,2,0))) ->  | F24: =IF(D24="","",(VLOOKUP(D24,'Membership #'!$A$1:$C$1005,3,0))) ->  | I24: 0
E25: =IF(D25="","",(VLOOKUP(D25,'Membership #'!$A$1:$C$1005,2,0))) ->  | F25: =IF(D25="","",(VLOOKUP(D25,'Membership #'!$A$1:$C$1005,3,0))) ->  | I25: 0
E26: =IF(D26="","",(VLOOKUP(D26,'Membership #'!$A$1:$C$1005,2,0))) ->  | F26: =IF(D26="","",(VLOOKUP(D26,'Membership #'!$A$1:$C$1005,3,0))) ->  | I26: 0
E27: =IF(D27="","",(VLOOKUP(D27,'Membership #'!$A$1:$C$1005,2,0))) ->  | F27: =IF(D27="","",(VLOOKUP(D27,'Membership #'!$A$1:$C$1005,3,0))) ->  | I27: 0
E28: =IF(D28="","",(VLOOKUP(D28,'Membership #'!$A$1:$C$1005,2,0))) ->  | F28: =IF(D28="","",(VLOOKUP(D28,'Membership #'!$A$1:$C$1005,3,0))) ->  | I28: 0
E29: =IF(D29="","",(VLOOKUP(D29,'Membership #'!$A$1:$C$1005,2,0))) ->  | F29: =IF(D29="","",(VLOOKUP(D29,'Membership #'!$A$1:$C$1005,3,0))) ->  | I29: 0
E30: =IF(D30="","",(VLOOKUP(D30,'Membership #'!$A$1:$C$1005,2,0))) ->  | F30: =IF(D30="","",(VLOOKUP(D30,'Membership #'!$A$1:$C$1005,3,0))) ->  | I30: 0
E31: =IF(D31="","",(VLOOKUP(D31,'Membership #'!$A$1:$C$1005,2,0))) ->  | F31: =IF(D31="","",(VLOOKUP(D31,'Membership #'!$A$1:$C$1005,3,0))) ->  | I31: 0
E32: =IF(D32="","",(VLOOKUP(D32,'Membership #'!$A$1:$C$1005,2,0))) ->  | F32: =IF(D32="","",(VLOOKUP(D32,'Membership #'!$A$1:$C$1005,3,0))) ->  | I32: 0
E33: =IF(D33="","",(VLOOKUP(D33,'Membership #'!$A$1:$C$1005,2,0))) ->  | F33: =IF(D33="","",(VLOOKUP(D33,'Membership #'!$A$1:$C$1005,3,0))) ->  | I33: 0
E34: =IF(D34="","",(VLOOKUP(D34,'Membership #'!$A$1:$C$1005,2,0))) ->  | F34: =IF(D34="","",(VLOOKUP(D34,'Membership #'!$A$1:$C$1005,3,0))) ->  | I34: 0
E35: =IF(D35="","",(VLOOKUP(D35,'Membership #'!$A$1:$C$1005,2,0))) ->  | F35: =IF(D35="","",(VLOOKUP(D35,'Membership #'!$A$1:$C$1005,3,0))) ->  | I35: =IF(G35="n","No Time",IF(G35="x","Scratch",IF(G35<>"",SUM(G35+H35),""))) -> 
E36: =IF(D36="","",(VLOOKUP(D36,'Membership #'!$A$1:$C$1005,2,0))) ->  | F36: =IF(D36="","",(VLOOKUP(D36,'Membership #'!$A$1:$C$1005,3,0))) -> 
E37: =IF(D37="","",(VLOOKUP(D37,'Membership #'!$A$1:$C$1005,2,0))) ->  | F37: =IF(D37="","",(VLOOKUP(D37,'Membership #'!$A$1:$C$1005,3,0))) -> 
E38: =IF(D38="","",(VLOOKUP(D38,'Membership #'!$A$1:$C$1005,2,0))) ->  | F38: =IF(D38="","",(VLOOKUP(D38,'Membership #'!$A$1:$C$1005,3,0))) -> 
E39: =IF(D39="","",(VLOOKUP(D39,'Membership #'!$A$1:$C$1005,2,0))) ->  | F39: =IF(D39="","",(VLOOKUP(D39,'Membership #'!$A$1:$C$1005,3,0))) -> 
B40: =IF(D40<>"",RANK(A40,A$8:A$73),"") ->  | E40: =IF(D40="","",(VLOOKUP(D40,'Membership #'!$A$1:$C$1005,2,0))) ->  | F40: =IF(D40="","",(VLOOKUP(D40,'Membership #'!$A$1:$C$1005,3,0))) -> 
E41: =IF(D41="","",(VLOOKUP(D41,'Membership #'!$A$1:$C$1005,2,0))) ->  | F41: =IF(D41="","",(VLOOKUP(D41,'Membership #'!$A$1:$C$1005,3,0))) -> 
E42: =IF(D42="","",(VLOOKUP(D42,'Membership #'!$A$1:$C$1005,2,0))) ->  | F42: =IF(D42="","",(VLOOKUP(D42,'Membership #'!$A$1:$C$1005,3,0))) -> 
E43: =IF(D43="","",(VLOOKUP(D43,'Membership #'!$A$1:$C$1005,2,0))) ->  | F43: =IF(D43="","",(VLOOKUP(D43,'Membership #'!$A$1:$C$1005,3,0))) -> 
A44: =IF(D44<>"",RAND(),"") ->  | E44: =IF(D44="","",(VLOOKUP(D44,'Membership #'!$A$1:$C$1005,2,0))) ->  | F44: =IF(D44="","",(VLOOKUP(D44,'Membership #'!$A$1:$C$1005,3,0))) -> 
E45: =IF(D45="","",(VLOOKUP(D45,'Membership #'!$A$1:$C$1005,2,0))) ->  | F45: =IF(D45="","",(VLOOKUP(D45,'Membership #'!$A$1:$C$1005,3,0))) ->  | I45: =IF(G45="n","No Time",IF(G45="x","Scratch",IF(G45<>"",SUM(G45+H45),""))) -> 
E46: =IF(D46="","",(VLOOKUP(D46,'Membership #'!$A$1:$C$1005,2,0))) ->  | F46: =IF(D46="","",(VLOOKUP(D46,'Membership #'!$A$1:$C$1005,3,0))) -> 
E47: =IF(D47="","",(VLOOKUP(D47,'Membership #'!$A$1:$C$1005,2,0))) ->  | F47: =IF(D47="","",(VLOOKUP(D47,'Membership #'!$A$1:$C$1005,3,0))) -> 
E48: =IF(D48="","",(VLOOKUP(D48,'Membership #'!$A$1:$C$1005,2,0))) ->  | F48: =IF(D48="","",(VLOOKUP(D48,'Membership #'!$A$1:$C$1005,3,0))) -> 
E49: =IF(D49="","",(VLOOKUP(D49,'Membership #'!$A$1:$C$1005,2,0))) ->  | F49: =IF(D49="","",(VLOOKUP(D49,'Membership #'!$A$1:$C$1005,3,0))) -> 
E50: =IF(D50="","",(VLOOKUP(D50,'Membership #'!$A$1:$C$1005,2,0))) ->  | F50: =IF(D50="","",(VLOOKUP(D50,'Membership #'!$A$1:$C$1005,3,0))) -> 
E51: =IF(D51="","",(VLOOKUP(D51,'Membership #'!$A$1:$C$1005,2,0))) ->  | F51: =IF(D51="","",(VLOOKUP(D51,'Membership #'!$A$1:$C$1005,3,0))) -> 
E52: =IF(D52="","",(VLOOKUP(D52,'Membership #'!$A$1:$C$1005,2,0))) ->  | F52: =IF(D52="","",(VLOOKUP(D52,'Membership #'!$A$1:$C$1005,3,0))) -> 
E53: =IF(D53="","",(VLOOKUP(D53,'Membership #'!$A$1:$C$1005,2,0))) ->  | F53: =IF(D53="","",(VLOOKUP(D53,'Membership #'!$A$1:$C$1005,3,0))) -> 
E54: =IF(D54="","",(VLOOKUP(D54,'Membership #'!$A$1:$C$1005,2,0))) ->  | F54: =IF(D54="","",(VLOOKUP(D54,'Membership #'!$A$1:$C$1005,3,0))) -> 
E55: =IF(D55="","",(VLOOKUP(D55,'Membership #'!$A$1:$C$1005,2,0))) ->  | F55: =IF(D55="","",(VLOOKUP(D55,'Membership #'!$A$1:$C$1005,3,0))) -> 
E56: =IF(D56="","",(VLOOKUP(D56,'Membership #'!$A$1:$C$1005,2,0))) ->  | F56: =IF(D56="","",(VLOOKUP(D56,'Membership #'!$A$1:$C$1005,3,0))) -> 
E57: =IF(D57="","",(VLOOKUP(D57,'Membership #'!$A$1:$C$1005,2,0))) ->  | F57: =IF(D57="","",(VLOOKUP(D57,'Membership #'!$A$1:$C$1005,3,0))) -> 
E58: =IF(D58="","",(VLOOKUP(D58,'Membership #'!$A$1:$C$1005,2,0))) ->  | F58: =IF(D58="","",(VLOOKUP(D58,'Membership #'!$A$1:$C$1005,3,0))) -> 
E59: =IF(D59="","",(VLOOKUP(D59,'Membership #'!$A$1:$C$1005,2,0))) ->  | F59: =IF(D59="","",(VLOOKUP(D59,'Membership #'!$A$1:$C$1005,3,0))) -> 
E60: =IF(D60="","",(VLOOKUP(D60,'Membership #'!$A$1:$C$1005,2,0))) ->  | F60: =IF(D60="","",(VLOOKUP(D60,'Membership #'!$A$1:$C$1005,3,0))) -> 
E61: =IF(D61="","",(VLOOKUP(D61,'Membership #'!$A$1:$C$1005,2,0))) ->  | F61: =IF(D61="","",(VLOOKUP(D61,'Membership #'!$A$1:$C$1005,3,0))) -> 
E62: =IF(D62="","",(VLOOKUP(D62,'Membership #'!$A$1:$C$1005,2,0))) ->  | F62: =IF(D62="","",(VLOOKUP(D62,'Membership #'!$A$1:$C$1005,3,0))) -> 
E63: =IF(D63="","",(VLOOKUP(D63,'Membership #'!$A$1:$C$1005,2,0))) ->  | F63: =IF(D63="","",(VLOOKUP(D63,'Membership #'!$A$1:$C$1005,3,0))) -> 
E64: =IF(D64="","",(VLOOKUP(D64,'Membership #'!$A$1:$C$1005,2,0))) ->  | F64: =IF(D64="","",(VLOOKUP(D64,'Membership #'!$A$1:$C$1005,3,0))) -> 
E65: =IF(D65="","",(VLOOKUP(D65,'Membership #'!$A$1:$C$1005,2,0))) ->  | F65: =IF(D65="","",(VLOOKUP(D65,'Membership #'!$A$1:$C$1005,3,0))) -> 
E66: =IF(D66="","",(VLOOKUP(D66,'Membership #'!$A$1:$C$1005,2,0))) ->  | F66: =IF(D66="","",(VLOOKUP(D66,'Membership #'!$A$1:$C$1005,3,0))) -> 
E67: =IF(D67="","",(VLOOKUP(D67,'Membership #'!$A$1:$C$1005,2,0))) ->  | F67: =IF(D67="","",(VLOOKUP(D67,'Membership #'!$A$1:$C$1005,3,0))) -> 
E68: =IF(D68="","",(VLOOKUP(D68,'Membership #'!$A$1:$C$1005,2,0))) ->  | F68: =IF(D68="","",(VLOOKUP(D68,'Membership #'!$A$1:$C$1005,3,0))) -> 
E69: =IF(D69="","",(VLOOKUP(D69,'Membership #'!$A$1:$C$1005,2,0))) ->  | F69: =IF(D69="","",(VLOOKUP(D69,'Membership #'!$A$1:$C$1005,3,0))) -> 
E70: =IF(D70="","",(VLOOKUP(D70,'Membership #'!$A$1:$C$1005,2,0))) ->  | F70: =IF(D70="","",(VLOOKUP(D70,'Membership #'!$A$1:$C$1005,3,0))) -> 
E71: =IF(D71="","",(VLOOKUP(D71,'Membership #'!$A$1:$C$1005,2,0))) ->  | F71: =IF(D71="","",(VLOOKUP(D71,'Membership #'!$A$1:$C$1005,3,0))) -> 
B72: =IF(D72<>"",RANK(A72,A$8:A$73),"") ->  | E72: =IF(D72="","",(VLOOKUP(D72,'Membership #'!$A$1:$C$1005,2,0))) ->  | F72: =IF(D72="","",(VLOOKUP(D72,'Membership #'!$A$1:$C$1005,3,0))) -> 
B73: =IF(D73<>"",RANK(A73,A$8:A$73),"") ->  | E73: =IF(D73="","",(VLOOKUP(D73,'Membership #'!$A$1:$C$1005,2,0))) ->  | F73: =IF(D73="","",(VLOOKUP(D73,'Membership #'!$A$1:$C$1005,3,0))) -> 

Sheet SMALLFRY
B1: Tom Burt & Mark McGuire Memorial Jackpot Aug 21, 2021 | L1: High Point Smallfry
B2: SMALLFRY BARRELS | L2: RING # | M2: NAME | N2: HORSE NAME | O2: Barrels | P2: Poles | Q2: Dash | R2: Barrels | S2: Poles | T2: Dash | U2: Total
A3: Rand Draw | B3: Running Order | C3: RING # | D3: NAME | E3: HORSE NAME | F3: TIME | G3: PENALTY | H3: TOTAL | I3: PLACINGS | J3: POINTS
M6: Joise higgins | N6: rocket man | O6: 10 | P6: 10 | Q6: 10 | U6: =SUM(O6:T6) -> 30
A7: =RAND() -> 0.5647692074 | B7: 1 | C7: 908 | D7: =IF(C7="",0,(VLOOKUP(C7,'Membership #'!$A$1:$C$1005,2,0))) -> Josie Higgins | E7: =IF(C7="",0,(VLOOKUP(C7,'Membership #'!$A$1:$C$1005,3,0))) -> Rocket Man | F7: 19.448 | H7: =SUM(F7+G7) -> 19.448 | I7: 10 | M7: Addison peters | N7: Hes a little wonder | O7: 9 | P7: 1 | Q7: 9 | U7: 19
A8: 0.2136752546 | B8: 2 | C8: 531 | D8: =IF(C8="",0,(VLOOKUP(C8,'Membership #'!$A$1:$C$1005,2,0))) -> Addison Peters | E8: =IF(C8="",0,(VLOOKUP(C8,'Membership #'!$A$1:$C$1005,3,0))) -> He's A Little Wonder | F8: 20.801 | H8: 20.801 | I8: 9 | M8: Kerissa Martin | N8: wild stepping phoenix | O8: 8 | P8: 9 | Q8: 8 | U8: 25
A9: 0.37406554 | B9: 3 | C9: 974 | D9: =IF(C9="",0,(VLOOKUP(C9,'Membership #'!$A$1:$C$1005,2,0))) -> Kerissa Martin | E9: =IF(C9="",0,(VLOOKUP(C9,'Membership #'!$A$1:$C$1005,3,0))) -> Wild Steppin Phoenix | F9: 21.289 | H9: 21.289 | I9: 8 | M9: Kaelyn Keddy | N9: sight to ne hold | O9: 7 | P9: 7 | Q9: 7 | U9: 21
A10: 0.2258159831 | B10: 4 | C10: 627 | D10: =IF(C10="",0,(VLOOKUP(C10,'Membership #'!$A$1:$C$1005,2,0))) -> Kaelyn Keddy | E10: =IF(C10="",0,(VLOOKUP(C10,'Membership #'!$A$1:$C$1005,3,0))) -> Sight to Behold | F10: 22.303 | H10: 22.303 | I10: 7 | M10: Leighton Burke | N10: Boot scootin boogie | O10: 6 | P10: 8 | Q10: 4 | U10: 18
A11: 0.4971468868 | B11: 5 | C11: 963 | D11: =IF(C11="",0,(VLOOKUP(C11,'Membership #'!$A$1:$C$1005,2,0))) -> Leighton Burke | E11: =IF(C11="",0,(VLOOKUP(C11,'Membership #'!$A$1:$C$1005,3,0))) -> Boot Scootin Boogie | F11: 24.114 | H11: 24.114 | I11: 6 | M11: Ava Reginato | N11: jacs last flash | O11: 5 | P11: 6 | Q11: 5 | U11: 16
A12: 0.9388879906 | B12: 6 | C12: 802 | D12: =IF(C12="",0,(VLOOKUP(C12,'Membership #'!$A$1:$C$1005,2,0))) -> Ava Reginato | E12: =IF(C12="",0,(VLOOKUP(C12,'Membership #'!$A$1:$C$1005,3,0))) -> Jacs Last Flash | F12: 24.669 | H12: 24.669 | I12: 5 | M12: Owen Baker | N12: tip it back | O12: 4 | P12: 4 | Q12: 3 | U12: 11
A13: =RAND() -> 0.3415284137 | B13: 7 | C13: 710 | D13: =IF(C13="",0,(VLOOKUP(C13,'Membership #'!$A$1:$C$1005,2,0))) -> Owen Baker | E13: =IF(C13="",0,(VLOOKUP(C13,'Membership #'!$A$1:$C$1005,3,0))) -> Tip It Back | F13: 31.349 | H13: 31.349 | I13: 4 | M13: Nora Lewis | N13: oreo blizzard | O13: 3 | P13: 3 | Q13: 2 | U13: 8
A14: 0.5146513703 | B14: 8 | C14: 31 | D14: Nora Lewis | E14: Oreo Blizzard | F14: 38.781 | H14: 38.781 | I14: 3 | M14: Isla Baker | N14: tip it back | O14: 2 | P14: 2 | Q14: 1 | U14: 5
A15: 0.7780097758 | B15: 9 | C15: 710b | D15: =IF(C15="",0,(VLOOKUP(C15,'Membership #'!$A$1:$C$1005,2,0))) -> Isla Baker | E15: =IF(C15="",0,(VLOOKUP(C15,'Membership #'!$A$1:$C$1005,3,0))) -> Tip It Back | F15: 42.242 | H15: 42.242 | I15: 2 | M15: Hariin Burke | N15: old bold impulse | O15: 1 | P15: 5 | Q15: 6 | U15: 12
A16: 0.4426562118 | B16: 10 | C16: 962 | D16: =IF(C16="",0,(VLOOKUP(C16,'Membership #'!$A$1:$C$1005,2,0))) -> Hariin Burke | E16: =IF(C16="",0,(VLOOKUP(C16,'Membership #'!$A$1:$C$1005,3,0))) -> Olds Bold Impulse | F16: N | I16: 1
A17: 0.1892844578 | B17: 11 | D17: =IF(C17="",0,(VLOOKUP(C17,'Membership #'!$A$1:$C$1005,2,0))) -> 0 | E17: =IF(C17="",0,(VLOOKUP(C17,'Membership #'!$A$1:$C$1005,3,0))) -> 0 | H17: =SUM(F17+G17) -> 0
A18: 0.8020403159 | B18: 12 | D18: =IF(C18="",0,(VLOOKUP(C18,'Membership #'!$A$1:$C$1005,2,0))) -> 0 | E18: =IF(C18="",0,(VLOOKUP(C18,'Membership #'!$A$1:$C$1005,3,0))) -> 0 | H18: 0 | M18: =IF(L18="",0,(VLOOKUP(L18,'Membership #'!$A$1:$C$1005,2,0))) -> 0 | N18: =IF(L18="",0,(VLOOKUP(L18,'Membership #'!$A$1:$C$1005,3,0))) -> 0 | U18: =SUM(O18:T18) -> 0
A19: 0.6373022925 | B19: 13 | D19: =IF(C19="",0,(VLOOKUP(C19,'Membership #'!$A$1:$C$1005,2,0))) -> 0 | E19: =IF(C19="",0,(VLOOKUP(C19,'Membership #'!$A$1:$C$1005,3,0))) -> 0 | H19: 0 | U19: 0
B20: Tom Burt & Mark McGuire Memorial Jackpot Aug 21, 2021 | M20: =IF(L20="",0,(VLOOKUP(L20,'Membership #'!$A$1:$C$1005,2,0))) -> 0 | N20: =IF(L20="",0,(VLOOKUP(L20,'Membership #'!$A$1:$C$1005,3,0))) -> 0 | U20: 0
B21: SMALLFRY POLES | U21: 0
A22: Rand Draw | B22: Running Order | C22: RING # | D22: NAME | E22: HORSE NAME | F22: TIME | G22: PENALTY | I22: PLACINGS | J22: POINTS | M22: =IF(L22="",0,(VLOOKUP(L22,'Membership #'!$A$1:$C$1005,2,0))) -> 0 | N22: =IF(L22="",0,(VLOOKUP(L22,'Membership #'!$A$1:$C$1005,3,0))) -> 0 | U22: 0
M23: =IF(L23="",0,(VLOOKUP(L23,'Membership #'!$A$1:$C$1005,2,0))) -> 0 | N23: =IF(L23="",0,(VLOOKUP(L23,'Membership #'!$A$1:$C$1005,3,0))) -> 0 | U23: 0
A26: =RAND() -> 0.009217253339 | B26: 1 | C26: 531 | D26: =IF(C26="",0,(VLOOKUP(C26,'Membership #'!$A$1:$C$1005,2,0))) -> Addison Peters | E26: =IF(C26="",0,(VLOOKUP(C26,'Membership #'!$A$1:$C$1005,3,0))) -> He's A Little Wonder | F26: 0 | H26: 0 | J26: 1
A27: 0.02657313769 | B27: 2 | C27: 908 | D27: =IF(C27="",0,(VLOOKUP(C27,'Membership #'!$A$1:$C$1005,2,0))) -> Josie Higgins | E27: =IF(C27="",0,(VLOOKUP(C27,'Membership #'!$A$1:$C$1005,3,0))) -> Rocket Man | F27: 30.405 | H27: =SUM(F27+G27) -> 30.405 | I27: 1 | J27: 10
A28: 0.1876612341 | B28: 3 | C28: 974 | D28: =IF(C28="",0,(VLOOKUP(C28,'Membership #'!$A$1:$C$1005,2,0))) -> Kerissa Martin | E28: =IF(C28="",0,(VLOOKUP(C28,'Membership #'!$A$1:$C$1005,3,0))) -> Wild Steppin Phoenix | F28: 32.294 | H28: =SUM(F28+G28) -> 32.294 | I28: 2 | J28: 9
A29: 0.2687193841 | B29: 4 | C29: 963 | D29: =IF(C29="",0,(VLOOKUP(C29,'Membership #'!$A$1:$C$1005,2,0))) -> Leighton Burke | E29: =IF(C29="",0,(VLOOKUP(C29,'Membership #'!$A$1:$C$1005,3,0))) -> Boot Scootin Boogie | F29: 37.242 | H29: =SUM(F29+G29) -> 37.242 | I29: 3 | J29: 8
A30: 0.8350646322 | B30: 5 | C30: 627 | D30: =IF(C30="",0,(VLOOKUP(C30,'Membership #'!$A$1:$C$1005,2,0))) -> Kaelyn Keddy | E30: =IF(C30="",0,(VLOOKUP(C30,'Membership #'!$A$1:$C$1005,3,0))) -> Sight to Behold | F30: 37.286 | H30: =SUM(F30+G30) -> 37.286 | I30: 4 | J30: 7
A31: 0.8306586462 | B31: 6 | C31: 802 | D31: =IF(C31="",0,(VLOOKUP(C31,'Membership #'!$A$1:$C$1005,2,0))) -> Ava Reginato | E31: =IF(C31="",0,(VLOOKUP(C31,'Membership #'!$A$1:$C$1005,3,0))) -> Jacs Last Flash | F31: 41.124 | H31: =SUM(F31+G31) -> 41.124 | I31: 5 | J31: 6
A32: =RAND() -> 0.8790158483 | B32: 7 | C32: 962 | D32: =IF(C32="",0,(VLOOKUP(C32,'Membership #'!$A$1:$C$1005,2,0))) -> Hariin Burke | E32: =IF(C32="",0,(VLOOKUP(C32,'Membership #'!$A$1:$C$1005,3,0))) -> Olds Bold Impulse | F32: 42.11 | H32: 42.1 | I32: 6 | J32: 5
A33: 0.9957801054 | B33: 8 | C33: 710 | D33: =IF(C33="",0,(VLOOKUP(C33,'Membership #'!$A$1:$C$1005,2,0))) -> Owen Baker | E33: =IF(C33="",0,(VLOOKUP(C33,'Membership #'!$A$1:$C$1005,3,0))) -> Tip It Back | F33: 50.159 | H33: =SUM(F33+G33) -> 50.159 | J33: 4
A34: 0.2 | B34: 9 | C34: 962 | D34: Nora Lewis | E34: Oreo Blizzard | F34: 55.29 | H34: =SUM(F34+G34) -> 55.29 | J34: 3
A35: 0.8231429371 | B35: 10 | C35: 710b | D35: =IF(C35="",0,(VLOOKUP(C35,'Membership #'!$A$1:$C$1005,2,0))) -> Isla Baker | E35: =IF(C35="",0,(VLOOKUP(C35,'Membership #'!$A$1:$C$1005,3,0))) -> Tip It Back | F35: 62.31 | H35: =SUM(F35+G35) -> 62.31 | J35: 2
B36: Tom Burt & Mark McGuire Memorial Jackpot Aug 21, 2021
B37: SMALLFRY Dash
A38: Rand Draw | B38: Running Order | C38: RING # | D38: NAME | E38: HORSE NAME | F38: TIME | G38: PENALTY | H38: TOTAL | I38: PLACINGS | J38: POINTS
A42: =RAND() -> 0.6656189677 | B42: 1 | C42: 908 | D42: =IF(C42="",0,(VLOOKUP(C42,'Membership #'!$A$1:$C$1005,2,0))) -> Josie Higgins | E42: =IF(C42="",0,(VLOOKUP(C42,'Membership #'!$A$1:$C$1005,3,0))) -> Rocket Man | F42: 9.698 | H42: =SUM(F42+G42) -> 9.698 | I42: 1 | J42: 10
A43: =RAND() -> 0.7646916268 | B43: 2 | C43: 531 | D43: Addison Peters | E43: He's A Little Wonder | F43: 10.724 | H43: 10.724 | I43: 2 | J43: 9
A44: 0.8005383996 | B44: 3 | C44: 974 | D44: =IF(C44="",0,(VLOOKUP(C44,'Membership #'!$A$1:$C$1005,2,0))) -> Kerissa Martin | E44: =IF(C44="",0,(VLOOKUP(C44,'Membership #'!$A$1:$C$1005,3,0))) -> Wild Steppin Phoenix | F44: 11.129 | H44: =SUM(F44+G44) -> 11.129 | I44: 3 | J44: 8
A45: 0.7201062333 | B45: 4 | C45: 627 | D45: =IF(C45="",0,(VLOOKUP(C45,'Membership #'!$A$1:$C$1005,2,0))) -> Kaelyn Keddy | E45: =IF(C45="",0,(VLOOKUP(C45,'Membership #'!$A$1:$C$1005,3,0))) -> Sight to Behold | F45: 11.24 | H45: 11.24 | I45: 4 | J45: 7
A46: 0.9805372172 | B46: 5 | C46: 962 | D46: =IF(C46="",0,(VLOOKUP(C46,'Membership #'!$A$1:$C$1005,2,0))) -> Hariin Burke | E46: =IF(C46="",0,(VLOOKUP(C46,'Membership #'!$A$1:$C$1005,3,0))) -> Olds Bold Impulse | F46: 13.469 | H46: 13.469 | I46: 5 | J46: 6
A47: 0.08540680472 | B47: 6 | C47: 802 | D47: =IF(C47="",0,(VLOOKUP(C47,'Membership #'!$A$1:$C$1005,2,0))) -> Ava Reginato | E47: =IF(C47="",0,(VLOOKUP(C47,'Membership #'!$A$1:$C$1005,3,0))) -> Jacs Last Flash | F47: 15.159 | H47: 15.159 | I47: 6 | J47: 5
A48: 0.2272333654 | B48: 7 | C48: 963 | D48: =IF(C48="",0,(VLOOKUP(C48,'Membership #'!$A$1:$C$1005,2,0))) -> Leighton Burke | E48: =IF(C48="",0,(VLOOKUP(C48,'Membership #'!$A$1:$C$1005,3,0))) -> Boot Scootin Boogie | F48: 15.283 | H48: 15.283 | I48: 7 | J48: 4
A49: 0.5723633689 | B49: 8 | C49: 710 | D49: =IF(C49="",0,(VLOOKUP(C49,'Membership #'!$A$1:$C$1005,2,0))) -> Owen Baker | E49: =IF(C49="",0,(VLOOKUP(C49,'Membership #'!$A$1:$C$1005,3,0))) -> Tip It Back | F49: 17.657 | H49: 17.657 | I49: 8 | J49: 3
A50: 0.6473398939 | B50: 9 | C50: 31 | D50: Nora Lewis | E50: Oreo Blizzard | F50: 21.297 | H50: 21.297 | I50: 9 | J50: 2
A51: 0.8189933034 | B51: 10 | C51: 710b | D51: =IF(C51="",0,(VLOOKUP(C51,'Membership #'!$A$1:$C$1005,2,0))) -> Isla Baker | E51: =IF(C51="",0,(VLOOKUP(C51,'Membership #'!$A$1:$C$1005,3,0))) -> Tip It Back | F51: 23.674 | H51: 23.674 | I51: 10 | J51: 1

Sheet PONY
B1: Tom Burt & Mark McGuire Memorial Jackpot Aug 21, 2021 | L1: High Point Pony
B2: PONY BARRELS | L2: RING # | M2: NAME | N2: HORSE NAME | O2: Barrels | P2: Poles | Q2: Dash | R2: Barrels | S2: Poles | T2: Dash | U2: Total
A3: Rand Draw | B3: Running Order | C3: RING # | D3: NAME | E3: HORSE NAME | F3: TIME | G3: PENALTY | H3: TOTAL | I3: PLACINGS | J3: POINTS
L6: 815 | M6: =IF(L6="",0,(VLOOKUP(L6,'Membership #'!$A$1:$C$1005,2,0))) -> Brooke Kennedy | N6: =IF(L6="",0,(VLOOKUP(L6,'Membership #'!$A$1:$C$1005,3,0))) -> Tic Toc Teazer | O6: 10 | P6: 10 | Q6: 8 | U6: =SUM(O6:T6) -> 28
A7: =RAND() -> 0.106089187 | B7: 1 | D7: =IF(C7="",0,(VLOOKUP(C7,'Membership #'!$A$1:$C$1005,2,0))) -> 0 | E7: =IF(C7="",0,(VLOOKUP(C7,'Membership #'!$A$1:$C$1005,3,0))) -> 0 | H7: =SUM(F7+G7) -> 0 | L7: 666 | M7: =IF(L7="",0,(VLOOKUP(L7,'Membership #'!$A$1:$C$1005,2,0))) -> Summer Fraser | N7: =IF(L7="",0,(VLOOKUP(L7,'Membership #'!$A$1:$C$1005,3,0))) -> Sheza Smokin' Girl | O7: 9 | Q7: 9 | U7: =SUM(O7:T7) -> 18
A8: 0.5395594237 | B8: 2 | C8: 815 | D8: =IF(C8="",0,(VLOOKUP(C8,'Membership #'!$A$1:$C$1005,2,0))) -> Brooke Kennedy | E8: =IF(C8="",0,(VLOOKUP(C8,'Membership #'!$A$1:$C$1005,3,0))) -> Tic Toc Teazer | F8: 16.211 | H8: 16.211 | I8: 1 | J8: 10 | L8: 867 | M8: =IF(L8="",0,(VLOOKUP(L8,'Membership #'!$A$1:$C$1005,2,0))) -> Layla MacEachem | N8: =IF(L8="",0,(VLOOKUP(L8,'Membership #'!$A$1:$C$1005,3,0))) -> Shes a gem | O8: 8 | P8: 9 | Q8: 6 | U8: =SUM(O8:T8) -> 23
A9: 0.3323997667 | B9: 3 | C9: 666 | D9: =IF(C9="",0,(VLOOKUP(C9,'Membership #'!$A$1:$C$1005,2,0))) -> Summer Fraser | E9: =IF(C9="",0,(VLOOKUP(C9,'Membership #'!$A$1:$C$1005,3,0))) -> Sheza Smokin' Girl | F9: 16.888 | H9: 16.888 | I9: 2 | J9: 9 | L9: 961 | M9: =IF(L9="",0,(VLOOKUP(L9,'Membership #'!$A$1:$C$1005,2,0))) -> Jacie Burke | N9: =IF(L9="",0,(VLOOKUP(L9,'Membership #'!$A$1:$C$1005,3,0))) -> She's Just That Sassy | O9: 7 | P9: 4 | U9: =SUM(O9:T9) -> 11
A10: 0.2654038375 | B10: 4 | C10: 867 | D10: =IF(C10="",0,(VLOOKUP(C10,'Membership #'!$A$1:$C$1005,2,0))) -> Layla MacEachem | E10: =IF(C10="",0,(VLOOKUP(C10,'Membership #'!$A$1:$C$1005,3,0))) -> Shes a gem | F10: 17.86 | H10: 17.86 | I10: 3 | J10: 8 | L10: 636 | M10: =IF(L10="",0,(VLOOKUP(L10,'Membership #'!$A$1:$C$1005,2,0))) -> Ceilidh Gosse | N10: =IF(L10="",0,(VLOOKUP(L10,'Membership #'!$A$1:$C$1005,3,0))) -> ELM Silver Crime | O10: 6 | P10: 8 | U10: 14
A11: 0.5555532213 | B11: 5 | C11: 961 | D11: =IF(C11="",0,(VLOOKUP(C11,'Membership #'!$A$1:$C$1005,2,0))) -> Jacie Burke | E11: =IF(C11="",0,(VLOOKUP(C11,'Membership #'!$A$1:$C$1005,3,0))) -> She's Just That Sassy | F11: 18.615 | H11: 18.615 | I11: 4 | J11: 7 | L11: 967 | M11: =IF(L11="",0,(VLOOKUP(L11,'Membership #'!$A$1:$C$1005,2,0))) -> Marissa Hillier | N11: =IF(L11="",0,(VLOOKUP(L11,'Membership #'!$A$1:$C$1005,3,0))) -> Notice Betty Boop | O11: 5 | P11: 6 | Q11: 4 | U11: 15
A12: 0.3704729606 | B12: 6 | C12: 636 | D12: =IF(C12="",0,(VLOOKUP(C12,'Membership #'!$A$1:$C$1005,2,0))) -> Ceilidh Gosse | E12: =IF(C12="",0,(VLOOKUP(C12,'Membership #'!$A$1:$C$1005,3,0))) -> ELM Silver Crime | F12: 18.886 | H12: 18.886 | I12: 5 | J12: 6 | L12: 702 | M12: =IF(L12="",0,(VLOOKUP(L12,'Membership #'!$A$1:$C$1005,2,0))) -> Jenna Proctor | N12: =IF(L12="",0,(VLOOKUP(L12,'Membership #'!$A$1:$C$1005,3,0))) -> Painted to Perfection | O12: 4 | P12: 5 | Q12: 5 | U12: =SUM(O12:T12) -> 14
A13: 0.9937297313 | B13: 7 | C13: 967 | D13: =IF(C13="",0,(VLOOKUP(C13,'Membership #'!$A$1:$C$1005,2,0))) -> Marissa Hillier | E13: =IF(C13="",0,(VLOOKUP(C13,'Membership #'!$A$1:$C$1005,3,0))) -> Notice Betty Boop | F13: 20.381 | H13: 20.381 | I13: 6 | J13: 5 | L13: 941 | M13: =IF(L13="",0,(VLOOKUP(L13,'Membership #'!$A$1:$C$1005,2,0))) -> Taylor Hurley | N13: =IF(L13="",0,(VLOOKUP(L13,'Membership #'!$A$1:$C$1005,3,0))) -> Nacho Business | O13: 3 | P13: 7 | Q13: 7 | U13: 17
A14: =RAND() -> 0.9166350346 | B14: 8 | C14: 702 | D14: =IF(C14="",0,(VLOOKUP(C14,'Membership #'!$A$1:$C$1005,2,0))) -> Jenna Proctor | E14: =IF(C14="",0,(VLOOKUP(C14,'Membership #'!$A$1:$C$1005,3,0))) -> Painted to Perfection | F14: 22.108 | H14: 22.108 | L14: 638 | M14: Bella Peter | N14: Super star | Q14: 10
A15: =RAND() -> 0.2875617028 | B15: 9 | C15: 941 | D15: =IF(C15="",0,(VLOOKUP(C15,'Membership #'!$A$1:$C$1005,2,0))) -> Taylor Hurley | E15: =IF(C15="",0,(VLOOKUP(C15,'Membership #'!$A$1:$C$1005,3,0))) -> Nacho Business | F15: 23.879 | H15: 23.879
A16: 0.3500999214 | B16: 10 | C16: 532 | D16: =IF(C16="",0,(VLOOKUP(C16,'Membership #'!$A$1:$C$1005,2,0))) -> Gracie MacLean | E16: =IF(C16="",0,(VLOOKUP(C16,'Membership #'!$A$1:$C$1005,3,0))) -> Secret | F16: x
A17: 0.5594401599 | B17: 11 | C17: 889 | D17: =IF(C17="",0,(VLOOKUP(C17,'Membership #'!$A$1:$C$1005,2,0))) -> Adelaine Cowley | E17: =IF(C17="",0,(VLOOKUP(C17,'Membership #'!$A$1:$C$1005,3,0))) -> Frenchman's Promise | F17: x
B19: Tom Burt & Mark McGuire Memorial Jackpot Aug 21, 2021 | M19: =IF(L19="",0,(VLOOKUP(L19,'Membership #'!$A$1:$C$1005,2,0))) -> 0 | N19: =IF(L19="",0,(VLOOKUP(L19,'Membership #'!$A$1:$C$1005,3,0))) -> 0 | U19: =SUM(O19:T19) -> 0
B20: PONY POLES | M20: =IF(L20="",0,(VLOOKUP(L20,'Membership #'!$A$1:$C$1005,2,0))) -> 0 | N20: =IF(L20="",0,(VLOOKUP(L20,'Membership #'!$A$1:$C$1005,3,0))) -> 0 | U20: =SUM(O20:T20) -> 0
A21: Rand Draw | B21: Running Order | C21: RING # | D21: NAME | E21: HORSE NAME | F21: TIME | G21: PENALTY | H21: TOTAL | I21: PLACINGS | J21: POINTS | M21: =IF(L21="",0,(VLOOKUP(L21,'Membership #'!$A$1:$C$1005,2,0))) -> 0 | N21: =IF(L21="",0,(VLOOKUP(L21,'Membership #'!$A$1:$C$1005,3,0))) -> 0 | U21: =SUM(O21:T21) -> 0
M22: =IF(L22="",0,(VLOOKUP(L22,'Membership #'!$A$1:$C$1005,2,0))) -> 0 | N22: =IF(L22="",0,(VLOOKUP(L22,'Membership #'!$A$1:$C$1005,3,0))) -> 0 | U22: =SUM(O22:T22) -> 0
U23: =SUM(O23:T23) -> 0
A25: =RAND() -> 0.810790362 | B25: 1 | C25: 815 | D25: =IF(C25="","",(VLOOKUP(C25,'Membership #'!$A$1:$C$1005,2,FALSE))) -> Brooke Kennedy | E25: =IF(C25="","",(VLOOKUP(C25,'Membership #'!$A$1:$C$1005,3,FALSE))) -> Tic Toc Teazer | F25: 22.546 | H25: =SUM(F25+G25) -> 22.546 | I25: 1
A26: 0.1754756855 | B26: 2 | C26: 867 | D26: =IF(C26="","",(VLOOKUP(C26,'Membership #'!$A$1:$C$1005,2,FALSE))) -> Layla MacEachem | E26: =IF(C26="","",(VLOOKUP(C26,'Membership #'!$A$1:$C$1005,3,FALSE))) -> Shes a gem | F26: 27.019 | H26: 27.019 | I26: 2
A27: 0.4880790772 | B27: 3 | C27: 636 | D27: =IF(C27="","",(VLOOKUP(C27,'Membership #'!$A$1:$C$1005,2,FALSE))) -> Ceilidh Gosse | E27: =IF(C27="","",(VLOOKUP(C27,'Membership #'!$A$1:$C$1005,3,FALSE))) -> ELM Silver Crime | F27: 27.169 | H27: 27.169 | I27: 3
A28: 0.6709339479 | B28: 4 | C28: 941 | D28: =IF(C28="","",(VLOOKUP(C28,'Membership #'!$A$1:$C$1005,2,FALSE))) -> Taylor Hurley | E28: =IF(C28="","",(VLOOKUP(C28,'Membership #'!$A$1:$C$1005,3,FALSE))) -> Nacho Business | F28: 28.012 | H28: 28.012 | I28: 4
A29: 0.07928819223 | B29: 5 | C29: 967 | D29: =IF(C29="","",(VLOOKUP(C29,'Membership #'!$A$1:$C$1005,2,FALSE))) -> Marissa Hillier | E29: =IF(C29="","",(VLOOKUP(C29,'Membership #'!$A$1:$C$1005,3,FALSE))) -> Notice Betty Boop | F29: 30.111 | H29: 30.111 | I29: 5
A30: 0.7841503286 | B30: 6 | C30: 702 | D30: =IF(C30="","",(VLOOKUP(C30,'Membership #'!$A$1:$C$1005,2,FALSE))) -> Jenna Proctor | E30: =IF(C30="","",(VLOOKUP(C30,'Membership #'!$A$1:$C$1005,3,FALSE))) -> Painted to Perfection | F30: 32.38 | G30: 5 | H30: 37.38 | I30: 6
A31: 0.8828295681 | B31: 7 | C31: 961 | D31: =IF(C31="","",(VLOOKUP(C31,'Membership #'!$A$1:$C$1005,2,FALSE))) -> Jacie Burke | E31: =IF(C31="","",(VLOOKUP(C31,'Membership #'!$A$1:$C$1005,3,FALSE))) -> She's Just That Sassy | F31: 28.263 | G31: 10 | H31: 38.263 | I31: 7
A32: 0.2808114607 | B32: 8 | C32: 889 | D32: =IF(C32="","",(VLOOKUP(C32,'Membership #'!$A$1:$C$1005,2,FALSE))) -> Adelaine Cowley | E32: =IF(C32="","",(VLOOKUP(C32,'Membership #'!$A$1:$C$1005,3,FALSE))) -> Frenchman's Promise | F32: x
A33: 0.8184821851 | B33: 9 | C33: 666 | D33: =IF(C33="","",(VLOOKUP(C33,'Membership #'!$A$1:$C$1005,2,FALSE))) -> Summer Fraser | E33: =IF(C33="","",(VLOOKUP(C33,'Membership #'!$A$1:$C$1005,3,FALSE))) -> Sheza Smokin' Girl | F33: n
A34: =RAND() -> 0.1511001017 | B34: 10 | C34: 532 | D34: =IF(C34="","",(VLOOKUP(C34,'Membership #'!$A$1:$C$1005,2,FALSE))) -> Gracie MacLean | E34: =IF(C34="","",(VLOOKUP(C34,'Membership #'!$A$1:$C$1005,3,FALSE))) -> Secret | F34: x
B35: Tom Burt & Mark McGuire Memorial Jackpot Aug 21, 2021
B36: PONY DASH
A37: Rand Draw | B37: Running Order | C37: RING # | D37: NAME | E37: HORSE NAME | F37: TIME | G37: PENALTY | I37: PLACINGS | J37: POINTS
A41: =RAND() -> 0.1077251359 | B41: 1 | C41: 638 | D41: =IF(C41="",0,(VLOOKUP(C41,'Membership #'!$A$1:$C$1005,2,0))) -> Bella Peters | E41: =IF(C41="",0,(VLOOKUP(C41,'Membership #'!$A$1:$C$1005,3,0))) -> Super Star | F41: 7.901 | H41: =SUM(F41+G41) -> 7.901 | I41: 1
A42: 0.2038009472 | B42: 2 | C42: 666 | D42: =IF(C42="",0,(VLOOKUP(C42,'Membership #'!$A$1:$C$1005,2,0))) -> Summer Fraser | E42: =IF(C42="",0,(VLOOKUP(C42,'Membership #'!$A$1:$C$1005,3,0))) -> Sheza Smokin' Girl | F42: 8.138 | H42: 8.138 | I42: 2
A43: 0.3531524262 | B43: 3 | C43: 815 | D43: =IF(C43="",0,(VLOOKUP(C43,'Membership #'!$A$1:$C$1005,2,0))) -> Brooke Kennedy | E43: =IF(C43="",0,(VLOOKUP(C43,'Membership #'!$A$1:$C$1005,3,0))) -> Tic Toc Teazer | F43: 8.454 | H43: 8.454 | I43: 3
A44: 0.002642014783 | B44: 4 | C44: 941 | D44: =IF(C44="",0,(VLOOKUP(C44,'Membership #'!$A$1:$C$1005,2,0))) -> Taylor Hurley | E44: =IF(C44="",0,(VLOOKUP(C44,'Membership #'!$A$1:$C$1005,3,0))) -> Nacho Business | F44: 8.886 | H44: 8.886 | I44: 4
A45: 0.4217641183 | B45: 5 | C45: 867 | D45: =IF(C45="",0,(VLOOKUP(C45,'Membership #'!$A$1:$C$1005,2,0))) -> Layla MacEachem | E45: =IF(C45="",0,(VLOOKUP(C45,'Membership #'!$A$1:$C$1005,3,0))) -> Shes a gem | F45: 8.944 | H45: 8.944 | I45: 5
A46: 0.1310517218 | B46: 6 | C46: 702 | D46: =IF(C46="",0,(VLOOKUP(C46,'Membership #'!$A$1:$C$1005,2,0))) -> Jenna Proctor | E46: =IF(C46="",0,(VLOOKUP(C46,'Membership #'!$A$1:$C$1005,3,0))) -> Painted to Perfection | F46: 10.351 | H46: 10.351 | I46: 6
A47: 0.6866980423 | B47: 7 | C47: 967 | D47: =IF(C47="",0,(VLOOKUP(C47,'Membership #'!$A$1:$C$1005,2,0))) -> Marissa Hillier | E47: =IF(C47="",0,(VLOOKUP(C47,'Membership #'!$A$1:$C$1005,3,0))) -> Notice Betty Boop | F47: 10.614 | H47: 10.614
A48: 0.9730992777 | B48: 8 | C48: 532 | D48: =IF(C48="",0,(VLOOKUP(C48,'Membership #'!$A$1:$C$1005,2,0))) -> Gracie MacLean | E48: =IF(C48="",0,(VLOOKUP(C48,'Membership #'!$A$1:$C$1005,3,0))) -> Secret | F48: x
A49: 0.9449760937 | B49: 9 | C49: 889 | D49: =IF(C49="",0,(VLOOKUP(C49,'Membership #'!$A$1:$C$1005,2,0))) -> Adelaine Cowley | E49: =IF(C49="",0,(VLOOKUP(C49,'Membership #'!$A$1:$C$1005,3,0))) -> Frenchman's Promise | F49: x
B50: 10 | D50: =IF(C50="",0,(VLOOKUP(C50,'Membership #'!$A$1:$C$1005,2,0))) -> 0 | E50: =IF(C50="",0,(VLOOKUP(C50,'Membership #'!$A$1:$C$1005,3,0))) -> 0 | H50: =SUM(F50+G50) -> 0
B51: 11 | D51: =IF(C51="",0,(VLOOKUP(C51,'Membership #'!$A$1:$C$1005,2,0))) -> 0 | E51: =IF(C51="",0,(VLOOKUP(C51,'Membership #'!$A$1:$C$1005,3,0))) -> 0 | H51: 0

Sheet JUNIOR HORSE BARRELS
A1: Tom Burt & Mark McGuire Memorial Jackpot Aug 21, 2021 | M1: x=Scratch
A2: JUNIOR HORSE BARRELS | M2: n=No Time
A3: # Enteries: | E3: =COUNTIF($D$8:$D$100,">0") -> 3 | R3: Don't Erase these numbers below!!
A4: Rand Draw | B4: Seed | D4: RING # | E4: NAME | F4: HORSE NAME | G4: TIME | H4: PENALTY | I4: TOTAL | J4: PLACINGS | K4: POINTS | R4: =IF(N9=2,7,IF(N9=3,6,IF(N9=4,5,IF(N9=5,4,IF(AND(N9>5,N11>600),3,IF(AND(N9>5,N11<600,N11>299.99),2,IF(AND(N9>5,N11<300),1,8))))))) -> 6 | S4: 1 | T4: 2 | U4: 3 | V4: 4 | W4: 5 | X4: 6 | Y4: 7 | Z4: 8
S5: 299 | T5: $300- | U5: $600 -
M6: JUNIOR HORSE BARRELS | S6: or less | T6: 599 | U6: More | V6: 5 Entries | W6: 4 Entries | X6: 3 Entries | Y6: 2 Entries
R7: 1st | S7: 0.32 | T7: 0.27 | U7: 0.24 | V7: 0.35 | W7: 0.4 | X7: 0.46 | Y7: 0.6
A8: =IF(D8<>"",RAND(),"") -> 0.8488936658 | B8: =IF(D8<>"",RANK(A8,A$8:A$101),"") -> 2 | C8: 1 | D8: 786 | E8: =IF(D8="","",(VLOOKUP(D8,'Membership #'!$A$1:$C$1005,2,0))) -> Rileigh Conrod | F8: =IF(D8="","",(VLOOKUP(D8,'Membership #'!$A$1:$C$1005,3,0))) -> Scotches Harley | G8: 21.938 | I8: =IF(G8="n","No Time",IF(G8="x","Scratch",IF(G8<>"",SUM(G8+H8),""))) -> 21.938 | M8: Added | N8: 50 | R8: 2nd | S8: 0.23 | T8: 0.22 | U8: 0.19 | V8: 0.25 | W8: 0.28 | X8: 0.34 | Y8: 0.4
A9: 0.2095592329 | B9: 3 | C9: 2 | D9: 518 | E9: =IF(D9="","",(VLOOKUP(D9,'Membership #'!$A$1:$C$1005,2,0))) -> Sylvester Weatherbie | F9: =IF(D9="","",(VLOOKUP(D9,'Membership #'!$A$1:$C$1005,3,0))) -> J.R. | G9: 16.909 | I9: =IF(G9="n","No Time",IF(G9="x","Scratch",IF(G9<>"",SUM(G9+H9),""))) -> 16.909 | M9: Entries | N9: 3 | P9: 10 | Q9: per head | R9: 3rd | S9: 0.15 | T9: 0.18 | U9: 0.16 | V9: 0.17 | W9: 0.18 | X9: 0.2
A10: 0.9742621917 | B10: 1 | C10: 3 | D10: 563 | E10: =IF(D10="","",(VLOOKUP(D10,'Membership #'!$A$1:$C$1005,2,0))) -> Kevin Bateman | F10: =IF(D10="","",(VLOOKUP(D10,'Membership #'!$A$1:$C$1005,3,0))) -> Jess Chasin A Hobby | G10: 17.672 | I10: =IF(G10="n","No Time",IF(G10="x","Scratch",IF(G10<>"",SUM(G10+H10),""))) -> 17.672 | M10: Jackpot | N10: =P9*N9 -> 30 | P10: 0.85 | Q10: payback | R10: 4th | S10: 0.12 | T10: 0.13 | U10: 0.13 | V10: 0.13 | W10: 0.14
E11: =IF(D11="","",(VLOOKUP(D11,'Membership #'!$A$1:$C$1005,2,0))) ->  | F11: =IF(D11="","",(VLOOKUP(D11,'Membership #'!$A$1:$C$1005,3,0))) ->  | I11: =IF(G11="n","No Time",IF(G11="x","Scratch",IF(G11<>"",SUM(G11+H11),""))) ->  | M11: Total Money | N11: =N8+(N10*P10) -> 75.5 | P11: =N10*P10 -> 25.5 | Q11: Jackpot | R11: 5th | S11: 0.1 | T11: 0.09 | U11: 0.08 | V11: 0.1
E12: =IF(D12="","",(VLOOKUP(D12,'Membership #'!$A$1:$C$1005,2,0))) ->  | F12: =IF(D12="","",(VLOOKUP(D12,'Membership #'!$A$1:$C$1005,3,0))) ->  | I12: =IF(G12="n","No Time",IF(G12="x","Scratch",IF(G12<>"",SUM(G12+H12),""))) ->  | N12: Percentage | O12: Money | P12: Ring # | R12: 6th | S12: 0.08 | T12: 0.06 | U12: 0.06
E13: =IF(D13="","",(VLOOKUP(D13,'Membership #'!$A$1:$C$1005,2,0))) ->  | F13: =IF(D13="","",(VLOOKUP(D13,'Membership #'!$A$1:$C$1005,3,0))) ->  | I13: =IF(G13="n","No Time",IF(G13="x","Scratch",IF(G13<>"",SUM(G13+H13),""))) ->  | M13: 1st | N13: 0.46 | O13: =IF(N13<>0,N$11*N13,"") -> 34.73 | Q13: =IF(P13="","",(VLOOKUP(P13,'Membership #'!$A$1:$C$1005,2,0))) ->  | R13: 7th | T13: 0.03 | U13: 0.05
E14: =IF(D14="","",(VLOOKUP(D14,'Membership #'!$A$1:$C$1005,2,0))) ->  | F14: =IF(D14="","",(VLOOKUP(D14,'Membership #'!$A$1:$C$1005,3,0))) ->  | I14: =IF(G14="n","No Time",IF(G14="x","Scratch",IF(G14<>"",SUM(G14+H14),""))) ->  | M14: 2nd | N14: 0.34 | O14: 25.67 | Q14: =IF(P14="","",(VLOOKUP(P14,'Membership #'!$A$1:$C$1005,2,0))) ->  | R14: 8th | T14: 0.02 | U14: 0.04
E15: =IF(D15="","",(VLOOKUP(D15,'Membership #'!$A$1:$C$1005,2,0))) ->  | F15: =IF(D15="","",(VLOOKUP(D15,'Membership #'!$A$1:$C$1005,3,0))) ->  | M15: 3rd | N15: 0.2 | O15: 15.1 | Q15: =IF(P15="","",(VLOOKUP(P15,'Membership #'!$A$1:$C$1005,2,0))) ->  | R15: 9th | U15: 0.03
E16: =IF(D16="","",(VLOOKUP(D16,'Membership #'!$A$1:$C$1005,2,0))) ->  | F16: =IF(D16="","",(VLOOKUP(D16,'Membership #'!$A$1:$C$1005,3,0))) ->  | M16: 4th | Q16: =IF(P16="","",(VLOOKUP(P16,'Membership #'!$A$1:$C$1005,2,0))) ->  | R16: 10th | U16: 0.02
E17: =IF(D17="","",(VLOOKUP(D17,'Membership #'!$A$1:$C$1005,2,0))) ->  | F17: =IF(D17="","",(VLOOKUP(D17,'Membership #'!$A$1:$C$1005,3,0))) ->  | M17: 5th | Q17: =IF(P17="","",(VLOOKUP(P17,'Membership #'!$A$1:$C$1005,2,0))) -> 
E18: =IF(D18="","",(VLOOKUP(D18,'Membership #'!$A$1:$C$1005,2,0))) ->  | F18: =IF(D18="","",(VLOOKUP(D18,'Membership #'!$A$1:$C$1005,3,0))) ->  | M18: 6th | Q18: =IF(P18="","",(VLOOKUP(P18,'Membership #'!$A$1:$C$1005,2,0))) -> 
E19: =IF(D19="","",(VLOOKUP(D19,'Membership #'!$A$1:$C$1005,2,0))) ->  | F19: =IF(D19="","",(VLOOKUP(D19,'Membership #'!$A$1:$C$1005,3,0))) ->  | M19: 7th | Q19: =IF(P19="",0,(VLOOKUP(P19,'Membership #'!$A$1:$C$1005,2,0))) -> 0
E20: =IF(D20="","",(VLOOKUP(D20,'Membership #'!$A$1:$C$1005,2,0))) ->  | F20: =IF(D20="","",(VLOOKUP(D20,'Membership #'!$A$1:$C$1005,3,0))) ->  | I20: =IF(G20="n","No Time",IF(G20="x","Scratch",IF(G20<>"",SUM(G20+H20),""))) ->  | M20: 8th | Q20: =IF(P20="",0,(VLOOKUP(P20,'Membership #'!$A$1:$C$1005,2,0))) -> 0
E21: =IF(D21="","",(VLOOKUP(D21,'Membership #'!$A$1:$C$1005,2,0))) ->  | F21: =IF(D21="","",(VLOOKUP(D21,'Membership #'!$A$1:$C$1005,3,0))) ->  | M21: 9th
E22: =IF(D22="","",(VLOOKUP(D22,'Membership #'!$A$1:$C$1005,2,0))) ->  | F22: =IF(D22="","",(VLOOKUP(D22,'Membership #'!$A$1:$C$1005,3,0))) ->  | I22: =IF(G22="n","No Time",IF(G22="x","Scratch",IF(G22<>"",SUM(G22+H22),""))) ->  | M22: 10th
E23: =IF(D23="","",(VLOOKUP(D23,'Membership #'!$A$1:$C$1005,2,0))) ->  | F23: =IF(D23="","",(VLOOKUP(D23,'Membership #'!$A$1:$C$1005,3,0))) ->  | M23: Total Money | O23: =SUM(O13:O22) -> 75.5
E24: =IF(D24="","",(VLOOKUP(D24,'Membership #'!$A$1:$C$1005,2,0))) ->  | F24: =IF(D24="","",(VLOOKUP(D24,'Membership #'!$A$1:$C$1005,3,0))) -> 
E25: =IF(D25="","",(VLOOKUP(D25,'Membership #'!$A$1:$C$1005,2,0))) ->  | F25: =IF(D25="","",(VLOOKUP(D25,'Membership #'!$A$1:$C$1005,3,0))) -> 
E26: =IF(D26="","",(VLOOKUP(D26,'Membership #'!$A$1:$C$1005,2,0))) ->  | F26: =IF(D26="","",(VLOOKUP(D26,'Membership #'!$A$1:$C$1005,3,0))) ->  | M26: =IF(L26="","",(VLOOKUP(L26,'Membership #'!$A$1:$C$1005,2,0))) -> 
E27: =IF(D27="","",(VLOOKUP(D27,'Membership #'!$A$1:$C$1005,2,0))) ->  | F27: =IF(D27="","",(VLOOKUP(D27,'Membership #'!$A$1:$C$1005,3,0))) -> 
E28: =IF(D28="","",(VLOOKUP(D28,'Membership #'!$A$1:$C$1005,2,0))) ->  | F28: =IF(D28="","",(VLOOKUP(D28,'Membership #'!$A$1:$C$1005,3,0))) -> 
E29: =IF(D29="","",(VLOOKUP(D29,'Membership #'!$A$1:$C$1005,2,0))) ->  | F29: =IF(D29="","",(VLOOKUP(D29,'Membership #'!$A$1:$C$1005,3,0))) -> 
E30: =IF(D30="","",(VLOOKUP(D30,'Membership #'!$A$1:$C$1005,2,0))) ->  | F30: =IF(D30="","",(VLOOKUP(D30,'Membership #'!$A$1:$C$1005,3,0))) -> 
E31: =IF(D31="","",(VLOOKUP(D31,'Membership #'!$A$1:$C$1005,2,0))) ->  | F31: =IF(D31="","",(VLOOKUP(D31,'Membership #'!$A$1:$C$1005,3,0))) -> 
E32: =IF(D32="","",(VLOOKUP(D32,'Membership #'!$A$1:$C$1005,2,0))) ->  | F32: =IF(D32="","",(VLOOKUP(D32,'Membership #'!$A$1:$C$1005,3,0))) -> 
E33: =IF(D33="","",(VLOOKUP(D33,'Membership #'!$A$1:$C$1005,2,0))) ->  | F33: =IF(D33="","",(VLOOKUP(D33,'Membership #'!$A$1:$C$1005,3,0))) -> 
E34: =IF(D34="","",(VLOOKUP(D34,'Membership #'!$A$1:$C$1005,2,0))) ->  | F34: =IF(D34="","",(VLOOKUP(D34,'Membership #'!$A$1:$C$1005,3,0))) -> 
E35: =IF(D35="","",(VLOOKUP(D35,'Membership #'!$A$1:$C$1005,2,0))) ->  | F35: =IF(D35="","",(VLOOKUP(D35,'Membership #'!$A$1:$C$1005,3,0))) -> 
E36: =IF(D36="","",(VLOOKUP(D36,'Membership #'!$A$1:$C$1005,2,0))) ->  | F36: =IF(D36="","",(VLOOKUP(D36,'Membership #'!$A$1:$C$1005,3,0))) -> 
E37: =IF(D37="","",(VLOOKUP(D37,'Membership #'!$A$1:$C$1005,2,0))) ->  | F37: =IF(D37="","",(VLOOKUP(D37,'Membership #'!$A$1:$C$1005,3,0))) -> 
E38: =IF(D38="","",(VLOOKUP(D38,'Membership #'!$A$1:$C$1005,2,0))) ->  | F38: =IF(D38="","",(VLOOKUP(D38,'Membership #'!$A$1:$C$1005,3,0))) -> 
E39: =IF(D39="","",(VLOOKUP(D39,'Membership #'!$A$1:$C$1005,2,0))) ->  | F39: =IF(D39="","",(VLOOKUP(D39,'Membership #'!$A$1:$C$1005,3,0))) -> 
A40: =IF(D40<>"",RAND(),"") ->  | B40: =IF(D40<>"",RANK(A40,A$8:A$101),"") ->  | E40: =IF(D40="","",(VLOOKUP(D40,'Membership #'!$A$1:$C$1005,2,0))) ->  | F40: =IF(D40="","",(VLOOKUP(D40,'Membership #'!$A$1:$C$1005,3,0))) -> 
E41: =IF(D41="","",(VLOOKUP(D41,'Membership #'!$A$1:$C$1005,2,0))) ->  | F41: =IF(D41="","",(VLOOKUP(D41,'Membership #'!$A$1:$C$1005,3,0))) -> 
E42: =IF(D42="","",(VLOOKUP(D42,'Membership #'!$A$1:$C$1005,2,0))) ->  | F42: =IF(D42="","",(VLOOKUP(D42,'Membership #'!$A$1:$C$1005,3,0))) -> 
E43: =IF(D43="","",(VLOOKUP(D43,'Membership #'!$A$1:$C$1005,2,0))) ->  | F43: =IF(D43="","",(VLOOKUP(D43,'Membership #'!$A$1:$C$1005,3,0))) -> 
E44: =IF(D44="","",(VLOOKUP(D44,'Membership #'!$A$1:$C$1005,2,0))) ->  | F44: =IF(D44="","",(VLOOKUP(D44,'Membership #'!$A$1:$C$1005,3,0))) -> 
E45: =IF(D45="","",(VLOOKUP(D45,'Membership #'!$A$1:$C$1005,2,0))) ->  | F45: =IF(D45="","",(VLOOKUP(D45,'Membership #'!$A$1:$C$1005,3,0))) -> 
E46: =IF(D46="","",(VLOOKUP(D46,'Membership #'!$A$1:$C$1005,2,0))) ->  | F46: =IF(D46="","",(VLOOKUP(D46,'Membership #'!$A$1:$C$1005,3,0))) -> 
E47: =IF(D47="","",(VLOOKUP(D47,'Membership #'!$A$1:$C$1005,2,0))) ->  | F47: =IF(D47="","",(VLOOKUP(D47,'Membership #'!$A$1:$C$1005,3,0))) -> 
E48: =IF(D48="","",(VLOOKUP(D48,'Membership #'!$A$1:$C$1005,2,0))) ->  | F48: =IF(D48="","",(VLOOKUP(D48,'Membership #'!$A$1:$C$1005,3,0))) -> 
E49: =IF(D49="","",(VLOOKUP(D49,'Membership #'!$A$1:$C$1005,2,0))) ->  | F49: =IF(D49="","",(VLOOKUP(D49,'Membership #'!$A$1:$C$1005,3,0))) -> 
E50: =IF(D50="","",(VLOOKUP(D50,'Membership #'!$A$1:$C$1005,2,0))) ->  | F50: =IF(D50="","",(VLOOKUP(D50,'Membership #'!$A$1:$C$1005,3,0))) -> 
E51: =IF(D51="","",(VLOOKUP(D51,'Membership #'!$A$1:$C$1005,2,0))) ->  | F51: =IF(D51="","",(VLOOKUP(D51,'Membership #'!$A$1:$C$1005,3,0))) -> 
E52: =IF(D52="","",(VLOOKUP(D52,'Membership #'!$A$1:$C$1005,2,0))) ->  | F52: =IF(D52="","",(VLOOKUP(D52,'Membership #'!$A$1:$C$1005,3,0))) -> 
E53: =IF(D53="","",(VLOOKUP(D53,'Membership #'!$A$1:$C$1005,2,0))) ->  | F53: =IF(D53="","",(VLOOKUP(D53,'Membership #'!$A$1:$C$1005,3,0))) -> 
E54: =IF(D54="","",(VLOOKUP(D54,'Membership #'!$A$1:$C$1005,2,0))) ->  | F54: =IF(D54="","",(VLOOKUP(D54,'Membership #'!$A$1:$C$1005,3,0))) -> 
E55: =IF(D55="","",(VLOOKUP(D55,'Membership #'!$A$1:$C$1005,2,0))) ->  | F55: =IF(D55="","",(VLOOKUP(D55,'Membership #'!$A$1:$C$1005,3,0))) -> 
E56: =IF(D56="","",(VLOOKUP(D56,'Membership #'!$A$1:$C$1005,2,0))) ->  | F56: =IF(D56="","",(VLOOKUP(D56,'Membership #'!$A$1:$C$1005,3,0))) -> 
E57: =IF(D57="","",(VLOOKUP(D57,'Membership #'!$A$1:$C$1005,2,0))) ->  | F57: =IF(D57="","",(VLOOKUP(D57,'Membership #'!$A$1:$C$1005,3,0))) -> 
E58: =IF(D58="","",(VLOOKUP(D58,'Membership #'!$A$1:$C$1005,2,0))) ->  | F58: =IF(D58="","",(VLOOKUP(D58,'Membership #'!$A$1:$C$1005,3,0))) -> 
E59: =IF(D59="","",(VLOOKUP(D59,'Membership #'!$A$1:$C$1005,2,0))) ->  | F59: =IF(D59="","",(VLOOKUP(D59,'Membership #'!$A$1:$C$1005,3,0))) -> 
E60: =IF(D60="","",(VLOOKUP(D60,'Membership #'!$A$1:$C$1005,2,0))) ->  | F60: =IF(D60="","",(VLOOKUP(D60,'Membership #'!$A$1:$C$1005,3,0))) -> 
E61: =IF(D61="","",(VLOOKUP(D61,'Membership #'!$A$1:$C$1005,2,0))) ->  | F61: =IF(D61="","",(VLOOKUP(D61,'Membership #'!$A$1:$C$1005,3,0))) -> 
E62: =IF(D62="","",(VLOOKUP(D62,'Membership #'!$A$1:$C$1005,2,0))) ->  | F62: =IF(D62="","",(VLOOKUP(D62,'Membership #'!$A$1:$C$1005,3,0))) -> 
E63: =IF(D63="","",(VLOOKUP(D63,'Membership #'!$A$1:$C$1005,2,0))) ->  | F63: =IF(D63="","",(VLOOKUP(D63,'Membership #'!$A$1:$C$1005,3,0))) -> 
E64: =IF(D64="","",(VLOOKUP(D64,'Membership #'!$A$1:$C$1005,2,0))) ->  | F64: =IF(D64="","",(VLOOKUP(D64,'Membership #'!$A$1:$C$1005,3,0))) -> 
E65: =IF(D65="","",(VLOOKUP(D65,'Membership #'!$A$1:$C$1005,2,0))) ->  | F65: =IF(D65="","",(VLOOKUP(D65,'Membership #'!$A$1:$C$1005,3,0))) -> 
E66: =IF(D66="","",(VLOOKUP(D66,'Membership #'!$A$1:$C$1005,2,0))) ->  | F66: =IF(D66="","",(VLOOKUP(D66,'Membership #'!$A$1:$C$1005,3,0))) -> 
E67: =IF(D67="","",(VLOOKUP(D67,'Membership #'!$A$1:$C$1005,2,0))) ->  | F67: =IF(D67="","",(VLOOKUP(D67,'Membership #'!$A$1:$C$1005,3,0))) -> 
E68: =IF(D68="","",(VLOOKUP(D68,'Membership #'!$A$1:$C$1005,2,0))) ->  | F68: =IF(D68="","",(VLOOKUP(D68,'Membership #'!$A$1:$C$1005,3,0))) -> 
E69: =IF(D69="","",(VLOOKUP(D69,'Membership #'!$A$1:$C$1005,2,0))) ->  | F69: =IF(D69="","",(VLOOKUP(D69,'Membership #'!$A$1:$C$1005,3,0))) -> 
E70: =IF(D70="","",(VLOOKUP(D70,'Membership #'!$A$1:$C$1005,2,0))) ->  | F70: =IF(D70="","",(VLOOKUP(D70,'Membership #'!$A$1:$C$1005,3,0))) -> 
E71: =IF(D71="","",(VLOOKUP(D71,'Membership #'!$A$1:$C$1005,2,0))) ->  | F71: =IF(D71="","",(VLOOKUP(D71,'Membership #'!$A$1:$C$1005,3,0))) -> 
A72: =IF(D72<>"",RAND(),"") ->  | B72: =IF(D72<>"",RANK(A72,A$8:A$101),"") ->  | E72: =IF(D72="","",(VLOOKUP(D72,'Membership #'!$A$1:$C$1005,2,0))) ->  | F72: =IF(D72="","",(VLOOKUP(D72,'Membership #'!$A$1:$C$1005,3,0))) -> 
E73: =IF(D73="","",(VLOOKUP(D73,'Membership #'!$A$1:$C$1005,2,0))) ->  | F73: =IF(D73="","",(VLOOKUP(D73,'Membership #'!$A$1:$C$1005,3,0))) ->  | I73: =IF(G73="n","No Time",IF(G73="x","Scratch",IF(G73<>"",SUM(G73+H73),""))) -> 
E74: =IF(D74="","",(VLOOKUP(D74,'Membership #'!$A$1:$C$1005,2,0))) ->  | F74: =IF(D74="","",(VLOOKUP(D74,'Membership #'!$A$1:$C$1005,3,0))) -> 
E75: =IF(D75="","",(VLOOKUP(D75,'Membership #'!$A$1:$C$1005,2,0))) ->  | F75: =IF(D75="","",(VLOOKUP(D75,'Membership #'!$A$1:$C$1005,3,0))) -> 
E76: =IF(D76="","",(VLOOKUP(D76,'Membership #'!$A$1:$C$1005,2,0))) ->  | F76: =IF(D76="","",(VLOOKUP(D76,'Membership #'!$A$1:$C$1005,3,0))) -> 
E77: =IF(D77="","",(VLOOKUP(D77,'Membership #'!$A$1:$C$1005,2,0))) ->  | F77: =IF(D77="","",(VLOOKUP(D77,'Membership #'!$A$1:$C$1005,3,0))) -> 
E78: =IF(D78="","",(VLOOKUP(D78,'Membership #'!$A$1:$C$1005,2,0))) ->  | F78: =IF(D78="","",(VLOOKUP(D78,'Membership #'!$A$1:$C$1005,3,0))) -> 
E79: =IF(D79="","",(VLOOKUP(D79,'Membership #'!$A$1:$C$1005,2,0))) ->  | F79: =IF(D79="","",(VLOOKUP(D79,'Membership #'!$A$1:$C$1005,3,0))) -> 
E80: =IF(D80="","",(VLOOKUP(D80,'Membership #'!$A$1:$C$1005,2,0))) ->  | F80: =IF(D80="","",(VLOOKUP(D80,'Membership #'!$A$1:$C$1005,3,0))) -> 
E81: =IF(D81="","",(VLOOKUP(D81,'Membership #'!$A$1:$C$1005,2,0))) ->  | F81: =IF(D81="","",(VLOOKUP(D81,'Membership #'!$A$1:$C$1005,3,0))) -> 
E82: =IF(D82="","",(VLOOKUP(D82,'Membership #'!$A$1:$C$1005,2,0))) ->  | F82: =IF(D82="","",(VLOOKUP(D82,'Membership #'!$A$1:$C$1005,3,0))) -> 
E83: =IF(D83="","",(VLOOKUP(D83,'Membership #'!$A$1:$C$1005,2,0))) ->  | F83: =IF(D83="","",(VLOOKUP(D83,'Membership #'!$A$1:$C$1005,3,0))) -> 
E84: =IF(D84="","",(VLOOKUP(D84,'Membership #'!$A$1:$C$1005,2,0))) ->  | F84: =IF(D84="","",(VLOOKUP(D84,'Membership #'!$A$1:$C$1005,3,0))) -> 
E85: =IF(D85="","",(VLOOKUP(D85,'Membership #'!$A$1:$C$1005,2,0))) ->  | F85: =IF(D85="","",(VLOOKUP(D85,'Membership #'!$A$1:$C$1005,3,0))) -> 
E86: =IF(D86="","",(VLOOKUP(D86,'Membership #'!$A$1:$C$1005,2,0))) ->  | F86: =IF(D86="","",(VLOOKUP(D86,'Membership #'!$A$1:$C$1005,3,0))) -> 
E87: =IF(D87="","",(VLOOKUP(D87,'Membership #'!$A$1:$C$1005,2,0))) ->  | F87: =IF(D87="","",(VLOOKUP(D87,'Membership #'!$A$1:$C$1005,3,0))) -> 
E88: =IF(D88="","",(VLOOKUP(D88,'Membership #'!$A$1:$C$1005,2,0))) ->  | F88: =IF(D88="","",(VLOOKUP(D88,'Membership #'!$A$1:$C$1005,3,0))) -> 
E89: =IF(D89="","",(VLOOKUP(D89,'Membership #'!$A$1:$C$1005,2,0))) ->  | F89: =IF(D89="","",(VLOOKUP(D89,'Membership #'!$A$1:$C$1005,3,0))) -> 
E90: =IF(D90="","",(VLOOKUP(D90,'Membership #'!$A$1:$C$1005,2,0))) ->  | F90: =IF(D90="","",(VLOOKUP(D90,'Membership #'!$A$1:$C$1005,3,0))) -> 
E91: =IF(D91="","",(VLOOKUP(D91,'Membership #'!$A$1:$C$1005,2,0))) ->  | F91: =IF(D91="","",(VLOOKUP(D91,'Membership #'!$A$1:$C$1005,3,0))) -> 
E92: =IF(D92="","",(VLOOKUP(D92,'Membership #'!$A$1:$C$1005,2,0))) ->  | F92: =IF(D92="","",(VLOOKUP(D92,'Membership #'!$A$1:$C$1005,3,0))) -> 
E93: =IF(D93="","",(VLOOKUP(D93,'Membership #'!$A$1:$C$1005,2,0))) ->  | F93: =IF(D93="","",(VLOOKUP(D93,'Membership #'!$A$1:$C$1005,3,0))) -> 
E94: =IF(D94="","",(VLOOKUP(D94,'Membership #'!$A$1:$C$1005,2,0))) ->  | F94: =IF(D94="","",(VLOOKUP(D94,'Membership #'!$A$1:$C$1005,3,0))) -> 
E95: =IF(D95="","",(VLOOKUP(D95,'Membership #'!$A$1:$C$1005,2,0))) ->  | F95: =IF(D95="","",(VLOOKUP(D95,'Membership #'!$A$1:$C$1005,3,0))) -> 
E96: =IF(D96="","",(VLOOKUP(D96,'Membership #'!$A$1:$C$1005,2,0))) ->  | F96: =IF(D96="","",(VLOOKUP(D96,'Membership #'!$A$1:$C$1005,3,0))) -> 
E97: =IF(D97="","",(VLOOKUP(D97,'Membership #'!$A$1:$C$1005,2,0))) ->  | F97: =IF(D97="","",(VLOOKUP(D97,'Membership #'!$A$1:$C$1005,3,0))) -> 
E98: =IF(D98="","",(VLOOKUP(D98,'Membership #'!$A$1:$C$1005,2,0))) ->  | F98: =IF(D98="","",(VLOOKUP(D98,'Membership #'!$A$1:$C$1005,3,0))) -> 
E99: =IF(D99="","",(VLOOKUP(D99,'Membership #'!$A$1:$C$1005,2,0))) ->  | F99: =IF(D99="","",(VLOOKUP(D99,'Membership #'!$A$1:$C$1005,3,0))) -> 
E100: =IF(D100="","",(VLOOKUP(D100,'Membership #'!$A$1:$C$1005,2,0))) ->  | F100: =IF(D100="","",(VLOOKUP(D100,'Membership #'!$A$1:$C$1005,3,0))) -> 
E101: =IF(D101="","",(VLOOKUP(D101,'Membership #'!$A$1:$C$1005,2,0))) ->  | F101: =IF(D101="","",(VLOOKUP(D101,'Membership #'!$A$1:$C$1005,3,0))) -> 

Sheet Adult Green Barrels
A1: Tom Burt & Mark McGuire Memorial Jackpot Aug 21, 2021 | M1: x=Scratch
A2: Adult Green Barrels | M2: n=No Time
A3: # Enteries: | E3: =COUNTIF($D$8:$D$100,">0") -> 1 | R3: Don't Erase these numbers below!!
A4: Rand Draw | B4: Seed | D4: RING # | E4: NAME | F4: HORSE NAME | G4: TIME | H4: PENALTY | I4: TOTAL | J4: PLACINGS | K4: POINTS | R4: =IF(N9=2,7,IF(N9=3,6,IF(N9=4,5,IF(N9=5,4,IF(AND(N9>5,N11>600),3,IF(AND(N9>5,N11<600,N11>299.99),2,IF(AND(N9>5,N11<300),1,8))))))) -> 7 | S4: 1 | T4: 2 | U4: 3 | V4: 4 | W4: 5 | X4: 6 | Y4: 7 | Z4: 8
S5: 299 | T5: $300- | U5: $600 -
M6: Adult Green Barrels | S6: or less | T6: 599 | U6: More | V6: 5 Entries | W6: 4 Entries | X6: 3 Entries | Y6: 2 Entries
R7: 1st | S7: 0.32 | T7: 0.27 | U7: 0.24 | V7: 0.35 | W7: 0.4 | X7: 0.46 | Y7: 0.6
A8: =IF(D8<>"",RAND(),"") -> 0.5037424615 | B8: =IF(D8<>"",RANK(A8,A$8:A$101),"") -> 1 | C8: 1 | D8: 909b | E8: =IF(D8="","",(VLOOKUP(D8,'Membership #'!$A$1:$C$1005,2,0))) -> Bryden MacNeil | F8: =IF(D8="","",(VLOOKUP(D8,'Membership #'!$A$1:$C$1005,3,0))) -> Martha's Tivio Moon | G8: 19.414 | I8: =IF(G8="n","No Time",IF(G8="x","Scratch",IF(G8<>"",SUM(G8+H8),""))) -> 19.414 | J8: 1 | M8: Added | N8: 25 | R8: 2nd | S8: 0.23 | T8: 0.22 | U8: 0.19 | V8: 0.25 | W8: 0.28 | X8: 0.34 | Y8: 0.4
A9: =IF(M26<>"",RAND(),"") ->  | B9: =IF(M26<>"",RANK(A9,A$8:A$101),"") ->  | C9: 2 | D9: 969 | E9: =IF(D9="","",(VLOOKUP(D9,'Membership #'!$A$1:$C$1005,2,0))) -> Kenzie Cook | F9: =IF(D9="","",(VLOOKUP(D9,'Membership #'!$A$1:$C$1005,3,0))) -> Pocos Lady Emeralda | G9: 27.582 | I9: =IF(G9="n","No Time",IF(G9="x","Scratch",IF(G9<>"",SUM(G9+H9),""))) -> 27.582 | J9: 2 | M9: Entries | N9: 2 | P9: 10 | Q9: per head | R9: 3rd | S9: 0.15 | T9: 0.18 | U9: 0.16 | V9: 0.17 | W9: 0.18 | X9: 0.2
A10: =IF(M27<>"",RAND(),"") ->  | B10: =IF(M27<>"",RANK(A10,A$8:A$101),"") ->  | C10: 3 | E10: =IF(D10="","",(VLOOKUP(D10,'Membership #'!$A$1:$C$1005,2,0))) ->  | F10: =IF(D10="","",(VLOOKUP(D10,'Membership #'!$A$1:$C$1005,3,0))) ->  | I10: =IF(G10="n","No Time",IF(G10="x","Scratch",IF(G10<>"",SUM(G10+H10),""))) ->  | M10: Jackpot | N10: =P9*N9 -> 20 | P10: 0.85 | Q10: payback | R10: 4th | S10: 0.12 | T10: 0.13 | U10: 0.13 | V10: 0.13 | W10: 0.14
E11: =IF(D11="","",(VLOOKUP(D11,'Membership #'!$A$1:$C$1005,2,0))) ->  | F11: =IF(D11="","",(VLOOKUP(D11,'Membership #'!$A$1:$C$1005,3,0))) ->  | I11: =IF(G11="n","No Time",IF(G11="x","Scratch",IF(G11<>"",SUM(G11+H11),""))) ->  | M11: Total Money | N11: =N8+(N10*P10) -> 42 | P11: =N10*P10 -> 17 | Q11: Jackpot | R11: 5th | S11: 0.1 | T11: 0.09 | U11: 0.08 | V11: 0.1
E12: =IF(D12="","",(VLOOKUP(D12,'Membership #'!$A$1:$C$1005,2,0))) ->  | F12: =IF(D12="","",(VLOOKUP(D12,'Membership #'!$A$1:$C$1005,3,0))) ->  | I12: =IF(G12="n","No Time",IF(G12="x","Scratch",IF(G12<>"",SUM(G12+H12),""))) ->  | N12: Percentage | O12: Money | P12: Ring # | R12: 6th | S12: 0.08 | T12: 0.06 | U12: 0.06
E13: =IF(D13="","",(VLOOKUP(D13,'Membership #'!$A$1:$C$1005,2,0))) ->  | F13: =IF(D13="","",(VLOOKUP(D13,'Membership #'!$A$1:$C$1005,3,0))) ->  | I13: =IF(G13="n","No Time",IF(G13="x","Scratch",IF(G13<>"",SUM(G13+H13),""))) ->  | M13: 1st | N13: 1 | O13: =IF(N13<>0,N$11*N13,"") -> 42 | Q13: =IF(P13="","",(VLOOKUP(P13,'Membership #'!$A$1:$C$1005,2,0))) ->  | R13: 7th | T13: 0.03 | U13: 0.05
E14: =IF(D14="","",(VLOOKUP(D14,'Membership #'!$A$1:$C$1005,2,0))) ->  | F14: =IF(D14="","",(VLOOKUP(D14,'Membership #'!$A$1:$C$1005,3,0))) ->  | M14: 2nd | Q14: =IF(P14="","",(VLOOKUP(P14,'Membership #'!$A$1:$C$1005,2,0))) ->  | R14: 8th | T14: 0.02 | U14: 0.04
E15: =IF(D15="","",(VLOOKUP(D15,'Membership #'!$A$1:$C$1005,2,0))) ->  | F15: =IF(D15="","",(VLOOKUP(D15,'Membership #'!$A$1:$C$1005,3,0))) ->  | I15: =IF(G15="n","No Time",IF(G15="x","Scratch",IF(G15<>"",SUM(G15+H15),""))) ->  | M15: 3rd | Q15: =IF(P15="","",(VLOOKUP(P15,'Membership #'!$A$1:$C$1005,2,0))) ->  | R15: 9th | U15: 0.03
E16: =IF(D16="","",(VLOOKUP(D16,'Membership #'!$A$1:$C$1005,2,0))) ->  | F16: =IF(D16="","",(VLOOKUP(D16,'Membership #'!$A$1:$C$1005,3,0))) ->  | I16: =IF(G16="n","No Time",IF(G16="x","Scratch",IF(G16<>"",SUM(G16+H16),""))) ->  | M16: 4th | Q16: =IF(P16="","",(VLOOKUP(P16,'Membership #'!$A$1:$C$1005,2,0))) ->  | R16: 10th | U16: 0.02
E17: =IF(D17="","",(VLOOKUP(D17,'Membership #'!$A$1:$C$1005,2,0))) ->  | F17: =IF(D17="","",(VLOOKUP(D17,'Membership #'!$A$1:$C$1005,3,0))) ->  | I17: =IF(G17="n","No Time",IF(G17="x","Scratch",IF(G17<>"",SUM(G17+H17),""))) ->  | M17: 5th | Q17: =IF(P17="","",(VLOOKUP(P17,'Membership #'!$A$1:$C$1005,2,0))) -> 
E18: =IF(D18="","",(VLOOKUP(D18,'Membership #'!$A$1:$C$1005,2,0))) ->  | F18: =IF(D18="","",(VLOOKUP(D18,'Membership #'!$A$1:$C$1005,3,0))) ->  | I18: =IF(G18="n","No Time",IF(G18="x","Scratch",IF(G18<>"",SUM(G18+H18),""))) ->  | M18: 6th | Q18: =IF(P18="","",(VLOOKUP(P18,'Membership #'!$A$1:$C$1005,2,0))) -> 
E19: =IF(D19="","",(VLOOKUP(D19,'Membership #'!$A$1:$C$1005,2,0))) ->  | F19: =IF(D19="","",(VLOOKUP(D19,'Membership #'!$A$1:$C$1005,3,0))) ->  | M19: 7th | Q19: =IF(P19="",0,(VLOOKUP(P19,'Membership #'!$A$1:$C$1005,2,0))) -> 0
E20: =IF(D20="","",(VLOOKUP(D20,'Membership #'!$A$1:$C$1005,2,0))) ->  | F20: =IF(D20="","",(VLOOKUP(D20,'Membership #'!$A$1:$C$1005,3,0))) ->  | M20: 8th | Q20: =IF(P20="",0,(VLOOKUP(P20,'Membership #'!$A$1:$C$1005,2,0))) -> 0
E21: =IF(D21="","",(VLOOKUP(D21,'Membership #'!$A$1:$C$1005,2,0))) ->  | F21: =IF(D21="","",(VLOOKUP(D21,'Membership #'!$A$1:$C$1005,3,0))) ->  | M21: 9th
E22: =IF(D22="","",(VLOOKUP(D22,'Membership #'!$A$1:$C$1005,2,0))) ->  | F22: =IF(D22="","",(VLOOKUP(D22,'Membership #'!$A$1:$C$1005,3,0))) ->  | M22: 10th | N22: =HLOOKUP($R$4,$S$4:$Z$17,13,0) -> 0
E23: =IF(D23="","",(VLOOKUP(D23,'Membership #'!$A$1:$C$1005,2,0))) ->  | F23: =IF(D23="","",(VLOOKUP(D23,'Membership #'!$A$1:$C$1005,3,0))) ->  | M23: Total Money | O23: =SUM(O13:O22) -> 42
E24: =IF(D24="","",(VLOOKUP(D24,'Membership #'!$A$1:$C$1005,2,0))) ->  | F24: =IF(D24="","",(VLOOKUP(D24,'Membership #'!$A$1:$C$1005,3,0))) -> 
E25: =IF(D25="","",(VLOOKUP(D25,'Membership #'!$A$1:$C$1005,2,0))) ->  | F25: =IF(D25="","",(VLOOKUP(D25,'Membership #'!$A$1:$C$1005,3,0))) -> 
E26: =IF(D26="","",(VLOOKUP(D26,'Membership #'!$A$1:$C$1005,2,0))) ->  | F26: =IF(D26="","",(VLOOKUP(D26,'Membership #'!$A$1:$C$1005,3,0))) ->  | N26: Terry Cole
E27: =IF(D27="","",(VLOOKUP(D27,'Membership #'!$A$1:$C$1005,2,0))) ->  | F27: =IF(D27="","",(VLOOKUP(D27,'Membership #'!$A$1:$C$1005,3,0))) -> 
E28: =IF(D28="","",(VLOOKUP(D28,'Membership #'!$A$1:$C$1005,2,0))) ->  | F28: =IF(D28="","",(VLOOKUP(D28,'Membership #'!$A$1:$C$1005,3,0))) -> 
E29: =IF(D29="","",(VLOOKUP(D29,'Membership #'!$A$1:$C$1005,2,0))) ->  | F29: =IF(D29="","",(VLOOKUP(D29,'Membership #'!$A$1:$C$1005,3,0))) -> 
E30: =IF(D30="","",(VLOOKUP(D30,'Membership #'!$A$1:$C$1005,2,0))) ->  | F30: =IF(D30="","",(VLOOKUP(D30,'Membership #'!$A$1:$C$1005,3,0))) -> 
E31: =IF(D31="","",(VLOOKUP(D31,'Membership #'!$A$1:$C$1005,2,0))) ->  | F31: =IF(D31="","",(VLOOKUP(D31,'Membership #'!$A$1:$C$1005,3,0))) -> 
E32: =IF(D32="","",(VLOOKUP(D32,'Membership #'!$A$1:$C$1005,2,0))) ->  | F32: =IF(D32="","",(VLOOKUP(D32,'Membership #'!$A$1:$C$1005,3,0))) -> 
E33: =IF(D33="","",(VLOOKUP(D33,'Membership #'!$A$1:$C$1005,2,0))) ->  | F33: =IF(D33="","",(VLOOKUP(D33,'Membership #'!$A$1:$C$1005,3,0))) -> 
E34: =IF(D34="","",(VLOOKUP(D34,'Membership #'!$A$1:$C$1005,2,0))) ->  | F34: =IF(D34="","",(VLOOKUP(D34,'Membership #'!$A$1:$C$1005,3,0))) -> 
E35: =IF(D35="","",(VLOOKUP(D35,'Membership #'!$A$1:$C$1005,2,0))) ->  | F35: =IF(D35="","",(VLOOKUP(D35,'Membership #'!$A$1:$C$1005,3,0))) -> 
E36: =IF(D36="","",(VLOOKUP(D36,'Membership #'!$A$1:$C$1005,2,0))) ->  | F36: =IF(D36="","",(VLOOKUP(D36,'Membership #'!$A$1:$C$1005,3,0))) -> 
E37: =IF(D37="","",(VLOOKUP(D37,'Membership #'!$A$1:$C$1005,2,0))) ->  | F37: =IF(D37="","",(VLOOKUP(D37,'Membership #'!$A$1:$C$1005,3,0))) -> 
E38: =IF(D38="","",(VLOOKUP(D38,'Membership #'!$A$1:$C$1005,2,0))) ->  | F38: =IF(D38="","",(VLOOKUP(D38,'Membership #'!$A$1:$C$1005,3,0))) -> 
E39: =IF(D39="","",(VLOOKUP(D39,'Membership #'!$A$1:$C$1005,2,0))) ->  | F39: =IF(D39="","",(VLOOKUP(D39,'Membership #'!$A$1:$C$1005,3,0))) -> 
E40: =IF(D40="","",(VLOOKUP(D40,'Membership #'!$A$1:$C$1005,2,0))) ->  | F40: =IF(D40="","",(VLOOKUP(D40,'Membership #'!$A$1:$C$1005,3,0))) -> 
E41: =IF(D41="","",(VLOOKUP(D41,'Membership #'!$A$1:$C$1005,2,0))) ->  | F41: =IF(D41="","",(VLOOKUP(D41,'Membership #'!$A$1:$C$1005,3,0))) -> 
E42: =IF(D42="","",(VLOOKUP(D42,'Membership #'!$A$1:$C$1005,2,0))) ->  | F42: =IF(D42="","",(VLOOKUP(D42,'Membership #'!$A$1:$C$1005,3,0))) -> 
E43: =IF(D43="","",(VLOOKUP(D43,'Membership #'!$A$1:$C$1005,2,0))) ->  | F43: =IF(D43="","",(VLOOKUP(D43,'Membership #'!$A$1:$C$1005,3,0))) -> 
E44: =IF(D44="","",(VLOOKUP(D44,'Membership #'!$A$1:$C$1005,2,0))) ->  | F44: =IF(D44="","",(VLOOKUP(D44,'Membership #'!$A$1:$C$1005,3,0))) -> 
E45: =IF(D45="","",(VLOOKUP(D45,'Membership #'!$A$1:$C$1005,2,0))) ->  | F45: =IF(D45="","",(VLOOKUP(D45,'Membership #'!$A$1:$C$1005,3,0))) -> 
E46: =IF(D46="","",(VLOOKUP(D46,'Membership #'!$A$1:$C$1005,2,0))) ->  | F46: =IF(D46="","",(VLOOKUP(D46,'Membership #'!$A$1:$C$1005,3,0))) -> 
E47: =IF(D47="","",(VLOOKUP(D47,'Membership #'!$A$1:$C$1005,2,0))) ->  | F47: =IF(D47="","",(VLOOKUP(D47,'Membership #'!$A$1:$C$1005,3,0))) -> 
E48: =IF(D48="","",(VLOOKUP(D48,'Membership #'!$A$1:$C$1005,2,0))) ->  | F48: =IF(D48="","",(VLOOKUP(D48,'Membership #'!$A$1:$C$1005,3,0))) -> 
E49: =IF(D49="","",(VLOOKUP(D49,'Membership #'!$A$1:$C$1005,2,0))) ->  | F49: =IF(D49="","",(VLOOKUP(D49,'Membership #'!$A$1:$C$1005,3,0))) -> 
E50: =IF(D50="","",(VLOOKUP(D50,'Membership #'!$A$1:$C$1005,2,0))) ->  | F50: =IF(D50="","",(VLOOKUP(D50,'Membership #'!$A$1:$C$1005,3,0))) -> 
E51: =IF(D51="","",(VLOOKUP(D51,'Membership #'!$A$1:$C$1005,2,0))) ->  | F51: =IF(D51="","",(VLOOKUP(D51,'Membership #'!$A$1:$C$1005,3,0))) -> 
E52: =IF(D52="","",(VLOOKUP(D52,'Membership #'!$A$1:$C$1005,2,0))) ->  | F52: =IF(D52="","",(VLOOKUP(D52,'Membership #'!$A$1:$C$1005,3,0))) -> 
E53: =IF(D53="","",(VLOOKUP(D53,'Membership #'!$A$1:$C$1005,2,0))) ->  | F53: =IF(D53="","",(VLOOKUP(D53,'Membership #'!$A$1:$C$1005,3,0))) -> 
E54: =IF(D54="","",(VLOOKUP(D54,'Membership #'!$A$1:$C$1005,2,0))) ->  | F54: =IF(D54="","",(VLOOKUP(D54,'Membership #'!$A$1:$C$1005,3,0))) -> 
E55: =IF(D55="","",(VLOOKUP(D55,'Membership #'!$A$1:$C$1005,2,0))) ->  | F55: =IF(D55="","",(VLOOKUP(D55,'Membership #'!$A$1:$C$1005,3,0))) -> 
E56: =IF(D56="","",(VLOOKUP(D56,'Membership #'!$A$1:$C$1005,2,0))) ->  | F56: =IF(D56="","",(VLOOKUP(D56,'Membership #'!$A$1:$C$1005,3,0))) -> 
E57: =IF(D57="","",(VLOOKUP(D57,'Membership #'!$A$1:$C$1005,2,0))) ->  | F57: =IF(D57="","",(VLOOKUP(D57,'Membership #'!$A$1:$C$1005,3,0))) -> 
E58: =IF(D58="","",(VLOOKUP(D58,'Membership #'!$A$1:$C$1005,2,0))) ->  | F58: =IF(D58="","",(VLOOKUP(D58,'Membership #'!$A$1:$C$1005,3,0))) -> 
E59: =IF(D59="","",(VLOOKUP(D59,'Membership #'!$A$1:$C$1005,2,0))) ->  | F59: =IF(D59="","",(VLOOKUP(D59,'Membership #'!$A$1:$C$1005,3,0))) -> 
E60: =IF(D60="","",(VLOOKUP(D60,'Membership #'!$A$1:$C$1005,2,0))) ->  | F60: =IF(D60="","",(VLOOKUP(D60,'Membership #'!$A$1:$C$1005,3,0))) -> 
E61: =IF(D61="","",(VLOOKUP(D61,'Membership #'!$A$1:$C$1005,2,0))) ->  | F61: =IF(D61="","",(VLOOKUP(D61,'Membership #'!$A$1:$C$1005,3,0))) -> 
E62: =IF(D62="","",(VLOOKUP(D62,'Membership #'!$A$1:$C$1005,2,0))) ->  | F62: =IF(D62="","",(VLOOKUP(D62,'Membership #'!$A$1:$C$1005,3,0))) -> 
E63: =IF(D63="","",(VLOOKUP(D63,'Membership #'!$A$1:$C$1005,2,0))) ->  | F63: =IF(D63="","",(VLOOKUP(D63,'Membership #'!$A$1:$C$1005,3,0))) -> 
E64: =IF(D64="","",(VLOOKUP(D64,'Membership #'!$A$1:$C$1005,2,0))) ->  | F64: =IF(D64="","",(VLOOKUP(D64,'Membership #'!$A$1:$C$1005,3,0))) -> 
E65: =IF(D65="","",(VLOOKUP(D65,'Membership #'!$A$1:$C$1005,2,0))) ->  | F65: =IF(D65="","",(VLOOKUP(D65,'Membership #'!$A$1:$C$1005,3,0))) -> 
E66: =IF(D66="","",(VLOOKUP(D66,'Membership #'!$A$1:$C$1005,2,0))) ->  | F66: =IF(D66="","",(VLOOKUP(D66,'Membership #'!$A$1:$C$1005,3,0))) -> 
E67: =IF(D67="","",(VLOOKUP(D67,'Membership #'!$A$1:$C$1005,2,0))) ->  | F67: =IF(D67="","",(VLOOKUP(D67,'Membership #'!$A$1:$C$1005,3,0))) -> 
E68: =IF(D68="","",(VLOOKUP(D68,'Membership #'!$A$1:$C$1005,2,0))) ->  | F68: =IF(D68="","",(VLOOKUP(D68,'Membership #'!$A$1:$C$1005,3,0))) -> 
E69: =IF(D69="","",(VLOOKUP(D69,'Membership #'!$A$1:$C$1005,2,0))) ->  | F69: =IF(D69="","",(VLOOKUP(D69,'Membership #'!$A$1:$C$1005,3,0))) -> 
E70: =IF(D70="","",(VLOOKUP(D70,'Membership #'!$A$1:$C$1005,2,0))) ->  | F70: =IF(D70="","",(VLOOKUP(D70,'Membership #'!$A$1:$C$1005,3,0))) -> 
E71: =IF(D71="","",(VLOOKUP(D71,'Membership #'!$A$1:$C$1005,2,0))) ->  | F71: =IF(D71="","",(VLOOKUP(D71,'Membership #'!$A$1:$C$1005,3,0))) -> 
A72: =IF(D72<>"",RAND(),"") ->  | B72: =IF(D72<>"",RANK(A72,A$8:A$101),"") ->  | E72: =IF(D72="","",(VLOOKUP(D72,'Membership #'!$A$1:$C$1005,2,0))) ->  | F72: =IF(D72="","",(VLOOKUP(D72,'Membership #'!$A$1:$C$1005,3,0))) -> 
E73: =IF(D73="","",(VLOOKUP(D73,'Membership #'!$A$1:$C$1005,2,0))) ->  | F73: =IF(D73="","",(VLOOKUP(D73,'Membership #'!$A$1:$C$1005,3,0))) ->  | I73: =IF(G73="n","No Time",IF(G73="x","Scratch",IF(G73<>"",SUM(G73+H73),""))) -> 
E74: =IF(D74="","",(VLOOKUP(D74,'Membership #'!$A$1:$C$1005,2,0))) ->  | F74: =IF(D74="","",(VLOOKUP(D74,'Membership #'!$A$1:$C$1005,3,0))) -> 
E75: =IF(D75="","",(VLOOKUP(D75,'Membership #'!$A$1:$C$1005,2,0))) ->  | F75: =IF(D75="","",(VLOOKUP(D75,'Membership #'!$A$1:$C$1005,3,0))) -> 
E76: =IF(D76="","",(VLOOKUP(D76,'Membership #'!$A$1:$C$1005,2,0))) ->  | F76: =IF(D76="","",(VLOOKUP(D76,'Membership #'!$A$1:$C$1005,3,0))) -> 
E77: =IF(D77="","",(VLOOKUP(D77,'Membership #'!$A$1:$C$1005,2,0))) ->  | F77: =IF(D77="","",(VLOOKUP(D77,'Membership #'!$A$1:$C$1005,3,0))) -> 
E78: =IF(D78="","",(VLOOKUP(D78,'Membership #'!$A$1:$C$1005,2,0))) ->  | F78: =IF(D78="","",(VLOOKUP(D78,'Membership #'!$A$1:$C$1005,3,0))) -> 
E79: =IF(D79="","",(VLOOKUP(D79,'Membership #'!$A$1:$C$1005,2,0))) ->  | F79: =IF(D79="","",(VLOOKUP(D79,'Membership #'!$A$1:$C$1005,3,0))) -> 
E80: =IF(D80="","",(VLOOKUP(D80,'Membership #'!$A$1:$C$1005,2,0))) ->  | F80: =IF(D80="","",(VLOOKUP(D80,'Membership #'!$A$1:$C$1005,3,0))) -> 
E81: =IF(D81="","",(VLOOKUP(D81,'Membership #'!$A$1:$C$1005,2,0))) ->  | F81: =IF(D81="","",(VLOOKUP(D81,'Membership #'!$A$1:$C$1005,3,0))) -> 
E82: =IF(D82="","",(VLOOKUP(D82,'Membership #'!$A$1:$C$1005,2,0))) ->  | F82: =IF(D82="","",(VLOOKUP(D82,'Membership #'!$A$1:$C$1005,3,0))) -> 
E83: =IF(D83="","",(VLOOKUP(D83,'Membership #'!$A$1:$C$1005,2,0))) ->  | F83: =IF(D83="","",(VLOOKUP(D83,'Membership #'!$A$1:$C$1005,3,0))) -> 
E84: =IF(D84="","",(VLOOKUP(D84,'Membership #'!$A$1:$C$1005,2,0))) ->  | F84: =IF(D84="","",(VLOOKUP(D84,'Membership #'!$A$1:$C$1005,3,0))) -> 
E85: =IF(D85="","",(VLOOKUP(D85,'Membership #'!$A$1:$C$1005,2,0))) ->  | F85: =IF(D85="","",(VLOOKUP(D85,'Membership #'!$A$1:$C$1005,3,0))) -> 
E86: =IF(D86="","",(VLOOKUP(D86,'Membership #'!$A$1:$C$1005,2,0))) ->  | F86: =IF(D86="","",(VLOOKUP(D86,'Membership #'!$A$1:$C$1005,3,0))) -> 
E87: =IF(D87="","",(VLOOKUP(D87,'Membership #'!$A$1:$C$1005,2,0))) ->  | F87: =IF(D87="","",(VLOOKUP(D87,'Membership #'!$A$1:$C$1005,3,0))) -> 
E88: =IF(D88="","",(VLOOKUP(D88,'Membership #'!$A$1:$C$1005,2,0))) ->  | F88: =IF(D88="","",(VLOOKUP(D88,'Membership #'!$A$1:$C$1005,3,0))) -> 
E89: =IF(D89="","",(VLOOKUP(D89,'Membership #'!$A$1:$C$1005,2,0))) ->  | F89: =IF(D89="","",(VLOOKUP(D89,'Membership #'!$A$1:$C$1005,3,0))) -> 
E90: =IF(D90="","",(VLOOKUP(D90,'Membership #'!$A$1:$C$1005,2,0))) ->  | F90: =IF(D90="","",(VLOOKUP(D90,'Membership #'!$A$1:$C$1005,3,0))) -> 
E91: =IF(D91="","",(VLOOKUP(D91,'Membership #'!$A$1:$C$1005,2,0))) ->  | F91: =IF(D91="","",(VLOOKUP(D91,'Membership #'!$A$1:$C$1005,3,0))) -> 
E92: =IF(D92="","",(VLOOKUP(D92,'Membership #'!$A$1:$C$1005,2,0))) ->  | F92: =IF(D92="","",(VLOOKUP(D92,'Membership #'!$A$1:$C$1005,3,0))) -> 
E93: =IF(D93="","",(VLOOKUP(D93,'Membership #'!$A$1:$C$1005,2,0))) ->  | F93: =IF(D93="","",(VLOOKUP(D93,'Membership #'!$A$1:$C$1005,3,0))) -> 
E94: =IF(D94="","",(VLOOKUP(D94,'Membership #'!$A$1:$C$1005,2,0))) ->  | F94: =IF(D94="","",(VLOOKUP(D94,'Membership #'!$A$1:$C$1005,3,0))) -> 
E95: =IF(D95="","",(VLOOKUP(D95,'Membership #'!$A$1:$C$1005,2,0))) ->  | F95: =IF(D95="","",(VLOOKUP(D95,'Membership #'!$A$1:$C$1005,3,0))) -> 
E96: =IF(D96="","",(VLOOKUP(D96,'Membership #'!$A$1:$C$1005,2,0))) ->  | F96: =IF(D96="","",(VLOOKUP(D96,'Membership #'!$A$1:$C$1005,3,0))) -> 
E97: =IF(D97="","",(VLOOKUP(D97,'Membership #'!$A$1:$C$1005,2,0))) ->  | F97: =IF(D97="","",(VLOOKUP(D97,'Membership #'!$A$1:$C$1005,3,0))) -> 
E98: =IF(D98="","",(VLOOKUP(D98,'Membership #'!$A$1:$C$1005,2,0))) ->  | F98: =IF(D98="","",(VLOOKUP(D98,'Membership #'!$A$1:$C$1005,3,0))) -> 
E99: =IF(D99="","",(VLOOKUP(D99,'Membership #'!$A$1:$C$1005,2,0))) ->  | F99: =IF(D99="","",(VLOOKUP(D99,'Membership #'!$A$1:$C$1005,3,0))) -> 
E100: =IF(D100="","",(VLOOKUP(D100,'Membership #'!$A$1:$C$1005,2,0))) ->  | F100: =IF(D100="","",(VLOOKUP(D100,'Membership #'!$A$1:$C$1005,3,0))) -> 
E101: =IF(D101="","",(VLOOKUP(D101,'Membership #'!$A$1:$C$1005,2,0))) ->  | F101: =IF(D101="","",(VLOOKUP(D101,'Membership #'!$A$1:$C$1005,3,0))) -> 

Sheet YOUTH BARRELS
A1: Tom Burt & Mark McGuire Memorial Jackpot Aug 21, 2021 | M1: x=Scratch
A2: YOUTH BARRELS | M2: n=No Time
A3: # Enteries: | E3: =COUNTIF($D$8:$D$41,">0") -> 15 | R3: Don't Erase these numbers below!!
A4: Rand Draw | B4: Seed | C4: Running Order | D4: RING # | E4: NAME | F4: HORSE NAME | G4: TIME | H4: PENALTY | I4: TOTAL | J4: PLACINGS | K4: POINTS | R4: =IF(N9=2,7,IF(N9=3,6,IF(N9=4,5,IF(N9=5,4,IF(AND(N9>5,N11>600),3,IF(AND(N9>5,N11<600,N11>299.99),2,IF(AND(N9>5,N11<300),1,8))))))) -> 1 | S4: 1 | T4: 2 | U4: 3 | V4: 4 | W4: 5 | X4: 6 | Y4: 7 | Z4: 8
S5: 299 | T5: $300- | U5: $600 -
M6: YOUTH BARRELS | S6: or less | T6: 599 | U6: More | V6: 5 Entries | W6: 4 Entries | X6: 3 Entries | Y6: 2 Entries
R7: 1st | S7: 0.32 | T7: 0.27 | U7: 0.24 | V7: 0.35 | W7: 0.4 | X7: 0.46 | Y7: 0.6
A8: =IF(D8<>"",RAND(),"") -> 0.4087388085 | B8: =IF(D8<>"",RANK(A8,A$8:A$100),"") -> 14 | C8: 1 | D8: 918 | E8: =IF(D8="","",(VLOOKUP(D8,'Membership #'!$A$1:$C$1005,2,0))) -> Keira Rose | F8: =IF(D8="","",(VLOOKUP(D8,'Membership #'!$A$1:$C$1005,3,0))) -> LL Its All About Red | G8: 15.564 | I8: =IF(G8="n","No Time",IF(G8="x","Scratch",IF(G8<>"",SUM(G8+H8),""))) -> 15.564 | M8: Added | N8: 25 | R8: 2nd | S8: 0.23 | T8: 0.22 | U8: 0.19 | V8: 0.25 | W8: 0.28 | X8: 0.34 | Y8: 0.4
A9: 0.7426601845 | B9: 2 | C9: 2 | D9: 638 | E9: =IF(D9="","",(VLOOKUP(D9,'Membership #'!$A$1:$C$1005,2,0))) -> Bella Peters | F9: =IF(D9="","",(VLOOKUP(D9,'Membership #'!$A$1:$C$1005,3,0))) -> Super Star | G9: 15.745 | I9: 15.745 | M9: Entries | N9: 15 | P9: 5 | Q9: per head | R9: 3rd | S9: 0.15 | T9: 0.18 | U9: 0.16 | V9: 0.17 | W9: 0.18 | X9: 0.2
A10: 0.6806849433 | B10: 4 | C10: 3 | D10: 815 | E10: =IF(D10="","",(VLOOKUP(D10,'Membership #'!$A$1:$C$1005,2,0))) -> Brooke Kennedy | F10: =IF(D10="","",(VLOOKUP(D10,'Membership #'!$A$1:$C$1005,3,0))) -> Tic Toc Teazer | G10: 15.946 | I10: 15.946 | M10: Jackpot | N10: =P9*N9 -> 75 | P10: 0.85 | Q10: payback | R10: 4th | S10: 0.12 | T10: 0.13 | U10: 0.13 | V10: 0.13 | W10: 0.14
A11: 0.4100057894 | B11: 13 | C11: 4 | D11: 961 | E11: =IF(D11="","",(VLOOKUP(D11,'Membership #'!$A$1:$C$1005,2,0))) -> Jacie Burke | F11: =IF(D11="","",(VLOOKUP(D11,'Membership #'!$A$1:$C$1005,3,0))) -> She's Just That Sassy | G11: 16.353 | I11: 16.353 | M11: Total Money | N11: =N8+(N10*P10) -> 88.75 | P11: =N10*P10 -> 63.75 | Q11: Jackpot | R11: 5th | S11: 0.1 | T11: 0.09 | U11: 0.08 | V11: 0.1
A12: 0.7983398533 | B12: 1 | C12: 5 | D12: 954 | E12: =IF(D12="","",(VLOOKUP(D12,'Membership #'!$A$1:$C$1005,2,0))) -> Scotia MacEachern | F12: =IF(D12="","",(VLOOKUP(D12,'Membership #'!$A$1:$C$1005,3,0))) -> Hick-a-Licious | G12: 17.456 | I12: 17.456 | N12: Percentage | O12: Money | P12: Ring # | R12: 6th | S12: 0.08 | T12: 0.06 | U12: 0.06
A13: 0.6731134249 | B13: 5 | C13: 6 | D13: 966 | E13: =IF(D13="","",(VLOOKUP(D13,'Membership #'!$A$1:$C$1005,2,0))) -> Ava Anderson | F13: =IF(D13="","",(VLOOKUP(D13,'Membership #'!$A$1:$C$1005,3,0))) -> Black Sass | G13: 17.472 | I13: 17.472 | M13: 1st | N13: 0.32 | O13: =IF(N13<>0,N$11*N13,"") -> 28.4 | Q13: =IF(P13="","",(VLOOKUP(P13,'Membership #'!$A$1:$C$1005,2,0))) ->  | R13: 7th | T13: 0.03 | U13: 0.05
A14: 0.3451053358 | B14: 15 | C14: 7 | D14: 941 | E14: =IF(D14="","",(VLOOKUP(D14,'Membership #'!$A$1:$C$1005,2,0))) -> Taylor Hurley | F14: =IF(D14="","",(VLOOKUP(D14,'Membership #'!$A$1:$C$1005,3,0))) -> Nacho Business | G14: 18.45 | I14: 18.45 | M14: 2nd | N14: 0.23 | O14: 20.4125 | Q14: =IF(P14="","",(VLOOKUP(P14,'Membership #'!$A$1:$C$1005,2,0))) ->  | R14: 8th | T14: 0.02 | U14: 0.04
A15: 0.4121573143 | B15: 11 | C15: 8 | D15: 636 | E15: =IF(D15="","",(VLOOKUP(D15,'Membership #'!$A$1:$C$1005,2,0))) -> Ceilidh Gosse | F15: =IF(D15="","",(VLOOKUP(D15,'Membership #'!$A$1:$C$1005,3,0))) -> ELM Silver Crime | G15: 19.02 | I15: 19.02 | M15: 3rd | N15: 0.15 | O15: 13.3125 | Q15: =IF(P15="","",(VLOOKUP(P15,'Membership #'!$A$1:$C$1005,2,0))) ->  | R15: 9th | U15: 0.03
A16: 0.4639653297 | B16: 8 | C16: 9 | D16: 688 | E16: =IF(D16="","",(VLOOKUP(D16,'Membership #'!$A$1:$C$1005,2,0))) -> Lenee Sampson | F16: =IF(D16="","",(VLOOKUP(D16,'Membership #'!$A$1:$C$1005,3,0))) -> Six Dash Run | G16: 15.738 | H16: 5 | I16: 20.738 | M16: 4th | N16: 0.12 | O16: 10.65 | Q16: =IF(P16="","",(VLOOKUP(P16,'Membership #'!$A$1:$C$1005,2,0))) ->  | R16: 10th | U16: 0.02
A17: 0.6714329286 | B17: 6 | C17: 10 | D17: 652 | E17: =IF(D17="","",(VLOOKUP(D17,'Membership #'!$A$1:$C$1005,2,0))) -> Molly O'Grady | F17: =IF(D17="","",(VLOOKUP(D17,'Membership #'!$A$1:$C$1005,3,0))) -> Teelano's Twister | G17: 16.829 | H17: 5 | I17: 21.829 | M17: 5th | N17: 0.1 | O17: 8.875 | Q17: =IF(P17="","",(VLOOKUP(P17,'Membership #'!$A$1:$C$1005,2,0))) -> 
A18: 0.411757008 | B18: 12 | C18: 11 | D18: 666 | E18: =IF(D18="","",(VLOOKUP(D18,'Membership #'!$A$1:$C$1005,2,0))) -> Summer Fraser | F18: =IF(D18="","",(VLOOKUP(D18,'Membership #'!$A$1:$C$1005,3,0))) -> Sheza Smokin' Girl | G18: 20.367 | H18: 5 | I18: 25.367 | M18: 6th | N18: 0.08 | O18: 7.1 | Q18: =IF(P18="","",(VLOOKUP(P18,'Membership #'!$A$1:$C$1005,2,0))) -> 
A19: 0.4317287839 | B19: 9 | C19: 12 | D19: 967 | E19: =IF(D19="","",(VLOOKUP(D19,'Membership #'!$A$1:$C$1005,2,0))) -> Marissa Hillier | F19: =IF(D19="","",(VLOOKUP(D19,'Membership #'!$A$1:$C$1005,3,0))) -> Notice Betty Boop | G19: 20.591 | H19: 5 | I19: 25.591 | M19: 7th
A20: 0.4875800148 | B20: 7 | C20: 13 | D20: 904 | E20: =IF(D20="","",(VLOOKUP(D20,'Membership #'!$A$1:$C$1005,2,0))) -> Ella Cowley | F20: =IF(D20="","",(VLOOKUP(D20,'Membership #'!$A$1:$C$1005,3,0))) -> Blazin Boots | G20: n | I20: No Time | M20: 8th
A21: 0.4198761595 | B21: 10 | C21: 14 | D21: 867 | E21: =IF(D21="","",(VLOOKUP(D21,'Membership #'!$A$1:$C$1005,2,0))) -> Layla MacEachem | F21: =IF(D21="","",(VLOOKUP(D21,'Membership #'!$A$1:$C$1005,3,0))) -> Shes a gem | G21: n | I21: No Time | M21: 9th
A22: 0.684423606 | B22: 3 | C22: 15 | D22: 973 | E22: =IF(D22="","",(VLOOKUP(D22,'Membership #'!$A$1:$C$1005,2,0))) -> Sara Ivey | F22: =IF(D22="","",(VLOOKUP(D22,'Membership #'!$A$1:$C$1005,3,0))) -> Ms Heavenly Gator | G22: 20.152 | M22: 10th
E23: =IF(D23="","",(VLOOKUP(D23,'Membership #'!$A$1:$C$1005,2,0))) ->  | F23: =IF(D23="","",(VLOOKUP(D23,'Membership #'!$A$1:$C$1005,3,0))) ->  | I23: =IF(G23="n","No Time",IF(G23="x","Scratch",IF(G23<>"",SUM(G23+H23),""))) ->  | M23: Total Money | O23: =SUM(O13:O22) -> 88.75
E24: =IF(D24="","",(VLOOKUP(D24,'Membership #'!$A$1:$C$1005,2,0))) ->  | F24: =IF(D24="","",(VLOOKUP(D24,'Membership #'!$A$1:$C$1005,3,0))) -> 
E25: =IF(D25="","",(VLOOKUP(D25,'Membership #'!$A$1:$C$1005,2,0))) ->  | F25: =IF(D25="","",(VLOOKUP(D25,'Membership #'!$A$1:$C$1005,3,0))) -> 
E26: =IF(D26="","",(VLOOKUP(D26,'Membership #'!$A$1:$C$1005,2,0))) ->  | F26: =IF(D26="","",(VLOOKUP(D26,'Membership #'!$A$1:$C$1005,3,0))) -> 
E27: =IF(D27="","",(VLOOKUP(D27,'Membership #'!$A$1:$C$1005,2,0))) ->  | F27: =IF(D27="","",(VLOOKUP(D27,'Membership #'!$A$1:$C$1005,3,0))) ->  | I27: =IF(G27="n","No Time",IF(G27="x","Scratch",IF(G27<>"",SUM(G27+H27),""))) -> 
E28: =IF(D28="","",(VLOOKUP(D28,'Membership #'!$A$1:$C$1005,2,0))) ->  | F28: =IF(D28="","",(VLOOKUP(D28,'Membership #'!$A$1:$C$1005,3,0))) -> 
E29: =IF(D29="","",(VLOOKUP(D29,'Membership #'!$A$1:$C$1005,2,0))) ->  | F29: =IF(D29="","",(VLOOKUP(D29,'Membership #'!$A$1:$C$1005,3,0))) ->  | I29: =IF(G29="n","No Time",IF(G29="x","Scratch",IF(G29<>"",SUM(G29+H29),""))) -> 
E30: =IF(D30="","",(VLOOKUP(D30,'Membership #'!$A$1:$C$1005,2,0))) ->  | F30: =IF(D30="","",(VLOOKUP(D30,'Membership #'!$A$1:$C$1005,3,0))) -> 
E31: =IF(D31="","",(VLOOKUP(D31,'Membership #'!$A$1:$C$1005,2,0))) ->  | F31: =IF(D31="","",(VLOOKUP(D31,'Membership #'!$A$1:$C$1005,3,0))) -> 
E32: =IF(D32="","",(VLOOKUP(D32,'Membership #'!$A$1:$C$1005,2,0))) ->  | F32: =IF(D32="","",(VLOOKUP(D32,'Membership #'!$A$1:$C$1005,3,0))) -> 
E33: =IF(D33="","",(VLOOKUP(D33,'Membership #'!$A$1:$C$1005,2,0))) ->  | F33: =IF(D33="","",(VLOOKUP(D33,'Membership #'!$A$1:$C$1005,3,0))) -> 
A34: =IF(D34<>"",RAND(),"") ->  | E34: =IF(D34="","",(VLOOKUP(D34,'Membership #'!$A$1:$C$1005,2,0))) ->  | F34: =IF(D34="","",(VLOOKUP(D34,'Membership #'!$A$1:$C$1005,3,0))) ->  | I34: =IF(G34="n","No Time",IF(G34="x","Scratch",IF(G34<>"",SUM(G34+H34),""))) -> 
E35: =IF(D35="","",(VLOOKUP(D35,'Membership #'!$A$1:$C$1005,2,0))) ->  | F35: =IF(D35="","",(VLOOKUP(D35,'Membership #'!$A$1:$C$1005,3,0))) -> 
E36: =IF(D36="","",(VLOOKUP(D36,'Membership #'!$A$1:$C$1005,2,0))) ->  | F36: =IF(D36="","",(VLOOKUP(D36,'Membership #'!$A$1:$C$1005,3,0))) -> 
E37: =IF(D37="","",(VLOOKUP(D37,'Membership #'!$A$1:$C$1005,2,0))) ->  | F37: =IF(D37="","",(VLOOKUP(D37,'Membership #'!$A$1:$C$1005,3,0))) -> 
E38: =IF(D38="","",(VLOOKUP(D38,'Membership #'!$A$1:$C$1005,2,0))) ->  | F38: =IF(D38="","",(VLOOKUP(D38,'Membership #'!$A$1:$C$1005,3,0))) -> 
E39: =IF(D39="","",(VLOOKUP(D39,'Membership #'!$A$1:$C$1005,2,0))) ->  | F39: =IF(D39="","",(VLOOKUP(D39,'Membership #'!$A$1:$C$1005,3,0))) -> 
E40: =IF(D40="","",(VLOOKUP(D40,'Membership #'!$A$1:$C$1005,2,0))) ->  | F40: =IF(D40="","",(VLOOKUP(D40,'Membership #'!$A$1:$C$1005,3,0))) -> 
E41: =IF(D41="","",(VLOOKUP(D41,'Membership #'!$A$1:$C$1005,2,0))) ->  | F41: =IF(D41="","",(VLOOKUP(D41,'Membership #'!$A$1:$C$1005,3,0))) -> 
E42: =IF(D42="","",(VLOOKUP(D42,'Membership #'!$A$1:$C$1005,2,0))) ->  | F42: =IF(D42="","",(VLOOKUP(D42,'Membership #'!$A$1:$C$1005,3,0))) -> 

Sheet NOVICE BARRELS
A1: Tom Burt & Mark McGuire Memorial Jackpot Aug 21, 2021 | M1: x=Scratch
A2: NOVICE BARRELS | M2: n=No Time
A3: # Enteries: | E3: =COUNTIF($D$8:$D$98,">0") -> 25 | R3: Don't Erase these numbers below!!
A4: Rand Draw | B4: Seed | C4: Running Order | D4: RING # | E4: NAME | F4: HORSE NAME | G4: TIME | H4: PENALTY | I4: TOTAL | J4: PLACINGS | K4: POINTS | R4: =IF(N9=2,7,IF(N9=3,6,IF(N9=4,5,IF(N9=5,4,IF(AND(N9>5,N11>600),3,IF(AND(N9>5,N11<600,N11>299.99),2,IF(AND(N9>5,N11<300),1,8))))))) -> 1 | S4: 1 | T4: 2 | U4: 3 | V4: 4 | W4: 5 | X4: 6 | Y4: 7 | Z4: 8
S5: 299 | T5: $300- | U5: $600 -
M6: NOVICE BARRELS | S6: or less | T6: 599 | U6: More | V6: 5 Entries | W6: 4 Entries | X6: 3 Entries | Y6: 2 Entries
R7: 1st | S7: 0.32 | T7: 0.27 | U7: 0.24 | V7: 0.35 | W7: 0.4 | X7: 0.46 | Y7: 0.6
A8: =IF(D8<>"",RAND(),"") -> 0.4155665987 | B8: =IF(D8<>"",RANK(A8,A$8:A$99),"") -> 12 | C8: 1 | D8: 928 | E8: =IF(D8="","",(VLOOKUP(D8,'Membership #'!$A$1:$C$1005,2,0))) -> Tessa Dicks | F8: =IF(D8="","",(VLOOKUP(D8,'Membership #'!$A$1:$C$1005,3,0))) -> ELM Dash of Crime | G8: 15.586 | I8: =IF(G8="n","No Time",IF(G8="x","Scratch",IF(G8<>"",SUM(G8+H8),""))) -> 15.586 | M8: Added | N8: 75 | R8: 2nd | S8: 0.23 | T8: 0.22 | U8: 0.19 | V8: 0.25 | W8: 0.28 | X8: 0.34 | Y8: 0.4
A9: =IF(D9<>"",RAND(),"") -> 0.6509066902 | B9: 4 | C9: 2 | D9: 966 | E9: =IF(D9="","",(VLOOKUP(D9,'Membership #'!$A$1:$C$1005,2,0))) -> Ava Anderson | F9: =IF(D9="","",(VLOOKUP(D9,'Membership #'!$A$1:$C$1005,3,0))) -> Black Sass | G9: 16.074 | I9: 16.074 | M9: Entries | N9: 25 | P9: 10 | Q9: per head | R9: 3rd | S9: 0.15 | T9: 0.18 | U9: 0.16 | V9: 0.17 | W9: 0.18 | X9: 0.2
A10: 0.4213743837 | B10: 11 | C10: 3 | D10: 914 | E10: =IF(D10="","",(VLOOKUP(D10,'Membership #'!$A$1:$C$1005,2,0))) -> Shelby MacPherson | F10: =IF(D10="","",(VLOOKUP(D10,'Membership #'!$A$1:$C$1005,3,0))) -> Shelbys Badger Bar | G10: 16.253 | I10: 16.253 | M10: Jackpot | N10: =P9*N9 -> 250 | P10: 0.85 | Q10: payback | R10: 4th | S10: 0.12 | T10: 0.13 | U10: 0.13 | V10: 0.13 | W10: 0.14
A11: 0.4571424669 | B11: 9 | C11: 4 | D11: 699 | E11: =IF(D11="","",(VLOOKUP(D11,'Membership #'!$A$1:$C$1005,2,0))) -> Laura Morrison | F11: =IF(D11="","",(VLOOKUP(D11,'Membership #'!$A$1:$C$1005,3,0))) -> MDC Dark Revelation | G11: 16.279 | I11: 16.279 | M11: Total Money | N11: =N8+(N10*P10) -> 287.5 | P11: =N10*P10 -> 212.5 | Q11: Jackpot | R11: 5th | S11: 0.1 | T11: 0.09 | U11: 0.08 | V11: 0.1
A12: 0.2505539372 | B12: 18 | C12: 5 | D12: 909 | E12: =IF(D12="","",(VLOOKUP(D12,'Membership #'!$A$1:$C$1005,2,0))) -> Rebecca Gillis | F12: =IF(D12="","",(VLOOKUP(D12,'Membership #'!$A$1:$C$1005,3,0))) -> Martha's Tivio Moon | G12: 16.309 | I12: 16.309 | N12: Percentage | O12: Money | P12: Ring # | R12: 6th | S12: 0.08 | T12: 0.06 | U12: 0.06
A13: 0.5054545451 | B13: 8 | C13: 6 | D13: 652 | E13: =IF(D13="","",(VLOOKUP(D13,'Membership #'!$A$1:$C$1005,2,0))) -> Molly O'Grady | F13: =IF(D13="","",(VLOOKUP(D13,'Membership #'!$A$1:$C$1005,3,0))) -> Teelano's Twister | G13: 16.354 | I13: 16.354 | M13: 1st | N13: =HLOOKUP($R$4,$S$4:$Z$17,4,0) -> 0.32 | O13: =IF(N13<>0,N$11*N13,"") -> 92 | Q13: =IF(P13="","",(VLOOKUP(P13,'Membership #'!$A$1:$C$1005,2,0))) ->  | R13: 7th | T13: 0.03 | U13: 0.05
A14: 0.03942572164 | B14: 24 | C14: 7 | D14: 518 | E14: =IF(D14="","",(VLOOKUP(D14,'Membership #'!$A$1:$C$1005,2,0))) -> Sylvester Weatherbie | F14: =IF(D14="","",(VLOOKUP(D14,'Membership #'!$A$1:$C$1005,3,0))) -> J.R. | G14: 16.449 | I14: 16.449 | M14: 2nd | N14: =HLOOKUP($R$4,$S$4:$Z$17,5,0) -> 0.23 | O14: 66.125 | Q14: =IF(P14="","",(VLOOKUP(P14,'Membership #'!$A$1:$C$1005,2,0))) ->  | R14: 8th | T14: 0.02 | U14: 0.04
A15: 0.1684243459 | B15: 21 | C15: 8 | D15: 954 | E15: =IF(D15="","",(VLOOKUP(D15,'Membership #'!$A$1:$C$1005,2,0))) -> Scotia MacEachern | F15: =IF(D15="","",(VLOOKUP(D15,'Membership #'!$A$1:$C$1005,3,0))) -> Hick-a-Licious | G15: 16.843 | I15: 16.843 | M15: 3rd | N15: =HLOOKUP($R$4,$S$4:$Z$17,6,0) -> 0.15 | O15: 43.125 | Q15: =IF(P15="","",(VLOOKUP(P15,'Membership #'!$A$1:$C$1005,2,0))) ->  | R15: 9th | U15: 0.03
A16: 0.3118330999 | B16: 16 | C16: 9 | D16: 600 | E16: =IF(D16="","",(VLOOKUP(D16,'Membership #'!$A$1:$C$1005,2,0))) -> Stan Brown | F16: =IF(D16="","",(VLOOKUP(D16,'Membership #'!$A$1:$C$1005,3,0))) -> A Perty Sure Thing | G16: 17.073 | I16: 17.073 | M16: 4th | N16: =HLOOKUP($R$4,$S$4:$Z$17,7,0) -> 0.12 | O16: 34.5 | Q16: =IF(P16="","",(VLOOKUP(P16,'Membership #'!$A$1:$C$1005,2,0))) ->  | R16: 10th | U16: 0.02
A17: 0.5938876281 | B17: 5 | C17: 10 | D17: 514 | E17: =IF(D17="","",(VLOOKUP(D17,'Membership #'!$A$1:$C$1005,2,0))) -> Heather Morrison | F17: =IF(D17="","",(VLOOKUP(D17,'Membership #'!$A$1:$C$1005,3,0))) -> Black Fire Dash | G17: 17.255 | I17: 17.255 | M17: 5th | N17: =HLOOKUP($R$4,$S$4:$Z$17,8,0) -> 0.1 | O17: 28.75 | Q17: =IF(P17="","",(VLOOKUP(P17,'Membership #'!$A$1:$C$1005,2,0))) -> 
A18: 0.9201262758 | B18: 1 | C18: 11 | D18: 732 | E18: =IF(D18="","",(VLOOKUP(D18,'Membership #'!$A$1:$C$1005,2,0))) -> Brenna Carrigan | F18: =IF(D18="","",(VLOOKUP(D18,'Membership #'!$A$1:$C$1005,3,0))) -> Carlos | G18: 17.418 | I18: 17.418 | M18: 6th | N18: =HLOOKUP($R$4,$S$4:$Z$17,9,0) -> 0.08 | O18: 23 | Q18: =IF(P18="","",(VLOOKUP(P18,'Membership #'!$A$1:$C$1005,2,0))) -> 
A19: 0.0271347456 | B19: 25 | C19: 12 | D19: 591 | E19: =IF(D19="","",(VLOOKUP(D19,'Membership #'!$A$1:$C$1005,2,0))) -> Wendy MacLean | F19: =IF(D19="","",(VLOOKUP(D19,'Membership #'!$A$1:$C$1005,3,0))) -> White Sox N Flyin | G19: 18.091 | I19: 18.091 | M19: 7th | N19: =HLOOKUP($R$4,$S$4:$Z$17,10,0) -> 0 | Q19: =IF(P19="","",(VLOOKUP(P19,'Membership #'!$A$1:$C$1005,2,0))) -> 
A20: 0.4122465568 | B20: 13 | C20: 13 | D20: 753 | E20: =IF(D20="","",(VLOOKUP(D20,'Membership #'!$A$1:$C$1005,2,0))) -> Kayla Boudreau | F20: =IF(D20="","",(VLOOKUP(D20,'Membership #'!$A$1:$C$1005,3,0))) -> Lady Jane | G20: 18.3 | I20: 18.3 | M20: 8th | N20: =HLOOKUP($R$4,$S$4:$Z$17,11,0) -> 0 | Q20: =IF(P20="","",(VLOOKUP(P20,'Membership #'!$A$1:$C$1005,2,0))) -> 
A21: 0.2652309345 | B21: 17 | C21: 14 | D21: 973 | E21: =IF(D21="","",(VLOOKUP(D21,'Membership #'!$A$1:$C$1005,2,0))) -> Sara Ivey | F21: =IF(D21="","",(VLOOKUP(D21,'Membership #'!$A$1:$C$1005,3,0))) -> Ms Heavenly Gator | G21: 18.569 | I21: 18.569 | M21: 9th | N21: =HLOOKUP($R$4,$S$4:$Z$17,12,0) -> 0 | Q21: =IF(P21="","",(VLOOKUP(P21,'Membership #'!$A$1:$C$1005,2,0))) -> 
A22: 0.3124390999 | B22: 15 | C22: 15 | D22: 655 | E22: =IF(D22="","",(VLOOKUP(D22,'Membership #'!$A$1:$C$1005,2,0))) -> Julia Parker | F22: =IF(D22="","",(VLOOKUP(D22,'Membership #'!$A$1:$C$1005,3,0))) -> Boons Feature Star | G22: 18.617 | I22: 18.617 | M22: 10th | N22: =HLOOKUP($R$4,$S$4:$Z$17,13,0) -> 0 | Q22: =IF(P22="","",(VLOOKUP(P22,'Membership #'!$A$1:$C$1005,2,0))) -> 
A23: 0.3875280948 | B23: 14 | C23: 16 | D23: 537 | E23: =IF(D23="","",(VLOOKUP(D23,'Membership #'!$A$1:$C$1005,2,0))) -> Alka Virick | F23: =IF(D23="","",(VLOOKUP(D23,'Membership #'!$A$1:$C$1005,3,0))) -> Corona Identity | G23: 20.195 | I23: 20.195 | M23: Total Money | O23: =SUM(O13:O22) -> 287.5
A24: 0.5734236289 | B24: 7 | C24: 17 | D24: 971 | E24: =IF(D24="","",(VLOOKUP(D24,'Membership #'!$A$1:$C$1005,2,0))) -> Arielle Burke | F24: =IF(D24="","",(VLOOKUP(D24,'Membership #'!$A$1:$C$1005,3,0))) -> Elm Sally | G24: 22.99 | I24: 22.99
A25: 0.1256888113 | B25: 23 | C25: 18 | D25: 746 | E25: =IF(D25="","",(VLOOKUP(D25,'Membership #'!$A$1:$C$1005,2,0))) -> Cassie MacDonald | F25: =IF(D25="","",(VLOOKUP(D25,'Membership #'!$A$1:$C$1005,3,0))) -> Sandy Dew | G25: 25.25 | I25: 25.25
A26: 0.4392524255 | B26: 10 | C26: 19 | D26: 768 | E26: =IF(D26="","",(VLOOKUP(D26,'Membership #'!$A$1:$C$1005,2,0))) -> Tracey Higgins | F26: =IF(D26="","",(VLOOKUP(D26,'Membership #'!$A$1:$C$1005,3,0))) -> Iza Wicked Wind | G26: 16.469 | H26: 10 | I26: 26.469
A27: 0.2108347205 | B27: 19 | C27: 20 | D27: 855 | E27: =IF(D27="","",(VLOOKUP(D27,'Membership #'!$A$1:$C$1005,2,0))) -> Jenelle Collier | F27: =IF(D27="","",(VLOOKUP(D27,'Membership #'!$A$1:$C$1005,3,0))) -> Peppy Sans Surprise | G27: n | I27: No Time
A28: 0.5910137138 | B28: 6 | C28: 21 | D28: 904 | E28: =IF(D28="","",(VLOOKUP(D28,'Membership #'!$A$1:$C$1005,2,0))) -> Ella Cowley | F28: =IF(D28="","",(VLOOKUP(D28,'Membership #'!$A$1:$C$1005,3,0))) -> Blazin Boots | G28: n | I28: No Time
A29: 0.1795212751 | B29: 20 | C29: 22 | D29: 716 | E29: =IF(D29="","",(VLOOKUP(D29,'Membership #'!$A$1:$C$1005,2,0))) -> Kayla Martin | F29: =IF(D29="","",(VLOOKUP(D29,'Membership #'!$A$1:$C$1005,3,0))) -> Dash Ta Home | G29: n | I29: No Time
A30: 0.9017013802 | B30: 2 | C30: 23 | D30: 889 | E30: =IF(D30="","",(VLOOKUP(D30,'Membership #'!$A$1:$C$1005,2,0))) -> Adelaine Cowley | F30: =IF(D30="","",(VLOOKUP(D30,'Membership #'!$A$1:$C$1005,3,0))) -> Frenchman's Promise | G30: x | I30: Scratch
A31: 0.1285408963 | B31: 22 | C31: 24 | D31: 968 | E31: =IF(D31="","",(VLOOKUP(D31,'Membership #'!$A$1:$C$1005,2,0))) -> Madison Pelly | F31: =IF(D31="","",(VLOOKUP(D31,'Membership #'!$A$1:$C$1005,3,0))) -> Westin | G31: x | I31: Scratch
A32: 0.6795486441 | B32: 3 | C32: 25 | D32: 78 | E32: =IF(D32="","",(VLOOKUP(D32,'Membership #'!$A$1:$C$1005,2,0))) -> Stephanie Rich | F32: =IF(D32="","",(VLOOKUP(D32,'Membership #'!$A$1:$C$1005,3,0))) -> Texas Mickey | G32: x | I32: Scratch
E33: =IF(D33="","",(VLOOKUP(D33,'Membership #'!$A$1:$C$1005,2,0))) ->  | F33: =IF(D33="","",(VLOOKUP(D33,'Membership #'!$A$1:$C$1005,3,0))) ->  | I33: =IF(G33="n","No Time",IF(G33="x","Scratch",IF(G33<>"",SUM(G33+H33),""))) -> 
E34: =IF(D34="","",(VLOOKUP(D34,'Membership #'!$A$1:$C$1005,2,0))) ->  | F34: =IF(D34="","",(VLOOKUP(D34,'Membership #'!$A$1:$C$1005,3,0))) -> 
E35: =IF(D35="","",(VLOOKUP(D35,'Membership #'!$A$1:$C$1005,2,0))) ->  | F35: =IF(D35="","",(VLOOKUP(D35,'Membership #'!$A$1:$C$1005,3,0))) -> 
E36: =IF(D36="","",(VLOOKUP(D36,'Membership #'!$A$1:$C$1005,2,0))) ->  | F36: =IF(D36="","",(VLOOKUP(D36,'Membership #'!$A$1:$C$1005,3,0))) -> 
E37: =IF(D37="","",(VLOOKUP(D37,'Membership #'!$A$1:$C$1005,2,0))) ->  | F37: =IF(D37="","",(VLOOKUP(D37,'Membership #'!$A$1:$C$1005,3,0))) -> 
E38: =IF(D38="","",(VLOOKUP(D38,'Membership #'!$A$1:$C$1005,2,0))) ->  | F38: =IF(D38="","",(VLOOKUP(D38,'Membership #'!$A$1:$C$1005,3,0))) -> 
E39: =IF(D39="","",(VLOOKUP(D39,'Membership #'!$A$1:$C$1005,2,0))) ->  | F39: =IF(D39="","",(VLOOKUP(D39,'Membership #'!$A$1:$C$1005,3,0))) -> 
B40: =IF(D40<>"",RANK(A40,A$8:A$99),"") ->  | E40: =IF(D40="","",(VLOOKUP(D40,'Membership #'!$A$1:$C$1005,2,0))) ->  | F40: =IF(D40="","",(VLOOKUP(D40,'Membership #'!$A$1:$C$1005,3,0))) -> 
E41: =IF(D41="","",(VLOOKUP(D41,'Membership #'!$A$1:$C$1005,2,0))) ->  | F41: =IF(D41="","",(VLOOKUP(D41,'Membership #'!$A$1:$C$1005,3,0))) -> 
E42: =IF(D42="","",(VLOOKUP(D42,'Membership #'!$A$1:$C$1005,2,0))) ->  | F42: =IF(D42="","",(VLOOKUP(D42,'Membership #'!$A$1:$C$1005,3,0))) -> 
E43: =IF(D43="","",(VLOOKUP(D43,'Membership #'!$A$1:$C$1005,2,0))) ->  | F43: =IF(D43="","",(VLOOKUP(D43,'Membership #'!$A$1:$C$1005,3,0))) -> 
E44: =IF(D44="","",(VLOOKUP(D44,'Membership #'!$A$1:$C$1005,2,0))) ->  | F44: =IF(D44="","",(VLOOKUP(D44,'Membership #'!$A$1:$C$1005,3,0))) -> 
E45: =IF(D45="","",(VLOOKUP(D45,'Membership #'!$A$1:$C$1005,2,0))) ->  | F45: =IF(D45="","",(VLOOKUP(D45,'Membership #'!$A$1:$C$1005,3,0))) -> 
E46: =IF(D46="","",(VLOOKUP(D46,'Membership #'!$A$1:$C$1005,2,0))) ->  | F46: =IF(D46="","",(VLOOKUP(D46,'Membership #'!$A$1:$C$1005,3,0))) ->  | I46: =IF(G46="n","No Time",IF(G46="x","Scratch",IF(G46<>"",SUM(G46+H46),""))) -> 
E47: =IF(D47="","",(VLOOKUP(D47,'Membership #'!$A$1:$C$1005,2,0))) ->  | F47: =IF(D47="","",(VLOOKUP(D47,'Membership #'!$A$1:$C$1005,3,0))) -> 
E48: =IF(D48="","",(VLOOKUP(D48,'Membership #'!$A$1:$C$1005,2,0))) ->  | F48: =IF(D48="","",(VLOOKUP(D48,'Membership #'!$A$1:$C$1005,3,0))) -> 
E49: =IF(D49="","",(VLOOKUP(D49,'Membership #'!$A$1:$C$1005,2,0))) ->  | F49: =IF(D49="","",(VLOOKUP(D49,'Membership #'!$A$1:$C$1005,3,0))) -> 
E50: =IF(D50="","",(VLOOKUP(D50,'Membership #'!$A$1:$C$1005,2,0))) ->  | F50: =IF(D50="","",(VLOOKUP(D50,'Membership #'!$A$1:$C$1005,3,0))) ->  | I50: =IF(G50="n","No Time",IF(G50="x","Scratch",IF(G50<>"",SUM(G50+H50),""))) -> 
E51: =IF(D51="","",(VLOOKUP(D51,'Membership #'!$A$1:$C$1005,2,0))) ->  | F51: =IF(D51="","",(VLOOKUP(D51,'Membership #'!$A$1:$C$1005,3,0))) -> 
E52: =IF(D52="","",(VLOOKUP(D52,'Membership #'!$A$1:$C$1005,2,0))) ->  | F52: =IF(D52="","",(VLOOKUP(D52,'Membership #'!$A$1:$C$1005,3,0))) -> 
E53: =IF(D53="","",(VLOOKUP(D53,'Membership #'!$A$1:$C$1005,2,0))) ->  | F53: =IF(D53="","",(VLOOKUP(D53,'Membership #'!$A$1:$C$1005,3,0))) -> 
E54: =IF(D54="","",(VLOOKUP(D54,'Membership #'!$A$1:$C$1005,2,0))) ->  | F54: =IF(D54="","",(VLOOKUP(D54,'Membership #'!$A$1:$C$1005,3,0))) ->  | I54: =IF(G54="n","No Time",IF(G54="x","Scratch",IF(G54<>"",SUM(G54+H54),""))) -> 
E55: =IF(D55="","",(VLOOKUP(D55,'Membership #'!$A$1:$C$1005,2,0))) ->  | F55: =IF(D55="","",(VLOOKUP(D55,'Membership #'!$A$1:$C$1005,3,0))) -> 
E56: =IF(D56="","",(VLOOKUP(D56,'Membership #'!$A$1:$C$1005,2,0))) ->  | F56: =IF(D56="","",(VLOOKUP(D56,'Membership #'!$A$1:$C$1005,3,0))) -> 
E57: =IF(D57="","",(VLOOKUP(D57,'Membership #'!$A$1:$C$1005,2,0))) ->  | F57: =IF(D57="","",(VLOOKUP(D57,'Membership #'!$A$1:$C$1005,3,0))) -> 
E58: =IF(D58="","",(VLOOKUP(D58,'Membership #'!$A$1:$C$1005,2,0))) ->  | F58: =IF(D58="","",(VLOOKUP(D58,'Membership #'!$A$1:$C$1005,3,0))) -> 
E59: =IF(D59="","",(VLOOKUP(D59,'Membership #'!$A$1:$C$1005,2,0))) ->  | F59: =IF(D59="","",(VLOOKUP(D59,'Membership #'!$A$1:$C$1005,3,0))) -> 
E60: =IF(D60="","",(VLOOKUP(D60,'Membership #'!$A$1:$C$1005,2,0))) ->  | F60: =IF(D60="","",(VLOOKUP(D60,'Membership #'!$A$1:$C$1005,3,0))) -> 
E61: =IF(D61="","",(VLOOKUP(D61,'Membership #'!$A$1:$C$1005,2,0))) ->  | F61: =IF(D61="","",(VLOOKUP(D61,'Membership #'!$A$1:$C$1005,3,0))) -> 
E62: =IF(D62="","",(VLOOKUP(D62,'Membership #'!$A$1:$C$1005,2,0))) ->  | F62: =IF(D62="","",(VLOOKUP(D62,'Membership #'!$A$1:$C$1005,3,0))) -> 
E63: =IF(D63="","",(VLOOKUP(D63,'Membership #'!$A$1:$C$1005,2,0))) ->  | F63: =IF(D63="","",(VLOOKUP(D63,'Membership #'!$A$1:$C$1005,3,0))) -> 
E64: =IF(D64="","",(VLOOKUP(D64,'Membership #'!$A$1:$C$1005,2,0))) ->  | F64: =IF(D64="","",(VLOOKUP(D64,'Membership #'!$A$1:$C$1005,3,0))) -> 
E65: =IF(D65="","",(VLOOKUP(D65,'Membership #'!$A$1:$C$1005,2,0))) ->  | F65: =IF(D65="","",(VLOOKUP(D65,'Membership #'!$A$1:$C$1005,3,0))) -> 
E66: =IF(D66="","",(VLOOKUP(D66,'Membership #'!$A$1:$C$1005,2,0))) ->  | F66: =IF(D66="","",(VLOOKUP(D66,'Membership #'!$A$1:$C$1005,3,0))) -> 
E67: =IF(D67="","",(VLOOKUP(D67,'Membership #'!$A$1:$C$1005,2,0))) ->  | F67: =IF(D67="","",(VLOOKUP(D67,'Membership #'!$A$1:$C$1005,3,0))) -> 
E68: =IF(D68="","",(VLOOKUP(D68,'Membership #'!$A$1:$C$1005,2,0))) ->  | F68: =IF(D68="","",(VLOOKUP(D68,'Membership #'!$A$1:$C$1005,3,0))) -> 
E69: =IF(D69="","",(VLOOKUP(D69,'Membership #'!$A$1:$C$1005,2,0))) ->  | F69: =IF(D69="","",(VLOOKUP(D69,'Membership #'!$A$1:$C$1005,3,0))) -> 
E70: =IF(D70="","",(VLOOKUP(D70,'Membership #'!$A$1:$C$1005,2,0))) ->  | F70: =IF(D70="","",(VLOOKUP(D70,'Membership #'!$A$1:$C$1005,3,0))) -> 
E71: =IF(D71="","",(VLOOKUP(D71,'Membership #'!$A$1:$C$1005,2,0))) ->  | F71: =IF(D71="","",(VLOOKUP(D71,'Membership #'!$A$1:$C$1005,3,0))) ->  | I71: =IF(G71="n","No Time",IF(G71="x","Scratch",IF(G71<>"",SUM(G71+H71),""))) -> 
A72: =IF(D72<>"",RAND(),"") ->  | B72: =IF(D72<>"",RANK(A72,A$8:A$99),"") ->  | E72: =IF(D72="","",(VLOOKUP(D72,'Membership #'!$A$1:$C$1005,2,0))) ->  | F72: =IF(D72="","",(VLOOKUP(D72,'Membership #'!$A$1:$C$1005,3,0))) -> 
E73: =IF(D73="","",(VLOOKUP(D73,'Membership #'!$A$1:$C$1005,2,0))) ->  | F73: =IF(D73="","",(VLOOKUP(D73,'Membership #'!$A$1:$C$1005,3,0))) -> 
E74: =IF(D74="","",(VLOOKUP(D74,'Membership #'!$A$1:$C$1005,2,0))) ->  | F74: =IF(D74="","",(VLOOKUP(D74,'Membership #'!$A$1:$C$1005,3,0))) -> 
E75: =IF(D75="","",(VLOOKUP(D75,'Membership #'!$A$1:$C$1005,2,0))) ->  | F75: =IF(D75="","",(VLOOKUP(D75,'Membership #'!$A$1:$C$1005,3,0))) -> 
E76: =IF(D76="","",(VLOOKUP(D76,'Membership #'!$A$1:$C$1005,2,0))) ->  | F76: =IF(D76="","",(VLOOKUP(D76,'Membership #'!$A$1:$C$1005,3,0))) -> 
E77: =IF(D77="","",(VLOOKUP(D77,'Membership #'!$A$1:$C$1005,2,0))) ->  | F77: =IF(D77="","",(VLOOKUP(D77,'Membership #'!$A$1:$C$1005,3,0))) -> 
E78: =IF(D78="","",(VLOOKUP(D78,'Membership #'!$A$1:$C$1005,2,0))) ->  | F78: =IF(D78="","",(VLOOKUP(D78,'Membership #'!$A$1:$C$1005,3,0))) -> 
E79: =IF(D79="","",(VLOOKUP(D79,'Membership #'!$A$1:$C$1005,2,0))) ->  | F79: =IF(D79="","",(VLOOKUP(D79,'Membership #'!$A$1:$C$1005,3,0))) -> 
E80: =IF(D80="","",(VLOOKUP(D80,'Membership #'!$A$1:$C$1005,2,0))) ->  | F80: =IF(D80="","",(VLOOKUP(D80,'Membership #'!$A$1:$C$1005,3,0))) -> 
E81: =IF(D81="","",(VLOOKUP(D81,'Membership #'!$A$1:$C$1005,2,0))) ->  | F81: =IF(D81="","",(VLOOKUP(D81,'Membership #'!$A$1:$C$1005,3,0))) -> 
E82: =IF(D82="","",(VLOOKUP(D82,'Membership #'!$A$1:$C$1005,2,0))) ->  | F82: =IF(D82="","",(VLOOKUP(D82,'Membership #'!$A$1:$C$1005,3,0))) -> 
E83: =IF(D83="","",(VLOOKUP(D83,'Membership #'!$A$1:$C$1005,2,0))) ->  | F83: =IF(D83="","",(VLOOKUP(D83,'Membership #'!$A$1:$C$1005,3,0))) -> 
E84: =IF(D84="","",(VLOOKUP(D84,'Membership #'!$A$1:$C$1005,2,0))) ->  | F84: =IF(D84="","",(VLOOKUP(D84,'Membership #'!$A$1:$C$1005,3,0))) -> 
E85: =IF(D85="","",(VLOOKUP(D85,'Membership #'!$A$1:$C$1005,2,0))) ->  | F85: =IF(D85="","",(VLOOKUP(D85,'Membership #'!$A$1:$C$1005,3,0))) -> 
E86: =IF(D86="","",(VLOOKUP(D86,'Membership #'!$A$1:$C$1005,2,0))) ->  | F86: =IF(D86="","",(VLOOKUP(D86,'Membership #'!$A$1:$C$1005,3,0))) -> 
E87: =IF(D87="","",(VLOOKUP(D87,'Membership #'!$A$1:$C$1005,2,0))) ->  | F87: =IF(D87="","",(VLOOKUP(D87,'Membership #'!$A$1:$C$1005,3,0))) -> 
E88: =IF(D88="","",(VLOOKUP(D88,'Membership #'!$A$1:$C$1005,2,0))) ->  | F88: =IF(D88="","",(VLOOKUP(D88,'Membership #'!$A$1:$C$1005,3,0))) -> 
E89: =IF(D89="","",(VLOOKUP(D89,'Membership #'!$A$1:$C$1005,2,0))) ->  | F89: =IF(D89="","",(VLOOKUP(D89,'Membership #'!$A$1:$C$1005,3,0))) -> 
E90: =IF(D90="","",(VLOOKUP(D90,'Membership #'!$A$1:$C$1005,2,0))) ->  | F90: =IF(D90="","",(VLOOKUP(D90,'Membership #'!$A$1:$C$1005,3,0))) -> 
E91: =IF(D91="","",(VLOOKUP(D91,'Membership #'!$A$1:$C$1005,2,0))) ->  | F91: =IF(D91="","",(VLOOKUP(D91,'Membership #'!$A$1:$C$1005,3,0))) -> 
E92: =IF(D92="","",(VLOOKUP(D92,'Membership #'!$A$1:$C$1005,2,0))) ->  | F92: =IF(D92="","",(VLOOKUP(D92,'Membership #'!$A$1:$C$1005,3,0))) -> 
E93: =IF(D93="","",(VLOOKUP(D93,'Membership #'!$A$1:$C$1005,2,0))) ->  | F93: =IF(D93="","",(VLOOKUP(D93,'Membership #'!$A$1:$C$1005,3,0))) -> 
E94: =IF(D94="","",(VLOOKUP(D94,'Membership #'!$A$1:$C$1005,2,0))) ->  | F94: =IF(D94="","",(VLOOKUP(D94,'Membership #'!$A$1:$C$1005,3,0))) -> 
E95: =IF(D95="","",(VLOOKUP(D95,'Membership #'!$A$1:$C$1005,2,0))) ->  | F95: =IF(D95="","",(VLOOKUP(D95,'Membership #'!$A$1:$C$1005,3,0))) -> 
E96: =IF(D96="","",(VLOOKUP(D96,'Membership #'!$A$1:$C$1005,2,0))) ->  | F96: =IF(D96="","",(VLOOKUP(D96,'Membership #'!$A$1:$C$1005,3,0))) -> 
E97: =IF(D97="","",(VLOOKUP(D97,'Membership #'!$A$1:$C$1005,2,0))) ->  | F97: =IF(D97="","",(VLOOKUP(D97,'Membership #'!$A$1:$C$1005,3,0))) -> 
E98: =IF(D98="","",(VLOOKUP(D98,'Membership #'!$A$1:$C$1005,2,0))) ->  | F98: =IF(D98="","",(VLOOKUP(D98,'Membership #'!$A$1:$C$1005,3,0))) -> 
E99: =IF(D99="","",(VLOOKUP(D99,'Membership #'!$A$1:$C$1005,2,0))) ->  | F99: =IF(D99="","",(VLOOKUP(D99,'Membership #'!$A$1:$C$1005,3,0))) -> 

Sheet OPEN BARRELS
A1: Tom Burt & Mark McGuire Memorial Jackpot Aug 21, 2021 | M1: x=Scratch
A2: OPEN BARRELS | M2: n=No Time
A3: # Enteries: | E3: =COUNTIF($D$8:$D$98,">0") -> 27 | M3: Sponsored by Clarence Farm Services | R3: Don't Erase these numbers below!!
A4: Rand Draw | B4: Seed | D4: RING # | E4: NAME | F4: HORSE NAME | G4: TIME | H4: PENALTY | I4: TOTAL | J4: PLACINGS | K4: POINTS | R4: =IF(N9=2,7,IF(N9=3,6,IF(N9=4,5,IF(N9=5,4,IF(AND(N9>5,N11>600),3,IF(AND(N9>5,N11<600,N11>299.99),2,IF(AND(N9>5,N11<300),1,8))))))) -> 2 | S4: 1 | T4: 2 | U4: 3 | V4: 4 | W4: 5 | X4: 6 | Y4: 7 | Z4: 8
S5: 299 | T5: $300- | U5: $600 -
M6: OPEN BARRELS | S6: or less | T6: 599 | U6: More | V6: 5 Entries | W6: 4 Entries | X6: 3 Entries | Y6: 2 Entries
R7: 1st | S7: 0.32 | T7: 0.27 | U7: 0.24 | V7: 0.35 | W7: 0.4 | X7: 0.46 | Y7: 0.6
A8: =IF(D8<>"",RAND(),"") -> 0.3762618508 | B8: =IF(D8<>"",RANK(A8,A$8:A$99),"") -> 18 | C8: 1 | D8: 928 | E8: =IF(D8="","",(VLOOKUP(D8,'Membership #'!$A$1:$C$1005,2,0))) -> Tessa Dicks | F8: =IF(D8="","",(VLOOKUP(D8,'Membership #'!$A$1:$C$1005,3,0))) -> ELM Dash of Crime | G8: 15.138 | I8: =IF(G8="n","No Time",IF(G8="x","Scratch",IF(G8<>"",SUM(G8+H8),""))) -> 15.138 | M8: Added | N8: 150 | R8: 2nd | S8: 0.23 | T8: 0.22 | U8: 0.19 | V8: 0.25 | W8: 0.28 | X8: 0.34 | Y8: 0.4
A9: 0.4555207765 | B9: 14 | C9: 2 | D9: 703 | E9: =IF(D9="","",(VLOOKUP(D9,'Membership #'!$A$1:$C$1005,2,0))) -> Chris Baker | F9: =IF(D9="","",(VLOOKUP(D9,'Membership #'!$A$1:$C$1005,3,0))) -> Jamer All Fired Up | G9: 15.158 | I9: 15.158 | M9: Entries | N9: 26 | P9: 20 | Q9: per head | R9: 3rd | S9: 0.15 | T9: 0.18 | U9: 0.16 | V9: 0.17 | W9: 0.18 | X9: 0.2
A10: 0.1653141031 | B10: 24 | C10: 3 | D10: 688 | E10: =IF(D10="","",(VLOOKUP(D10,'Membership #'!$A$1:$C$1005,2,0))) -> Lenee Sampson | F10: =IF(D10="","",(VLOOKUP(D10,'Membership #'!$A$1:$C$1005,3,0))) -> Six Dash Run | G10: 15.197 | I10: 15.197 | M10: Jackpot | N10: =P9*N9 -> 520 | P10: 0.85 | Q10: payback | R10: 4th | S10: 0.12 | T10: 0.13 | U10: 0.13 | V10: 0.13 | W10: 0.14
A11: 0.9264476963 | B11: 1 | C11: 4 | D11: 657 | E11: =IF(D11="","",(VLOOKUP(D11,'Membership #'!$A$1:$C$1005,2,0))) -> Laura Morrison | F11: =IF(D11="","",(VLOOKUP(D11,'Membership #'!$A$1:$C$1005,3,0))) -> Steal Ta Fame | G11: 15.253 | I11: 15.253 | M11: Total Money | N11: =N8+(N10*P10) -> 592 | P11: =N10*P10 -> 442 | Q11: Jackpot | R11: 5th | S11: 0.1 | T11: 0.09 | U11: 0.08 | V11: 0.1
A12: 0.4013270132 | B12: 16 | C12: 5 | D12: 538 | E12: =IF(D12="","",(VLOOKUP(D12,'Membership #'!$A$1:$C$1005,2,0))) -> Jean DuGas | F12: =IF(D12="","",(VLOOKUP(D12,'Membership #'!$A$1:$C$1005,3,0))) -> Pal's Lilguy | G12: 15.287 | I12: 15.287 | N12: Percentage | O12: Money | P12: Ring # | R12: 6th | S12: 0.08 | T12: 0.06 | U12: 0.06
A13: 0.5325735313 | B13: 11 | C13: 6 | D13: 922 | E13: =IF(D13="","",(VLOOKUP(D13,'Membership #'!$A$1:$C$1005,2,0))) -> Stevi Jardine | F13: =IF(D13="","",(VLOOKUP(D13,'Membership #'!$A$1:$C$1005,3,0))) -> Paytons Pretty Cool | G13: 15.338 | I13: 15.338 | M13: 1st | N13: 0.24 | O13: =IF(N13<>0,N$11*N13,"") -> 142.08 | Q13: =IF(P13="","",(VLOOKUP(P13,'Membership #'!$A$1:$C$1005,2,0))) ->  | R13: 7th | T13: 0.03 | U13: 0.05
A14: 0.4577565972 | B14: 13 | C14: 7 | D14: 534 | E14: =IF(D14="","",(VLOOKUP(D14,'Membership #'!$A$1:$C$1005,2,0))) -> Mary Lou Rankin Dentin | F14: =IF(D14="","",(VLOOKUP(D14,'Membership #'!$A$1:$C$1005,3,0))) -> Brandy's Chocolena | G14: 15.39 | I14: 15.39 | M14: 2nd | N14: 0.19 | O14: 112.48 | Q14: =IF(P14="","",(VLOOKUP(P14,'Membership #'!$A$1:$C$1005,2,0))) ->  | R14: 8th | T14: 0.02 | U14: 0.04
A15: 0.2168365005 | B15: 23 | C15: 8 | D15: 700 | E15: =IF(D15="","",(VLOOKUP(D15,'Membership #'!$A$1:$C$1005,2,0))) -> Lindsay Baker | F15: =IF(D15="","",(VLOOKUP(D15,'Membership #'!$A$1:$C$1005,3,0))) -> Boons Laughing Boy | G15: 15.513 | I15: 15.513 | M15: 3rd | N15: 0.16 | O15: 94.72 | Q15: =IF(P15="","",(VLOOKUP(P15,'Membership #'!$A$1:$C$1005,2,0))) ->  | R15: 9th | U15: 0.03
A16: 0.2903188746 | B16: 20 | C16: 9 | D16: 516 | E16: =IF(D16="","",(VLOOKUP(D16,'Membership #'!$A$1:$C$1005,2,0))) -> Laurie Don Reginato | F16: =IF(D16="","",(VLOOKUP(D16,'Membership #'!$A$1:$C$1005,3,0))) -> TCR Gold Runny | G16: 15.734 | I16: 15.734 | M16: 4th | N16: 0.13 | O16: 76.96 | Q16: =IF(P16="","",(VLOOKUP(P16,'Membership #'!$A$1:$C$1005,2,0))) ->  | R16: 10th | U16: 0.02
A17: 0.2547299606 | B17: 21 | C17: 10 | D17: 698 | E17: =IF(D17="","",(VLOOKUP(D17,'Membership #'!$A$1:$C$1005,2,0))) -> Kaleigh Denton | F17: =IF(D17="","",(VLOOKUP(D17,'Membership #'!$A$1:$C$1005,3,0))) -> Coleasaki | G17: 15.748 | I17: 15.748 | M17: 5th | N17: 0.08 | O17: 47.36 | Q17: =IF(P17="","",(VLOOKUP(P17,'Membership #'!$A$1:$C$1005,2,0))) -> 
A18: 0.026838991 | B18: 26 | C18: 11 | D18: 647 | E18: =IF(D18="","",(VLOOKUP(D18,'Membership #'!$A$1:$C$1005,2,0))) -> Courtney Parker | F18: =IF(D18="","",(VLOOKUP(D18,'Membership #'!$A$1:$C$1005,3,0))) -> BW Rare Kinda Love | G18: 15.831 | I18: 15.831 | M18: 6th | N18: 0.06 | O18: 35.52 | Q18: =IF(P18="","",(VLOOKUP(P18,'Membership #'!$A$1:$C$1005,2,0))) -> 
A19: 0.3992491809 | B19: 17 | C19: 12 | D19: 684 | E19: =IF(D19="","",(VLOOKUP(D19,'Membership #'!$A$1:$C$1005,2,0))) -> Shann Cox | F19: =IF(D19="","",(VLOOKUP(D19,'Membership #'!$A$1:$C$1005,3,0))) -> Jags Cash Flow | G19: 15.855 | I19: 15.855 | M19: 7th | N19: 0.05 | O19: 29.6 | Q19: =IF(P19="","",(VLOOKUP(P19,'Membership #'!$A$1:$C$1005,2,0))) -> 
A20: 0.7592444864 | B20: 5 | C20: 13 | D20: 556 | E20: =IF(D20="","",(VLOOKUP(D20,'Membership #'!$A$1:$C$1005,2,0))) -> Stephaine Clark | F20: =IF(D20="","",(VLOOKUP(D20,'Membership #'!$A$1:$C$1005,3,0))) -> Perks A Flyin | G20: 15.944 | I20: 15.944 | M20: 8th | N20: 0.04 | O20: 23.68 | Q20: =IF(P20="","",(VLOOKUP(P20,'Membership #'!$A$1:$C$1005,2,0))) -> 
A21: 0.2947259289 | B21: 19 | C21: 14 | D21: 750 | E21: =IF(D21="","",(VLOOKUP(D21,'Membership #'!$A$1:$C$1005,2,0))) -> Tanya Kennedy | F21: =IF(D21="","",(VLOOKUP(D21,'Membership #'!$A$1:$C$1005,3,0))) -> Old Stations Pride | G21: 15.949 | I21: 15.949 | M21: 9th | N21: 0.03 | O21: 17.76 | Q21: =IF(P21="","",(VLOOKUP(P21,'Membership #'!$A$1:$C$1005,2,0))) -> 
A22: 0.6173295862 | B22: 9 | C22: 15 | D22: 655 | E22: =IF(D22="","",(VLOOKUP(D22,'Membership #'!$A$1:$C$1005,2,0))) -> Julia Parker | F22: =IF(D22="","",(VLOOKUP(D22,'Membership #'!$A$1:$C$1005,3,0))) -> Boons Feature Star | G22: 16.085 | I22: 16.085 | M22: 10th | N22: 0.02 | O22: 11.84 | Q22: =IF(P22="","",(VLOOKUP(P22,'Membership #'!$A$1:$C$1005,2,0))) -> 
A23: 0.5640733181 | B23: 10 | C23: 16 | D23: 616 | E23: =IF(D23="","",(VLOOKUP(D23,'Membership #'!$A$1:$C$1005,2,0))) -> Judy Bateman | F23: =IF(D23="","",(VLOOKUP(D23,'Membership #'!$A$1:$C$1005,3,0))) -> HM HollywoodRockstar | G23: 16.34 | I23: 16.34 | M23: Total Money | O23: =SUM(O13:O22) -> 592
A24: 0.5019465188 | B24: 12 | C24: 17 | D24: 904 | E24: =IF(D24="","",(VLOOKUP(D24,'Membership #'!$A$1:$C$1005,2,0))) -> Ella Cowley | F24: =IF(D24="","",(VLOOKUP(D24,'Membership #'!$A$1:$C$1005,3,0))) -> Blazin Boots | G24: 16.95 | I24: 16.95
A25: 0.4276126205 | B25: 15 | C25: 18 | D25: 732 | E25: =IF(D25="","",(VLOOKUP(D25,'Membership #'!$A$1:$C$1005,2,0))) -> Brenna Carrigan | F25: =IF(D25="","",(VLOOKUP(D25,'Membership #'!$A$1:$C$1005,3,0))) -> Carlos | G25: 17.068 | I25: 17.068 | N25: =IF(M25="","",(VLOOKUP(M25,'Membership #'!$A$1:$C$1005,2,0))) ->  | O25: =IF(M25="","",(VLOOKUP(M25,'Membership #'!$A$1:$C$1005,3,0))) -> 
A26: 0.02004828894 | B26: 27 | C26: 19 | D26: 914 | E26: =IF(D26="","",(VLOOKUP(D26,'Membership #'!$A$1:$C$1005,2,0))) -> Shelby MacPherson | F26: =IF(D26="","",(VLOOKUP(D26,'Membership #'!$A$1:$C$1005,3,0))) -> Shelbys Badger Bar | G26: 15.674 | H26: 5 | I26: 20.674 | N26: =IF(M26="","",(VLOOKUP(M26,'Membership #'!$A$1:$C$1005,2,0))) ->  | O26: =IF(M26="","",(VLOOKUP(M26,'Membership #'!$A$1:$C$1005,3,0))) -> 
A27: 0.8334141084 | B27: 4 | C27: 20 | D27: 777 | E27: =IF(D27="","",(VLOOKUP(D27,'Membership #'!$A$1:$C$1005,2,0))) -> Julia Parker | F27: =IF(D27="","",(VLOOKUP(D27,'Membership #'!$A$1:$C$1005,3,0))) -> Doc's Spirit Prairie | G27: 16.128 | H27: 5 | I27: 21.128 | N27: =IF(M27="","",(VLOOKUP(M27,'Membership #'!$A$1:$C$1005,2,0))) ->  | O27: =IF(M27="","",(VLOOKUP(M27,'Membership #'!$A$1:$C$1005,3,0))) -> 
A28: 0.1389431696 | B28: 25 | C28: 21 | D28: 971 | E28: =IF(D28="","",(VLOOKUP(D28,'Membership #'!$A$1:$C$1005,2,0))) -> Arielle Burke | F28: =IF(D28="","",(VLOOKUP(D28,'Membership #'!$A$1:$C$1005,3,0))) -> Elm Sally | G28: 26.232 | I28: 26.232
A29: 0.7376961909 | B29: 7 | C29: 22 | D29: 892 | E29: =IF(D29="","",(VLOOKUP(D29,'Membership #'!$A$1:$C$1005,2,0))) -> Donnie MacNeil | F29: =IF(D29="","",(VLOOKUP(D29,'Membership #'!$A$1:$C$1005,3,0))) -> Gifted Go Gold | G29: n | I29: No Time | O29: =IF(N29="","",(VLOOKUP(N29,'Membership #'!$A$1:$C$1005,2,0))) ->  | P29: =IF(N29="","",(VLOOKUP(N29,'Membership #'!$A$1:$C$1005,3,0))) -> 
A30: 0.7416780893 | B30: 6 | C30: 23 | D30: 537 | E30: =IF(D30="","",(VLOOKUP(D30,'Membership #'!$A$1:$C$1005,2,0))) -> Alka Virick | F30: =IF(D30="","",(VLOOKUP(D30,'Membership #'!$A$1:$C$1005,3,0))) -> Corona Identity | G30: n | I30: No Time
A31: 0.8409364907 | B31: 3 | C31: 24 | D31: 78 | E31: =IF(D31="","",(VLOOKUP(D31,'Membership #'!$A$1:$C$1005,2,0))) -> Stephanie Rich | F31: =IF(D31="","",(VLOOKUP(D31,'Membership #'!$A$1:$C$1005,3,0))) -> Texas Mickey | G31: x | I31: Scratch
A32: 0.7117065477 | B32: 8 | C32: 25 | D32: 530 | E32: =IF(D32="","",(VLOOKUP(D32,'Membership #'!$A$1:$C$1005,2,0))) -> Joan Grant | F32: =IF(D32="","",(VLOOKUP(D32,'Membership #'!$A$1:$C$1005,3,0))) -> SLS Dash to Holland | G32: x | I32: Scratch
A33: 0.2338368856 | B33: 22 | C33: 26 | D33: 674 | E33: =IF(D33="","",(VLOOKUP(D33,'Membership #'!$A$1:$C$1005,2,0))) -> Kyle Beaton | F33: =IF(D33="","",(VLOOKUP(D33,'Membership #'!$A$1:$C$1005,3,0))) -> Jus For Kicks | G33: x | I33: Scratch
A34: 0.8879185864 | B34: 2 | C34: 27 | D34: 695 | E34: =IF(D34="","",(VLOOKUP(D34,'Membership #'!$A$1:$C$1005,2,0))) -> Tessa Dicks | F34: =IF(D34="","",(VLOOKUP(D34,'Membership #'!$A$1:$C$1005,3,0))) -> Charge's Dusty Luck | G34: x | I34: Scratch
E35: =IF(D35="","",(VLOOKUP(D35,'Membership #'!$A$1:$C$1005,2,0))) ->  | F35: =IF(D35="","",(VLOOKUP(D35,'Membership #'!$A$1:$C$1005,3,0))) ->  | I35: =IF(G35="n","No Time",IF(G35="x","Scratch",IF(G35<>"",SUM(G35+H35),""))) -> 
E36: =IF(D36="","",(VLOOKUP(D36,'Membership #'!$A$1:$C$1005,2,0))) ->  | F36: =IF(D36="","",(VLOOKUP(D36,'Membership #'!$A$1:$C$1005,3,0))) -> 
E37: =IF(D37="","",(VLOOKUP(D37,'Membership #'!$A$1:$C$1005,2,0))) ->  | F37: =IF(D37="","",(VLOOKUP(D37,'Membership #'!$A$1:$C$1005,3,0))) -> 
E38: =IF(D38="","",(VLOOKUP(D38,'Membership #'!$A$1:$C$1005,2,0))) ->  | F38: =IF(D38="","",(VLOOKUP(D38,'Membership #'!$A$1:$C$1005,3,0))) -> 
E39: =IF(D39="","",(VLOOKUP(D39,'Membership #'!$A$1:$C$1005,2,0))) ->  | F39: =IF(D39="","",(VLOOKUP(D39,'Membership #'!$A$1:$C$1005,3,0))) ->  | I39: =IF(G39="n","No Time",IF(G39="x","Scratch",IF(G39<>"",SUM(G39+H39),""))) -> 
E40: =IF(D40="","",(VLOOKUP(D40,'Membership #'!$A$1:$C$1005,2,0))) ->  | F40: =IF(D40="","",(VLOOKUP(D40,'Membership #'!$A$1:$C$1005,3,0))) ->  | I40: =IF(G40="n","No Time",IF(G40="x","Scratch",IF(G40<>"",SUM(G40+H40),""))) -> 
E41: =IF(D41="","",(VLOOKUP(D41,'Membership #'!$A$1:$C$1005,2,0))) ->  | F41: =IF(D41="","",(VLOOKUP(D41,'Membership #'!$A$1:$C$1005,3,0))) -> 
E42: =IF(D42="","",(VLOOKUP(D42,'Membership #'!$A$1:$C$1005,2,0))) ->  | F42: =IF(D42="","",(VLOOKUP(D42,'Membership #'!$A$1:$C$1005,3,0))) -> 
A43: =IF(D43<>"",RAND(),"") ->  | B43: =IF(D43<>"",RANK(A43,A$8:A$99),"") ->  | E43: =IF(D43="","",(VLOOKUP(D43,'Membership #'!$A$1:$C$1005,2,0))) ->  | F43: =IF(D43="","",(VLOOKUP(D43,'Membership #'!$A$1:$C$1005,3,0))) -> 
E44: =IF(D44="","",(VLOOKUP(D44,'Membership #'!$A$1:$C$1005,2,0))) ->  | F44: =IF(D44="","",(VLOOKUP(D44,'Membership #'!$A$1:$C$1005,3,0))) -> 
E45: =IF(D45="","",(VLOOKUP(D45,'Membership #'!$A$1:$C$1005,2,0))) ->  | F45: =IF(D45="","",(VLOOKUP(D45,'Membership #'!$A$1:$C$1005,3,0))) -> 
E46: =IF(D46="","",(VLOOKUP(D46,'Membership #'!$A$1:$C$1005,2,0))) ->  | F46: =IF(D46="","",(VLOOKUP(D46,'Membership #'!$A$1:$C$1005,3,0))) -> 
E47: =IF(D47="","",(VLOOKUP(D47,'Membership #'!$A$1:$C$1005,2,0))) ->  | F47: =IF(D47="","",(VLOOKUP(D47,'Membership #'!$A$1:$C$1005,3,0))) -> 
E48: =IF(D48="","",(VLOOKUP(D48,'Membership #'!$A$1:$C$1005,2,0))) ->  | F48: =IF(D48="","",(VLOOKUP(D48,'Membership #'!$A$1:$C$1005,3,0))) -> 
E49: =IF(D49="","",(VLOOKUP(D49,'Membership #'!$A$1:$C$1005,2,0))) ->  | F49: =IF(D49="","",(VLOOKUP(D49,'Membership #'!$A$1:$C$1005,3,0))) -> 
E50: =IF(D50="","",(VLOOKUP(D50,'Membership #'!$A$1:$C$1005,2,0))) ->  | F50: =IF(D50="","",(VLOOKUP(D50,'Membership #'!$A$1:$C$1005,3,0))) -> 
E51: =IF(D51="","",(VLOOKUP(D51,'Membership #'!$A$1:$C$1005,2,0))) ->  | F51: =IF(D51="","",(VLOOKUP(D51,'Membership #'!$A$1:$C$1005,3,0))) -> 
E52: =IF(D52="","",(VLOOKUP(D52,'Membership #'!$A$1:$C$1005,2,0))) ->  | F52: =IF(D52="","",(VLOOKUP(D52,'Membership #'!$A$1:$C$1005,3,0))) -> 
E53: =IF(D53="","",(VLOOKUP(D53,'Membership #'!$A$1:$C$1005,2,0))) ->  | F53: =IF(D53="","",(VLOOKUP(D53,'Membership #'!$A$1:$C$1005,3,0))) -> 
E54: =IF(D54="","",(VLOOKUP(D54,'Membership #'!$A$1:$C$1005,2,0))) ->  | F54: =IF(D54="","",(VLOOKUP(D54,'Membership #'!$A$1:$C$1005,3,0))) -> 
E55: =IF(D55="","",(VLOOKUP(D55,'Membership #'!$A$1:$C$1005,2,0))) ->  | F55: =IF(D55="","",(VLOOKUP(D55,'Membership #'!$A$1:$C$1005,3,0))) -> 
E56: =IF(D56="","",(VLOOKUP(D56,'Membership #'!$A$1:$C$1005,2,0))) ->  | F56: =IF(D56="","",(VLOOKUP(D56,'Membership #'!$A$1:$C$1005,3,0))) -> 
E57: =IF(D57="","",(VLOOKUP(D57,'Membership #'!$A$1:$C$1005,2,0))) ->  | F57: =IF(D57="","",(VLOOKUP(D57,'Membership #'!$A$1:$C$1005,3,0))) -> 
E58: =IF(D58="","",(VLOOKUP(D58,'Membership #'!$A$1:$C$1005,2,0))) ->  | F58: =IF(D58="","",(VLOOKUP(D58,'Membership #'!$A$1:$C$1005,3,0))) -> 
E59: =IF(D59="","",(VLOOKUP(D59,'Membership #'!$A$1:$C$1005,2,0))) ->  | F59: =IF(D59="","",(VLOOKUP(D59,'Membership #'!$A$1:$C$1005,3,0))) ->  | I59: =IF(G59="n","No Time",IF(G59="x","Scratch",IF(G59<>"",SUM(G59+H59),""))) -> 
E60: =IF(D60="","",(VLOOKUP(D60,'Membership #'!$A$1:$C$1005,2,0))) ->  | F60: =IF(D60="","",(VLOOKUP(D60,'Membership #'!$A$1:$C$1005,3,0))) -> 
E61: =IF(D61="","",(VLOOKUP(D61,'Membership #'!$A$1:$C$1005,2,0))) ->  | F61: =IF(D61="","",(VLOOKUP(D61,'Membership #'!$A$1:$C$1005,3,0))) -> 
E62: =IF(D62="","",(VLOOKUP(D62,'Membership #'!$A$1:$C$1005,2,0))) ->  | F62: =IF(D62="","",(VLOOKUP(D62,'Membership #'!$A$1:$C$1005,3,0))) ->  | I62: =IF(G62="n","No Time",IF(G62="x","Scratch",IF(G62<>"",SUM(G62+H62),""))) -> 
E63: =IF(D63="","",(VLOOKUP(D63,'Membership #'!$A$1:$C$1005,2,0))) ->  | F63: =IF(D63="","",(VLOOKUP(D63,'Membership #'!$A$1:$C$1005,3,0))) -> 
E64: =IF(D64="","",(VLOOKUP(D64,'Membership #'!$A$1:$C$1005,2,0))) ->  | F64: =IF(D64="","",(VLOOKUP(D64,'Membership #'!$A$1:$C$1005,3,0))) -> 
E65: =IF(D65="","",(VLOOKUP(D65,'Membership #'!$A$1:$C$1005,2,0))) ->  | F65: =IF(D65="","",(VLOOKUP(D65,'Membership #'!$A$1:$C$1005,3,0))) -> 
E66: =IF(D66="","",(VLOOKUP(D66,'Membership #'!$A$1:$C$1005,2,0))) ->  | F66: =IF(D66="","",(VLOOKUP(D66,'Membership #'!$A$1:$C$1005,3,0))) -> 
E67: =IF(D67="","",(VLOOKUP(D67,'Membership #'!$A$1:$C$1005,2,0))) ->  | F67: =IF(D67="","",(VLOOKUP(D67,'Membership #'!$A$1:$C$1005,3,0))) -> 
E68: =IF(D68="","",(VLOOKUP(D68,'Membership #'!$A$1:$C$1005,2,0))) ->  | F68: =IF(D68="","",(VLOOKUP(D68,'Membership #'!$A$1:$C$1005,3,0))) -> 
E69: =IF(D69="","",(VLOOKUP(D69,'Membership #'!$A$1:$C$1005,2,0))) ->  | F69: =IF(D69="","",(VLOOKUP(D69,'Membership #'!$A$1:$C$1005,3,0))) -> 
A70: =IF(D70<>"",RAND(),"") ->  | E70: =IF(D70="","",(VLOOKUP(D70,'Membership #'!$A$1:$C$1005,2,0))) ->  | F70: =IF(D70="","",(VLOOKUP(D70,'Membership #'!$A$1:$C$1005,3,0))) -> 
E71: =IF(D71="","",(VLOOKUP(D71,'Membership #'!$A$1:$C$1005,2,0))) ->  | F71: =IF(D71="","",(VLOOKUP(D71,'Membership #'!$A$1:$C$1005,3,0))) ->  | I71: =IF(G71="n","No Time",IF(G71="x","Scratch",IF(G71<>"",SUM(G71+H71),""))) -> 
B72: =IF(D72<>"",RANK(A72,A$8:A$99),"") ->  | E72: =IF(D72="","",(VLOOKUP(D72,'Membership #'!$A$1:$C$1005,2,0))) ->  | F72: =IF(D72="","",(VLOOKUP(D72,'Membership #'!$A$1:$C$1005,3,0))) -> 
E73: =IF(D73="","",(VLOOKUP(D73,'Membership #'!$A$1:$C$1005,2,0))) ->  | F73: =IF(D73="","",(VLOOKUP(D73,'Membership #'!$A$1:$C$1005,3,0))) -> 
E74: =IF(D74="","",(VLOOKUP(D74,'Membership #'!$A$1:$C$1005,2,0))) ->  | F74: =IF(D74="","",(VLOOKUP(D74,'Membership #'!$A$1:$C$1005,3,0))) -> 
E75: =IF(D75="","",(VLOOKUP(D75,'Membership #'!$A$1:$C$1005,2,0))) ->  | F75: =IF(D75="","",(VLOOKUP(D75,'Membership #'!$A$1:$C$1005,3,0))) -> 
E76: =IF(D76="","",(VLOOKUP(D76,'Membership #'!$A$1:$C$1005,2,0))) ->  | F76: =IF(D76="","",(VLOOKUP(D76,'Membership #'!$A$1:$C$1005,3,0))) -> 
E77: =IF(D77="","",(VLOOKUP(D77,'Membership #'!$A$1:$C$1005,2,0))) ->  | F77: =IF(D77="","",(VLOOKUP(D77,'Membership #'!$A$1:$C$1005,3,0))) -> 
E78: =IF(D78="","",(VLOOKUP(D78,'Membership #'!$A$1:$C$1005,2,0))) ->  | F78: =IF(D78="","",(VLOOKUP(D78,'Membership #'!$A$1:$C$1005,3,0))) -> 
E79: =IF(D79="","",(VLOOKUP(D79,'Membership #'!$A$1:$C$1005,2,0))) ->  | F79: =IF(D79="","",(VLOOKUP(D79,'Membership #'!$A$1:$C$1005,3,0))) -> 
E80: =IF(D80="","",(VLOOKUP(D80,'Membership #'!$A$1:$C$1005,2,0))) ->  | F80: =IF(D80="","",(VLOOKUP(D80,'Membership #'!$A$1:$C$1005,3,0))) -> 
E81: =IF(D81="","",(VLOOKUP(D81,'Membership #'!$A$1:$C$1005,2,0))) ->  | F81: =IF(D81="","",(VLOOKUP(D81,'Membership #'!$A$1:$C$1005,3,0))) -> 
E82: =IF(D82="","",(VLOOKUP(D82,'Membership #'!$A$1:$C$1005,2,0))) ->  | F82: =IF(D82="","",(VLOOKUP(D82,'Membership #'!$A$1:$C$1005,3,0))) -> 
E83: =IF(D83="","",(VLOOKUP(D83,'Membership #'!$A$1:$C$1005,2,0))) ->  | F83: =IF(D83="","",(VLOOKUP(D83,'Membership #'!$A$1:$C$1005,3,0))) -> 
E84: =IF(D84="","",(VLOOKUP(D84,'Membership #'!$A$1:$C$1005,2,0))) ->  | F84: =IF(D84="","",(VLOOKUP(D84,'Membership #'!$A$1:$C$1005,3,0))) -> 
E85: =IF(D85="","",(VLOOKUP(D85,'Membership #'!$A$1:$C$1005,2,0))) ->  | F85: =IF(D85="","",(VLOOKUP(D85,'Membership #'!$A$1:$C$1005,3,0))) -> 
E86: =IF(D86="","",(VLOOKUP(D86,'Membership #'!$A$1:$C$1005,2,0))) ->  | F86: =IF(D86="","",(VLOOKUP(D86,'Membership #'!$A$1:$C$1005,3,0))) -> 
E87: =IF(D87="","",(VLOOKUP(D87,'Membership #'!$A$1:$C$1005,2,0))) ->  | F87: =IF(D87="","",(VLOOKUP(D87,'Membership #'!$A$1:$C$1005,3,0))) -> 
E88: =IF(D88="","",(VLOOKUP(D88,'Membership #'!$A$1:$C$1005,2,0))) ->  | F88: =IF(D88="","",(VLOOKUP(D88,'Membership #'!$A$1:$C$1005,3,0))) -> 
E89: =IF(D89="","",(VLOOKUP(D89,'Membership #'!$A$1:$C$1005,2,0))) ->  | F89: =IF(D89="","",(VLOOKUP(D89,'Membership #'!$A$1:$C$1005,3,0))) -> 
E90: =IF(D90="","",(VLOOKUP(D90,'Membership #'!$A$1:$C$1005,2,0))) ->  | F90: =IF(D90="","",(VLOOKUP(D90,'Membership #'!$A$1:$C$1005,3,0))) -> 
E91: =IF(D91="","",(VLOOKUP(D91,'Membership #'!$A$1:$C$1005,2,0))) ->  | F91: =IF(D91="","",(VLOOKUP(D91,'Membership #'!$A$1:$C$1005,3,0))) -> 
E92: =IF(D92="","",(VLOOKUP(D92,'Membership #'!$A$1:$C$1005,2,0))) ->  | F92: =IF(D92="","",(VLOOKUP(D92,'Membership #'!$A$1:$C$1005,3,0))) -> 
E93: =IF(D93="","",(VLOOKUP(D93,'Membership #'!$A$1:$C$1005,2,0))) ->  | F93: =IF(D93="","",(VLOOKUP(D93,'Membership #'!$A$1:$C$1005,3,0))) -> 
E94: =IF(D94="","",(VLOOKUP(D94,'Membership #'!$A$1:$C$1005,2,0))) ->  | F94: =IF(D94="","",(VLOOKUP(D94,'Membership #'!$A$1:$C$1005,3,0))) -> 
E95: =IF(D95="","",(VLOOKUP(D95,'Membership #'!$A$1:$C$1005,2,0))) ->  | F95: =IF(D95="","",(VLOOKUP(D95,'Membership #'!$A$1:$C$1005,3,0))) -> 
E96: =IF(D96="","",(VLOOKUP(D96,'Membership #'!$A$1:$C$1005,2,0))) ->  | F96: =IF(D96="","",(VLOOKUP(D96,'Membership #'!$A$1:$C$1005,3,0))) -> 
E97: =IF(D97="","",(VLOOKUP(D97,'Membership #'!$A$1:$C$1005,2,0))) ->  | F97: =IF(D97="","",(VLOOKUP(D97,'Membership #'!$A$1:$C$1005,3,0))) -> 
E98: =IF(D98="","",(VLOOKUP(D98,'Membership #'!$A$1:$C$1005,2,0))) ->  | F98: =IF(D98="","",(VLOOKUP(D98,'Membership #'!$A$1:$C$1005,3,0))) -> 
E99: =IF(D99="","",(VLOOKUP(D99,'Membership #'!$A$1:$C$1005,2,0))) ->  | F99: =IF(D99="","",(VLOOKUP(D99,'Membership #'!$A$1:$C$1005,3,0))) -> 

Sheet ADULT GREEN POLES
A1: Tom Burt & Mark McGuire Memorial Jackpot Aug 21, 2021 | M1: x=Scratch
A2: ADULT GREEN POLES | M2: n=No Time
A3: # Enteries: | E3: =COUNTIF($D$8:$D$100,">0") -> 1 | R3: Don't Erase these numbers below!!
A4: Rand Draw | B4: Seed | C4: Running Order | D4: RING # | E4: NAME | F4: HORSE NAME | G4: TIME | H4: PENALTY | I4: TOTAL | J4: PLACINGS | K4: POINTS | R4: =IF(N9=2,7,IF(N9=3,6,IF(N9=4,5,IF(N9=5,4,IF(AND(N9>5,N11>600),3,IF(AND(N9>5,N11<600,N11>299.99),2,IF(AND(N9>5,N11<300),1,8))))))) -> 7 | S4: 1 | T4: 2 | U4: 3 | V4: 4 | W4: 5 | X4: 6 | Y4: 7 | Z4: 8
S5: 299 | T5: $300- | U5: $600 -
M6: ADULT GREEN POLES | S6: or less | T6: 599 | U6: More | V6: 5 Entries | W6: 4 Entries | X6: 3 Entries | Y6: 2 Entries
R7: 1st | S7: 0.32 | T7: 0.27 | U7: 0.24 | V7: 0.35 | W7: 0.4 | X7: 0.46 | Y7: 0.6
A8: =IF(D8<>"",RAND(),"") -> 0.6016153934 | B8: =IF(D8<>"",RANK(A8,A$8:A$101),"") -> 1 | C8: 1 | D8: 909b | E8: =IF(D8="","",(VLOOKUP(D8,'Membership #'!$A$1:$C$1005,2,0))) -> Bryden MacNeil | F8: =IF(D8="","",(VLOOKUP(D8,'Membership #'!$A$1:$C$1005,3,0))) -> Martha's Tivio Moon | G8: 27.248 | I8: =IF(G8="n","No Time",IF(G8="x","Scratch",IF(G8<>"",SUM(G8+H8),""))) -> 27.248 | M8: Added | N8: 25 | R8: 2nd | S8: 0.23 | T8: 0.22 | U8: 0.19 | V8: 0.25 | W8: 0.28 | X8: 0.34 | Y8: 0.4
A9: 0.3087522134 | B9: 2 | C9: 2 | D9: 969 | E9: =IF(D9="","",(VLOOKUP(D9,'Membership #'!$A$1:$C$1005,2,0))) -> Kenzie Cook | F9: =IF(D9="","",(VLOOKUP(D9,'Membership #'!$A$1:$C$1005,3,0))) -> Pocos Lady Emeralda | G9: 45.295 | I9: =IF(G9="n","No Time",IF(G9="x","Scratch",IF(G9<>"",SUM(G9+H9),""))) -> 45.295 | M9: Entries | N9: 2 | P9: 10 | Q9: per head | R9: 3rd | S9: 0.15 | T9: 0.18 | U9: 0.16 | V9: 0.17 | W9: 0.18 | X9: 0.2
E10: =IF(D10="","",(VLOOKUP(D10,'Membership #'!$A$1:$C$1005,2,0))) ->  | F10: =IF(D10="","",(VLOOKUP(D10,'Membership #'!$A$1:$C$1005,3,0))) ->  | I10: =IF(G10="n","No Time",IF(G10="x","Scratch",IF(G10<>"",SUM(G10+H10),""))) ->  | M10: Jackpot | N10: =P9*N9 -> 20 | P10: 0.85 | Q10: payback | R10: 4th | S10: 0.12 | T10: 0.13 | U10: 0.13 | V10: 0.13 | W10: 0.14
E11: =IF(D11="","",(VLOOKUP(D11,'Membership #'!$A$1:$C$1005,2,0))) ->  | F11: =IF(D11="","",(VLOOKUP(D11,'Membership #'!$A$1:$C$1005,3,0))) ->  | I11: =IF(G11="n","No Time",IF(G11="x","Scratch",IF(G11<>"",SUM(G11+H11),""))) ->  | M11: Total Money | N11: =N8+(N10*P10) -> 42 | P11: =N10*P10 -> 17 | Q11: Jackpot | R11: 5th | S11: 0.1 | T11: 0.09 | U11: 0.08 | V11: 0.1
E12: =IF(D12="","",(VLOOKUP(D12,'Membership #'!$A$1:$C$1005,2,0))) ->  | F12: =IF(D12="","",(VLOOKUP(D12,'Membership #'!$A$1:$C$1005,3,0))) ->  | N12: Percentage | O12: Money | P12: Ring # | R12: 6th | S12: 0.08 | T12: 0.06 | U12: 0.06
E13: =IF(D13="","",(VLOOKUP(D13,'Membership #'!$A$1:$C$1005,2,0))) ->  | F13: =IF(D13="","",(VLOOKUP(D13,'Membership #'!$A$1:$C$1005,3,0))) ->  | M13: 1st | N13: 1 | O13: =IF(N13<>0,N$11*N13,"") -> 42 | Q13: =IF(P13="","",(VLOOKUP(P13,'Membership #'!$A$1:$C$1005,2,0))) ->  | R13: 7th | T13: 0.03 | U13: 0.05
E14: =IF(D14="","",(VLOOKUP(D14,'Membership #'!$A$1:$C$1005,2,0))) ->  | F14: =IF(D14="","",(VLOOKUP(D14,'Membership #'!$A$1:$C$1005,3,0))) ->  | I14: =IF(G14="n","No Time",IF(G14="x","Scratch",IF(G14<>"",SUM(G14+H14),""))) ->  | M14: 2nd | Q14: =IF(P14="","",(VLOOKUP(P14,'Membership #'!$A$1:$C$1005,2,0))) ->  | R14: 8th | T14: 0.02 | U14: 0.04
E15: =IF(D15="","",(VLOOKUP(D15,'Membership #'!$A$1:$C$1005,2,0))) ->  | F15: =IF(D15="","",(VLOOKUP(D15,'Membership #'!$A$1:$C$1005,3,0))) ->  | I15: =IF(G15="n","No Time",IF(G15="x","Scratch",IF(G15<>"",SUM(G15+H15),""))) ->  | M15: 3rd | Q15: =IF(P15="","",(VLOOKUP(P15,'Membership #'!$A$1:$C$1005,2,0))) ->  | R15: 9th | U15: 0.03
E16: =IF(D16="","",(VLOOKUP(D16,'Membership #'!$A$1:$C$1005,2,0))) ->  | F16: =IF(D16="","",(VLOOKUP(D16,'Membership #'!$A$1:$C$1005,3,0))) ->  | M16: 4th | Q16: =IF(P16="","",(VLOOKUP(P16,'Membership #'!$A$1:$C$1005,2,0))) ->  | R16: 10th | U16: 0.02
E17: =IF(D17="","",(VLOOKUP(D17,'Membership #'!$A$1:$C$1005,2,0))) ->  | F17: =IF(D17="","",(VLOOKUP(D17,'Membership #'!$A$1:$C$1005,3,0))) ->  | M17: 5th | Q17: =IF(P17="","",(VLOOKUP(P17,'Membership #'!$A$1:$C$1005,2,0))) -> 
E18: =IF(D18="","",(VLOOKUP(D18,'Membership #'!$A$1:$C$1005,2,0))) ->  | F18: =IF(D18="","",(VLOOKUP(D18,'Membership #'!$A$1:$C$1005,3,0))) ->  | M18: 6th | Q18: =IF(P18="","",(VLOOKUP(P18,'Membership #'!$A$1:$C$1005,2,0))) -> 
E19: =IF(D19="","",(VLOOKUP(D19,'Membership #'!$A$1:$C$1005,2,0))) ->  | F19: =IF(D19="","",(VLOOKUP(D19,'Membership #'!$A$1:$C$1005,3,0))) ->  | M19: 7th | N19: =HLOOKUP($R$4,$S$4:$Z$17,10,0) -> 0 | Q19: =IF(P19="",0,(VLOOKUP(P19,'Membership #'!$A$1:$C$1005,2,0))) -> 0
E20: =IF(D20="","",(VLOOKUP(D20,'Membership #'!$A$1:$C$1005,2,0))) ->  | F20: =IF(D20="","",(VLOOKUP(D20,'Membership #'!$A$1:$C$1005,3,0))) ->  | M20: 8th | N20: =HLOOKUP($R$4,$S$4:$Z$17,11,0) -> 0 | Q20: =IF(P20="",0,(VLOOKUP(P20,'Membership #'!$A$1:$C$1005,2,0))) -> 0
E21: =IF(D21="","",(VLOOKUP(D21,'Membership #'!$A$1:$C$1005,2,0))) ->  | F21: =IF(D21="","",(VLOOKUP(D21,'Membership #'!$A$1:$C$1005,3,0))) ->  | M21: 9th | N21: =HLOOKUP($R$4,$S$4:$Z$17,12,0) -> 0
E22: =IF(D22="","",(VLOOKUP(D22,'Membership #'!$A$1:$C$1005,2,0))) ->  | F22: =IF(D22="","",(VLOOKUP(D22,'Membership #'!$A$1:$C$1005,3,0))) ->  | M22: 10th | N22: =HLOOKUP($R$4,$S$4:$Z$17,13,0) -> 0
E23: =IF(D23="","",(VLOOKUP(D23,'Membership #'!$A$1:$C$1005,2,0))) ->  | F23: =IF(D23="","",(VLOOKUP(D23,'Membership #'!$A$1:$C$1005,3,0))) ->  | M23: Total Money | O23: =SUM(O13:O22) -> 42
E24: =IF(D24="","",(VLOOKUP(D24,'Membership #'!$A$1:$C$1005,2,0))) ->  | F24: =IF(D24="","",(VLOOKUP(D24,'Membership #'!$A$1:$C$1005,3,0))) -> 
E25: =IF(D25="","",(VLOOKUP(D25,'Membership #'!$A$1:$C$1005,2,0))) ->  | F25: =IF(D25="","",(VLOOKUP(D25,'Membership #'!$A$1:$C$1005,3,0))) -> 
E26: =IF(D26="","",(VLOOKUP(D26,'Membership #'!$A$1:$C$1005,2,0))) ->  | F26: =IF(D26="","",(VLOOKUP(D26,'Membership #'!$A$1:$C$1005,3,0))) -> 
E27: =IF(D27="","",(VLOOKUP(D27,'Membership #'!$A$1:$C$1005,2,0))) ->  | F27: =IF(D27="","",(VLOOKUP(D27,'Membership #'!$A$1:$C$1005,3,0))) -> 
E28: =IF(D28="","",(VLOOKUP(D28,'Membership #'!$A$1:$C$1005,2,0))) ->  | F28: =IF(D28="","",(VLOOKUP(D28,'Membership #'!$A$1:$C$1005,3,0))) -> 
E29: =IF(D29="","",(VLOOKUP(D29,'Membership #'!$A$1:$C$1005,2,0))) ->  | F29: =IF(D29="","",(VLOOKUP(D29,'Membership #'!$A$1:$C$1005,3,0))) -> 
E30: =IF(D30="","",(VLOOKUP(D30,'Membership #'!$A$1:$C$1005,2,0))) ->  | F30: =IF(D30="","",(VLOOKUP(D30,'Membership #'!$A$1:$C$1005,3,0))) -> 
E31: =IF(D31="","",(VLOOKUP(D31,'Membership #'!$A$1:$C$1005,2,0))) ->  | F31: =IF(D31="","",(VLOOKUP(D31,'Membership #'!$A$1:$C$1005,3,0))) -> 
E32: =IF(D32="","",(VLOOKUP(D32,'Membership #'!$A$1:$C$1005,2,0))) ->  | F32: =IF(D32="","",(VLOOKUP(D32,'Membership #'!$A$1:$C$1005,3,0))) -> 
E33: =IF(D33="","",(VLOOKUP(D33,'Membership #'!$A$1:$C$1005,2,0))) ->  | F33: =IF(D33="","",(VLOOKUP(D33,'Membership #'!$A$1:$C$1005,3,0))) -> 
E34: =IF(D34="","",(VLOOKUP(D34,'Membership #'!$A$1:$C$1005,2,0))) ->  | F34: =IF(D34="","",(VLOOKUP(D34,'Membership #'!$A$1:$C$1005,3,0))) -> 
E35: =IF(D35="","",(VLOOKUP(D35,'Membership #'!$A$1:$C$1005,2,0))) ->  | F35: =IF(D35="","",(VLOOKUP(D35,'Membership #'!$A$1:$C$1005,3,0))) -> 
E36: =IF(D36="","",(VLOOKUP(D36,'Membership #'!$A$1:$C$1005,2,0))) ->  | F36: =IF(D36="","",(VLOOKUP(D36,'Membership #'!$A$1:$C$1005,3,0))) -> 
E37: =IF(D37="","",(VLOOKUP(D37,'Membership #'!$A$1:$C$1005,2,0))) ->  | F37: =IF(D37="","",(VLOOKUP(D37,'Membership #'!$A$1:$C$1005,3,0))) -> 
E38: =IF(D38="","",(VLOOKUP(D38,'Membership #'!$A$1:$C$1005,2,0))) ->  | F38: =IF(D38="","",(VLOOKUP(D38,'Membership #'!$A$1:$C$1005,3,0))) -> 
E39: =IF(D39="","",(VLOOKUP(D39,'Membership #'!$A$1:$C$1005,2,0))) ->  | F39: =IF(D39="","",(VLOOKUP(D39,'Membership #'!$A$1:$C$1005,3,0))) -> 
E40: =IF(D40="","",(VLOOKUP(D40,'Membership #'!$A$1:$C$1005,2,0))) ->  | F40: =IF(D40="","",(VLOOKUP(D40,'Membership #'!$A$1:$C$1005,3,0))) -> 
E41: =IF(D41="","",(VLOOKUP(D41,'Membership #'!$A$1:$C$1005,2,0))) ->  | F41: =IF(D41="","",(VLOOKUP(D41,'Membership #'!$A$1:$C$1005,3,0))) -> 
E42: =IF(D42="","",(VLOOKUP(D42,'Membership #'!$A$1:$C$1005,2,0))) ->  | F42: =IF(D42="","",(VLOOKUP(D42,'Membership #'!$A$1:$C$1005,3,0))) -> 
E43: =IF(D43="","",(VLOOKUP(D43,'Membership #'!$A$1:$C$1005,2,0))) ->  | F43: =IF(D43="","",(VLOOKUP(D43,'Membership #'!$A$1:$C$1005,3,0))) -> 
E44: =IF(D44="","",(VLOOKUP(D44,'Membership #'!$A$1:$C$1005,2,0))) ->  | F44: =IF(D44="","",(VLOOKUP(D44,'Membership #'!$A$1:$C$1005,3,0))) -> 
E45: =IF(D45="","",(VLOOKUP(D45,'Membership #'!$A$1:$C$1005,2,0))) ->  | F45: =IF(D45="","",(VLOOKUP(D45,'Membership #'!$A$1:$C$1005,3,0))) -> 
E46: =IF(D46="","",(VLOOKUP(D46,'Membership #'!$A$1:$C$1005,2,0))) ->  | F46: =IF(D46="","",(VLOOKUP(D46,'Membership #'!$A$1:$C$1005,3,0))) -> 
E47: =IF(D47="","",(VLOOKUP(D47,'Membership #'!$A$1:$C$1005,2,0))) ->  | F47: =IF(D47="","",(VLOOKUP(D47,'Membership #'!$A$1:$C$1005,3,0))) -> 
E48: =IF(D48="","",(VLOOKUP(D48,'Membership #'!$A$1:$C$1005,2,0))) ->  | F48: =IF(D48="","",(VLOOKUP(D48,'Membership #'!$A$1:$C$1005,3,0))) -> 
E49: =IF(D49="","",(VLOOKUP(D49,'Membership #'!$A$1:$C$1005,2,0))) ->  | F49: =IF(D49="","",(VLOOKUP(D49,'Membership #'!$A$1:$C$1005,3,0))) -> 
E50: =IF(D50="","",(VLOOKUP(D50,'Membership #'!$A$1:$C$1005,2,0))) ->  | F50: =IF(D50="","",(VLOOKUP(D50,'Membership #'!$A$1:$C$1005,3,0))) -> 
E51: =IF(D51="","",(VLOOKUP(D51,'Membership #'!$A$1:$C$1005,2,0))) ->  | F51: =IF(D51="","",(VLOOKUP(D51,'Membership #'!$A$1:$C$1005,3,0))) -> 
E52: =IF(D52="","",(VLOOKUP(D52,'Membership #'!$A$1:$C$1005,2,0))) ->  | F52: =IF(D52="","",(VLOOKUP(D52,'Membership #'!$A$1:$C$1005,3,0))) -> 
E53: =IF(D53="","",(VLOOKUP(D53,'Membership #'!$A$1:$C$1005,2,0))) ->  | F53: =IF(D53="","",(VLOOKUP(D53,'Membership #'!$A$1:$C$1005,3,0))) -> 
E54: =IF(D54="","",(VLOOKUP(D54,'Membership #'!$A$1:$C$1005,2,0))) ->  | F54: =IF(D54="","",(VLOOKUP(D54,'Membership #'!$A$1:$C$1005,3,0))) -> 
E55: =IF(D55="","",(VLOOKUP(D55,'Membership #'!$A$1:$C$1005,2,0))) ->  | F55: =IF(D55="","",(VLOOKUP(D55,'Membership #'!$A$1:$C$1005,3,0))) -> 
E56: =IF(D56="","",(VLOOKUP(D56,'Membership #'!$A$1:$C$1005,2,0))) ->  | F56: =IF(D56="","",(VLOOKUP(D56,'Membership #'!$A$1:$C$1005,3,0))) -> 
E57: =IF(D57="","",(VLOOKUP(D57,'Membership #'!$A$1:$C$1005,2,0))) ->  | F57: =IF(D57="","",(VLOOKUP(D57,'Membership #'!$A$1:$C$1005,3,0))) -> 
E58: =IF(D58="","",(VLOOKUP(D58,'Membership #'!$A$1:$C$1005,2,0))) ->  | F58: =IF(D58="","",(VLOOKUP(D58,'Membership #'!$A$1:$C$1005,3,0))) -> 
E59: =IF(D59="","",(VLOOKUP(D59,'Membership #'!$A$1:$C$1005,2,0))) ->  | F59: =IF(D59="","",(VLOOKUP(D59,'Membership #'!$A$1:$C$1005,3,0))) -> 
E60: =IF(D60="","",(VLOOKUP(D60,'Membership #'!$A$1:$C$1005,2,0))) ->  | F60: =IF(D60="","",(VLOOKUP(D60,'Membership #'!$A$1:$C$1005,3,0))) -> 
E61: =IF(D61="","",(VLOOKUP(D61,'Membership #'!$A$1:$C$1005,2,0))) ->  | F61: =IF(D61="","",(VLOOKUP(D61,'Membership #'!$A$1:$C$1005,3,0))) -> 
E62: =IF(D62="","",(VLOOKUP(D62,'Membership #'!$A$1:$C$1005,2,0))) ->  | F62: =IF(D62="","",(VLOOKUP(D62,'Membership #'!$A$1:$C$1005,3,0))) -> 
E63: =IF(D63="","",(VLOOKUP(D63,'Membership #'!$A$1:$C$1005,2,0))) ->  | F63: =IF(D63="","",(VLOOKUP(D63,'Membership #'!$A$1:$C$1005,3,0))) -> 
E64: =IF(D64="","",(VLOOKUP(D64,'Membership #'!$A$1:$C$1005,2,0))) ->  | F64: =IF(D64="","",(VLOOKUP(D64,'Membership #'!$A$1:$C$1005,3,0))) -> 
E65: =IF(D65="","",(VLOOKUP(D65,'Membership #'!$A$1:$C$1005,2,0))) ->  | F65: =IF(D65="","",(VLOOKUP(D65,'Membership #'!$A$1:$C$1005,3,0))) -> 
E66: =IF(D66="","",(VLOOKUP(D66,'Membership #'!$A$1:$C$1005,2,0))) ->  | F66: =IF(D66="","",(VLOOKUP(D66,'Membership #'!$A$1:$C$1005,3,0))) -> 
E67: =IF(D67="","",(VLOOKUP(D67,'Membership #'!$A$1:$C$1005,2,0))) ->  | F67: =IF(D67="","",(VLOOKUP(D67,'Membership #'!$A$1:$C$1005,3,0))) -> 
E68: =IF(D68="","",(VLOOKUP(D68,'Membership #'!$A$1:$C$1005,2,0))) ->  | F68: =IF(D68="","",(VLOOKUP(D68,'Membership #'!$A$1:$C$1005,3,0))) -> 
E69: =IF(D69="","",(VLOOKUP(D69,'Membership #'!$A$1:$C$1005,2,0))) ->  | F69: =IF(D69="","",(VLOOKUP(D69,'Membership #'!$A$1:$C$1005,3,0))) -> 
E70: =IF(D70="","",(VLOOKUP(D70,'Membership #'!$A$1:$C$1005,2,0))) ->  | F70: =IF(D70="","",(VLOOKUP(D70,'Membership #'!$A$1:$C$1005,3,0))) -> 
E71: =IF(D71="","",(VLOOKUP(D71,'Membership #'!$A$1:$C$1005,2,0))) ->  | F71: =IF(D71="","",(VLOOKUP(D71,'Membership #'!$A$1:$C$1005,3,0))) -> 
A72: =IF(D72<>"",RAND(),"") ->  | B72: =IF(D72<>"",RANK(A72,A$8:A$101),"") ->  | E72: =IF(D72="","",(VLOOKUP(D72,'Membership #'!$A$1:$C$1005,2,0))) ->  | F72: =IF(D72="","",(VLOOKUP(D72,'Membership #'!$A$1:$C$1005,3,0))) -> 
E73: =IF(D73="","",(VLOOKUP(D73,'Membership #'!$A$1:$C$1005,2,0))) ->  | F73: =IF(D73="","",(VLOOKUP(D73,'Membership #'!$A$1:$C$1005,3,0))) ->  | I73: =IF(G73="n","No Time",IF(G73="x","Scratch",IF(G73<>"",SUM(G73+H73),""))) -> 
E74: =IF(D74="","",(VLOOKUP(D74,'Membership #'!$A$1:$C$1005,2,0))) ->  | F74: =IF(D74="","",(VLOOKUP(D74,'Membership #'!$A$1:$C$1005,3,0))) -> 
E75: =IF(D75="","",(VLOOKUP(D75,'Membership #'!$A$1:$C$1005,2,0))) ->  | F75: =IF(D75="","",(VLOOKUP(D75,'Membership #'!$A$1:$C$1005,3,0))) -> 
E76: =IF(D76="","",(VLOOKUP(D76,'Membership #'!$A$1:$C$1005,2,0))) ->  | F76: =IF(D76="","",(VLOOKUP(D76,'Membership #'!$A$1:$C$1005,3,0))) -> 
E77: =IF(D77="","",(VLOOKUP(D77,'Membership #'!$A$1:$C$1005,2,0))) ->  | F77: =IF(D77="","",(VLOOKUP(D77,'Membership #'!$A$1:$C$1005,3,0))) -> 
E78: =IF(D78="","",(VLOOKUP(D78,'Membership #'!$A$1:$C$1005,2,0))) ->  | F78: =IF(D78="","",(VLOOKUP(D78,'Membership #'!$A$1:$C$1005,3,0))) -> 
E79: =IF(D79="","",(VLOOKUP(D79,'Membership #'!$A$1:$C$1005,2,0))) ->  | F79: =IF(D79="","",(VLOOKUP(D79,'Membership #'!$A$1:$C$1005,3,0))) -> 
E80: =IF(D80="","",(VLOOKUP(D80,'Membership #'!$A$1:$C$1005,2,0))) ->  | F80: =IF(D80="","",(VLOOKUP(D80,'Membership #'!$A$1:$C$1005,3,0))) -> 
E81: =IF(D81="","",(VLOOKUP(D81,'Membership #'!$A$1:$C$1005,2,0))) ->  | F81: =IF(D81="","",(VLOOKUP(D81,'Membership #'!$A$1:$C$1005,3,0))) -> 
E82: =IF(D82="","",(VLOOKUP(D82,'Membership #'!$A$1:$C$1005,2,0))) ->  | F82: =IF(D82="","",(VLOOKUP(D82,'Membership #'!$A$1:$C$1005,3,0))) -> 
E83: =IF(D83="","",(VLOOKUP(D83,'Membership #'!$A$1:$C$1005,2,0))) ->  | F83: =IF(D83="","",(VLOOKUP(D83,'Membership #'!$A$1:$C$1005,3,0))) -> 
E84: =IF(D84="","",(VLOOKUP(D84,'Membership #'!$A$1:$C$1005,2,0))) ->  | F84: =IF(D84="","",(VLOOKUP(D84,'Membership #'!$A$1:$C$1005,3,0))) -> 
E85: =IF(D85="","",(VLOOKUP(D85,'Membership #'!$A$1:$C$1005,2,0))) ->  | F85: =IF(D85="","",(VLOOKUP(D85,'Membership #'!$A$1:$C$1005,3,0))) -> 
E86: =IF(D86="","",(VLOOKUP(D86,'Membership #'!$A$1:$C$1005,2,0))) ->  | F86: =IF(D86="","",(VLOOKUP(D86,'Membership #'!$A$1:$C$1005,3,0))) -> 
E87: =IF(D87="","",(VLOOKUP(D87,'Membership #'!$A$1:$C$1005,2,0))) ->  | F87: =IF(D87="","",(VLOOKUP(D87,'Membership #'!$A$1:$C$1005,3,0))) -> 
E88: =IF(D88="","",(VLOOKUP(D88,'Membership #'!$A$1:$C$1005,2,0))) ->  | F88: =IF(D88="","",(VLOOKUP(D88,'Membership #'!$A$1:$C$1005,3,0))) -> 
E89: =IF(D89="","",(VLOOKUP(D89,'Membership #'!$A$1:$C$1005,2,0))) ->  | F89: =IF(D89="","",(VLOOKUP(D89,'Membership #'!$A$1:$C$1005,3,0))) -> 
E90: =IF(D90="","",(VLOOKUP(D90,'Membership #'!$A$1:$C$1005,2,0))) ->  | F90: =IF(D90="","",(VLOOKUP(D90,'Membership #'!$A$1:$C$1005,3,0))) -> 
E91: =IF(D91="","",(VLOOKUP(D91,'Membership #'!$A$1:$C$1005,2,0))) ->  | F91: =IF(D91="","",(VLOOKUP(D91,'Membership #'!$A$1:$C$1005,3,0))) -> 
E92: =IF(D92="","",(VLOOKUP(D92,'Membership #'!$A$1:$C$1005,2,0))) ->  | F92: =IF(D92="","",(VLOOKUP(D92,'Membership #'!$A$1:$C$1005,3,0))) -> 
E93: =IF(D93="","",(VLOOKUP(D93,'Membership #'!$A$1:$C$1005,2,0))) ->  | F93: =IF(D93="","",(VLOOKUP(D93,'Membership #'!$A$1:$C$1005,3,0))) -> 
E94: =IF(D94="","",(VLOOKUP(D94,'Membership #'!$A$1:$C$1005,2,0))) ->  | F94: =IF(D94="","",(VLOOKUP(D94,'Membership #'!$A$1:$C$1005,3,0))) -> 
E95: =IF(D95="","",(VLOOKUP(D95,'Membership #'!$A$1:$C$1005,2,0))) ->  | F95: =IF(D95="","",(VLOOKUP(D95,'Membership #'!$A$1:$C$1005,3,0))) -> 
E96: =IF(D96="","",(VLOOKUP(D96,'Membership #'!$A$1:$C$1005,2,0))) ->  | F96: =IF(D96="","",(VLOOKUP(D96,'Membership #'!$A$1:$C$1005,3,0))) -> 
E97: =IF(D97="","",(VLOOKUP(D97,'Membership #'!$A$1:$C$1005,2,0))) ->  | F97: =IF(D97="","",(VLOOKUP(D97,'Membership #'!$A$1:$C$1005,3,0))) -> 
E98: =IF(D98="","",(VLOOKUP(D98,'Membership #'!$A$1:$C$1005,2,0))) ->  | F98: =IF(D98="","",(VLOOKUP(D98,'Membership #'!$A$1:$C$1005,3,0))) -> 
E99: =IF(D99="","",(VLOOKUP(D99,'Membership #'!$A$1:$C$1005,2,0))) ->  | F99: =IF(D99="","",(VLOOKUP(D99,'Membership #'!$A$1:$C$1005,3,0))) -> 
E100: =IF(D100="","",(VLOOKUP(D100,'Membership #'!$A$1:$C$1005,2,0))) ->  | F100: =IF(D100="","",(VLOOKUP(D100,'Membership #'!$A$1:$C$1005,3,0))) -> 
E101: =IF(D101="","",(VLOOKUP(D101,'Membership #'!$A$1:$C$1005,2,0))) ->  | F101: =IF(D101="","",(VLOOKUP(D101,'Membership #'!$A$1:$C$1005,3,0))) -> 

Sheet YOUTH POLES
A1: Tom Burt & Mark McGuire Memorial Jackpot Aug 21, 2021 | M1: x=Scratch
A2: YOUTH POLES | M2: n=No Time
A3: # Enteries: | E3: =COUNTIF($D$8:$D$99,">0") -> 16 | R3: Don't Erase these numbers below!!
A4: Rand Draw | B4: Seed | C4: Running Order | D4: RING # | E4: NAME | F4: HORSE NAME | G4: TIME | H4: PENALTY | I4: TOTAL | J4: PLACINGS | K4: POINTS | R4: =IF(N9=2,7,IF(N9=3,6,IF(N9=4,5,IF(N9=5,4,IF(AND(N9>5,N11>600),3,IF(AND(N9>5,N11<600,N11>299.99),2,IF(AND(N9>5,N11<300),1,8))))))) -> 1 | S4: 1 | T4: 2 | U4: 3 | V4: 4 | W4: 5 | X4: 6 | Y4: 7 | Z4: 8
S5: 299 | T5: $300- | U5: $600 -
M6: YOUTH POLES | S6: or less | T6: 599 | U6: More | V6: 5 Entries | W6: 4 Entries | X6: 3 Entries | Y6: 2 Entries
R7: 1st | S7: 0.32 | T7: 0.27 | U7: 0.24 | V7: 0.35 | W7: 0.4 | X7: 0.46 | Y7: 0.6
A8: =IF(D8<>"",RAND(),"") -> 0.8520521807 | B8: =IF(D8<>"",RANK(A8,A$8:A$100),"") -> 2 | C8: 1 | D8: 815 | E8: =IF(D8="","",(VLOOKUP(D8,'Membership #'!$A$1:$C$1005,2,0))) -> Brooke Kennedy | F8: =IF(D8="","",(VLOOKUP(D8,'Membership #'!$A$1:$C$1005,3,0))) -> Tic Toc Teazer | G8: 22.808 | I8: =IF(G8="n","No Time",IF(G8="x","Scratch",IF(G8<>"",SUM(G8+H8),""))) -> 22.808 | M8: Added | N8: 25 | R8: 2nd | S8: 0.23 | T8: 0.22 | U8: 0.19 | V8: 0.25 | W8: 0.28 | X8: 0.34 | Y8: 0.4
A9: =IF(D9<>"",RAND(),"") -> 0.9516048713 | B9: =IF(D9<>"",RANK(A9,A$8:A$100),"") -> 1 | C9: 2 | D9: 941 | E9: =IF(D9="","",(VLOOKUP(D9,'Membership #'!$A$1:$C$1005,2,0))) -> Taylor Hurley | F9: =IF(D9="","",(VLOOKUP(D9,'Membership #'!$A$1:$C$1005,3,0))) -> Nacho Business | G9: 24.611 | I9: 24.611 | M9: Entries | N9: 16 | P9: 5 | Q9: per head | R9: 3rd | S9: 0.15 | T9: 0.18 | U9: 0.16 | V9: 0.17 | W9: 0.18 | X9: 0.2
A10: 0.6028272132 | B10: 9 | C10: 3 | D10: 636 | E10: =IF(D10="","",(VLOOKUP(D10,'Membership #'!$A$1:$C$1005,2,0))) -> Ceilidh Gosse | F10: =IF(D10="","",(VLOOKUP(D10,'Membership #'!$A$1:$C$1005,3,0))) -> ELM Silver Crime | G10: 27.041 | I10: 27.041 | M10: Jackpot | N10: =P9*N9 -> 80 | P10: 0.85 | Q10: payback | R10: 4th | S10: 0.12 | T10: 0.13 | U10: 0.13 | V10: 0.13 | W10: 0.14
A11: 0.7411909446 | B11: 5 | C11: 4 | D11: 954 | E11: =IF(D11="","",(VLOOKUP(D11,'Membership #'!$A$1:$C$1005,2,0))) -> Scotia MacEachern | F11: =IF(D11="","",(VLOOKUP(D11,'Membership #'!$A$1:$C$1005,3,0))) -> Hick-a-Licious | G11: 27.335 | I11: 27.335 | M11: Total Money | N11: =N8+(N10*P10) -> 93 | P11: =N10*P10 -> 68 | Q11: Jackpot | R11: 5th | S11: 0.1 | T11: 0.09 | U11: 0.08 | V11: 0.1
A12: 0.6900300913 | B12: 6 | C12: 5 | D12: 688 | E12: =IF(D12="","",(VLOOKUP(D12,'Membership #'!$A$1:$C$1005,2,0))) -> Lenee Sampson | F12: =IF(D12="","",(VLOOKUP(D12,'Membership #'!$A$1:$C$1005,3,0))) -> Six Dash Run | G12: 22.956 | H12: 5 | I12: 27.956 | N12: Percentage | O12: Money | P12: Ring # | R12: 6th | S12: 0.08 | T12: 0.06 | U12: 0.06
A13: 0.7420950749 | B13: 4 | C13: 6 | D13: 652 | E13: =IF(D13="","",(VLOOKUP(D13,'Membership #'!$A$1:$C$1005,2,0))) -> Molly O'Grady | F13: =IF(D13="","",(VLOOKUP(D13,'Membership #'!$A$1:$C$1005,3,0))) -> Teelano's Twister | G13: 25.296 | H13: 5 | I13: 30.296 | M13: 1st | N13: 0.32 | O13: =IF(N13<>0,N$11*N13,"") -> 29.76 | Q13: =IF(P13="","",(VLOOKUP(P13,'Membership #'!$A$1:$C$1005,2,0))) ->  | R13: 7th | T13: 0.03 | U13: 0.05
A14: 0.1204419608 | B14: 14 | C14: 7 | D14: 967 | E14: =IF(D14="","",(VLOOKUP(D14,'Membership #'!$A$1:$C$1005,2,0))) -> Marissa Hillier | F14: =IF(D14="","",(VLOOKUP(D14,'Membership #'!$A$1:$C$1005,3,0))) -> Notice Betty Boop | G14: 30.522 | I14: 30.522 | M14: 2nd | N14: 0.23 | O14: 21.39 | Q14: =IF(P14="","",(VLOOKUP(P14,'Membership #'!$A$1:$C$1005,2,0))) ->  | R14: 8th | T14: 0.02 | U14: 0.04
A15: 0.3454424228 | B15: 12 | C15: 8 | D15: 973 | E15: =IF(D15="","",(VLOOKUP(D15,'Membership #'!$A$1:$C$1005,2,0))) -> Sara Ivey | F15: =IF(D15="","",(VLOOKUP(D15,'Membership #'!$A$1:$C$1005,3,0))) -> Ms Heavenly Gator | G15: 30.531 | I15: 30.531 | M15: 3rd | N15: 0.15 | O15: 13.95 | Q15: =IF(P15="","",(VLOOKUP(P15,'Membership #'!$A$1:$C$1005,2,0))) ->  | R15: 9th | U15: 0.03
A16: 0.8186932164 | B16: 3 | C16: 9 | D16: 966 | E16: =IF(D16="","",(VLOOKUP(D16,'Membership #'!$A$1:$C$1005,2,0))) -> Ava Anderson | F16: =IF(D16="","",(VLOOKUP(D16,'Membership #'!$A$1:$C$1005,3,0))) -> Black Sass | G16: 27.956 | H16: 5 | I16: 32.956 | M16: 4th | N16: 0.12 | O16: 11.16 | Q16: =IF(P16="","",(VLOOKUP(P16,'Membership #'!$A$1:$C$1005,2,0))) ->  | R16: 10th | U16: 0.02
A17: 0.09604743864 | B17: 16 | C17: 10 | D17: 867 | E17: =IF(D17="","",(VLOOKUP(D17,'Membership #'!$A$1:$C$1005,2,0))) -> Layla MacEachem | F17: =IF(D17="","",(VLOOKUP(D17,'Membership #'!$A$1:$C$1005,3,0))) -> Shes a gem | G17: 32.755 | H17: 10 | I17: 42.755 | M17: 5th | N17: 0.1 | O17: 9.3 | Q17: =IF(P17="","",(VLOOKUP(P17,'Membership #'!$A$1:$C$1005,2,0))) -> 
A18: 0.6137000587 | B18: 8 | C18: 11 | D18: 961 | E18: =IF(D18="","",(VLOOKUP(D18,'Membership #'!$A$1:$C$1005,2,0))) -> Jacie Burke | F18: =IF(D18="","",(VLOOKUP(D18,'Membership #'!$A$1:$C$1005,3,0))) -> She's Just That Sassy | G18: 29.69 | H18: 15 | I18: 44.69 | M18: 6th | N18: 0.08 | O18: 7.44 | Q18: =IF(P18="","",(VLOOKUP(P18,'Membership #'!$A$1:$C$1005,2,0))) -> 
A19: 0.2213084732 | B19: 13 | C19: 12 | D19: 918 | E19: =IF(D19="","",(VLOOKUP(D19,'Membership #'!$A$1:$C$1005,2,0))) -> Keira Rose | F19: =IF(D19="","",(VLOOKUP(D19,'Membership #'!$A$1:$C$1005,3,0))) -> LL Its All About Red | G19: 52.488 | H19: 15 | I19: 67.488 | M19: 7th | N19: =HLOOKUP($R$4,$S$4:$Z$17,10,0) -> 0
A20: 0.4425488226 | B20: 10 | C20: 13 | D20: 904 | E20: =IF(D20="","",(VLOOKUP(D20,'Membership #'!$A$1:$C$1005,2,0))) -> Ella Cowley | F20: =IF(D20="","",(VLOOKUP(D20,'Membership #'!$A$1:$C$1005,3,0))) -> Blazin Boots | G20: n | I20: No Time | M20: 8th | N20: =HLOOKUP($R$4,$S$4:$Z$17,11,0) -> 0
A21: 0.6732423361 | B21: 7 | C21: 14 | D21: 638 | E21: =IF(D21="","",(VLOOKUP(D21,'Membership #'!$A$1:$C$1005,2,0))) -> Bella Peters | F21: =IF(D21="","",(VLOOKUP(D21,'Membership #'!$A$1:$C$1005,3,0))) -> Super Star | G21: n | I21: No Time | M21: 9th | N21: =HLOOKUP($R$4,$S$4:$Z$17,12,0) -> 0
A22: 0.1179685211 | B22: 15 | C22: 15 | D22: 666 | E22: =IF(D22="","",(VLOOKUP(D22,'Membership #'!$A$1:$C$1005,2,0))) -> Summer Fraser | F22: =IF(D22="","",(VLOOKUP(D22,'Membership #'!$A$1:$C$1005,3,0))) -> Sheza Smokin' Girl | G22: x | I22: Scratch | M22: 10th | N22: =HLOOKUP($R$4,$S$4:$Z$17,13,0) -> 0
A23: 0.3695844725 | B23: 11 | C23: 16 | D23: 532 | E23: =IF(D23="","",(VLOOKUP(D23,'Membership #'!$A$1:$C$1005,2,0))) -> Gracie MacLean | F23: =IF(D23="","",(VLOOKUP(D23,'Membership #'!$A$1:$C$1005,3,0))) -> Secret | G23: X | I23: Scratch | M23: Total Money | O23: =SUM(O13:O22) -> 93
E24: =IF(D24="","",(VLOOKUP(D24,'Membership #'!$A$1:$C$1005,2,0))) ->  | F24: =IF(D24="","",(VLOOKUP(D24,'Membership #'!$A$1:$C$1005,3,0))) ->  | I24: =IF(G24="n","No Time",IF(G24="x","Scratch",IF(G24<>"",SUM(G24+H24),""))) -> 
E25: =IF(D25="","",(VLOOKUP(D25,'Membership #'!$A$1:$C$1005,2,0))) ->  | F25: =IF(D25="","",(VLOOKUP(D25,'Membership #'!$A$1:$C$1005,3,0))) -> 
E26: =IF(D26="","",(VLOOKUP(D26,'Membership #'!$A$1:$C$1005,2,0))) ->  | F26: =IF(D26="","",(VLOOKUP(D26,'Membership #'!$A$1:$C$1005,3,0))) -> 
E27: =IF(D27="","",(VLOOKUP(D27,'Membership #'!$A$1:$C$1005,2,0))) ->  | F27: =IF(D27="","",(VLOOKUP(D27,'Membership #'!$A$1:$C$1005,3,0))) -> 
E28: =IF(D28="","",(VLOOKUP(D28,'Membership #'!$A$1:$C$1005,2,0))) ->  | F28: =IF(D28="","",(VLOOKUP(D28,'Membership #'!$A$1:$C$1005,3,0))) ->  | I28: =IF(G28="n","No Time",IF(G28="x","Scratch",IF(G28<>"",SUM(G28+H28),""))) -> 
E29: =IF(D29="","",(VLOOKUP(D29,'Membership #'!$A$1:$C$1005,2,0))) ->  | F29: =IF(D29="","",(VLOOKUP(D29,'Membership #'!$A$1:$C$1005,3,0))) -> 
E30: =IF(D30="","",(VLOOKUP(D30,'Membership #'!$A$1:$C$1005,2,0))) ->  | F30: =IF(D30="","",(VLOOKUP(D30,'Membership #'!$A$1:$C$1005,3,0))) -> 
E31: =IF(D31="","",(VLOOKUP(D31,'Membership #'!$A$1:$C$1005,2,0))) ->  | F31: =IF(D31="","",(VLOOKUP(D31,'Membership #'!$A$1:$C$1005,3,0))) ->  | I31: =IF(G31="n","No Time",IF(G31="x","Scratch",IF(G31<>"",SUM(G31+H31),""))) -> 
E32: =IF(D32="","",(VLOOKUP(D32,'Membership #'!$A$1:$C$1005,2,0))) ->  | F32: =IF(D32="","",(VLOOKUP(D32,'Membership #'!$A$1:$C$1005,3,0))) -> 
E33: =IF(D33="","",(VLOOKUP(D33,'Membership #'!$A$1:$C$1005,2,0))) ->  | F33: =IF(D33="","",(VLOOKUP(D33,'Membership #'!$A$1:$C$1005,3,0))) -> 
E34: =IF(D34="","",(VLOOKUP(D34,'Membership #'!$A$1:$C$1005,2,0))) ->  | F34: =IF(D34="","",(VLOOKUP(D34,'Membership #'!$A$1:$C$1005,3,0))) -> 
E35: =IF(D35="","",(VLOOKUP(D35,'Membership #'!$A$1:$C$1005,2,0))) ->  | F35: =IF(D35="","",(VLOOKUP(D35,'Membership #'!$A$1:$C$1005,3,0))) -> 
E36: =IF(D36="","",(VLOOKUP(D36,'Membership #'!$A$1:$C$1005,2,0))) ->  | F36: =IF(D36="","",(VLOOKUP(D36,'Membership #'!$A$1:$C$1005,3,0))) ->  | I36: =IF(G36="n","No Time",IF(G36="x","Scratch",IF(G36<>"",SUM(G36+H36),""))) -> 
E37: =IF(D37="","",(VLOOKUP(D37,'Membership #'!$A$1:$C$1005,2,0))) ->  | F37: =IF(D37="","",(VLOOKUP(D37,'Membership #'!$A$1:$C$1005,3,0))) -> 
E38: =IF(D38="","",(VLOOKUP(D38,'Membership #'!$A$1:$C$1005,2,0))) ->  | F38: =IF(D38="","",(VLOOKUP(D38,'Membership #'!$A$1:$C$1005,3,0))) -> 
E39: =IF(D39="","",(VLOOKUP(D39,'Membership #'!$A$1:$C$1005,2,0))) ->  | F39: =IF(D39="","",(VLOOKUP(D39,'Membership #'!$A$1:$C$1005,3,0))) -> 
E40: =IF(D40="","",(VLOOKUP(D40,'Membership #'!$A$1:$C$1005,2,0))) ->  | F40: =IF(D40="","",(VLOOKUP(D40,'Membership #'!$A$1:$C$1005,3,0))) -> 
E41: =IF(D41="","",(VLOOKUP(D41,'Membership #'!$A$1:$C$1005,2,0))) ->  | F41: =IF(D41="","",(VLOOKUP(D41,'Membership #'!$A$1:$C$1005,3,0))) -> 
E42: =IF(D42="","",(VLOOKUP(D42,'Membership #'!$A$1:$C$1005,2,0))) ->  | F42: =IF(D42="","",(VLOOKUP(D42,'Membership #'!$A$1:$C$1005,3,0))) -> 
E43: =IF(D43="","",(VLOOKUP(D43,'Membership #'!$A$1:$C$1005,2,0))) ->  | F43: =IF(D43="","",(VLOOKUP(D43,'Membership #'!$A$1:$C$1005,3,0))) -> 
E44: =IF(D44="","",(VLOOKUP(D44,'Membership #'!$A$1:$C$1005,2,0))) ->  | F44: =IF(D44="","",(VLOOKUP(D44,'Membership #'!$A$1:$C$1005,3,0))) -> 
E45: =IF(D45="","",(VLOOKUP(D45,'Membership #'!$A$1:$C$1005,2,0))) ->  | F45: =IF(D45="","",(VLOOKUP(D45,'Membership #'!$A$1:$C$1005,3,0))) -> 
E46: =IF(D46="","",(VLOOKUP(D46,'Membership #'!$A$1:$C$1005,2,0))) ->  | F46: =IF(D46="","",(VLOOKUP(D46,'Membership #'!$A$1:$C$1005,3,0))) -> 
E47: =IF(D47="","",(VLOOKUP(D47,'Membership #'!$A$1:$C$1005,2,0))) ->  | F47: =IF(D47="","",(VLOOKUP(D47,'Membership #'!$A$1:$C$1005,3,0))) -> 
E48: =IF(D48="","",(VLOOKUP(D48,'Membership #'!$A$1:$C$1005,2,0))) ->  | F48: =IF(D48="","",(VLOOKUP(D48,'Membership #'!$A$1:$C$1005,3,0))) -> 
E49: =IF(D49="","",(VLOOKUP(D49,'Membership #'!$A$1:$C$1005,2,0))) ->  | F49: =IF(D49="","",(VLOOKUP(D49,'Membership #'!$A$1:$C$1005,3,0))) -> 
E50: =IF(D50="","",(VLOOKUP(D50,'Membership #'!$A$1:$C$1005,2,0))) ->  | F50: =IF(D50="","",(VLOOKUP(D50,'Membership #'!$A$1:$C$1005,3,0))) -> 
E51: =IF(D51="","",(VLOOKUP(D51,'Membership #'!$A$1:$C$1005,2,0))) ->  | F51: =IF(D51="","",(VLOOKUP(D51,'Membership #'!$A$1:$C$1005,3,0))) -> 
E52: =IF(D52="","",(VLOOKUP(D52,'Membership #'!$A$1:$C$1005,2,0))) ->  | F52: =IF(D52="","",(VLOOKUP(D52,'Membership #'!$A$1:$C$1005,3,0))) -> 
E53: =IF(D53="","",(VLOOKUP(D53,'Membership #'!$A$1:$C$1005,2,0))) ->  | F53: =IF(D53="","",(VLOOKUP(D53,'Membership #'!$A$1:$C$1005,3,0))) -> 
E54: =IF(D54="","",(VLOOKUP(D54,'Membership #'!$A$1:$C$1005,2,0))) ->  | F54: =IF(D54="","",(VLOOKUP(D54,'Membership #'!$A$1:$C$1005,3,0))) -> 
E55: =IF(D55="","",(VLOOKUP(D55,'Membership #'!$A$1:$C$1005,2,0))) ->  | F55: =IF(D55="","",(VLOOKUP(D55,'Membership #'!$A$1:$C$1005,3,0))) -> 
E56: =IF(D56="","",(VLOOKUP(D56,'Membership #'!$A$1:$C$1005,2,0))) ->  | F56: =IF(D56="","",(VLOOKUP(D56,'Membership #'!$A$1:$C$1005,3,0))) -> 
E57: =IF(D57="","",(VLOOKUP(D57,'Membership #'!$A$1:$C$1005,2,0))) ->  | F57: =IF(D57="","",(VLOOKUP(D57,'Membership #'!$A$1:$C$1005,3,0))) -> 
E58: =IF(D58="","",(VLOOKUP(D58,'Membership #'!$A$1:$C$1005,2,0))) ->  | F58: =IF(D58="","",(VLOOKUP(D58,'Membership #'!$A$1:$C$1005,3,0))) -> 
E59: =IF(D59="","",(VLOOKUP(D59,'Membership #'!$A$1:$C$1005,2,0))) ->  | F59: =IF(D59="","",(VLOOKUP(D59,'Membership #'!$A$1:$C$1005,3,0))) -> 
E60: =IF(D60="","",(VLOOKUP(D60,'Membership #'!$A$1:$C$1005,2,0))) ->  | F60: =IF(D60="","",(VLOOKUP(D60,'Membership #'!$A$1:$C$1005,3,0))) -> 
E61: =IF(D61="","",(VLOOKUP(D61,'Membership #'!$A$1:$C$1005,2,0))) ->  | F61: =IF(D61="","",(VLOOKUP(D61,'Membership #'!$A$1:$C$1005,3,0))) -> 
E62: =IF(D62="","",(VLOOKUP(D62,'Membership #'!$A$1:$C$1005,2,0))) ->  | F62: =IF(D62="","",(VLOOKUP(D62,'Membership #'!$A$1:$C$1005,3,0))) -> 
E63: =IF(D63="","",(VLOOKUP(D63,'Membership #'!$A$1:$C$1005,2,0))) ->  | F63: =IF(D63="","",(VLOOKUP(D63,'Membership #'!$A$1:$C$1005,3,0))) -> 
E64: =IF(D64="","",(VLOOKUP(D64,'Membership #'!$A$1:$C$1005,2,0))) ->  | F64: =IF(D64="","",(VLOOKUP(D64,'Membership #'!$A$1:$C$1005,3,0))) -> 
E65: =IF(D65="","",(VLOOKUP(D65,'Membership #'!$A$1:$C$1005,2,0))) ->  | F65: =IF(D65="","",(VLOOKUP(D65,'Membership #'!$A$1:$C$1005,3,0))) -> 
E66: =IF(D66="","",(VLOOKUP(D66,'Membership #'!$A$1:$C$1005,2,0))) ->  | F66: =IF(D66="","",(VLOOKUP(D66,'Membership #'!$A$1:$C$1005,3,0))) -> 
E67: =IF(D67="","",(VLOOKUP(D67,'Membership #'!$A$1:$C$1005,2,0))) ->  | F67: =IF(D67="","",(VLOOKUP(D67,'Membership #'!$A$1:$C$1005,3,0))) -> 
E68: =IF(D68="","",(VLOOKUP(D68,'Membership #'!$A$1:$C$1005,2,0))) ->  | F68: =IF(D68="","",(VLOOKUP(D68,'Membership #'!$A$1:$C$1005,3,0))) -> 
E69: =IF(D69="","",(VLOOKUP(D69,'Membership #'!$A$1:$C$1005,2,0))) ->  | F69: =IF(D69="","",(VLOOKUP(D69,'Membership #'!$A$1:$C$1005,3,0))) -> 
E70: =IF(D70="","",(VLOOKUP(D70,'Membership #'!$A$1:$C$1005,2,0))) ->  | F70: =IF(D70="","",(VLOOKUP(D70,'Membership #'!$A$1:$C$1005,3,0))) -> 
E71: =IF(D71="","",(VLOOKUP(D71,'Membership #'!$A$1:$C$1005,2,0))) ->  | F71: =IF(D71="","",(VLOOKUP(D71,'Membership #'!$A$1:$C$1005,3,0))) -> 
E72: =IF(D72="","",(VLOOKUP(D72,'Membership #'!$A$1:$C$1005,2,0))) ->  | F72: =IF(D72="","",(VLOOKUP(D72,'Membership #'!$A$1:$C$1005,3,0))) ->  | I72: =IF(G72="n","No Time",IF(G72="x","Scratch",IF(G72<>"",SUM(G72+H72),""))) -> 
A73: =IF(D73<>"",RAND(),"") ->  | B73: =IF(D73<>"",RANK(A73,A$8:A$100),"") ->  | E73: =IF(D73="","",(VLOOKUP(D73,'Membership #'!$A$1:$C$1005,2,0))) ->  | F73: =IF(D73="","",(VLOOKUP(D73,'Membership #'!$A$1:$C$1005,3,0))) -> 
E74: =IF(D74="","",(VLOOKUP(D74,'Membership #'!$A$1:$C$1005,2,0))) ->  | F74: =IF(D74="","",(VLOOKUP(D74,'Membership #'!$A$1:$C$1005,3,0))) -> 
E75: =IF(D75="","",(VLOOKUP(D75,'Membership #'!$A$1:$C$1005,2,0))) ->  | F75: =IF(D75="","",(VLOOKUP(D75,'Membership #'!$A$1:$C$1005,3,0))) -> 
E76: =IF(D76="","",(VLOOKUP(D76,'Membership #'!$A$1:$C$1005,2,0))) ->  | F76: =IF(D76="","",(VLOOKUP(D76,'Membership #'!$A$1:$C$1005,3,0))) -> 
E77: =IF(D77="","",(VLOOKUP(D77,'Membership #'!$A$1:$C$1005,2,0))) ->  | F77: =IF(D77="","",(VLOOKUP(D77,'Membership #'!$A$1:$C$1005,3,0))) -> 
E78: =IF(D78="","",(VLOOKUP(D78,'Membership #'!$A$1:$C$1005,2,0))) ->  | F78: =IF(D78="","",(VLOOKUP(D78,'Membership #'!$A$1:$C$1005,3,0))) -> 
E79: =IF(D79="","",(VLOOKUP(D79,'Membership #'!$A$1:$C$1005,2,0))) ->  | F79: =IF(D79="","",(VLOOKUP(D79,'Membership #'!$A$1:$C$1005,3,0))) -> 
E80: =IF(D80="","",(VLOOKUP(D80,'Membership #'!$A$1:$C$1005,2,0))) ->  | F80: =IF(D80="","",(VLOOKUP(D80,'Membership #'!$A$1:$C$1005,3,0))) -> 
E81: =IF(D81="","",(VLOOKUP(D81,'Membership #'!$A$1:$C$1005,2,0))) ->  | F81: =IF(D81="","",(VLOOKUP(D81,'Membership #'!$A$1:$C$1005,3,0))) -> 
E82: =IF(D82="","",(VLOOKUP(D82,'Membership #'!$A$1:$C$1005,2,0))) ->  | F82: =IF(D82="","",(VLOOKUP(D82,'Membership #'!$A$1:$C$1005,3,0))) -> 
E83: =IF(D83="","",(VLOOKUP(D83,'Membership #'!$A$1:$C$1005,2,0))) ->  | F83: =IF(D83="","",(VLOOKUP(D83,'Membership #'!$A$1:$C$1005,3,0))) -> 
E84: =IF(D84="","",(VLOOKUP(D84,'Membership #'!$A$1:$C$1005,2,0))) ->  | F84: =IF(D84="","",(VLOOKUP(D84,'Membership #'!$A$1:$C$1005,3,0))) -> 
E85: =IF(D85="","",(VLOOKUP(D85,'Membership #'!$A$1:$C$1005,2,0))) ->  | F85: =IF(D85="","",(VLOOKUP(D85,'Membership #'!$A$1:$C$1005,3,0))) -> 
E86: =IF(D86="","",(VLOOKUP(D86,'Membership #'!$A$1:$C$1005,2,0))) ->  | F86: =IF(D86="","",(VLOOKUP(D86,'Membership #'!$A$1:$C$1005,3,0))) -> 
E87: =IF(D87="","",(VLOOKUP(D87,'Membership #'!$A$1:$C$1005,2,0))) ->  | F87: =IF(D87="","",(VLOOKUP(D87,'Membership #'!$A$1:$C$1005,3,0))) -> 
E88: =IF(D88="","",(VLOOKUP(D88,'Membership #'!$A$1:$C$1005,2,0))) ->  | F88: =IF(D88="","",(VLOOKUP(D88,'Membership #'!$A$1:$C$1005,3,0))) -> 
E89: =IF(D89="","",(VLOOKUP(D89,'Membership #'!$A$1:$C$1005,2,0))) ->  | F89: =IF(D89="","",(VLOOKUP(D89,'Membership #'!$A$1:$C$1005,3,0))) -> 
E90: =IF(D90="","",(VLOOKUP(D90,'Membership #'!$A$1:$C$1005,2,0))) ->  | F90: =IF(D90="","",(VLOOKUP(D90,'Membership #'!$A$1:$C$1005,3,0))) -> 
E91: =IF(D91="","",(VLOOKUP(D91,'Membership #'!$A$1:$C$1005,2,0))) ->  | F91: =IF(D91="","",(VLOOKUP(D91,'Membership #'!$A$1:$C$1005,3,0))) -> 
E92: =IF(D92="","",(VLOOKUP(D92,'Membership #'!$A$1:$C$1005,2,0))) ->  | F92: =IF(D92="","",(VLOOKUP(D92,'Membership #'!$A$1:$C$1005,3,0))) -> 
E93: =IF(D93="","",(VLOOKUP(D93,'Membership #'!$A$1:$C$1005,2,0))) ->  | F93: =IF(D93="","",(VLOOKUP(D93,'Membership #'!$A$1:$C$1005,3,0))) -> 
E94: =IF(D94="","",(VLOOKUP(D94,'Membership #'!$A$1:$C$1005,2,0))) ->  | F94: =IF(D94="","",(VLOOKUP(D94,'Membership #'!$A$1:$C$1005,3,0))) -> 
E95: =IF(D95="","",(VLOOKUP(D95,'Membership #'!$A$1:$C$1005,2,0))) ->  | F95: =IF(D95="","",(VLOOKUP(D95,'Membership #'!$A$1:$C$1005,3,0))) -> 
E96: =IF(D96="","",(VLOOKUP(D96,'Membership #'!$A$1:$C$1005,2,0))) ->  | F96: =IF(D96="","",(VLOOKUP(D96,'Membership #'!$A$1:$C$1005,3,0))) -> 
E97: =IF(D97="","",(VLOOKUP(D97,'Membership #'!$A$1:$C$1005,2,0))) ->  | F97: =IF(D97="","",(VLOOKUP(D97,'Membership #'!$A$1:$C$1005,3,0))) -> 
E98: =IF(D98="","",(VLOOKUP(D98,'Membership #'!$A$1:$C$1005,2,0))) ->  | F98: =IF(D98="","",(VLOOKUP(D98,'Membership #'!$A$1:$C$1005,3,0))) -> 
E99: =IF(D99="","",(VLOOKUP(D99,'Membership #'!$A$1:$C$1005,2,0))) ->  | F99: =IF(D99="","",(VLOOKUP(D99,'Membership #'!$A$1:$C$1005,3,0))) -> 
E100: =IF(D100="","",(VLOOKUP(D100,'Membership #'!$A$1:$C$1005,2,0))) ->  | F100: =IF(D100="","",(VLOOKUP(D100,'Membership #'!$A$1:$C$1005,3,0))) -> 

Sheet NOVICE POLES
A1: Tom Burt & Mark McGuire Memorial Jackpot Aug 21, 2021 | M1: x=Scratch
A2: NOVICE POLES | M2: n=No Time
A3: # Enteries: | E3: =COUNTIF($D$8:$D$96,">0") -> 19 | R3: Don't Erase these numbers below!!
A4: Rand Draw | B4: Seed | C4: Running Order | D4: RING # | E4: NAME | F4: HORSE NAME | G4: TIME | H4: PENALTY | I4: TOTAL | J4: PLACINGS | K4: POINTS | R4: =IF(N9=2,7,IF(N9=3,6,IF(N9=4,5,IF(N9=5,4,IF(AND(N9>5,N11>600),3,IF(AND(N9>5,N11<600,N11>299.99),2,IF(AND(N9>5,N11<300),1,8))))))) -> 1 | S4: 1 | T4: 2 | U4: 3 | V4: 4 | W4: 5 | X4: 6 | Y4: 7 | Z4: 8
S5: 299 | T5: $300- | U5: $600 -
M6: NOVICE POLES | S6: or less | T6: 599 | U6: More | V6: 5 Entries | W6: 4 Entries | X6: 3 Entries | Y6: 2 Entries
R7: 1st | S7: 0.32 | T7: 0.27 | U7: 0.24 | V7: 0.35 | W7: 0.4 | X7: 0.46 | Y7: 0.6
A8: =IF(D8<>"",RAND(),"") -> 0.1123928823 | B8: =IF(D8<>"",RANK(A8,A$8:A$97),"") -> 16 | C8: 1 | D8: 556 | E8: =IF(D8="","",(VLOOKUP(D8,'Membership #'!$A$1:$C$1005,2,0))) -> Stephaine Clark | F8: =IF(D8="","",(VLOOKUP(D8,'Membership #'!$A$1:$C$1005,3,0))) -> Perks A Flyin | G8: 23.039 | I8: =IF(G8="n","No Time",IF(G8="x","Scratch",IF(G8<>"",SUM(G8+H8),""))) -> 23.039 | M8: Added | N8: 75 | R8: 2nd | S8: 0.23 | T8: 0.22 | U8: 0.19 | V8: 0.25 | W8: 0.28 | X8: 0.34 | Y8: 0.4
A9: 0.1379939362 | B9: 14 | C9: 2 | D9: 750 | E9: =IF(D9="","",(VLOOKUP(D9,'Membership #'!$A$1:$C$1005,2,0))) -> Tanya Kennedy | F9: =IF(D9="","",(VLOOKUP(D9,'Membership #'!$A$1:$C$1005,3,0))) -> Old Stations Pride | G9: 23.225 | I9: 23.225 | M9: Entries | N9: 19 | P9: 10 | Q9: per head | R9: 3rd | S9: 0.15 | T9: 0.18 | U9: 0.16 | V9: 0.17 | W9: 0.18 | X9: 0.2
A10: 0.9472456419 | B10: 2 | C10: 3 | D10: 909 | E10: =IF(D10="","",(VLOOKUP(D10,'Membership #'!$A$1:$C$1005,2,0))) -> Rebecca Gillis | F10: =IF(D10="","",(VLOOKUP(D10,'Membership #'!$A$1:$C$1005,3,0))) -> Martha's Tivio Moon | G10: 23.638 | I10: 23.638 | M10: Jackpot | N10: =P9*N9 -> 190 | P10: 0.85 | Q10: payback | R10: 4th | S10: 0.12 | T10: 0.13 | U10: 0.13 | V10: 0.13 | W10: 0.14
A11: 0.06898519042 | B11: 18 | C11: 4 | D11: 954 | E11: =IF(D11="","",(VLOOKUP(D11,'Membership #'!$A$1:$C$1005,2,0))) -> Scotia MacEachern | F11: =IF(D11="","",(VLOOKUP(D11,'Membership #'!$A$1:$C$1005,3,0))) -> Hick-a-Licious | G11: 26.203 | I11: 26.203 | M11: Total Money | N11: =N8+(N10*P10) -> 236.5 | P11: =N10*P10 -> 161.5 | Q11: Jackpot | R11: 5th | S11: 0.1 | T11: 0.09 | U11: 0.08 | V11: 0.1
A12: 0.2978250601 | B12: 12 | C12: 5 | D12: 732 | E12: =IF(D12="","",(VLOOKUP(D12,'Membership #'!$A$1:$C$1005,2,0))) -> Brenna Carrigan | F12: =IF(D12="","",(VLOOKUP(D12,'Membership #'!$A$1:$C$1005,3,0))) -> Carlos | G12: 27.187 | I12: 27.187 | N12: Percentage | O12: Money | P12: Ring # | R12: 6th | S12: 0.08 | T12: 0.06 | U12: 0.06
A13: 0.1353865656 | B13: 15 | C13: 6 | D13: 600 | E13: =IF(D13="","",(VLOOKUP(D13,'Membership #'!$A$1:$C$1005,2,0))) -> Stan Brown | F13: =IF(D13="","",(VLOOKUP(D13,'Membership #'!$A$1:$C$1005,3,0))) -> A Perty Sure Thing | G13: 27.717 | I13: 27.717 | M13: 1st | N13: =HLOOKUP($R$4,$S$4:$Z$17,4,0) -> 0.32 | O13: =IF(N13<>0,N$11*N13,"") -> 75.68 | Q13: =IF(P13="","",(VLOOKUP(P13,'Membership #'!$A$1:$C$1005,2,0))) ->  | R13: 7th | T13: 0.03 | U13: 0.05
A14: 0.1576977876 | B14: 13 | C14: 7 | D14: 973 | E14: =IF(D14="","",(VLOOKUP(D14,'Membership #'!$A$1:$C$1005,2,0))) -> Sara Ivey | F14: =IF(D14="","",(VLOOKUP(D14,'Membership #'!$A$1:$C$1005,3,0))) -> Ms Heavenly Gator | G14: 29.238 | I14: 29.238 | M14: 2nd | N14: =HLOOKUP($R$4,$S$4:$Z$17,5,0) -> 0.23 | O14: 54.395 | Q14: =IF(P14="","",(VLOOKUP(P14,'Membership #'!$A$1:$C$1005,2,0))) ->  | R14: 8th | T14: 0.02 | U14: 0.04
A15: 0.9636729292 | B15: 1 | C15: 8 | D15: 652 | E15: =IF(D15="","",(VLOOKUP(D15,'Membership #'!$A$1:$C$1005,2,0))) -> Molly O'Grady | F15: =IF(D15="","",(VLOOKUP(D15,'Membership #'!$A$1:$C$1005,3,0))) -> Teelano's Twister | G15: 24.587 | H15: 5 | I15: 29.587 | M15: 3rd | N15: =HLOOKUP($R$4,$S$4:$Z$17,6,0) -> 0.15 | O15: 35.475 | Q15: =IF(P15="","",(VLOOKUP(P15,'Membership #'!$A$1:$C$1005,2,0))) ->  | R15: 9th | U15: 0.03
A16: 0.3094440566 | B16: 11 | C16: 9 | D16: 892 | E16: =IF(D16="","",(VLOOKUP(D16,'Membership #'!$A$1:$C$1005,2,0))) -> Donnie MacNeil | F16: =IF(D16="","",(VLOOKUP(D16,'Membership #'!$A$1:$C$1005,3,0))) -> Gifted Go Gold | G16: 25.254 | H16: 5 | I16: 30.254 | M16: 4th | N16: =HLOOKUP($R$4,$S$4:$Z$17,7,0) -> 0.12 | O16: 28.38 | Q16: =IF(P16="","",(VLOOKUP(P16,'Membership #'!$A$1:$C$1005,2,0))) ->  | R16: 10th | U16: 0.02
A17: 0.3158371906 | B17: 10 | C17: 10 | D17: 855 | E17: =IF(D17="","",(VLOOKUP(D17,'Membership #'!$A$1:$C$1005,2,0))) -> Jenelle Collier | F17: =IF(D17="","",(VLOOKUP(D17,'Membership #'!$A$1:$C$1005,3,0))) -> Peppy Sans Surprise | G17: 24.882 | H17: 10 | I17: 34.882 | M17: 5th | N17: =HLOOKUP($R$4,$S$4:$Z$17,8,0) -> 0.1 | O17: 23.65 | Q17: =IF(P17="","",(VLOOKUP(P17,'Membership #'!$A$1:$C$1005,2,0))) -> 
A18: 0.07979602153 | B18: 17 | C18: 11 | D18: 966 | E18: =IF(D18="","",(VLOOKUP(D18,'Membership #'!$A$1:$C$1005,2,0))) -> Ava Anderson | F18: =IF(D18="","",(VLOOKUP(D18,'Membership #'!$A$1:$C$1005,3,0))) -> Black Sass | G18: 28.033 | H18: 10 | I18: 38.033 | M18: 6th | N18: =HLOOKUP($R$4,$S$4:$Z$17,9,0) -> 0.08 | O18: 18.92 | Q18: =IF(P18="","",(VLOOKUP(P18,'Membership #'!$A$1:$C$1005,2,0))) -> 
A19: 0.7763653479 | B19: 5 | C19: 12 | D19: 753 | E19: =IF(D19="","",(VLOOKUP(D19,'Membership #'!$A$1:$C$1005,2,0))) -> Kayla Boudreau | F19: =IF(D19="","",(VLOOKUP(D19,'Membership #'!$A$1:$C$1005,3,0))) -> Lady Jane | G19: 40.304 | I19: 40.304 | M19: 7th | N19: =HLOOKUP($R$4,$S$4:$Z$17,10,0) -> 0 | Q19: =IF(P19="","",(VLOOKUP(P19,'Membership #'!$A$1:$C$1005,2,0))) -> 
A20: 0.799440298 | B20: 4 | C20: 13 | D20: 746 | E20: =IF(D20="","",(VLOOKUP(D20,'Membership #'!$A$1:$C$1005,2,0))) -> Cassie MacDonald | F20: =IF(D20="","",(VLOOKUP(D20,'Membership #'!$A$1:$C$1005,3,0))) -> Sandy Dew | G20: 46.046 | I20: 46.046 | M20: 8th | N20: =HLOOKUP($R$4,$S$4:$Z$17,11,0) -> 0 | Q20: =IF(P20="","",(VLOOKUP(P20,'Membership #'!$A$1:$C$1005,2,0))) -> 
A21: 0.9145836234 | B21: 3 | C21: 14 | D21: 971 | E21: =IF(D21="","",(VLOOKUP(D21,'Membership #'!$A$1:$C$1005,2,0))) -> Arielle Burke | F21: =IF(D21="","",(VLOOKUP(D21,'Membership #'!$A$1:$C$1005,3,0))) -> Elm Sally | G21: 48.214 | I21: 48.214 | M21: 9th | N21: =HLOOKUP($R$4,$S$4:$Z$17,12,0) -> 0 | Q21: =IF(P21="","",(VLOOKUP(P21,'Membership #'!$A$1:$C$1005,2,0))) -> 
A22: 0.3582774334 | B22: 9 | C22: 15 | D22: 904 | E22: =IF(D22="","",(VLOOKUP(D22,'Membership #'!$A$1:$C$1005,2,0))) -> Ella Cowley | F22: =IF(D22="","",(VLOOKUP(D22,'Membership #'!$A$1:$C$1005,3,0))) -> Blazin Boots | G22: n | I22: No Time | M22: 10th | N22: =HLOOKUP($R$4,$S$4:$Z$17,13,0) -> 0
A23: 0.7639138484 | B23: 6 | C23: 16 | D23: 928 | E23: =IF(D23="","",(VLOOKUP(D23,'Membership #'!$A$1:$C$1005,2,0))) -> Tessa Dicks | F23: =IF(D23="","",(VLOOKUP(D23,'Membership #'!$A$1:$C$1005,3,0))) -> ELM Dash of Crime | G23: n | I23: No Time | M23: Total Money | O23: =SUM(O13:O22) -> 236.5
A24: 0.01260021758 | B24: 19 | C24: 17 | D24: 716 | E24: =IF(D24="","",(VLOOKUP(D24,'Membership #'!$A$1:$C$1005,2,0))) -> Kayla Martin | F24: =IF(D24="","",(VLOOKUP(D24,'Membership #'!$A$1:$C$1005,3,0))) -> Dash Ta Home | G24: n | I24: No Time
A25: 0.5871668725 | B25: 8 | C25: 18 | D25: 889 | E25: =IF(D25="","",(VLOOKUP(D25,'Membership #'!$A$1:$C$1005,2,0))) -> Adelaine Cowley | F25: =IF(D25="","",(VLOOKUP(D25,'Membership #'!$A$1:$C$1005,3,0))) -> Frenchman's Promise | G25: x | I25: Scratch
A26: 0.7146653466 | B26: 7 | C26: 19 | D26: 78 | E26: =IF(D26="","",(VLOOKUP(D26,'Membership #'!$A$1:$C$1005,2,0))) -> Stephanie Rich | F26: =IF(D26="","",(VLOOKUP(D26,'Membership #'!$A$1:$C$1005,3,0))) -> Texas Mickey | G26: x | I26: Scratch
E27: =IF(D27="","",(VLOOKUP(D27,'Membership #'!$A$1:$C$1005,2,0))) ->  | F27: =IF(D27="","",(VLOOKUP(D27,'Membership #'!$A$1:$C$1005,3,0))) ->  | I27: =IF(G27="n","No Time",IF(G27="x","Scratch",IF(G27<>"",SUM(G27+H27),""))) -> 
E28: =IF(D28="","",(VLOOKUP(D28,'Membership #'!$A$1:$C$1005,2,0))) ->  | F28: =IF(D28="","",(VLOOKUP(D28,'Membership #'!$A$1:$C$1005,3,0))) -> 
E29: =IF(D29="","",(VLOOKUP(D29,'Membership #'!$A$1:$C$1005,2,0))) ->  | F29: =IF(D29="","",(VLOOKUP(D29,'Membership #'!$A$1:$C$1005,3,0))) -> 
E30: =IF(D30="","",(VLOOKUP(D30,'Membership #'!$A$1:$C$1005,2,0))) ->  | F30: =IF(D30="","",(VLOOKUP(D30,'Membership #'!$A$1:$C$1005,3,0))) -> 
E31: =IF(D31="","",(VLOOKUP(D31,'Membership #'!$A$1:$C$1005,2,0))) ->  | F31: =IF(D31="","",(VLOOKUP(D31,'Membership #'!$A$1:$C$1005,3,0))) -> 
E32: =IF(D32="","",(VLOOKUP(D32,'Membership #'!$A$1:$C$1005,2,0))) ->  | F32: =IF(D32="","",(VLOOKUP(D32,'Membership #'!$A$1:$C$1005,3,0))) -> 
E33: =IF(D33="","",(VLOOKUP(D33,'Membership #'!$A$1:$C$1005,2,0))) ->  | F33: =IF(D33="","",(VLOOKUP(D33,'Membership #'!$A$1:$C$1005,3,0))) ->  | I33: =IF(G33="n","No Time",IF(G33="x","Scratch",IF(G33<>"",SUM(G33+H33),""))) -> 
E34: =IF(D34="","",(VLOOKUP(D34,'Membership #'!$A$1:$C$1005,2,0))) ->  | F34: =IF(D34="","",(VLOOKUP(D34,'Membership #'!$A$1:$C$1005,3,0))) -> 
E35: =IF(D35="","",(VLOOKUP(D35,'Membership #'!$A$1:$C$1005,2,0))) ->  | F35: =IF(D35="","",(VLOOKUP(D35,'Membership #'!$A$1:$C$1005,3,0))) -> 
E36: =IF(D36="","",(VLOOKUP(D36,'Membership #'!$A$1:$C$1005,2,0))) ->  | F36: =IF(D36="","",(VLOOKUP(D36,'Membership #'!$A$1:$C$1005,3,0))) -> 
E37: =IF(D37="","",(VLOOKUP(D37,'Membership #'!$A$1:$C$1005,2,0))) ->  | F37: =IF(D37="","",(VLOOKUP(D37,'Membership #'!$A$1:$C$1005,3,0))) ->  | I37: =IF(G37="n","No Time",IF(G37="x","Scratch",IF(G37<>"",SUM(G37+H37),""))) -> 
E38: =IF(D38="","",(VLOOKUP(D38,'Membership #'!$A$1:$C$1005,2,0))) ->  | F38: =IF(D38="","",(VLOOKUP(D38,'Membership #'!$A$1:$C$1005,3,0))) -> 
E39: =IF(D39="","",(VLOOKUP(D39,'Membership #'!$A$1:$C$1005,2,0))) ->  | F39: =IF(D39="","",(VLOOKUP(D39,'Membership #'!$A$1:$C$1005,3,0))) -> 
B40: =IF(D40<>"",RANK(A40,A$8:A$97),"") ->  | E40: =IF(D40="","",(VLOOKUP(D40,'Membership #'!$A$1:$C$1005,2,0))) ->  | F40: =IF(D40="","",(VLOOKUP(D40,'Membership #'!$A$1:$C$1005,3,0))) -> 
E41: =IF(D41="","",(VLOOKUP(D41,'Membership #'!$A$1:$C$1005,2,0))) ->  | F41: =IF(D41="","",(VLOOKUP(D41,'Membership #'!$A$1:$C$1005,3,0))) -> 
E42: =IF(D42="","",(VLOOKUP(D42,'Membership #'!$A$1:$C$1005,2,0))) ->  | F42: =IF(D42="","",(VLOOKUP(D42,'Membership #'!$A$1:$C$1005,3,0))) -> 
E43: =IF(D43="","",(VLOOKUP(D43,'Membership #'!$A$1:$C$1005,2,0))) ->  | F43: =IF(D43="","",(VLOOKUP(D43,'Membership #'!$A$1:$C$1005,3,0))) -> 
E44: =IF(D44="","",(VLOOKUP(D44,'Membership #'!$A$1:$C$1005,2,0))) ->  | F44: =IF(D44="","",(VLOOKUP(D44,'Membership #'!$A$1:$C$1005,3,0))) -> 
E45: =IF(D45="","",(VLOOKUP(D45,'Membership #'!$A$1:$C$1005,2,0))) ->  | F45: =IF(D45="","",(VLOOKUP(D45,'Membership #'!$A$1:$C$1005,3,0))) -> 
E46: =IF(D46="","",(VLOOKUP(D46,'Membership #'!$A$1:$C$1005,2,0))) ->  | F46: =IF(D46="","",(VLOOKUP(D46,'Membership #'!$A$1:$C$1005,3,0))) -> 
E47: =IF(D47="","",(VLOOKUP(D47,'Membership #'!$A$1:$C$1005,2,0))) ->  | F47: =IF(D47="","",(VLOOKUP(D47,'Membership #'!$A$1:$C$1005,3,0))) -> 
E48: =IF(D48="","",(VLOOKUP(D48,'Membership #'!$A$1:$C$1005,2,0))) ->  | F48: =IF(D48="","",(VLOOKUP(D48,'Membership #'!$A$1:$C$1005,3,0))) -> 
E49: =IF(D49="","",(VLOOKUP(D49,'Membership #'!$A$1:$C$1005,2,0))) ->  | F49: =IF(D49="","",(VLOOKUP(D49,'Membership #'!$A$1:$C$1005,3,0))) -> 
E50: =IF(D50="","",(VLOOKUP(D50,'Membership #'!$A$1:$C$1005,2,0))) ->  | F50: =IF(D50="","",(VLOOKUP(D50,'Membership #'!$A$1:$C$1005,3,0))) -> 
E51: =IF(D51="","",(VLOOKUP(D51,'Membership #'!$A$1:$C$1005,2,0))) ->  | F51: =IF(D51="","",(VLOOKUP(D51,'Membership #'!$A$1:$C$1005,3,0))) -> 
E52: =IF(D52="","",(VLOOKUP(D52,'Membership #'!$A$1:$C$1005,2,0))) ->  | F52: =IF(D52="","",(VLOOKUP(D52,'Membership #'!$A$1:$C$1005,3,0))) -> 
E53: =IF(D53="","",(VLOOKUP(D53,'Membership #'!$A$1:$C$1005,2,0))) ->  | F53: =IF(D53="","",(VLOOKUP(D53,'Membership #'!$A$1:$C$1005,3,0))) -> 
E54: =IF(D54="","",(VLOOKUP(D54,'Membership #'!$A$1:$C$1005,2,0))) ->  | F54: =IF(D54="","",(VLOOKUP(D54,'Membership #'!$A$1:$C$1005,3,0))) -> 
E55: =IF(D55="","",(VLOOKUP(D55,'Membership #'!$A$1:$C$1005,2,0))) ->  | F55: =IF(D55="","",(VLOOKUP(D55,'Membership #'!$A$1:$C$1005,3,0))) -> 
E56: =IF(D56="","",(VLOOKUP(D56,'Membership #'!$A$1:$C$1005,2,0))) ->  | F56: =IF(D56="","",(VLOOKUP(D56,'Membership #'!$A$1:$C$1005,3,0))) -> 
E57: =IF(D57="","",(VLOOKUP(D57,'Membership #'!$A$1:$C$1005,2,0))) ->  | F57: =IF(D57="","",(VLOOKUP(D57,'Membership #'!$A$1:$C$1005,3,0))) -> 
E58: =IF(D58="","",(VLOOKUP(D58,'Membership #'!$A$1:$C$1005,2,0))) ->  | F58: =IF(D58="","",(VLOOKUP(D58,'Membership #'!$A$1:$C$1005,3,0))) -> 
E59: =IF(D59="","",(VLOOKUP(D59,'Membership #'!$A$1:$C$1005,2,0))) ->  | F59: =IF(D59="","",(VLOOKUP(D59,'Membership #'!$A$1:$C$1005,3,0))) -> 
E60: =IF(D60="","",(VLOOKUP(D60,'Membership #'!$A$1:$C$1005,2,0))) ->  | F60: =IF(D60="","",(VLOOKUP(D60,'Membership #'!$A$1:$C$1005,3,0))) -> 
E61: =IF(D61="","",(VLOOKUP(D61,'Membership #'!$A$1:$C$1005,2,0))) ->  | F61: =IF(D61="","",(VLOOKUP(D61,'Membership #'!$A$1:$C$1005,3,0))) -> 
E62: =IF(D62="","",(VLOOKUP(D62,'Membership #'!$A$1:$C$1005,2,0))) ->  | F62: =IF(D62="","",(VLOOKUP(D62,'Membership #'!$A$1:$C$1005,3,0))) -> 
E63: =IF(D63="","",(VLOOKUP(D63,'Membership #'!$A$1:$C$1005,2,0))) ->  | F63: =IF(D63="","",(VLOOKUP(D63,'Membership #'!$A$1:$C$1005,3,0))) -> 
E64: =IF(D64="","",(VLOOKUP(D64,'Membership #'!$A$1:$C$1005,2,0))) ->  | F64: =IF(D64="","",(VLOOKUP(D64,'Membership #'!$A$1:$C$1005,3,0))) -> 
E65: =IF(D65="","",(VLOOKUP(D65,'Membership #'!$A$1:$C$1005,2,0))) ->  | F65: =IF(D65="","",(VLOOKUP(D65,'Membership #'!$A$1:$C$1005,3,0))) -> 
E66: =IF(D66="","",(VLOOKUP(D66,'Membership #'!$A$1:$C$1005,2,0))) ->  | F66: =IF(D66="","",(VLOOKUP(D66,'Membership #'!$A$1:$C$1005,3,0))) -> 
E67: =IF(D67="","",(VLOOKUP(D67,'Membership #'!$A$1:$C$1005,2,0))) ->  | F67: =IF(D67="","",(VLOOKUP(D67,'Membership #'!$A$1:$C$1005,3,0))) -> 
A68: =IF(D68<>"",RAND(),"") ->  | E68: =IF(D68="","",(VLOOKUP(D68,'Membership #'!$A$1:$C$1005,2,0))) ->  | F68: =IF(D68="","",(VLOOKUP(D68,'Membership #'!$A$1:$C$1005,3,0))) -> 
E69: =IF(D69="","",(VLOOKUP(D69,'Membership #'!$A$1:$C$1005,2,0))) ->  | F69: =IF(D69="","",(VLOOKUP(D69,'Membership #'!$A$1:$C$1005,3,0))) ->  | I69: =IF(G69="n","No Time",IF(G69="x","Scratch",IF(G69<>"",SUM(G69+H69),""))) -> 
E70: =IF(D70="","",(VLOOKUP(D70,'Membership #'!$A$1:$C$1005,2,0))) ->  | F70: =IF(D70="","",(VLOOKUP(D70,'Membership #'!$A$1:$C$1005,3,0))) -> 
E71: =IF(D71="","",(VLOOKUP(D71,'Membership #'!$A$1:$C$1005,2,0))) ->  | F71: =IF(D71="","",(VLOOKUP(D71,'Membership #'!$A$1:$C$1005,3,0))) -> 
B72: =IF(D72<>"",RANK(A72,A$8:A$97),"") ->  | E72: =IF(D72="","",(VLOOKUP(D72,'Membership #'!$A$1:$C$1005,2,0))) ->  | F72: =IF(D72="","",(VLOOKUP(D72,'Membership #'!$A$1:$C$1005,3,0))) -> 
E73: =IF(D73="","",(VLOOKUP(D73,'Membership #'!$A$1:$C$1005,2,0))) ->  | F73: =IF(D73="","",(VLOOKUP(D73,'Membership #'!$A$1:$C$1005,3,0))) -> 
E74: =IF(D74="","",(VLOOKUP(D74,'Membership #'!$A$1:$C$1005,2,0))) ->  | F74: =IF(D74="","",(VLOOKUP(D74,'Membership #'!$A$1:$C$1005,3,0))) -> 
E75: =IF(D75="","",(VLOOKUP(D75,'Membership #'!$A$1:$C$1005,2,0))) ->  | F75: =IF(D75="","",(VLOOKUP(D75,'Membership #'!$A$1:$C$1005,3,0))) -> 
E76: =IF(D76="","",(VLOOKUP(D76,'Membership #'!$A$1:$C$1005,2,0))) ->  | F76: =IF(D76="","",(VLOOKUP(D76,'Membership #'!$A$1:$C$1005,3,0))) -> 
E77: =IF(D77="","",(VLOOKUP(D77,'Membership #'!$A$1:$C$1005,2,0))) ->  | F77: =IF(D77="","",(VLOOKUP(D77,'Membership #'!$A$1:$C$1005,3,0))) -> 
E78: =IF(D78="","",(VLOOKUP(D78,'Membership #'!$A$1:$C$1005,2,0))) ->  | F78: =IF(D78="","",(VLOOKUP(D78,'Membership #'!$A$1:$C$1005,3,0))) -> 
E79: =IF(D79="","",(VLOOKUP(D79,'Membership #'!$A$1:$C$1005,2,0))) ->  | F79: =IF(D79="","",(VLOOKUP(D79,'Membership #'!$A$1:$C$1005,3,0))) -> 
E80: =IF(D80="","",(VLOOKUP(D80,'Membership #'!$A$1:$C$1005,2,0))) ->  | F80: =IF(D80="","",(VLOOKUP(D80,'Membership #'!$A$1:$C$1005,3,0))) -> 
E81: =IF(D81="","",(VLOOKUP(D81,'Membership #'!$A$1:$C$1005,2,0))) ->  | F81: =IF(D81="","",(VLOOKUP(D81,'Membership #'!$A$1:$C$1005,3,0))) -> 
E82: =IF(D82="","",(VLOOKUP(D82,'Membership #'!$A$1:$C$1005,2,0))) ->  | F82: =IF(D82="","",(VLOOKUP(D82,'Membership #'!$A$1:$C$1005,3,0))) -> 
E83: =IF(D83="","",(VLOOKUP(D83,'Membership #'!$A$1:$C$1005,2,0))) ->  | F83: =IF(D83="","",(VLOOKUP(D83,'Membership #'!$A$1:$C$1005,3,0))) -> 
E84: =IF(D84="","",(VLOOKUP(D84,'Membership #'!$A$1:$C$1005,2,0))) ->  | F84: =IF(D84="","",(VLOOKUP(D84,'Membership #'!$A$1:$C$1005,3,0))) -> 
E85: =IF(D85="","",(VLOOKUP(D85,'Membership #'!$A$1:$C$1005,2,0))) ->  | F85: =IF(D85="","",(VLOOKUP(D85,'Membership #'!$A$1:$C$1005,3,0))) -> 
E86: =IF(D86="","",(VLOOKUP(D86,'Membership #'!$A$1:$C$1005,2,0))) ->  | F86: =IF(D86="","",(VLOOKUP(D86,'Membership #'!$A$1:$C$1005,3,0))) -> 
E87: =IF(D87="","",(VLOOKUP(D87,'Membership #'!$A$1:$C$1005,2,0))) ->  | F87: =IF(D87="","",(VLOOKUP(D87,'Membership #'!$A$1:$C$1005,3,0))) -> 
E88: =IF(D88="","",(VLOOKUP(D88,'Membership #'!$A$1:$C$1005,2,0))) ->  | F88: =IF(D88="","",(VLOOKUP(D88,'Membership #'!$A$1:$C$1005,3,0))) -> 
E89: =IF(D89="","",(VLOOKUP(D89,'Membership #'!$A$1:$C$1005,2,0))) ->  | F89: =IF(D89="","",(VLOOKUP(D89,'Membership #'!$A$1:$C$1005,3,0))) -> 
E90: =IF(D90="","",(VLOOKUP(D90,'Membership #'!$A$1:$C$1005,2,0))) ->  | F90: =IF(D90="","",(VLOOKUP(D90,'Membership #'!$A$1:$C$1005,3,0))) -> 
E91: =IF(D91="","",(VLOOKUP(D91,'Membership #'!$A$1:$C$1005,2,0))) ->  | F91: =IF(D91="","",(VLOOKUP(D91,'Membership #'!$A$1:$C$1005,3,0))) -> 
E92: =IF(D92="","",(VLOOKUP(D92,'Membership #'!$A$1:$C$1005,2,0))) ->  | F92: =IF(D92="","",(VLOOKUP(D92,'Membership #'!$A$1:$C$1005,3,0))) -> 
E93: =IF(D93="","",(VLOOKUP(D93,'Membership #'!$A$1:$C$1005,2,0))) ->  | F93: =IF(D93="","",(VLOOKUP(D93,'Membership #'!$A$1:$C$1005,3,0))) -> 
E94: =IF(D94="","",(VLOOKUP(D94,'Membership #'!$A$1:$C$1005,2,0))) ->  | F94: =IF(D94="","",(VLOOKUP(D94,'Membership #'!$A$1:$C$1005,3,0))) -> 
E95: =IF(D95="","",(VLOOKUP(D95,'Membership #'!$A$1:$C$1005,2,0))) ->  | F95: =IF(D95="","",(VLOOKUP(D95,'Membership #'!$A$1:$C$1005,3,0))) -> 
E96: =IF(D96="","",(VLOOKUP(D96,'Membership #'!$A$1:$C$1005,2,0))) ->  | F96: =IF(D96="","",(VLOOKUP(D96,'Membership #'!$A$1:$C$1005,3,0))) -> 
E97: =IF(D97="","",(VLOOKUP(D97,'Membership #'!$A$1:$C$1005,2,0))) ->  | F97: =IF(D97="","",(VLOOKUP(D97,'Membership #'!$A$1:$C$1005,3,0))) -> 

Sheet OPEN POLES
A1: Tom Burt & Mark McGuire Memorial Jackpot Aug 21, 2021 | M1: x=Scratch
A2: OPEN POLES | M2: n=No Time
A3: # Enteries: | E3: =COUNTIF($D$8:$D$100,">0") -> 19 | R3: Don't Erase these numbers below!!
A4: Rand Draw | B4: Seed | C4: Running Order | D4: RING # | E4: NAME | F4: HORSE NAME | G4: TIME | H4: PENALTY | I4: TOTAL | J4: PLACINGS | K4: POINTS | R4: =IF(N9=2,7,IF(N9=3,6,IF(N9=4,5,IF(N9=5,4,IF(AND(N9>5,N11>600),3,IF(AND(N9>5,N11<600,N11>299.99),2,IF(AND(N9>5,N11<300),1,8))))))) -> 2 | S4: 1 | T4: 2 | U4: 3 | V4: 4 | W4: 5 | X4: 6 | Y4: 7 | Z4: 8
S5: 299 | T5: $300- | U5: $600 -
M6: OPEN Poles | S6: or less | T6: 599 | U6: More | V6: 5 Entries | W6: 4 Entries | X6: 3 Entries | Y6: 2 Entries
R7: 1st | S7: 0.32 | T7: 0.27 | U7: 0.24 | V7: 0.35 | W7: 0.4 | X7: 0.46 | Y7: 0.6
A8: =IF(D8<>"",RAND(),"") -> 0.7823653064 | B8: =IF(D8<>"",RANK(A8,A$8:A$101),"") -> 7 | C8: 1 | D8: 703 | E8: =IF(D8="","",(VLOOKUP(D8,'Membership #'!$A$1:$C$1005,2,0))) -> Chris Baker | F8: =IF(D8="","",(VLOOKUP(D8,'Membership #'!$A$1:$C$1005,3,0))) -> Jamer All Fired Up | G8: 21.163 | I8: =IF(G8="n","No Time",IF(G8="x","Scratch",IF(G8<>"",SUM(G8+H8),""))) -> 21.163 | M8: Added | N8: 150 | R8: 2nd | S8: 0.23 | T8: 0.22 | U8: 0.19 | V8: 0.25 | W8: 0.28 | X8: 0.34 | Y8: 0.4
A9: =IF(D9<>"",RAND(),"") -> 0.8254227682 | B9: =IF(D9<>"",RANK(A9,A$8:A$101),"") -> 5 | C9: 2 | D9: 922 | E9: =IF(D9="","",(VLOOKUP(D9,'Membership #'!$A$1:$C$1005,2,0))) -> Stevi Jardine | F9: =IF(D9="","",(VLOOKUP(D9,'Membership #'!$A$1:$C$1005,3,0))) -> Paytons Pretty Cool | G9: 21.811 | I9: 21.811 | M9: Entries | N9: 19 | P9: 20 | Q9: per head | R9: 3rd | S9: 0.15 | T9: 0.18 | U9: 0.16 | V9: 0.17 | W9: 0.18 | X9: 0.2
A10: =IF(D10<>"",RAND(),"") -> 0.2445694859 | B10: =IF(D10<>"",RANK(A10,A$8:A$101),"") -> 18 | C10: 3 | D10: 616 | E10: =IF(D10="","",(VLOOKUP(D10,'Membership #'!$A$1:$C$1005,2,0))) -> Judy Bateman | F10: =IF(D10="","",(VLOOKUP(D10,'Membership #'!$A$1:$C$1005,3,0))) -> HM HollywoodRockstar | G10: 22.786 | I10: 22.786 | M10: Jackpot | N10: =P9*N9 -> 380 | P10: 0.85 | Q10: payback | R10: 4th | S10: 0.12 | T10: 0.13 | U10: 0.13 | V10: 0.13 | W10: 0.14
A11: =IF(D11<>"",RAND(),"") -> 0.2494435186 | B11: =IF(D11<>"",RANK(A11,A$8:A$101),"") -> 17 | C11: 4 | D11: 892 | E11: =IF(D11="","",(VLOOKUP(D11,'Membership #'!$A$1:$C$1005,2,0))) -> Donnie MacNeil | F11: =IF(D11="","",(VLOOKUP(D11,'Membership #'!$A$1:$C$1005,3,0))) -> Gifted Go Gold | G11: 23.753 | I11: 23.753 | M11: Total Money | N11: =N8+(N10*P10) -> 473 | P11: =N10*P10 -> 323 | Q11: Jackpot | R11: 5th | S11: 0.1 | T11: 0.09 | U11: 0.08 | V11: 0.1
A12: 0.6546562935 | B12: 11 | C12: 5 | D12: 855 | E12: =IF(D12="","",(VLOOKUP(D12,'Membership #'!$A$1:$C$1005,2,0))) -> Jenelle Collier | F12: =IF(D12="","",(VLOOKUP(D12,'Membership #'!$A$1:$C$1005,3,0))) -> Peppy Sans Surprise | G12: 24.037 | I12: 24.037 | N12: Percentage | O12: Money | P12: Ring # | R12: 6th | S12: 0.08 | T12: 0.06 | U12: 0.06
A13: 0.430277134 | B13: 15 | C13: 6 | D13: 904 | E13: =IF(D13="","",(VLOOKUP(D13,'Membership #'!$A$1:$C$1005,2,0))) -> Ella Cowley | F13: =IF(D13="","",(VLOOKUP(D13,'Membership #'!$A$1:$C$1005,3,0))) -> Blazin Boots | G13: 24.611 | I13: 24.611 | M13: 1st | N13: =HLOOKUP($R$4,$S$4:$Z$17,4,0) -> 0.27 | O13: =IF(N13<>0,N$11*N13,"") -> 127.71 | Q13: =IF(P13="","",(VLOOKUP(P13,'Membership #'!$A$1:$C$1005,2,0))) ->  | R13: 7th | T13: 0.03 | U13: 0.05
A14: 0.9017449922 | B14: 3 | C14: 7 | D14: 684 | E14: =IF(D14="","",(VLOOKUP(D14,'Membership #'!$A$1:$C$1005,2,0))) -> Shann Cox | F14: =IF(D14="","",(VLOOKUP(D14,'Membership #'!$A$1:$C$1005,3,0))) -> Jags Cash Flow | G14: 21.401 | H14: 5 | I14: 26.401 | M14: 2nd | N14: =HLOOKUP($R$4,$S$4:$Z$17,5,0) -> 0.22 | O14: 104.06 | Q14: =IF(P14="","",(VLOOKUP(P14,'Membership #'!$A$1:$C$1005,2,0))) ->  | R14: 8th | T14: 0.02 | U14: 0.04
A15: 0.9633073808 | B15: 1 | C15: 8 | D15: 516 | E15: =IF(D15="","",(VLOOKUP(D15,'Membership #'!$A$1:$C$1005,2,0))) -> Laurie Don Reginato | F15: =IF(D15="","",(VLOOKUP(D15,'Membership #'!$A$1:$C$1005,3,0))) -> TCR Gold Runny | G15: 22.015 | H15: 5 | I15: 27.015 | M15: 3rd | N15: =HLOOKUP($R$4,$S$4:$Z$17,6,0) -> 0.18 | O15: 85.14 | Q15: =IF(P15="","",(VLOOKUP(P15,'Membership #'!$A$1:$C$1005,2,0))) ->  | R15: 9th | U15: 0.03
A16: 0.7623449336 | B16: 8 | C16: 9 | D16: 700 | E16: =IF(D16="","",(VLOOKUP(D16,'Membership #'!$A$1:$C$1005,2,0))) -> Lindsay Baker | F16: =IF(D16="","",(VLOOKUP(D16,'Membership #'!$A$1:$C$1005,3,0))) -> Boons Laughing Boy | G16: 22.03 | H16: 5 | I16: 27.03 | M16: 4th | N16: =HLOOKUP($R$4,$S$4:$Z$17,7,0) -> 0.13 | O16: 61.49 | Q16: =IF(P16="","",(VLOOKUP(P16,'Membership #'!$A$1:$C$1005,2,0))) ->  | R16: 10th | U16: 0.02
A17: 0.5868089743 | B17: 12 | C17: 10 | D17: 914 | E17: =IF(D17="","",(VLOOKUP(D17,'Membership #'!$A$1:$C$1005,2,0))) -> Shelby MacPherson | F17: =IF(D17="","",(VLOOKUP(D17,'Membership #'!$A$1:$C$1005,3,0))) -> Shelbys Badger Bar | G17: 22.773 | H17: 5 | I17: 27.773 | M17: 5th | N17: =HLOOKUP($R$4,$S$4:$Z$17,8,0) -> 0.09 | O17: 42.57 | Q17: =IF(P17="","",(VLOOKUP(P17,'Membership #'!$A$1:$C$1005,2,0))) -> 
A18: 0.727707335 | B18: 10 | C18: 11 | D18: 695 | E18: =IF(D18="","",(VLOOKUP(D18,'Membership #'!$A$1:$C$1005,2,0))) -> Tessa Dicks | F18: =IF(D18="","",(VLOOKUP(D18,'Membership #'!$A$1:$C$1005,3,0))) -> Charge's Dusty Luck | G18: 23.184 | H18: 5 | I18: 28.184 | M18: 6th | N18: =HLOOKUP($R$4,$S$4:$Z$17,9,0) -> 0.06 | O18: 28.38 | Q18: =IF(P18="","",(VLOOKUP(P18,'Membership #'!$A$1:$C$1005,2,0))) -> 
A19: 0.554136467 | B19: 13 | C19: 12 | D19: 732 | E19: =IF(D19="","",(VLOOKUP(D19,'Membership #'!$A$1:$C$1005,2,0))) -> Brenna Carrigan | F19: =IF(D19="","",(VLOOKUP(D19,'Membership #'!$A$1:$C$1005,3,0))) -> Carlos | G19: 29.388 | I19: 29.388 | M19: 7th | N19: =HLOOKUP($R$4,$S$4:$Z$17,10,0) -> 0.03 | O19: 14.19 | Q19: =IF(P19="","",(VLOOKUP(P19,'Membership #'!$A$1:$C$1005,2,0))) -> 
A20: 0.32902523 | B20: 16 | C20: 13 | D20: 777 | E20: =IF(D20="","",(VLOOKUP(D20,'Membership #'!$A$1:$C$1005,2,0))) -> Julia Parker | F20: =IF(D20="","",(VLOOKUP(D20,'Membership #'!$A$1:$C$1005,3,0))) -> Doc's Spirit Prairie | G20: 23.003 | H20: 10 | I20: 33.003 | M20: 8th | N20: =HLOOKUP($R$4,$S$4:$Z$17,11,0) -> 0.02 | O20: 9.46 | Q20: =IF(P20="","",(VLOOKUP(P20,'Membership #'!$A$1:$C$1005,2,0))) -> 
A21: 0.9126061401 | B21: 2 | C21: 14 | D21: 973 | E21: =IF(D21="","",(VLOOKUP(D21,'Membership #'!$A$1:$C$1005,2,0))) -> Sara Ivey | F21: =IF(D21="","",(VLOOKUP(D21,'Membership #'!$A$1:$C$1005,3,0))) -> Ms Heavenly Gator | G21: 34.69 | H21: 5 | I21: 39.69 | M21: 9th | N21: =HLOOKUP($R$4,$S$4:$Z$17,12,0) -> 0 | Q21: =IF(P21="","",(VLOOKUP(P21,'Membership #'!$A$1:$C$1005,2,0))) -> 
A22: 0.4592073722 | B22: 14 | C22: 15 | D22: 971 | E22: =IF(D22="","",(VLOOKUP(D22,'Membership #'!$A$1:$C$1005,2,0))) -> Arielle Burke | F22: =IF(D22="","",(VLOOKUP(D22,'Membership #'!$A$1:$C$1005,3,0))) -> Elm Sally | G22: 42.372 | I22: 42.372 | M22: 10th | N22: =HLOOKUP($R$4,$S$4:$Z$17,13,0) -> 0 | Q22: =IF(P22="","",(VLOOKUP(P22,'Membership #'!$A$1:$C$1005,2,0))) -> 
A23: 0.7862853112 | B23: 6 | C23: 16 | D23: 698 | E23: =IF(D23="","",(VLOOKUP(D23,'Membership #'!$A$1:$C$1005,2,0))) -> Kaleigh Denton | F23: =IF(D23="","",(VLOOKUP(D23,'Membership #'!$A$1:$C$1005,3,0))) -> Coleasaki | G23: 52.609 | H23: 10 | I23: 62.609 | M23: Total Money | O23: =SUM(O13:O22) -> 473
A24: 0.7551490753 | B24: 9 | C24: 17 | D24: 538 | E24: =IF(D24="","",(VLOOKUP(D24,'Membership #'!$A$1:$C$1005,2,0))) -> Jean DuGas | F24: =IF(D24="","",(VLOOKUP(D24,'Membership #'!$A$1:$C$1005,3,0))) -> Pal's Lilguy | G24: x | I24: Scratch
A25: 0.1330026878 | B25: 19 | C25: 18 | D25: 674 | E25: =IF(D25="","",(VLOOKUP(D25,'Membership #'!$A$1:$C$1005,2,0))) -> Kyle Beaton | F25: =IF(D25="","",(VLOOKUP(D25,'Membership #'!$A$1:$C$1005,3,0))) -> Jus For Kicks | G25: x | I25: Scratch
A26: 0.8885925995 | B26: 4 | C26: 19 | D26: 78 | E26: =IF(D26="","",(VLOOKUP(D26,'Membership #'!$A$1:$C$1005,2,0))) -> Stephanie Rich | F26: =IF(D26="","",(VLOOKUP(D26,'Membership #'!$A$1:$C$1005,3,0))) -> Texas Mickey | G26: x | I26: Scratch
E27: =IF(D27="","",(VLOOKUP(D27,'Membership #'!$A$1:$C$1005,2,0))) ->  | F27: =IF(D27="","",(VLOOKUP(D27,'Membership #'!$A$1:$C$1005,3,0))) ->  | I27: =IF(G27="n","No Time",IF(G27="x","Scratch",IF(G27<>"",SUM(G27+H27),""))) -> 
E28: =IF(D28="","",(VLOOKUP(D28,'Membership #'!$A$1:$C$1005,2,0))) ->  | F28: =IF(D28="","",(VLOOKUP(D28,'Membership #'!$A$1:$C$1005,3,0))) -> 
E29: =IF(D29="","",(VLOOKUP(D29,'Membership #'!$A$1:$C$1005,2,0))) ->  | F29: =IF(D29="","",(VLOOKUP(D29,'Membership #'!$A$1:$C$1005,3,0))) -> 
E30: =IF(D30="","",(VLOOKUP(D30,'Membership #'!$A$1:$C$1005,2,0))) ->  | F30: =IF(D30="","",(VLOOKUP(D30,'Membership #'!$A$1:$C$1005,3,0))) -> 
A31: =IF(D31<>"",RAND(),"") ->  | B31: =IF(D31<>"",RANK(A31,A$8:A$101),"") ->  | E31: =IF(D31="","",(VLOOKUP(D31,'Membership #'!$A$1:$C$1005,2,0))) ->  | F31: =IF(D31="","",(VLOOKUP(D31,'Membership #'!$A$1:$C$1005,3,0))) ->  | I31: =IF(G31="n","No Time",IF(G31="x","Scratch",IF(G31<>"",SUM(G31+H31),""))) -> 
E32: =IF(D32="","",(VLOOKUP(D32,'Membership #'!$A$1:$C$1005,2,0))) ->  | F32: =IF(D32="","",(VLOOKUP(D32,'Membership #'!$A$1:$C$1005,3,0))) -> 
E33: =IF(D33="","",(VLOOKUP(D33,'Membership #'!$A$1:$C$1005,2,0))) ->  | F33: =IF(D33="","",(VLOOKUP(D33,'Membership #'!$A$1:$C$1005,3,0))) -> 
E34: =IF(D34="","",(VLOOKUP(D34,'Membership #'!$A$1:$C$1005,2,0))) ->  | F34: =IF(D34="","",(VLOOKUP(D34,'Membership #'!$A$1:$C$1005,3,0))) ->  | I34: =IF(G34="n","No Time",IF(G34="x","Scratch",IF(G34<>"",SUM(G34+H34),""))) -> 
E35: =IF(D35="","",(VLOOKUP(D35,'Membership #'!$A$1:$C$1005,2,0))) ->  | F35: =IF(D35="","",(VLOOKUP(D35,'Membership #'!$A$1:$C$1005,3,0))) ->  | I35: =IF(G35="n","No Time",IF(G35="x","Scratch",IF(G35<>"",SUM(G35+H35),""))) -> 
E36: =IF(D36="","",(VLOOKUP(D36,'Membership #'!$A$1:$C$1005,2,0))) ->  | F36: =IF(D36="","",(VLOOKUP(D36,'Membership #'!$A$1:$C$1005,3,0))) -> 
E37: =IF(D37="","",(VLOOKUP(D37,'Membership #'!$A$1:$C$1005,2,0))) ->  | F37: =IF(D37="","",(VLOOKUP(D37,'Membership #'!$A$1:$C$1005,3,0))) -> 
E38: =IF(D38="","",(VLOOKUP(D38,'Membership #'!$A$1:$C$1005,2,0))) ->  | F38: =IF(D38="","",(VLOOKUP(D38,'Membership #'!$A$1:$C$1005,3,0))) ->  | I38: =IF(G38="n","No Time",IF(G38="x","Scratch",IF(G38<>"",SUM(G38+H38),""))) -> 
E39: =IF(D39="","",(VLOOKUP(D39,'Membership #'!$A$1:$C$1005,2,0))) ->  | F39: =IF(D39="","",(VLOOKUP(D39,'Membership #'!$A$1:$C$1005,3,0))) -> 
B40: =IF(D40<>"",RANK(A40,A$8:A$101),"") ->  | E40: =IF(D40="","",(VLOOKUP(D40,'Membership #'!$A$1:$C$1005,2,0))) ->  | F40: =IF(D40="","",(VLOOKUP(D40,'Membership #'!$A$1:$C$1005,3,0))) -> 
E41: =IF(D41="","",(VLOOKUP(D41,'Membership #'!$A$1:$C$1005,2,0))) ->  | F41: =IF(D41="","",(VLOOKUP(D41,'Membership #'!$A$1:$C$1005,3,0))) -> 
E42: =IF(D42="","",(VLOOKUP(D42,'Membership #'!$A$1:$C$1005,2,0))) ->  | F42: =IF(D42="","",(VLOOKUP(D42,'Membership #'!$A$1:$C$1005,3,0))) -> 
E43: =IF(D43="","",(VLOOKUP(D43,'Membership #'!$A$1:$C$1005,2,0))) ->  | F43: =IF(D43="","",(VLOOKUP(D43,'Membership #'!$A$1:$C$1005,3,0))) -> 
E44: =IF(D44="","",(VLOOKUP(D44,'Membership #'!$A$1:$C$1005,2,0))) ->  | F44: =IF(D44="","",(VLOOKUP(D44,'Membership #'!$A$1:$C$1005,3,0))) -> 
E45: =IF(D45="","",(VLOOKUP(D45,'Membership #'!$A$1:$C$1005,2,0))) ->  | F45: =IF(D45="","",(VLOOKUP(D45,'Membership #'!$A$1:$C$1005,3,0))) -> 
E46: =IF(D46="","",(VLOOKUP(D46,'Membership #'!$A$1:$C$1005,2,0))) ->  | F46: =IF(D46="","",(VLOOKUP(D46,'Membership #'!$A$1:$C$1005,3,0))) -> 
E47: =IF(D47="","",(VLOOKUP(D47,'Membership #'!$A$1:$C$1005,2,0))) ->  | F47: =IF(D47="","",(VLOOKUP(D47,'Membership #'!$A$1:$C$1005,3,0))) -> 
E48: =IF(D48="","",(VLOOKUP(D48,'Membership #'!$A$1:$C$1005,2,0))) ->  | F48: =IF(D48="","",(VLOOKUP(D48,'Membership #'!$A$1:$C$1005,3,0))) -> 
E49: =IF(D49="","",(VLOOKUP(D49,'Membership #'!$A$1:$C$1005,2,0))) ->  | F49: =IF(D49="","",(VLOOKUP(D49,'Membership #'!$A$1:$C$1005,3,0))) -> 
E50: =IF(D50="","",(VLOOKUP(D50,'Membership #'!$A$1:$C$1005,2,0))) ->  | F50: =IF(D50="","",(VLOOKUP(D50,'Membership #'!$A$1:$C$1005,3,0))) -> 
E51: =IF(D51="","",(VLOOKUP(D51,'Membership #'!$A$1:$C$1005,2,0))) ->  | F51: =IF(D51="","",(VLOOKUP(D51,'Membership #'!$A$1:$C$1005,3,0))) -> 
E52: =IF(D52="","",(VLOOKUP(D52,'Membership #'!$A$1:$C$1005,2,0))) ->  | F52: =IF(D52="","",(VLOOKUP(D52,'Membership #'!$A$1:$C$1005,3,0))) -> 
E53: =IF(D53="","",(VLOOKUP(D53,'Membership #'!$A$1:$C$1005,2,0))) ->  | F53: =IF(D53="","",(VLOOKUP(D53,'Membership #'!$A$1:$C$1005,3,0))) -> 
E54: =IF(D54="","",(VLOOKUP(D54,'Membership #'!$A$1:$C$1005,2,0))) ->  | F54: =IF(D54="","",(VLOOKUP(D54,'Membership #'!$A$1:$C$1005,3,0))) -> 
E55: =IF(D55="","",(VLOOKUP(D55,'Membership #'!$A$1:$C$1005,2,0))) ->  | F55: =IF(D55="","",(VLOOKUP(D55,'Membership #'!$A$1:$C$1005,3,0))) -> 
E56: =IF(D56="","",(VLOOKUP(D56,'Membership #'!$A$1:$C$1005,2,0))) ->  | F56: =IF(D56="","",(VLOOKUP(D56,'Membership #'!$A$1:$C$1005,3,0))) -> 
E57: =IF(D57="","",(VLOOKUP(D57,'Membership #'!$A$1:$C$1005,2,0))) ->  | F57: =IF(D57="","",(VLOOKUP(D57,'Membership #'!$A$1:$C$1005,3,0))) -> 
E58: =IF(D58="","",(VLOOKUP(D58,'Membership #'!$A$1:$C$1005,2,0))) ->  | F58: =IF(D58="","",(VLOOKUP(D58,'Membership #'!$A$1:$C$1005,3,0))) -> 
E59: =IF(D59="","",(VLOOKUP(D59,'Membership #'!$A$1:$C$1005,2,0))) ->  | F59: =IF(D59="","",(VLOOKUP(D59,'Membership #'!$A$1:$C$1005,3,0))) -> 
E60: =IF(D60="","",(VLOOKUP(D60,'Membership #'!$A$1:$C$1005,2,0))) ->  | F60: =IF(D60="","",(VLOOKUP(D60,'Membership #'!$A$1:$C$1005,3,0))) -> 
E61: =IF(D61="","",(VLOOKUP(D61,'Membership #'!$A$1:$C$1005,2,0))) ->  | F61: =IF(D61="","",(VLOOKUP(D61,'Membership #'!$A$1:$C$1005,3,0))) -> 
E62: =IF(D62="","",(VLOOKUP(D62,'Membership #'!$A$1:$C$1005,2,0))) ->  | F62: =IF(D62="","",(VLOOKUP(D62,'Membership #'!$A$1:$C$1005,3,0))) -> 
E63: =IF(D63="","",(VLOOKUP(D63,'Membership #'!$A$1:$C$1005,2,0))) ->  | F63: =IF(D63="","",(VLOOKUP(D63,'Membership #'!$A$1:$C$1005,3,0))) -> 
E64: =IF(D64="","",(VLOOKUP(D64,'Membership #'!$A$1:$C$1005,2,0))) ->  | F64: =IF(D64="","",(VLOOKUP(D64,'Membership #'!$A$1:$C$1005,3,0))) -> 
E65: =IF(D65="","",(VLOOKUP(D65,'Membership #'!$A$1:$C$1005,2,0))) ->  | F65: =IF(D65="","",(VLOOKUP(D65,'Membership #'!$A$1:$C$1005,3,0))) -> 
E66: =IF(D66="","",(VLOOKUP(D66,'Membership #'!$A$1:$C$1005,2,0))) ->  | F66: =IF(D66="","",(VLOOKUP(D66,'Membership #'!$A$1:$C$1005,3,0))) -> 
E67: =IF(D67="","",(VLOOKUP(D67,'Membership #'!$A$1:$C$1005,2,0))) ->  | F67: =IF(D67="","",(VLOOKUP(D67,'Membership #'!$A$1:$C$1005,3,0))) -> 
E68: =IF(D68="","",(VLOOKUP(D68,'Membership #'!$A$1:$C$1005,2,0))) ->  | F68: =IF(D68="","",(VLOOKUP(D68,'Membership #'!$A$1:$C$1005,3,0))) -> 
E69: =IF(D69="","",(VLOOKUP(D69,'Membership #'!$A$1:$C$1005,2,0))) ->  | F69: =IF(D69="","",(VLOOKUP(D69,'Membership #'!$A$1:$C$1005,3,0))) -> 
E70: =IF(D70="","",(VLOOKUP(D70,'Membership #'!$A$1:$C$1005,2,0))) ->  | F70: =IF(D70="","",(VLOOKUP(D70,'Membership #'!$A$1:$C$1005,3,0))) -> 
E71: =IF(D71="","",(VLOOKUP(D71,'Membership #'!$A$1:$C$1005,2,0))) ->  | F71: =IF(D71="","",(VLOOKUP(D71,'Membership #'!$A$1:$C$1005,3,0))) -> 
B72: =IF(D72<>"",RANK(A72,A$8:A$101),"") ->  | E72: =IF(D72="","",(VLOOKUP(D72,'Membership #'!$A$1:$C$1005,2,0))) ->  | F72: =IF(D72="","",(VLOOKUP(D72,'Membership #'!$A$1:$C$1005,3,0))) -> 
E73: =IF(D73="","",(VLOOKUP(D73,'Membership #'!$A$1:$C$1005,2,0))) ->  | F73: =IF(D73="","",(VLOOKUP(D73,'Membership #'!$A$1:$C$1005,3,0))) ->  | I73: =IF(G73="n","No Time",IF(G73="x","Scratch",IF(G73<>"",SUM(G73+H73),""))) -> 
E74: =IF(D74="","",(VLOOKUP(D74,'Membership #'!$A$1:$C$1005,2,0))) ->  | F74: =IF(D74="","",(VLOOKUP(D74,'Membership #'!$A$1:$C$1005,3,0))) -> 
E75: =IF(D75="","",(VLOOKUP(D75,'Membership #'!$A$1:$C$1005,2,0))) ->  | F75: =IF(D75="","",(VLOOKUP(D75,'Membership #'!$A$1:$C$1005,3,0))) -> 
E76: =IF(D76="","",(VLOOKUP(D76,'Membership #'!$A$1:$C$1005,2,0))) ->  | F76: =IF(D76="","",(VLOOKUP(D76,'Membership #'!$A$1:$C$1005,3,0))) -> 
E77: =IF(D77="","",(VLOOKUP(D77,'Membership #'!$A$1:$C$1005,2,0))) ->  | F77: =IF(D77="","",(VLOOKUP(D77,'Membership #'!$A$1:$C$1005,3,0))) -> 
E78: =IF(D78="","",(VLOOKUP(D78,'Membership #'!$A$1:$C$1005,2,0))) ->  | F78: =IF(D78="","",(VLOOKUP(D78,'Membership #'!$A$1:$C$1005,3,0))) -> 
E79: =IF(D79="","",(VLOOKUP(D79,'Membership #'!$A$1:$C$1005,2,0))) ->  | F79: =IF(D79="","",(VLOOKUP(D79,'Membership #'!$A$1:$C$1005,3,0))) -> 
E80: =IF(D80="","",(VLOOKUP(D80,'Membership #'!$A$1:$C$1005,2,0))) ->  | F80: =IF(D80="","",(VLOOKUP(D80,'Membership #'!$A$1:$C$1005,3,0))) -> 
E81: =IF(D81="","",(VLOOKUP(D81,'Membership #'!$A$1:$C$1005,2,0))) ->  | F81: =IF(D81="","",(VLOOKUP(D81,'Membership #'!$A$1:$C$1005,3,0))) -> 
E82: =IF(D82="","",(VLOOKUP(D82,'Membership #'!$A$1:$C$1005,2,0))) ->  | F82: =IF(D82="","",(VLOOKUP(D82,'Membership #'!$A$1:$C$1005,3,0))) -> 
E83: =IF(D83="","",(VLOOKUP(D83,'Membership #'!$A$1:$C$1005,2,0))) ->  | F83: =IF(D83="","",(VLOOKUP(D83,'Membership #'!$A$1:$C$1005,3,0))) -> 
E84: =IF(D84="","",(VLOOKUP(D84,'Membership #'!$A$1:$C$1005,2,0))) ->  | F84: =IF(D84="","",(VLOOKUP(D84,'Membership #'!$A$1:$C$1005,3,0))) -> 
E85: =IF(D85="","",(VLOOKUP(D85,'Membership #'!$A$1:$C$1005,2,0))) ->  | F85: =IF(D85="","",(VLOOKUP(D85,'Membership #'!$A$1:$C$1005,3,0))) -> 
E86: =IF(D86="","",(VLOOKUP(D86,'Membership #'!$A$1:$C$1005,2,0))) ->  | F86: =IF(D86="","",(VLOOKUP(D86,'Membership #'!$A$1:$C$1005,3,0))) -> 
A87: =IF(D87<>"",RAND(),"") ->  | E87: =IF(D87="","",(VLOOKUP(D87,'Membership #'!$A$1:$C$1005,2,0))) ->  | F87: =IF(D87="","",(VLOOKUP(D87,'Membership #'!$A$1:$C$1005,3,0))) -> 
E88: =IF(D88="","",(VLOOKUP(D88,'Membership #'!$A$1:$C$1005,2,0))) ->  | F88: =IF(D88="","",(VLOOKUP(D88,'Membership #'!$A$1:$C$1005,3,0))) -> 
E89: =IF(D89="","",(VLOOKUP(D89,'Membership #'!$A$1:$C$1005,2,0))) ->  | F89: =IF(D89="","",(VLOOKUP(D89,'Membership #'!$A$1:$C$1005,3,0))) -> 
E90: =IF(D90="","",(VLOOKUP(D90,'Membership #'!$A$1:$C$1005,2,0))) ->  | F90: =IF(D90="","",(VLOOKUP(D90,'Membership #'!$A$1:$C$1005,3,0))) -> 
E91: =IF(D91="","",(VLOOKUP(D91,'Membership #'!$A$1:$C$1005,2,0))) ->  | F91: =IF(D91="","",(VLOOKUP(D91,'Membership #'!$A$1:$C$1005,3,0))) -> 
E92: =IF(D92="","",(VLOOKUP(D92,'Membership #'!$A$1:$C$1005,2,0))) ->  | F92: =IF(D92="","",(VLOOKUP(D92,'Membership #'!$A$1:$C$1005,3,0))) -> 
E93: =IF(D93="","",(VLOOKUP(D93,'Membership #'!$A$1:$C$1005,2,0))) ->  | F93: =IF(D93="","",(VLOOKUP(D93,'Membership #'!$A$1:$C$1005,3,0))) -> 
E94: =IF(D94="","",(VLOOKUP(D94,'Membership #'!$A$1:$C$1005,2,0))) ->  | F94: =IF(D94="","",(VLOOKUP(D94,'Membership #'!$A$1:$C$1005,3,0))) -> 
E95: =IF(D95="","",(VLOOKUP(D95,'Membership #'!$A$1:$C$1005,2,0))) ->  | F95: =IF(D95="","",(VLOOKUP(D95,'Membership #'!$A$1:$C$1005,3,0))) -> 
E96: =IF(D96="","",(VLOOKUP(D96,'Membership #'!$A$1:$C$1005,2,0))) ->  | F96: =IF(D96="","",(VLOOKUP(D96,'Membership #'!$A$1:$C$1005,3,0))) -> 
E97: =IF(D97="","",(VLOOKUP(D97,'Membership #'!$A$1:$C$1005,2,0))) ->  | F97: =IF(D97="","",(VLOOKUP(D97,'Membership #'!$A$1:$C$1005,3,0))) -> 
E98: =IF(D98="","",(VLOOKUP(D98,'Membership #'!$A$1:$C$1005,2,0))) ->  | F98: =IF(D98="","",(VLOOKUP(D98,'Membership #'!$A$1:$C$1005,3,0))) -> 
E99: =IF(D99="","",(VLOOKUP(D99,'Membership #'!$A$1:$C$1005,2,0))) ->  | F99: =IF(D99="","",(VLOOKUP(D99,'Membership #'!$A$1:$C$1005,3,0))) -> 
E100: =IF(D100="","",(VLOOKUP(D100,'Membership #'!$A$1:$C$1005,2,0))) ->  | F100: =IF(D100="","",(VLOOKUP(D100,'Membership #'!$A$1:$C$1005,3,0))) -> 
E101: =IF(D101="","",(VLOOKUP(D101,'Membership #'!$A$1:$C$1005,2,0))) ->  | F101: =IF(D101="","",(VLOOKUP(D101,'Membership #'!$A$1:$C$1005,3,0))) -> 

Sheet 3D Barrels
A1: Tom Burt & Mark McGuire Memorial Jackpot Aug 21, 2021 | M1: x=Scratch
A2: 3D Barrels | M2: n=No Time
A3: # Enteries: | E3: =COUNTIF($D$8:$D$102,">0") -> 49 | R3: 1 -29 horses per class pay 3 placings
A4: Rand Draw | B4: Seed | C4: Running Order | D4: RING # | E4: NAME | F4: HORSE NAME | G4: TIME | H4: PENALTY | I4: TOTAL | J4: PLACINGS | K4: POINTS | M4: 3D Sponsored By | R4: 30 -39 horses per class pay 4 placings
R5: 40 and over horses per class pay 5 placings
M6: 3D Barrels
S7: 5 Entries | T7: 4 Entries | U7: 3 Entries | V7: 2 Entries
A8: =IF(D8<>"",RAND(),"") -> 0.2801013886 | B8: =IF(D8<>"",RANK(A8,A$8:A$105),"") ->  | C8: 1 | D8: 700 | E8: =IF(D8="","",(VLOOKUP(D8,'Membership #'!$A$1:$C$1005,2,0))) -> Lindsay Baker | F8: =IF(D8="","",(VLOOKUP(D8,'Membership #'!$A$1:$C$1005,3,0))) -> Boons Laughing Boy | G8: 14.928 | I8: =IF(G8="n","No Time",IF(G8="x","Scratch",IF(G8<>"",SUM(G8+H8),""))) -> 14.928 | J8: 1 | M8: Added | R8: 1st | S8: 0.35 | T8: 0.4 | U8: 0.5 | V8: 0.6
A9: 0.1257829636 | C9: 2 | D9: 703 | E9: =IF(D9="","",(VLOOKUP(D9,'Membership #'!$A$1:$C$1005,2,0))) -> Chris Baker | F9: =IF(D9="","",(VLOOKUP(D9,'Membership #'!$A$1:$C$1005,3,0))) -> Jamer All Fired Up | G9: 14.946 | I9: 14.946 | J9: 2 | M9: Entries | N9: 47 | P9: 15 | Q9: per head | R9: 2nd | S9: 0.25 | T9: 0.3 | U9: 0.3 | V9: 0.4
A10: 0.9865637655 | C10: 3 | D10: 538 | E10: =IF(D10="","",(VLOOKUP(D10,'Membership #'!$A$1:$C$1005,2,0))) -> Jean DuGas | F10: =IF(D10="","",(VLOOKUP(D10,'Membership #'!$A$1:$C$1005,3,0))) -> Pal's Lilguy | G10: 15.287 | I10: 15.287 | J10: 3 | M10: Jackpot | N10: =P9*N9 -> 705 | P10: 0.85 | Q10: payback | R10: 3rd | S10: 0.2 | T10: 0.2 | U10: 0.2
A11: 0.4994387898 | C11: 4 | D11: 657 | E11: =IF(D11="","",(VLOOKUP(D11,'Membership #'!$A$1:$C$1005,2,0))) -> Laura Morrison | F11: =IF(D11="","",(VLOOKUP(D11,'Membership #'!$A$1:$C$1005,3,0))) -> Steal Ta Fame | G11: 15.495 | I11: 15.495 | J11: 4 | M11: Total Money | N11: =N8+(N10*P10) -> 599.25 | P11: =N10*P10 -> 599.25 | Q11: Jackpot | R11: 4th | S11: 0.15 | T11: 0.1
A12: 0.9161892595 | C12: 5 | D12: 647 | E12: =IF(D12="","",(VLOOKUP(D12,'Membership #'!$A$1:$C$1005,2,0))) -> Courtney Parker | F12: =IF(D12="","",(VLOOKUP(D12,'Membership #'!$A$1:$C$1005,3,0))) -> BW Rare Kinda Love | G12: 15.615 | I12: 15.615 | J12: 5 | M12: 1D | N12: Percentage | O12: Money | P12: Ring # | R12: 5th | S12: 0.05
A13: 0.6574191888 | C13: 6 | D13: 918 | E13: =IF(D13="","",(VLOOKUP(D13,'Membership #'!$A$1:$C$1005,2,0))) -> Keira Rose | F13: =IF(D13="","",(VLOOKUP(D13,'Membership #'!$A$1:$C$1005,3,0))) -> LL Its All About Red | G13: 15.67 | I13: 15.67 | M13: 1st | N13: 0.35 | O13: =N$11/3*N13 -> 69.9125 | Q13: =IF(P13="","",(VLOOKUP(P13,'Membership #'!$A$1:$C$1005,2,0))) -> 
A14: 0.05866630479 | C14: 7 | D14: 556 | E14: =IF(D14="","",(VLOOKUP(D14,'Membership #'!$A$1:$C$1005,2,0))) -> Stephaine Clark | F14: =IF(D14="","",(VLOOKUP(D14,'Membership #'!$A$1:$C$1005,3,0))) -> Perks A Flyin | G14: 15.697 | I14: 15.697 | M14: 2nd | N14: 0.25 | O14: =N$11/3*N14 -> 49.9375 | Q14: =IF(P14="",0,(VLOOKUP(P14,'Membership #'!$A$1:$C$1005,2,0))) -> 0
A15: 0.8238629671 | C15: 8 | D15: 750 | E15: =IF(D15="","",(VLOOKUP(D15,'Membership #'!$A$1:$C$1005,2,0))) -> Tanya Kennedy | F15: =IF(D15="","",(VLOOKUP(D15,'Membership #'!$A$1:$C$1005,3,0))) -> Old Stations Pride | G15: 15.703 | I15: 15.703 | M15: 3rd | N15: 0.2 | O15: =N$11/3*N15 -> 39.95 | Q15: =IF(P15="",0,(VLOOKUP(P15,'Membership #'!$A$1:$C$1005,2,0))) -> 0
A16: 0.8759500484 | C16: 9 | D16: 516 | E16: =IF(D16="","",(VLOOKUP(D16,'Membership #'!$A$1:$C$1005,2,0))) -> Laurie Don Reginato | F16: =IF(D16="","",(VLOOKUP(D16,'Membership #'!$A$1:$C$1005,3,0))) -> TCR Gold Runny | G16: 15.734 | I16: 15.734 | M16: 4th | N16: 0.15 | O16: =N$11/3*N16 -> 29.9625 | Q16: =IF(P16="",0,(VLOOKUP(P16,'Membership #'!$A$1:$C$1005,2,0))) -> 0
A17: 0.3846091016 | C17: 10 | D17: 698 | E17: =IF(D17="","",(VLOOKUP(D17,'Membership #'!$A$1:$C$1005,2,0))) -> Kaleigh Denton | F17: =IF(D17="","",(VLOOKUP(D17,'Membership #'!$A$1:$C$1005,3,0))) -> Coleasaki | G17: 15.748 | I17: 15.748 | M17: 5th | N17: 0.05 | O17: =N$11/3*N17 -> 9.9875 | Q17: =IF(P17="","",(VLOOKUP(P17,'Membership #'!$A$1:$C$1005,2,0))) -> 
A18: 0.04858607058 | C18: 11 | D18: 684 | E18: =IF(D18="","",(VLOOKUP(D18,'Membership #'!$A$1:$C$1005,2,0))) -> Shann Cox | F18: =IF(D18="","",(VLOOKUP(D18,'Membership #'!$A$1:$C$1005,3,0))) -> Jags Cash Flow | G18: 15.855 | I18: 15.855 | M18: 2D | N18: Percentage | O18: Money | P18: Ring #
A19: 0.5908530491 | C19: 12 | D19: 892 | E19: =IF(D19="","",(VLOOKUP(D19,'Membership #'!$A$1:$C$1005,2,0))) -> Donnie MacNeil | F19: =IF(D19="","",(VLOOKUP(D19,'Membership #'!$A$1:$C$1005,3,0))) -> Gifted Go Gold | G19: 15.879 | I19: 15.879 | M19: 1st | N19: 0.35 | O19: =N$11/3*N19 -> 69.9125 | Q19: =IF(P19="","",(VLOOKUP(P19,'Membership #'!$A$1:$C$1005,2,0))) -> 
A20: 0.5101872964 | C20: 13 | D20: 815 | E20: =IF(D20="","",(VLOOKUP(D20,'Membership #'!$A$1:$C$1005,2,0))) -> Brooke Kennedy | F20: =IF(D20="","",(VLOOKUP(D20,'Membership #'!$A$1:$C$1005,3,0))) -> Tic Toc Teazer | G20: 15.925 | I20: 15.925 | M20: 2nd | N20: 0.25 | O20: =N$11/3*N20 -> 49.9375 | Q20: =IF(P20="","",(VLOOKUP(P20,'Membership #'!$A$1:$C$1005,2,0))) -> 
A21: 0.8768485144 | C21: 14 | D21: 655 | E21: =IF(D21="","",(VLOOKUP(D21,'Membership #'!$A$1:$C$1005,2,0))) -> Julia Parker | F21: =IF(D21="","",(VLOOKUP(D21,'Membership #'!$A$1:$C$1005,3,0))) -> Boons Feature Star | G21: 16.023 | I21: 16.023 | J21: 1 | M21: 3rd | N21: 0.2 | O21: =N$11/3*N21 -> 39.95 | Q21: =IF(P21="","",(VLOOKUP(P21,'Membership #'!$A$1:$C$1005,2,0))) -> 
A22: 0.9813068177 | C22: 15 | D22: 914 | E22: =IF(D22="","",(VLOOKUP(D22,'Membership #'!$A$1:$C$1005,2,0))) -> Shelby MacPherson | F22: =IF(D22="","",(VLOOKUP(D22,'Membership #'!$A$1:$C$1005,3,0))) -> Shelbys Badger Bar | G22: 16.253 | I22: 16.253 | J22: 2 | M22: 4th | N22: 0.15 | O22: =N$11/3*N22 -> 29.9625 | Q22: =IF(P22="","",(VLOOKUP(P22,'Membership #'!$A$1:$C$1005,2,0))) -> 
A23: 0.3228823165 | C23: 16 | D23: 616 | E23: =IF(D23="","",(VLOOKUP(D23,'Membership #'!$A$1:$C$1005,2,0))) -> Judy Bateman | F23: =IF(D23="","",(VLOOKUP(D23,'Membership #'!$A$1:$C$1005,3,0))) -> HM HollywoodRockstar | G23: 16.34 | I23: 16.34 | J23: 3 | M23: 5th | N23: 0.05 | O23: =N$11/3*N23 -> 9.9875 | Q23: =IF(P23="","",(VLOOKUP(P23,'Membership #'!$A$1:$C$1005,2,0))) -> 
C24: 17 | D24: 904 | E24: =IF(D24="","",(VLOOKUP(D24,'Membership #'!$A$1:$C$1005,2,0))) -> Ella Cowley | F24: =IF(D24="","",(VLOOKUP(D24,'Membership #'!$A$1:$C$1005,3,0))) -> Blazin Boots | G24: 16.412 | I24: 16.412 | J24: 4
A25: =IF(#REF!<>"",RAND(),"") ->  | B25: =IF(#REF!<>"",RANK(A25,A$8:A$105),"") ->  | C25: 18 | D25: 518 | E25: =IF(D25="","",(VLOOKUP(D25,'Membership #'!$A$1:$C$1005,2,0))) -> Sylvester Weatherbie | F25: =IF(D25="","",(VLOOKUP(D25,'Membership #'!$A$1:$C$1005,3,0))) -> J.R. | G25: 16.807 | I25: 16.807 | J25: 5 | M25: 3D | N25: Percentage | O25: Money | P25: Ring #
A26: =IF(D25<>"",RAND(),"") -> 0.5663467481 | B26: =IF(D25<>"",RANK(A26,A$8:A$105),"") ->  | C26: 19 | D26: 563 | E26: =IF(D26="","",(VLOOKUP(D26,'Membership #'!$A$1:$C$1005,2,0))) -> Kevin Bateman | F26: =IF(D26="","",(VLOOKUP(D26,'Membership #'!$A$1:$C$1005,3,0))) -> Jess Chasin A Hobby | G26: 17.041 | I26: 17.041 | J26: 1 | M26: 1st | N26: 0.35 | O26: =N$11/3*N26 -> 69.9125 | Q26: =IF(P26="","",(VLOOKUP(P26,'Membership #'!$A$1:$C$1005,2,0))) -> 
A27: 0.9110524452 | C27: 20 | D27: 909 | E27: =IF(D27="","",(VLOOKUP(D27,'Membership #'!$A$1:$C$1005,2,0))) -> Rebecca Gillis | F27: =IF(D27="","",(VLOOKUP(D27,'Membership #'!$A$1:$C$1005,3,0))) -> Martha's Tivio Moon | G27: 17.166 | I27: 17.166 | J27: 2 | M27: 2nd | N27: 0.25 | O27: =N$11/3*N27 -> 49.9375 | Q27: =IF(P27="","",(VLOOKUP(P27,'Membership #'!$A$1:$C$1005,2,0))) -> 
A28: 0.04999862708 | C28: 21 | D28: 591 | E28: =IF(D28="","",(VLOOKUP(D28,'Membership #'!$A$1:$C$1005,2,0))) -> Wendy MacLean | F28: =IF(D28="","",(VLOOKUP(D28,'Membership #'!$A$1:$C$1005,3,0))) -> White Sox N Flyin | G28: 17.47 | I28: 17.47 | J28: 3 | M28: 3rd | N28: 0.2 | O28: =N$11/3*N28 -> 39.95 | Q28: =IF(P28="","",(VLOOKUP(P28,'Membership #'!$A$1:$C$1005,2,0))) -> 
A29: 0.9642076467 | C29: 22 | D29: 666 | E29: =IF(D29="","",(VLOOKUP(D29,'Membership #'!$A$1:$C$1005,2,0))) -> Summer Fraser | F29: =IF(D29="","",(VLOOKUP(D29,'Membership #'!$A$1:$C$1005,3,0))) -> Sheza Smokin' Girl | G29: 17.567 | I29: 17.567 | J29: 4 | M29: 4th | N29: 0.15 | O29: =N$11/3*N29 -> 29.9625 | Q29: =IF(P29="","",(VLOOKUP(P29,'Membership #'!$A$1:$C$1005,2,0))) -> 
A30: 0.6215435605 | C30: 23 | D30: 600 | E30: =IF(D30="","",(VLOOKUP(D30,'Membership #'!$A$1:$C$1005,2,0))) -> Stan Brown | F30: =IF(D30="","",(VLOOKUP(D30,'Membership #'!$A$1:$C$1005,3,0))) -> A Perty Sure Thing | G30: 17.849 | I30: =IF(G30="n","No Time",IF(G30="x","Scratch",IF(G30<>"",SUM(G30+H30),""))) -> 17.849 | J30: 5 | M30: 5th | N30: 0.05 | O30: =N$11/3*N30 -> 9.9875 | Q30: =IF(P30="","",(VLOOKUP(P30,'Membership #'!$A$1:$C$1005,2,0))) -> 
A31: 0.3501049225 | C31: 24 | D31: 867 | E31: =IF(D31="","",(VLOOKUP(D31,'Membership #'!$A$1:$C$1005,2,0))) -> Layla MacEachem | F31: =IF(D31="","",(VLOOKUP(D31,'Membership #'!$A$1:$C$1005,3,0))) -> Shes a gem | G31: 17.909 | I31: 17.909
A32: 0.2345713225 | C32: 25 | D32: 753 | E32: =IF(D32="","",(VLOOKUP(D32,'Membership #'!$A$1:$C$1005,2,0))) -> Kayla Boudreau | F32: =IF(D32="","",(VLOOKUP(D32,'Membership #'!$A$1:$C$1005,3,0))) -> Lady Jane | G32: 18.024 | I32: 18.024 | O32: =SUM(O13:O17,O19:O23,O26:O30) -> 599.25
A33: 0.1010562208 | C33: 26 | D33: 636 | E33: =IF(D33="","",(VLOOKUP(D33,'Membership #'!$A$1:$C$1005,2,0))) -> Ceilidh Gosse | F33: =IF(D33="","",(VLOOKUP(D33,'Membership #'!$A$1:$C$1005,3,0))) -> ELM Silver Crime | G33: 18.034 | I33: 18.034
A34: 0.6502023654 | C34: 27 | D34: 973 | E34: =IF(D34="","",(VLOOKUP(D34,'Membership #'!$A$1:$C$1005,2,0))) -> Sara Ivey | F34: =IF(D34="","",(VLOOKUP(D34,'Membership #'!$A$1:$C$1005,3,0))) -> Ms Heavenly Gator | G34: 19.314 | I34: 19.314
A35: 0.9663535453 | C35: 28 | D35: 922 | E35: =IF(D35="","",(VLOOKUP(D35,'Membership #'!$A$1:$C$1005,2,0))) -> Stevi Jardine | F35: =IF(D35="","",(VLOOKUP(D35,'Membership #'!$A$1:$C$1005,3,0))) -> Paytons Pretty Cool | G35: 15.395 | H35: 5 | I35: 20.395
A36: 0.8548883234 | C36: 29 | D36: 638 | E36: =IF(D36="","",(VLOOKUP(D36,'Membership #'!$A$1:$C$1005,2,0))) -> Bella Peters | F36: =IF(D36="","",(VLOOKUP(D36,'Membership #'!$A$1:$C$1005,3,0))) -> Super Star | G36: 15.458 | H36: 5 | I36: 20.458 | M36: Rollover
A37: 0.8225885899 | C37: 30 | D37: 967 | E37: =IF(D37="","",(VLOOKUP(D37,'Membership #'!$A$1:$C$1005,2,0))) -> Marissa Hillier | F37: =IF(D37="","",(VLOOKUP(D37,'Membership #'!$A$1:$C$1005,3,0))) -> Notice Betty Boop | G37: 20.551 | I37: 20.551 | M37: 616 | N37: =IF(M37="","",(VLOOKUP(M37,'Membership #'!$A$1:$C$1005,2,0))) -> Judy Bateman | O37: =IF(M37="","",(VLOOKUP(M37,'Membership #'!$A$1:$C$1005,3,0))) -> HM HollywoodRockstar
A38: 0.8229398367 | C38: 31 | D38: 702 | E38: =IF(D38="","",(VLOOKUP(D38,'Membership #'!$A$1:$C$1005,2,0))) -> Jenna Proctor | F38: =IF(D38="","",(VLOOKUP(D38,'Membership #'!$A$1:$C$1005,3,0))) -> Painted to Perfection | G38: 20.623 | I38: 20.623 | M38: 684 | N38: =IF(M38="","",(VLOOKUP(M38,'Membership #'!$A$1:$C$1005,2,0))) -> Shann Cox | O38: =IF(M38="","",(VLOOKUP(M38,'Membership #'!$A$1:$C$1005,3,0))) -> Jags Cash Flow
A39: 0.8764060301 | C39: 32 | D39: 688 | E39: =IF(D39="","",(VLOOKUP(D39,'Membership #'!$A$1:$C$1005,2,0))) -> Lenee Sampson | F39: =IF(D39="","",(VLOOKUP(D39,'Membership #'!$A$1:$C$1005,3,0))) -> Six Dash Run | G39: 20.738 | I39: 20.738 | M39: 688 | N39: =IF(M39="","",(VLOOKUP(M39,'Membership #'!$A$1:$C$1005,2,0))) -> Lenee Sampson | O39: =IF(M39="","",(VLOOKUP(M39,'Membership #'!$A$1:$C$1005,3,0))) -> Six Dash Run
A40: 0.8038787181 | C40: 33 | D40: 777 | E40: =IF(D40="","",(VLOOKUP(D40,'Membership #'!$A$1:$C$1005,2,0))) -> Julia Parker | F40: =IF(D40="","",(VLOOKUP(D40,'Membership #'!$A$1:$C$1005,3,0))) -> Doc's Spirit Prairie | G40: 21.128 | I40: 21.128 | M40: 777 | N40: =IF(M40="","",(VLOOKUP(M40,'Membership #'!$A$1:$C$1005,2,0))) -> Julia Parker | O40: =IF(M40="","",(VLOOKUP(M40,'Membership #'!$A$1:$C$1005,3,0))) -> Doc's Spirit Prairie
A41: 0.4173178192 | C41: 34 | D41: 699 | E41: =IF(D41="","",(VLOOKUP(D41,'Membership #'!$A$1:$C$1005,2,0))) -> Laura Morrison | F41: =IF(D41="","",(VLOOKUP(D41,'Membership #'!$A$1:$C$1005,3,0))) -> MDC Dark Revelation | G41: 16.184 | H41: 5 | I41: 21.184 | M41: 516 | N41: =IF(M41="","",(VLOOKUP(M41,'Membership #'!$A$1:$C$1005,2,0))) -> Laurie Don Reginato | O41: =IF(M41="","",(VLOOKUP(M41,'Membership #'!$A$1:$C$1005,3,0))) -> TCR Gold Runny
A42: 0.2848479352 | C42: 35 | D42: 966 | E42: =IF(D42="","",(VLOOKUP(D42,'Membership #'!$A$1:$C$1005,2,0))) -> Ava Anderson | F42: =IF(D42="","",(VLOOKUP(D42,'Membership #'!$A$1:$C$1005,3,0))) -> Black Sass | G42: 16.315 | H42: 5 | I42: 21.315 | M42: 914 | N42: =IF(M42="","",(VLOOKUP(M42,'Membership #'!$A$1:$C$1005,2,0))) -> Shelby MacPherson | O42: =IF(M42="","",(VLOOKUP(M42,'Membership #'!$A$1:$C$1005,3,0))) -> Shelbys Badger Bar
A43: 0.09155061113 | C43: 36 | D43: 786 | E43: =IF(D43="","",(VLOOKUP(D43,'Membership #'!$A$1:$C$1005,2,0))) -> Rileigh Conrod | F43: =IF(D43="","",(VLOOKUP(D43,'Membership #'!$A$1:$C$1005,3,0))) -> Scotches Harley | G43: 21.771 | I43: 21.771 | M43: 698 | N43: =IF(M43="","",(VLOOKUP(M43,'Membership #'!$A$1:$C$1005,2,0))) -> Kaleigh Denton | O43: =IF(M43="","",(VLOOKUP(M43,'Membership #'!$A$1:$C$1005,3,0))) -> Coleasaki
A44: 0.8109234256 | C44: 37 | D44: 855 | E44: =IF(D44="","",(VLOOKUP(D44,'Membership #'!$A$1:$C$1005,2,0))) -> Jenelle Collier | F44: =IF(D44="","",(VLOOKUP(D44,'Membership #'!$A$1:$C$1005,3,0))) -> Peppy Sans Surprise | G44: 16.899 | H44: 5 | I44: 21.899 | M44: 716 | N44: =IF(M44="","",(VLOOKUP(M44,'Membership #'!$A$1:$C$1005,2,0))) -> Kayla Martin | O44: =IF(M44="","",(VLOOKUP(M44,'Membership #'!$A$1:$C$1005,3,0))) -> Dash Ta Home
A45: 0.6785627344 | C45: 38 | D45: 954 | E45: =IF(D45="","",(VLOOKUP(D45,'Membership #'!$A$1:$C$1005,2,0))) -> Scotia MacEachern | F45: =IF(D45="","",(VLOOKUP(D45,'Membership #'!$A$1:$C$1005,3,0))) -> Hick-a-Licious | G45: 17.356 | H45: 5 | I45: 22.356 | M45: 768 | N45: Tracy Higgins | O45: Iza Wicked Wind
A46: 0.5494502397 | C46: 39 | D46: 514 | E46: =IF(D46="","",(VLOOKUP(D46,'Membership #'!$A$1:$C$1005,2,0))) -> Heather Morrison | F46: =IF(D46="","",(VLOOKUP(D46,'Membership #'!$A$1:$C$1005,3,0))) -> Black Fire Dash | G46: 15.97 | H46: 10 | I46: 25.97 | M46: 538 | N46: Jean Dugas | O46: Pal lil guy
A47: 0.315531538 | C47: 40 | D47: 768 | E47: Tracey Higgins | F47: Iza Wicked Wind | G47: 26.469 | I47: 26.469
A48: 0.03013404609 | C48: 41 | D48: 534 | E48: =IF(D48="","",(VLOOKUP(D48,'Membership #'!$A$1:$C$1005,2,0))) -> Mary Lou Rankin Dentin | F48: =IF(D48="","",(VLOOKUP(D48,'Membership #'!$A$1:$C$1005,3,0))) -> Brandy's Chocolena | G48: n | I48: =IF(G48="n","No Time",IF(G48="x","Scratch",IF(G48<>"",SUM(G48+H48),""))) -> No Time
A49: 0.1289228245 | C49: 42 | D49: 716 | E49: =IF(D49="","",(VLOOKUP(D49,'Membership #'!$A$1:$C$1005,2,0))) -> Kayla Martin | F49: =IF(D49="","",(VLOOKUP(D49,'Membership #'!$A$1:$C$1005,3,0))) -> Dash Ta Home | G49: n | I49: No Time
A50: 0.4202175894 | C50: 43 | D50: 695 | E50: =IF(D50="","",(VLOOKUP(D50,'Membership #'!$A$1:$C$1005,2,0))) -> Tessa Dicks | F50: =IF(D50="","",(VLOOKUP(D50,'Membership #'!$A$1:$C$1005,3,0))) -> Charge's Dusty Luck | G50: x | I50: Scratch
A51: 0.7650734716 | C51: 45 | D51: 889 | E51: =IF(D51="","",(VLOOKUP(D51,'Membership #'!$A$1:$C$1005,2,0))) -> Adelaine Cowley | F51: =IF(D51="","",(VLOOKUP(D51,'Membership #'!$A$1:$C$1005,3,0))) -> Frenchman's Promise | G51: x | I51: Scratch
A52: 0.4425820221 | C52: 46 | D52: 971 | E52: =IF(D52="","",(VLOOKUP(D52,'Membership #'!$A$1:$C$1005,2,0))) -> Arielle Burke | F52: =IF(D52="","",(VLOOKUP(D52,'Membership #'!$A$1:$C$1005,3,0))) -> Elm Sally | G52: x | I52: Scratch
A53: 0.5629397857 | C53: 47 | D53: 968 | E53: =IF(D53="","",(VLOOKUP(D53,'Membership #'!$A$1:$C$1005,2,0))) -> Madison Pelly | F53: =IF(D53="","",(VLOOKUP(D53,'Membership #'!$A$1:$C$1005,3,0))) -> Westin | G53: x | I53: Scratch
A54: 0.1827073624 | C54: 48 | D54: 530 | E54: =IF(D54="","",(VLOOKUP(D54,'Membership #'!$A$1:$C$1005,2,0))) -> Joan Grant | F54: =IF(D54="","",(VLOOKUP(D54,'Membership #'!$A$1:$C$1005,3,0))) -> SLS Dash to Holland | G54: x | I54: Scratch
A55: =IF(#REF!<>"",RAND(),"") ->  | B55: =IF(#REF!<>"",RANK(A55,A$8:A$105),"") ->  | C55: 49 | D55: 732 | E55: =IF(D55="","",(VLOOKUP(D55,'Membership #'!$A$1:$C$1005,2,0))) -> Brenna Carrigan | F55: =IF(D55="","",(VLOOKUP(D55,'Membership #'!$A$1:$C$1005,3,0))) -> Carlos | G55: x | I55: Scratch
A56: =IF(D54<>"",RAND(),"") -> 0.1613917146 | B56: =IF(D54<>"",RANK(A56,A$8:A$105),"") ->  | C56: 48 | D56: 928 | E56: =IF(D56="","",(VLOOKUP(D56,'Membership #'!$A$1:$C$1005,2,0))) -> Tessa Dicks | F56: =IF(D56="","",(VLOOKUP(D56,'Membership #'!$A$1:$C$1005,3,0))) -> ELM Dash of Crime | G56: x | I56: Scratch
A57: 0.2100591238 | C57: 49 | E57: =IF(D57="","",(VLOOKUP(D57,'Membership #'!$A$1:$C$1005,2,0))) ->  | F57: =IF(D57="","",(VLOOKUP(D57,'Membership #'!$A$1:$C$1005,3,0))) ->  | I57: =IF(G57="n","No Time",IF(G57="x","Scratch",IF(G57<>"",SUM(G57+H57),""))) -> 
A58: 0.4847636726 | C58: 50 | E58: =IF(D58="","",(VLOOKUP(D58,'Membership #'!$A$1:$C$1005,2,0))) ->  | F58: =IF(D58="","",(VLOOKUP(D58,'Membership #'!$A$1:$C$1005,3,0))) -> 
E59: =IF(D59="","",(VLOOKUP(D59,'Membership #'!$A$1:$C$1005,2,0))) ->  | F59: =IF(D59="","",(VLOOKUP(D59,'Membership #'!$A$1:$C$1005,3,0))) -> 
E60: =IF(D60="","",(VLOOKUP(D60,'Membership #'!$A$1:$C$1005,2,0))) ->  | F60: =IF(D60="","",(VLOOKUP(D60,'Membership #'!$A$1:$C$1005,3,0))) -> 
E61: =IF(D61="","",(VLOOKUP(D61,'Membership #'!$A$1:$C$1005,2,0))) ->  | F61: =IF(D61="","",(VLOOKUP(D61,'Membership #'!$A$1:$C$1005,3,0))) ->  | I61: =IF(G61="n","No Time",IF(G61="x","Scratch",IF(G61<>"",SUM(G61+H61),""))) -> 
E62: =IF(D62="","",(VLOOKUP(D62,'Membership #'!$A$1:$C$1005,2,0))) ->  | F62: =IF(D62="","",(VLOOKUP(D62,'Membership #'!$A$1:$C$1005,3,0))) ->  | I62: =IF(G62="n","No Time",IF(G62="x","Scratch",IF(G62<>"",SUM(G62+H62),""))) -> 
E63: =IF(D63="","",(VLOOKUP(D63,'Membership #'!$A$1:$C$1005,2,0))) ->  | F63: =IF(D63="","",(VLOOKUP(D63,'Membership #'!$A$1:$C$1005,3,0))) -> 
E64: =IF(D64="","",(VLOOKUP(D64,'Membership #'!$A$1:$C$1005,2,0))) ->  | F64: =IF(D64="","",(VLOOKUP(D64,'Membership #'!$A$1:$C$1005,3,0))) -> 
E65: =IF(D65="","",(VLOOKUP(D65,'Membership #'!$A$1:$C$1005,2,0))) ->  | F65: =IF(D65="","",(VLOOKUP(D65,'Membership #'!$A$1:$C$1005,3,0))) -> 
E66: =IF(D66="","",(VLOOKUP(D66,'Membership #'!$A$1:$C$1005,2,0))) ->  | F66: =IF(D66="","",(VLOOKUP(D66,'Membership #'!$A$1:$C$1005,3,0))) -> 
E67: =IF(D67="","",(VLOOKUP(D67,'Membership #'!$A$1:$C$1005,2,0))) ->  | F67: =IF(D67="","",(VLOOKUP(D67,'Membership #'!$A$1:$C$1005,3,0))) -> 
E68: =IF(D68="","",(VLOOKUP(D68,'Membership #'!$A$1:$C$1005,2,0))) ->  | F68: =IF(D68="","",(VLOOKUP(D68,'Membership #'!$A$1:$C$1005,3,0))) -> 
E69: =IF(D69="","",(VLOOKUP(D69,'Membership #'!$A$1:$C$1005,2,0))) ->  | F69: =IF(D69="","",(VLOOKUP(D69,'Membership #'!$A$1:$C$1005,3,0))) -> 
E70: =IF(D70="","",(VLOOKUP(D70,'Membership #'!$A$1:$C$1005,2,0))) ->  | F70: =IF(D70="","",(VLOOKUP(D70,'Membership #'!$A$1:$C$1005,3,0))) ->  | I70: =IF(G70="n","No Time",IF(G70="x","Scratch",IF(G70<>"",SUM(G70+H70),""))) -> 
E71: =IF(D71="","",(VLOOKUP(D71,'Membership #'!$A$1:$C$1005,2,0))) ->  | F71: =IF(D71="","",(VLOOKUP(D71,'Membership #'!$A$1:$C$1005,3,0))) -> 
E72: =IF(D72="","",(VLOOKUP(D72,'Membership #'!$A$1:$C$1005,2,0))) ->  | F72: =IF(D72="","",(VLOOKUP(D72,'Membership #'!$A$1:$C$1005,3,0))) -> 
E73: =IF(D73="","",(VLOOKUP(D73,'Membership #'!$A$1:$C$1005,2,0))) ->  | F73: =IF(D73="","",(VLOOKUP(D73,'Membership #'!$A$1:$C$1005,3,0))) -> 
E74: =IF(D74="","",(VLOOKUP(D74,'Membership #'!$A$1:$C$1005,2,0))) ->  | F74: =IF(D74="","",(VLOOKUP(D74,'Membership #'!$A$1:$C$1005,3,0))) ->  | I74: =IF(G74="n","No Time",IF(G74="x","Scratch",IF(G74<>"",SUM(G74+H74),""))) -> 
E75: =IF(D75="","",(VLOOKUP(D75,'Membership #'!$A$1:$C$1005,2,0))) ->  | F75: =IF(D75="","",(VLOOKUP(D75,'Membership #'!$A$1:$C$1005,3,0))) -> 
E76: =IF(D76="","",(VLOOKUP(D76,'Membership #'!$A$1:$C$1005,2,0))) ->  | F76: =IF(D76="","",(VLOOKUP(D76,'Membership #'!$A$1:$C$1005,3,0))) -> 
E77: =IF(D77="","",(VLOOKUP(D77,'Membership #'!$A$1:$C$1005,2,0))) ->  | F77: =IF(D77="","",(VLOOKUP(D77,'Membership #'!$A$1:$C$1005,3,0))) -> 
E78: =IF(D78="","",(VLOOKUP(D78,'Membership #'!$A$1:$C$1005,2,0))) ->  | F78: =IF(D78="","",(VLOOKUP(D78,'Membership #'!$A$1:$C$1005,3,0))) -> 
E79: =IF(D79="","",(VLOOKUP(D79,'Membership #'!$A$1:$C$1005,2,0))) ->  | F79: =IF(D79="","",(VLOOKUP(D79,'Membership #'!$A$1:$C$1005,3,0))) -> 
E80: =IF(D80="","",(VLOOKUP(D80,'Membership #'!$A$1:$C$1005,2,0))) ->  | F80: =IF(D80="","",(VLOOKUP(D80,'Membership #'!$A$1:$C$1005,3,0))) -> 
E81: =IF(D81="","",(VLOOKUP(D81,'Membership #'!$A$1:$C$1005,2,0))) ->  | F81: =IF(D81="","",(VLOOKUP(D81,'Membership #'!$A$1:$C$1005,3,0))) -> 
E82: =IF(D82="","",(VLOOKUP(D82,'Membership #'!$A$1:$C$1005,2,0))) ->  | F82: =IF(D82="","",(VLOOKUP(D82,'Membership #'!$A$1:$C$1005,3,0))) -> 
E83: =IF(D83="","",(VLOOKUP(D83,'Membership #'!$A$1:$C$1005,2,0))) ->  | F83: =IF(D83="","",(VLOOKUP(D83,'Membership #'!$A$1:$C$1005,3,0))) -> 
E84: =IF(D84="","",(VLOOKUP(D84,'Membership #'!$A$1:$C$1005,2,0))) ->  | F84: =IF(D84="","",(VLOOKUP(D84,'Membership #'!$A$1:$C$1005,3,0))) -> 
E85: =IF(D85="","",(VLOOKUP(D85,'Membership #'!$A$1:$C$1005,2,0))) ->  | F85: =IF(D85="","",(VLOOKUP(D85,'Membership #'!$A$1:$C$1005,3,0))) ->  | I85: =IF(G85="n","No Time",IF(G85="x","Scratch",IF(G85<>"",SUM(G85+H85),""))) -> 
E86: =IF(D86="","",(VLOOKUP(D86,'Membership #'!$A$1:$C$1005,2,0))) ->  | F86: =IF(D86="","",(VLOOKUP(D86,'Membership #'!$A$1:$C$1005,3,0))) -> 
E87: =IF(D87="","",(VLOOKUP(D87,'Membership #'!$A$1:$C$1005,2,0))) ->  | F87: =IF(D87="","",(VLOOKUP(D87,'Membership #'!$A$1:$C$1005,3,0))) ->  | I87: =IF(G87="n","No Time",IF(G87="x","Scratch",IF(G87<>"",SUM(G87+H87),""))) -> 
A88: =IF(D86<>"",RAND(),"") ->  | B88: =IF(D86<>"",RANK(A88,A$8:A$105),"") ->  | E88: =IF(D88="","",(VLOOKUP(D88,'Membership #'!$A$1:$C$1005,2,0))) ->  | F88: =IF(D88="","",(VLOOKUP(D88,'Membership #'!$A$1:$C$1005,3,0))) -> 
E89: =IF(D89="","",(VLOOKUP(D89,'Membership #'!$A$1:$C$1005,2,0))) ->  | F89: =IF(D89="","",(VLOOKUP(D89,'Membership #'!$A$1:$C$1005,3,0))) ->  | I89: =IF(G89="n","No Time",IF(G89="x","Scratch",IF(G89<>"",SUM(G89+H89),""))) -> 
E90: =IF(D90="","",(VLOOKUP(D90,'Membership #'!$A$1:$C$1005,2,0))) ->  | F90: =IF(D90="","",(VLOOKUP(D90,'Membership #'!$A$1:$C$1005,3,0))) -> 
E91: =IF(D91="","",(VLOOKUP(D91,'Membership #'!$A$1:$C$1005,2,0))) ->  | F91: =IF(D91="","",(VLOOKUP(D91,'Membership #'!$A$1:$C$1005,3,0))) -> 
E92: =IF(D92="","",(VLOOKUP(D92,'Membership #'!$A$1:$C$1005,2,0))) ->  | F92: =IF(D92="","",(VLOOKUP(D92,'Membership #'!$A$1:$C$1005,3,0))) ->  | I92: =IF(G92="n","No Time",IF(G92="x","Scratch",IF(G92<>"",SUM(G92+H92),""))) -> 
E93: =IF(D93="","",(VLOOKUP(D93,'Membership #'!$A$1:$C$1005,2,0))) ->  | F93: =IF(D93="","",(VLOOKUP(D93,'Membership #'!$A$1:$C$1005,3,0))) -> 
E94: =IF(D94="","",(VLOOKUP(D94,'Membership #'!$A$1:$C$1005,2,0))) ->  | F94: =IF(D94="","",(VLOOKUP(D94,'Membership #'!$A$1:$C$1005,3,0))) -> 
E95: =IF(D95="","",(VLOOKUP(D95,'Membership #'!$A$1:$C$1005,2,0))) ->  | F95: =IF(D95="","",(VLOOKUP(D95,'Membership #'!$A$1:$C$1005,3,0))) -> 
E96: =IF(D96="","",(VLOOKUP(D96,'Membership #'!$A$1:$C$1005,2,0))) ->  | F96: =IF(D96="","",(VLOOKUP(D96,'Membership #'!$A$1:$C$1005,3,0))) -> 
E97: =IF(D97="","",(VLOOKUP(D97,'Membership #'!$A$1:$C$1005,2,0))) ->  | F97: =IF(D97="","",(VLOOKUP(D97,'Membership #'!$A$1:$C$1005,3,0))) -> 
E98: =IF(D98="","",(VLOOKUP(D98,'Membership #'!$A$1:$C$1005,2,0))) ->  | F98: =IF(D98="","",(VLOOKUP(D98,'Membership #'!$A$1:$C$1005,3,0))) -> 
E99: =IF(D99="","",(VLOOKUP(D99,'Membership #'!$A$1:$C$1005,2,0))) ->  | F99: =IF(D99="","",(VLOOKUP(D99,'Membership #'!$A$1:$C$1005,3,0))) -> 
E100: =IF(D100="","",(VLOOKUP(D100,'Membership #'!$A$1:$C$1005,2,0))) ->  | F100: =IF(D100="","",(VLOOKUP(D100,'Membership #'!$A$1:$C$1005,3,0))) -> 
E101: =IF(D101="","",(VLOOKUP(D101,'Membership #'!$A$1:$C$1005,2,0))) ->  | F101: =IF(D101="","",(VLOOKUP(D101,'Membership #'!$A$1:$C$1005,3,0))) -> 
E102: =IF(D102="","",(VLOOKUP(D102,'Membership #'!$A$1:$C$1005,2,0))) ->  | F102: =IF(D102="","",(VLOOKUP(D102,'Membership #'!$A$1:$C$1005,3,0))) -> 
E103: =IF(D103="","",(VLOOKUP(D103,'Membership #'!$A$1:$C$1005,2,0))) ->  | F103: =IF(D103="","",(VLOOKUP(D103,'Membership #'!$A$1:$C$1005,3,0))) -> 

Sheet GT_Custom (hidden)
A1: C1 | B1: Custom 1
A2: C2 | B2: Custom 2
A3: C3 | B3: Custom 3
A4: C4 | B4: Custom 4
A5: C5 | B5: Custom 5
A6: C6 | B6: Custom 6
A7: C7 | B7: Custom 7
A8: C8 | B8: Custom 8

Sheet Payouts
A1: Money | B1: Ring # | C1: Class
A2: ='JUNIOR HORSE BARRELS'!O$13 -> 34.73 | B2: ='JUNIOR HORSE BARRELS'!P$13 -> 0 | C2: Jr Horse | F2: Sum of Money
A3: ='JUNIOR HORSE BARRELS'!O$14 -> 25.67 | B3: ='JUNIOR HORSE BARRELS'!P$14 -> 0 | C3: Jr Horse | F3: Ring # | G3: Class | H3: Total
A4: ='JUNIOR HORSE BARRELS'!O$15 -> 15.1 | B4: ='JUNIOR HORSE BARRELS'!P$15 -> 0 | C4: Jr Horse | F4: 0 | G4: 3D Barrels | H4: 200
A5: ='JUNIOR HORSE BARRELS'!O$16 ->  | B5: ='JUNIOR HORSE BARRELS'!P$16 -> 0 | C5: Jr Horse | G5: Adult Barrels | H5: 25
A6: ='JUNIOR HORSE BARRELS'!O$17 ->  | B6: ='JUNIOR HORSE BARRELS'!P$17 -> 0 | C6: Jr Horse | G6: Adult Poles | H6: 25
A7: ='JUNIOR HORSE BARRELS'!O$18 ->  | B7: ='JUNIOR HORSE BARRELS'!P$18 -> 0 | C7: Jr Horse | G7: Jr Horse | H7: 50
A8: ='JUNIOR HORSE BARRELS'!O$19 ->  | B8: ='JUNIOR HORSE BARRELS'!P$19 -> 0 | C8: Jr Horse | G8: Novice Barrels | H8: 0
A9: ='JUNIOR HORSE BARRELS'!O$20 ->  | B9: ='JUNIOR HORSE BARRELS'!P$20 -> 0 | C9: Jr Horse | G9: Novice Poles | H9: 0
A10: ='JUNIOR HORSE BARRELS'!O$21 ->  | B10: ='JUNIOR HORSE BARRELS'!P$21 -> 0 | C10: Jr Horse | G10: Open Barrels | H10: 150
A11: ='JUNIOR HORSE BARRELS'!O$22 ->  | B11: ='JUNIOR HORSE BARRELS'!P$22 -> 0 | C11: Jr Horse | G11: Open Poles | H11: 0
A12: ='YOUTH BARRELS'!O$13 -> 28.4 | B12: ='YOUTH BARRELS'!P$13 -> 0 | C12: Youth Barrels | G12: Youth Barrels | H12: 25
A13: ='YOUTH BARRELS'!O$14 -> 20.4125 | B13: ='YOUTH BARRELS'!P$14 -> 0 | C13: Youth Barrels | G13: Youth Poles | H13: 25
A14: ='YOUTH BARRELS'!O$15 -> 13.3125 | B14: ='YOUTH BARRELS'!P$15 -> 0 | C14: Youth Barrels | F14: 0 Total | H14: 500
A15: ='YOUTH BARRELS'!O$16 -> 10.65 | B15: ='YOUTH BARRELS'!P$16 -> 0 | C15: Youth Barrels | F15: Grand Total | H15: 500
A16: ='YOUTH BARRELS'!O$17 -> 8.875 | B16: ='YOUTH BARRELS'!P$17 -> 0 | C16: Youth Barrels
A17: ='YOUTH BARRELS'!O$18 -> 7.1 | B17: ='YOUTH BARRELS'!P$18 -> 0 | C17: Youth Barrels
A18: ='YOUTH BARRELS'!O$19 ->  | B18: ='YOUTH BARRELS'!P$19 -> 0 | C18: Youth Barrels
A19: ='YOUTH BARRELS'!O$20 ->  | B19: ='YOUTH BARRELS'!P$20 -> 0 | C19: Youth Barrels
A20: ='YOUTH BARRELS'!O$21 ->  | B20: ='YOUTH BARRELS'!P$21 -> 0 | C20: Youth Barrels
A21: ='YOUTH BARRELS'!O$22 ->  | B21: ='YOUTH BARRELS'!P$22 -> 0 | C21: Youth Barrels
A22: ='NOVICE BARRELS'!O$13 -> 92 | B22: ='NOVICE BARRELS'!P$13 -> 0 | C22: Novice Barrels
A23: ='NOVICE BARRELS'!O$14 -> 66.125 | B23: ='NOVICE BARRELS'!P$14 -> 0 | C23: Novice Barrels
A24: ='NOVICE BARRELS'!O$15 -> 43.125 | B24: ='NOVICE BARRELS'!P$15 -> 0 | C24: Novice Barrels
A25: ='NOVICE BARRELS'!O$16 -> 34.5 | B25: ='NOVICE BARRELS'!P$16 -> 0 | C25: Novice Barrels
A26: ='NOVICE BARRELS'!O$17 -> 28.75 | B26: ='NOVICE BARRELS'!P$17 -> 0 | C26: Novice Barrels
A27: ='NOVICE BARRELS'!O$18 -> 23 | B27: ='NOVICE BARRELS'!P$18 -> 0 | C27: Novice Barrels
A28: ='NOVICE BARRELS'!O$19 ->  | B28: ='NOVICE BARRELS'!P$19 -> 0 | C28: Novice Barrels
A29: ='NOVICE BARRELS'!O$20 ->  | B29: ='NOVICE BARRELS'!P$20 -> 0 | C29: Novice Barrels
A30: ='NOVICE BARRELS'!O$21 ->  | B30: ='NOVICE BARRELS'!P$21 -> 0 | C30: Novice Barrels
A31: ='NOVICE BARRELS'!O$22 ->  | B31: ='NOVICE BARRELS'!P$22 -> 0 | C31: Novice Barrels
A32: ='OPEN BARRELS'!O$13 -> 142.08 | B32: ='OPEN BARRELS'!P$13 -> 0 | C32: Open Barrels
A33: ='OPEN BARRELS'!O$14 -> 112.48 | B33: ='OPEN BARRELS'!P$14 -> 0 | C33: Open Barrels
A34: ='OPEN BARRELS'!O$15 -> 94.72 | B34: ='OPEN BARRELS'!P$15 -> 0 | C34: Open Barrels
A35: ='OPEN BARRELS'!O$16 -> 76.96 | B35: ='OPEN BARRELS'!P$16 -> 0 | C35: Open Barrels
A36: ='OPEN BARRELS'!O$17 -> 47.36 | B36: ='OPEN BARRELS'!P$17 -> 0 | C36: Open Barrels
A37: ='OPEN BARRELS'!O$18 -> 35.52 | B37: ='OPEN BARRELS'!P$18 -> 0 | C37: Open Barrels
A38: ='OPEN BARRELS'!O$19 -> 29.6 | B38: ='OPEN BARRELS'!P$19 -> 0 | C38: Open Barrels
A39: ='OPEN BARRELS'!O$20 -> 23.68 | B39: ='OPEN BARRELS'!P$20 -> 0 | C39: Open Barrels
A40: ='OPEN BARRELS'!O$21 -> 17.76 | B40: ='OPEN BARRELS'!P$21 -> 0 | C40: Open Barrels
A41: ='OPEN BARRELS'!O$22 -> 11.84 | B41: ='OPEN BARRELS'!P$22 -> 0 | C41: Open Barrels
A42: ='YOUTH POLES'!O$13 -> 29.76 | B42: ='YOUTH POLES'!P$13 -> 0 | C42: Youth Poles
A43: ='YOUTH POLES'!O$14 -> 21.39 | B43: ='YOUTH POLES'!P$14 -> 0 | C43: Youth Poles
A44: ='YOUTH POLES'!O$15 -> 13.95 | B44: ='YOUTH POLES'!P$15 -> 0 | C44: Youth Poles
A45: ='YOUTH POLES'!O$16 -> 11.16 | B45: ='YOUTH POLES'!P$16 -> 0 | C45: Youth Poles
A46: ='YOUTH POLES'!O$17 -> 9.3 | B46: ='YOUTH POLES'!P$17 -> 0 | C46: Youth Poles
A47: ='YOUTH POLES'!O$18 -> 7.44 | B47: ='YOUTH POLES'!P$18 -> 0 | C47: Youth Poles
A48: ='YOUTH POLES'!O$19 ->  | B48: ='YOUTH POLES'!P$19 -> 0 | C48: Youth Poles
A49: ='YOUTH POLES'!O$20 ->  | B49: ='YOUTH POLES'!P$20 -> 0 | C49: Youth Poles
A50: ='YOUTH POLES'!O$21 ->  | B50: ='YOUTH POLES'!P$21 -> 0 | C50: Youth Poles
A51: ='YOUTH POLES'!O$22 ->  | B51: ='YOUTH POLES'!P$22 -> 0 | C51: Youth Poles
A52: ='NOVICE POLES'!O$13 -> 75.68 | B52: ='NOVICE POLES'!P$13 -> 0 | C52: Novice Poles
A53: ='NOVICE POLES'!O$14 -> 54.395 | B53: ='NOVICE POLES'!P$14 -> 0 | C53: Novice Poles
A54: ='NOVICE POLES'!O$15 -> 35.475 | B54: ='NOVICE POLES'!P$15 -> 0 | C54: Novice Poles
A55: ='NOVICE POLES'!O$16 -> 28.38 | B55: ='NOVICE POLES'!P$16 -> 0 | C55: Novice Poles
A56: ='NOVICE POLES'!O$17 -> 23.65 | B56: ='NOVICE POLES'!P$17 -> 0 | C56: Novice Poles
A57: ='NOVICE POLES'!O$18 -> 18.92 | B57: ='NOVICE POLES'!P$18 -> 0 | C57: Novice Poles
A58: ='NOVICE POLES'!O$19 ->  | B58: ='NOVICE POLES'!P$19 -> 0 | C58: Novice Poles
A59: ='NOVICE POLES'!O$20 ->  | B59: ='NOVICE POLES'!P$20 -> 0 | C59: Novice Poles
A60: ='NOVICE POLES'!O$21 ->  | B60: ='NOVICE POLES'!P$21 -> 0 | C60: Novice Poles
A61: ='NOVICE POLES'!O$22 ->  | B61: ='NOVICE POLES'!P$22 -> 0 | C61: Novice Poles
A62: ='OPEN POLES'!O$13 -> 127.71 | B62: ='OPEN POLES'!P$13 -> 0 | C62: Open Poles
A63: ='OPEN POLES'!O$14 -> 104.06 | B63: ='OPEN POLES'!P$14 -> 0 | C63: Open Poles
A64: ='OPEN POLES'!O$15 -> 85.14 | B64: ='OPEN POLES'!P$15 -> 0 | C64: Open Poles
A65: ='OPEN POLES'!O$16 -> 61.49 | B65: ='OPEN POLES'!P$16 -> 0 | C65: Open Poles
A66: ='OPEN POLES'!O$17 -> 42.57 | B66: ='OPEN POLES'!P$17 -> 0 | C66: Open Poles
A67: ='OPEN POLES'!O$18 -> 28.38 | B67: ='OPEN POLES'!P$18 -> 0 | C67: Open Poles
A68: ='OPEN POLES'!O$19 -> 14.19 | B68: ='OPEN POLES'!P$19 -> 0 | C68: Open Poles
A69: ='OPEN POLES'!O$20 -> 9.46 | B69: ='OPEN POLES'!P$20 -> 0 | C69: Open Poles
A70: ='OPEN POLES'!O$21 ->  | B70: ='OPEN POLES'!P$21 -> 0 | C70: Open Poles
A71: ='OPEN POLES'!O$22 ->  | B71: ='OPEN POLES'!P$22 -> 0 | C71: Open Poles
A72: ='3D Barrels'!O13 -> 69.9125 | B72: ='3D Barrels'!P13 -> 0 | C72: 3D Barrels
A73: ='3D Barrels'!O14 -> 49.9375 | B73: ='3D Barrels'!P14 -> 0 | C73: 3D Barrels
A74: ='3D Barrels'!O15 -> 39.95 | B74: ='3D Barrels'!P15 -> 0 | C74: 3D Barrels
A75: ='3D Barrels'!O16 -> 29.9625 | B75: ='3D Barrels'!P16 -> 0 | C75: 3D Barrels
A76: ='3D Barrels'!O17 -> 9.9875 | B76: ='3D Barrels'!P17 -> 0 | C76: 3D Barrels
A77: ='3D Barrels'!O19 -> 69.9125 | B77: ='3D Barrels'!P19 -> 0 | C77: 3D Barrels
A78: ='3D Barrels'!O20 -> 49.9375 | B78: ='3D Barrels'!P20 -> 0 | C78: 3D Barrels
A79: ='3D Barrels'!O21 -> 39.95 | B79: ='3D Barrels'!P21 -> 0 | C79: 3D Barrels
A80: ='3D Barrels'!O22 -> 29.9625 | B80: ='3D Barrels'!P22 -> 0 | C80: 3D Barrels
A81: ='3D Barrels'!O23 -> 9.9875 | B81: ='3D Barrels'!P23 -> 0 | C81: 3D Barrels
A82: ='3D Barrels'!O26 -> 69.9125 | B82: ='3D Barrels'!P26 -> 0 | C82: 3D Barrels
A83: ='3D Barrels'!O27 -> 49.9375 | B83: ='3D Barrels'!P27 -> 0 | C83: 3D Barrels
A84: ='3D Barrels'!O28 -> 39.95 | B84: ='3D Barrels'!P28 -> 0 | C84: 3D Barrels
A85: ='3D Barrels'!O29 -> 29.9625 | B85: ='3D Barrels'!P29 -> 0 | C85: 3D Barrels
A86: ='3D Barrels'!O30 -> 9.9875 | B86: ='3D Barrels'!P30 -> 0 | C86: 3D Barrels
A87: ='Adult Green Barrels'!O$13 -> 42 | B87: ='Adult Green Barrels'!P$13 -> 0 | C87: Adult Barrels
A88: ='Adult Green Barrels'!O$14 ->  | B88: ='Adult Green Barrels'!P$14 -> 0 | C88: Adult Barrels
A89: ='Adult Green Barrels'!O$15 ->  | B89: ='Adult Green Barrels'!P$15 -> 0 | C89: Adult Barrels
A90: ='Adult Green Barrels'!O$16 ->  | B90: ='Adult Green Barrels'!P$16 -> 0 | C90: Adult Barrels
A91: ='Adult Green Barrels'!O$17 ->  | B91: ='Adult Green Barrels'!P$17 -> 0 | C91: Adult Barrels
A92: ='Adult Green Barrels'!O$18 ->  | B92: ='Adult Green Barrels'!P$18 -> 0 | C92: Adult Barrels
A93: ='Adult Green Barrels'!O$19 ->  | B93: ='Adult Green Barrels'!P$19 -> 0 | C93: Adult Barrels
A94: ='Adult Green Barrels'!O$20 ->  | B94: ='Adult Green Barrels'!P$20 -> 0 | C94: Adult Barrels
A95: ='ADULT GREEN POLES'!O$13 -> 42 | B95: ='ADULT GREEN POLES'!P$13 -> 0 | C95: Adult Poles
A96: ='ADULT GREEN POLES'!O$14 ->  | B96: ='ADULT GREEN POLES'!P$14 -> 0 | C96: Adult Poles
A97: ='ADULT GREEN POLES'!O$15 ->  | B97: ='ADULT GREEN POLES'!P$15 -> 0 | C97: Adult Poles
A98: ='ADULT GREEN POLES'!O$16 ->  | B98: ='ADULT GREEN POLES'!P$16 -> 0 | C98: Adult Poles
A99: ='ADULT GREEN POLES'!O$17 ->  | B99: ='ADULT GREEN POLES'!P$17 -> 0 | C99: Adult Poles
A100: ='ADULT GREEN POLES'!O$18 ->  | B100: ='ADULT GREEN POLES'!P$18 -> 0 | C100: Adult Poles
A101: ='ADULT GREEN POLES'!O$19 ->  | B101: ='ADULT GREEN POLES'!P$19 -> 0 | C101: Adult Poles
A102: ='ADULT GREEN POLES'!O$20 ->  | B102: ='ADULT GREEN POLES'!P$20 -> 0 | C102: Adult Poles

Sheet Show Report
A1: MBRA Jackpot - Windsor - July 24 & 25, 2021
A3: INCOME
A4: Head Fee | B4: 2250
A5: Drug Fee | B5: 225
A6: Class Fee Day 1 | B6: 1090
A7: Class Fee Day 2 | B7: 1120
A8: 3D | B8: 585
A9: Added Day 1 | B9: 600
A10: Added Day 2 | B10: 600
A11: 3D Sponsor | B11: 100
B13: =SUM(B4:B11) -> 6570 | D13: =SUM(B13) -> 6570
A15: EXPENSES
A16: Heather/Timer
A17: Day 1 Payouts (15%) | C17: -2124
A18: Day 2 Payouts (15%) | C18: -1552 | E18: =SUM(C17:C18) -> -3676
A19: Kids Prizes
A20: Ground Rental
A21: User Fee 69 @ $5
C22: =SUM(C16:C21) -> -3676 | D22: =SUM(C22) -> -3676
A23: Total Income
A25: CASH ON HAND | D25: =SUM(D13:D22) -> 2894

Sheet Sheet3
